{"text_format":"1","workbook":"xlsx","n_sheets":5,"sheets":["Данные","Посетители","Итого","Б","В"],"not_rendered":{"charts":0,"images":0,"macros":1,"external_links":0,"defined_names":0,"comments":0,"pivot_tables":0},"unopened":[],"bounds":{"document_bytes":16777216,"sheet_cells":100000,"rows_first":2000,"rows_last":500,"rows_between":2000,"halvings":0,"cell_chars":16384,"cell_head_chars":4096},"cells_cut":0,"cells_raw":0,"read":"whole","date_system":"1900"}

{"sheet":"Данные","index":0,"n_rows":14,"n_cols":3,"rows_kept":14,"cut":false,"hidden":false,"merged":[]}
[]
["Статус 1","Нет","По прсьбе"]
["Статус 2","Признан нуждающимся в Социальном обслуживании","По личному обращению"]
["Статус 3"]
["Статус 4"]
["Статус 5"]
["Статус 6"]
["Статус 7"]
["Статус 8"]
["Статус 9"]
["Статус 10"]
["Статус 11"]
["Статус 12"]
["Статус 13"]

{"sheet":"Посетители","index":1,"n_rows":13,"n_cols":12,"rows_kept":13,"cut":false,"hidden":false,"merged":[]}
["№ п./п.","Фамилия И.О.","Дата рождения","Признаки социального риска","Оказанная учреждением помощь","Признан нуждающимся в социальном обслуживании","Начало","Окончание","Попал в центр","Отец","Мать","Адрес"]
[{"$f":"IF(ISBLANK(B2),\"\",MAX(A$1:A1)+1)","v":1},"Борисов С.П.","2017-01-07","Статус 2   Статус 4",null,null,"2018-01-01","2018-02-01","По прсьбе"]
[{"$f":"IF(ISBLANK(B3),\"\",MAX(A$1:A2)+1)","v":2},"Аксёнов Андрей Викторович","1966-11-13","Статус 2   Статус 5",null,null,"2018-01-02","2018-02-02","По личному обращению","Аксёнов Виктор Иванович","Аксёнова Роза Петровна","г.Москва, ул. Ленина, д.1 кв.2"]
[{"$f":"IF(ISBLANK(B4),\"\",MAX(A$1:A3)+1)","v":3},"Аксёнова Алия Викторовна","2017-01-02","Статус 2   Статус 5",null,null,"2018-01-03","2018-02-03","По прсьбе","Аксёнов Виктор Иванович","Аксёнова Роза Петровна","г.Москва, ул. Ленина, д.1 кв.2"]
[{"$f":"IF(ISBLANK(B5),\"\",MAX(A$1:A4)+1)","v":4},"Бочаров","2017-01-03",null,null,null,"2018-01-04","2018-02-04","По прсьбе"]
[{"$f":"IF(ISBLANK(B6),\"\",MAX(A$1:A5)+1)","v":5},"Барыкин","2017-01-03",null,null,null,"2018-01-05","2018-02-05","По личному обращению"]
[{"$f":"IF(ISBLANK(B7),\"\",MAX(A$1:A6)+1)","v":6},"Врунгель Х.Б.","2017-02-02",null,null,null,"2018-01-06","2018-02-06","По прсьбе"]
[{"$f":"IF(ISBLANK(B8),\"\",MAX(A$1:A7)+1)","v":7},"Мюнхаузен Б.И.","2017-03-12",null,null,null,"2018-01-07","2018-02-07","По личному обращению"]
[{"$f":"IF(ISBLANK(B9),\"\",MAX(A$1:A8)+1)","v":8},"Яшин","2017-03-12",null,null,null,"2018-01-08","2018-02-08","По прсьбе"]
[{"$f":"IF(ISBLANK(B10),\"\",MAX(A$1:A9)+1)","v":9},"Аристов","2017-04-01",null,null,null,"2018-01-09","2018-02-09","По прсьбе"]
[{"$f":"IF(ISBLANK(B11),\"\",MAX(A$1:A10)+1)","v":10},"Явлинский И.Л.","2017-04-01",null,null,null,"2018-01-10","2018-02-10","По прсьбе"]
[{"$f":"IF(ISBLANK(B12),\"\",MAX(A$1:A11)+1)","v":11},"Путин В.в.","2018-06-30","Статус 1   Статус 8",null,null,"2018-01-11","2018-02-11","По прсьбе"]
[{"$f":"IF(ISBLANK(B13),\"\",MAX(A$1:A12)+1)","v":12},"Рыбак"]

{"sheet":"Итого","index":2,"n_rows":183,"n_cols":7,"rows_kept":183,"cut":false,"hidden":false,"merged":[]}
["Кол-во на листе","№ п./п.","Фамилия Имя Отчество","Дата","Отец","Мать","Адрес"]
[{"$f":"COUNTIF(C2:C182,\"?*\")","v":12},{"$f":"ROW()-1","v":1},{"$f":"IFERROR(INDEX(Т1[Фамилия И.О.],$B2),\"\")","v":"Борисов С.П."},{"$f":"IFERROR(IF(INDEX(Т1[Дата рождения],$B2)=0,\"\",INDEX(Т1[Дата рождения],$B2)),\"\")","v":"2017-01-07"},{"$f":"IFERROR(INDEX(Т1[Отец],$B2),\"\")","v":0},{"$f":"IFERROR(INDEX(Т1[Мать],$B2),\"\")","v":0},{"$f":"IFERROR(INDEX(Т1[Адрес],$B2),\"\")","v":0}]
[null,{"$f":"ROW()-1","v":2},{"$f":"IFERROR(INDEX(Т1[Фамилия И.О.],$B3),\"\")","v":"Аксёнов Андрей Викторович"},{"$f":"IFERROR(IF(INDEX(Т1[Дата рождения],$B3)=0,\"\",INDEX(Т1[Дата рождения],$B3)),\"\")","v":"1966-11-13"},{"$f":"IFERROR(INDEX(Т1[Отец],$B3),\"\")","v":"Аксёнов Виктор Иванович"},{"$f":"IFERROR(INDEX(Т1[Мать],$B3),\"\")","v":"Аксёнова Роза Петровна"},{"$f":"IFERROR(INDEX(Т1[Адрес],$B3),\"\")","v":"г.Москва, ул. Ленина, д.1 кв.2"}]
[null,3,{"$f":"IFERROR(INDEX(Т1[Фамилия И.О.],$B4),\"\")","v":"Аксёнова Алия Викторовна"},{"$f":"IFERROR(IF(INDEX(Т1[Дата рождения],$B4)=0,\"\",INDEX(Т1[Дата рождения],$B4)),\"\")","v":"2017-01-02"},{"$f":"IFERROR(INDEX(Т1[Отец],$B4),\"\")","v":"Аксёнов Виктор Иванович"},{"$f":"IFERROR(INDEX(Т1[Мать],$B4),\"\")","v":"Аксёнова Роза Петровна"},{"$f":"IFERROR(INDEX(Т1[Адрес],$B4),\"\")","v":"г.Москва, ул. Ленина, д.1 кв.2"}]
[null,4,{"$f":"IFERROR(INDEX(Т1[Фамилия И.О.],$B5),\"\")","v":"Бочаров"},{"$f":"IFERROR(IF(INDEX(Т1[Дата рождения],$B5)=0,\"\",INDEX(Т1[Дата рождения],$B5)),\"\")","v":"2017-01-03"},{"$f":"IFERROR(INDEX(Т1[Отец],$B5),\"\")","v":0},{"$f":"IFERROR(INDEX(Т1[Мать],$B5),\"\")","v":0},{"$f":"IFERROR(INDEX(Т1[Адрес],$B5),\"\")","v":0}]
[null,5,{"$f":"IFERROR(INDEX(Т1[Фамилия И.О.],$B6),\"\")","v":"Барыкин"},{"$f":"IFERROR(IF(INDEX(Т1[Дата рождения],$B6)=0,\"\",INDEX(Т1[Дата рождения],$B6)),\"\")","v":"2017-01-03"},{"$f":"IFERROR(INDEX(Т1[Отец],$B6),\"\")","v":0},{"$f":"IFERROR(INDEX(Т1[Мать],$B6),\"\")","v":0},{"$f":"IFERROR(INDEX(Т1[Адрес],$B6),\"\")","v":0}]
[null,6,{"$f":"IFERROR(INDEX(Т1[Фамилия И.О.],$B7),\"\")","v":"Врунгель Х.Б."},{"$f":"IFERROR(IF(INDEX(Т1[Дата рождения],$B7)=0,\"\",INDEX(Т1[Дата рождения],$B7)),\"\")","v":"2017-02-02"},{"$f":"IFERROR(INDEX(Т1[Отец],$B7),\"\")","v":0},{"$f":"IFERROR(INDEX(Т1[Мать],$B7),\"\")","v":0},{"$f":"IFERROR(INDEX(Т1[Адрес],$B7),\"\")","v":0}]
[null,7,{"$f":"IFERROR(INDEX(Т1[Фамилия И.О.],$B8),\"\")","v":"Мюнхаузен Б.И."},{"$f":"IFERROR(IF(INDEX(Т1[Дата рождения],$B8)=0,\"\",INDEX(Т1[Дата рождения],$B8)),\"\")","v":"2017-03-12"},{"$f":"IFERROR(INDEX(Т1[Отец],$B8),\"\")","v":0},{"$f":"IFERROR(INDEX(Т1[Мать],$B8),\"\")","v":0},{"$f":"IFERROR(INDEX(Т1[Адрес],$B8),\"\")","v":0}]
[null,8,{"$f":"IFERROR(INDEX(Т1[Фамилия И.О.],$B9),\"\")","v":"Яшин"},{"$f":"IFERROR(IF(INDEX(Т1[Дата рождения],$B9)=0,\"\",INDEX(Т1[Дата рождения],$B9)),\"\")","v":"2017-03-12"},{"$f":"IFERROR(INDEX(Т1[Отец],$B9),\"\")","v":0},{"$f":"IFERROR(INDEX(Т1[Мать],$B9),\"\")","v":0},{"$f":"IFERROR(INDEX(Т1[Адрес],$B9),\"\")","v":0}]
[null,9,{"$f":"IFERROR(INDEX(Т1[Фамилия И.О.],$B10),\"\")","v":"Аристов"},{"$f":"IFERROR(IF(INDEX(Т1[Дата рождения],$B10)=0,\"\",INDEX(Т1[Дата рождения],$B10)),\"\")","v":"2017-04-01"},{"$f":"IFERROR(INDEX(Т1[Отец],$B10),\"\")","v":0},{"$f":"IFERROR(INDEX(Т1[Мать],$B10),\"\")","v":0},{"$f":"IFERROR(INDEX(Т1[Адрес],$B10),\"\")","v":0}]
[null,10,{"$f":"IFERROR(INDEX(Т1[Фамилия И.О.],$B11),\"\")","v":"Явлинский И.Л."},{"$f":"IFERROR(IF(INDEX(Т1[Дата рождения],$B11)=0,\"\",INDEX(Т1[Дата рождения],$B11)),\"\")","v":"2017-04-01"},{"$f":"IFERROR(INDEX(Т1[Отец],$B11),\"\")","v":0},{"$f":"IFERROR(INDEX(Т1[Мать],$B11),\"\")","v":0},{"$f":"IFERROR(INDEX(Т1[Адрес],$B11),\"\")","v":0}]
[null,11,{"$f":"IFERROR(INDEX(Т1[Фамилия И.О.],$B12),\"\")","v":"Путин В.в."},{"$f":"IFERROR(IF(INDEX(Т1[Дата рождения],$B12)=0,\"\",INDEX(Т1[Дата рождения],$B12)),\"\")","v":"2018-06-30"},{"$f":"IFERROR(INDEX(Т1[Отец],$B12),\"\")","v":0},{"$f":"IFERROR(INDEX(Т1[Мать],$B12),\"\")","v":0},{"$f":"IFERROR(INDEX(Т1[Адрес],$B12),\"\")","v":0}]
[null,12,{"$f":"IFERROR(INDEX(Т1[Фамилия И.О.],$B13),\"\")","v":"Рыбак"},{"$f":"IFERROR(IF(INDEX(Т1[Дата рождения],$B13)=0,\"\",INDEX(Т1[Дата рождения],$B13)),\"\")","v":""},{"$f":"IFERROR(INDEX(Т1[Отец],$B13),\"\")","v":0},{"$f":"IFERROR(INDEX(Т1[Мать],$B13),\"\")","v":0},{"$f":"IFERROR(INDEX(Т1[Адрес],$B13),\"\")","v":0}]
[null,13,{"$f":"IFERROR(INDEX(Т1[Фамилия И.О.],$B14),\"\")","v":""},{"$f":"IFERROR(IF(INDEX(Т1[Дата рождения],$B14)=0,\"\",INDEX(Т1[Дата рождения],$B14)),\"\")","v":""},{"$f":"IFERROR(INDEX(Т1[Отец],$B14),\"\")","v":""},{"$f":"IFERROR(INDEX(Т1[Мать],$B14),\"\")","v":""},{"$f":"IFERROR(INDEX(Т1[Адрес],$B14),\"\")","v":""}]
[null,14,{"$f":"IFERROR(INDEX(Т1[Фамилия И.О.],$B15),\"\")","v":""},{"$f":"IFERROR(IF(INDEX(Т1[Дата рождения],$B15)=0,\"\",INDEX(Т1[Дата рождения],$B15)),\"\")","v":""},{"$f":"IFERROR(INDEX(Т1[Отец],$B15),\"\")","v":""},{"$f":"IFERROR(INDEX(Т1[Мать],$B15),\"\")","v":""},{"$f":"IFERROR(INDEX(Т1[Адрес],$B15),\"\")","v":""}]
[null,15,{"$f":"IFERROR(INDEX(Т1[Фамилия И.О.],$B16),\"\")","v":""},{"$f":"IFERROR(IF(INDEX(Т1[Дата рождения],$B16)=0,\"\",INDEX(Т1[Дата рождения],$B16)),\"\")","v":""},{"$f":"IFERROR(INDEX(Т1[Отец],$B16),\"\")","v":""},{"$f":"IFERROR(INDEX(Т1[Мать],$B16),\"\")","v":""},{"$f":"IFERROR(INDEX(Т1[Адрес],$B16),\"\")","v":""}]
[null,16,{"$f":"IFERROR(INDEX(Т1[Фамилия И.О.],$B17),\"\")","v":""},{"$f":"IFERROR(IF(INDEX(Т1[Дата рождения],$B17)=0,\"\",INDEX(Т1[Дата рождения],$B17)),\"\")","v":""},{"$f":"IFERROR(INDEX(Т1[Отец],$B17),\"\")","v":""},{"$f":"IFERROR(INDEX(Т1[Мать],$B17),\"\")","v":""},{"$f":"IFERROR(INDEX(Т1[Адрес],$B17),\"\")","v":""}]
[null,17,{"$f":"IFERROR(INDEX(Т1[Фамилия И.О.],$B18),\"\")","v":""},{"$f":"IFERROR(IF(INDEX(Т1[Дата рождения],$B18)=0,\"\",INDEX(Т1[Дата рождения],$B18)),\"\")","v":""},{"$f":"IFERROR(INDEX(Т1[Отец],$B18),\"\")","v":""},{"$f":"IFERROR(INDEX(Т1[Мать],$B18),\"\")","v":""},{"$f":"IFERROR(INDEX(Т1[Адрес],$B18),\"\")","v":""}]
[null,18,{"$f":"IFERROR(INDEX(Т1[Фамилия И.О.],$B19),\"\")","v":""},{"$f":"IFERROR(IF(INDEX(Т1[Дата рождения],$B19)=0,\"\",INDEX(Т1[Дата рождения],$B19)),\"\")","v":""},{"$f":"IFERROR(INDEX(Т1[Отец],$B19),\"\")","v":""},{"$f":"IFERROR(INDEX(Т1[Мать],$B19),\"\")","v":""},{"$f":"IFERROR(INDEX(Т1[Адрес],$B19),\"\")","v":""}]
[null,19,{"$f":"IFERROR(INDEX(Т1[Фамилия И.О.],$B20),\"\")","v":""},{"$f":"IFERROR(IF(INDEX(Т1[Дата рождения],$B20)=0,\"\",INDEX(Т1[Дата рождения],$B20)),\"\")","v":""},{"$f":"IFERROR(INDEX(Т1[Отец],$B20),\"\")","v":""},{"$f":"IFERROR(INDEX(Т1[Мать],$B20),\"\")","v":""},{"$f":"IFERROR(INDEX(Т1[Адрес],$B20),\"\")","v":""}]
[null,20,{"$f":"IFERROR(INDEX(Т1[Фамилия И.О.],$B21),\"\")","v":""},{"$f":"IFERROR(IF(INDEX(Т1[Дата рождения],$B21)=0,\"\",INDEX(Т1[Дата рождения],$B21)),\"\")","v":""},{"$f":"IFERROR(INDEX(Т1[Отец],$B21),\"\")","v":""},{"$f":"IFERROR(INDEX(Т1[Мать],$B21),\"\")","v":""},{"$f":"IFERROR(INDEX(Т1[Адрес],$B21),\"\")","v":""}]
[null,21,{"$f":"IFERROR(INDEX(Т1[Фамилия И.О.],$B22),\"\")","v":""},{"$f":"IFERROR(IF(INDEX(Т1[Дата рождения],$B22)=0,\"\",INDEX(Т1[Дата рождения],$B22)),\"\")","v":""},{"$f":"IFERROR(INDEX(Т1[Отец],$B22),\"\")","v":""},{"$f":"IFERROR(INDEX(Т1[Мать],$B22),\"\")","v":""},{"$f":"IFERROR(INDEX(Т1[Адрес],$B22),\"\")","v":""}]
[null,{"$f":"IFERROR(INDEX(Т1[№ п./п.],SMALL(IF(LEFTB(Т1[Фамилия И.О.])=RIGHTB(CELL(\"имяфайла\",E23)),Т1[№ п./п.]),ROW(B22))),\"\")","v":""},{"$f":"IFERROR(INDEX(Т1[Фамилия И.О.],SMALL(IF(LEFTB(Т1[Фамилия И.О.])=RIGHTB(CELL(\"имяфайла\",F23)),Т1[№ п./п.]),ROW(C22))),\"\")","v":""},{"$f":"IFERROR(INDEX(Т1[Дата рождения],SMALL(IF(LEFTB(Т1[Фамилия И.О.])=RIGHTB(CELL(\"имяфайла\",G23)),Т1[№ п./п.]),ROW(D22))),\"\")","v":""}]
[null,{"$f":"IFERROR(INDEX(Т1[№ п./п.],SMALL(IF(LEFTB(Т1[Фамилия И.О.])=RIGHTB(CELL(\"имяфайла\",E24)),Т1[№ п./п.]),ROW(B23))),\"\")","v":""},{"$f":"IFERROR(INDEX(Т1[Фамилия И.О.],SMALL(IF(LEFTB(Т1[Фамилия И.О.])=RIGHTB(CELL(\"имяфайла\",F24)),Т1[№ п./п.]),ROW(C23))),\"\")","v":""},{"$f":"IFERROR(INDEX(Т1[Дата рождения],SMALL(IF(LEFTB(Т1[Фамилия И.О.])=RIGHTB(CELL(\"имяфайла\",G24)),Т1[№ п./п.]),ROW(D23))),\"\")","v":""}]
[null,{"$f":"IFERROR(INDEX(Т1[№ п./п.],SMALL(IF(LEFTB(Т1[Фамилия И.О.])=RIGHTB(CELL(\"имяфайла\",E25)),Т1[№ п./п.]),ROW(B24))),\"\")","v":""},{"$f":"IFERROR(INDEX(Т1[Фамилия И.О.],SMALL(IF(LEFTB(Т1[Фамилия И.О.])=RIGHTB(CELL(\"имяфайла\",F25)),Т1[№ п./п.]),ROW(C24))),\"\")","v":""},{"$f":"IFERROR(INDEX(Т1[Дата рождения],SMALL(IF(LEFTB(Т1[Фамилия И.О.])=RIGHTB(CELL(\"имяфайла\",G25)),Т1[№ п./п.]),ROW(D24))),\"\")","v":""}]
[null,{"$f":"IFERROR(INDEX(Т1[№ п./п.],SMALL(IF(LEFTB(Т1[Фамилия И.О.])=RIGHTB(CELL(\"имяфайла\",E26)),Т1[№ п./п.]),ROW(B25))),\"\")","v":""},{"$f":"IFERROR(INDEX(Т1[Фамилия И.О.],SMALL(IF(LEFTB(Т1[Фамилия И.О.])=RIGHTB(CELL(\"имяфайла\",F26)),Т1[№ п./п.]),ROW(C25))),\"\")","v":""},{"$f":"IFERROR(INDEX(Т1[Дата рождения],SMALL(IF(LEFTB(Т1[Фамилия И.О.])=RIGHTB(CELL(\"имяфайла\",G26)),Т1[№ п./п.]),ROW(D25))),\"\")","v":""}]
[null,{"$f":"IFERROR(INDEX(Т1[№ п./п.],SMALL(IF(LEFTB(Т1[Фамилия И.О.])=RIGHTB(CELL(\"имяфайла\",E27)),Т1[№ п./п.]),ROW(B26))),\"\")","v":""},{"$f":"IFERROR(INDEX(Т1[Фамилия И.О.],SMALL(IF(LEFTB(Т1[Фамилия И.О.])=RIGHTB(CELL(\"имяфайла\",F27)),Т1[№ п./п.]),ROW(C26))),\"\")","v":""},{"$f":"IFERROR(INDEX(Т1[Дата рождения],SMALL(IF(LEFTB(Т1[Фамилия И.О.])=RIGHTB(CELL(\"имяфайла\",G27)),Т1[№ п./п.]),ROW(D26))),\"\")","v":""}]
[null,{"$f":"IFERROR(INDEX(Т1[№ п./п.],SMALL(IF(LEFTB(Т1[Фамилия И.О.])=RIGHTB(CELL(\"имяфайла\",E28)),Т1[№ п./п.]),ROW(B27))),\"\")","v":""},{"$f":"IFERROR(INDEX(Т1[Фамилия И.О.],SMALL(IF(LEFTB(Т1[Фамилия И.О.])=RIGHTB(CELL(\"имяфайла\",F28)),Т1[№ п./п.]),ROW(C27))),\"\")","v":""},{"$f":"IFERROR(INDEX(Т1[Дата рождения],SMALL(IF(LEFTB(Т1[Фамилия И.О.])=RIGHTB(CELL(\"имяфайла\",G28)),Т1[№ п./п.]),ROW(D27))),\"\")","v":""}]
[null,{"$f":"IFERROR(INDEX(Т1[№ п./п.],SMALL(IF(LEFTB(Т1[Фамилия И.О.])=RIGHTB(CELL(\"имяфайла\",E29)),Т1[№ п./п.]),ROW(B28))),\"\")","v":""},{"$f":"IFERROR(INDEX(Т1[Фамилия И.О.],SMALL(IF(LEFTB(Т1[Фамилия И.О.])=RIGHTB(CELL(\"имяфайла\",F29)),Т1[№ п./п.]),ROW(C28))),\"\")","v":""},{"$f":"IFERROR(INDEX(Т1[Дата рождения],SMALL(IF(LEFTB(Т1[Фамилия И.О.])=RIGHTB(CELL(\"имяфайла\",G29)),Т1[№ п./п.]),ROW(D28))),\"\")","v":""}]
[null,{"$f":"IFERROR(INDEX(Т1[№ п./п.],SMALL(IF(LEFTB(Т1[Фамилия И.О.])=RIGHTB(CELL(\"имяфайла\",E30)),Т1[№ п./п.]),ROW(B29))),\"\")","v":""},{"$f":"IFERROR(INDEX(Т1[Фамилия И.О.],SMALL(IF(LEFTB(Т1[Фамилия И.О.])=RIGHTB(CELL(\"имяфайла\",F30)),Т1[№ п./п.]),ROW(C29))),\"\")","v":""},{"$f":"IFERROR(INDEX(Т1[Дата рождения],SMALL(IF(LEFTB(Т1[Фамилия И.О.])=RIGHTB(CELL(\"имяфайла\",G30)),Т1[№ п./п.]),ROW(D29))),\"\")","v":""}]
[null,{"$f":"IFERROR(INDEX(Т1[№ п./п.],SMALL(IF(LEFTB(Т1[Фамилия И.О.])=RIGHTB(CELL(\"имяфайла\",E31)),Т1[№ п./п.]),ROW(B30))),\"\")","v":""},{"$f":"IFERROR(INDEX(Т1[Фамилия И.О.],SMALL(IF(LEFTB(Т1[Фамилия И.О.])=RIGHTB(CELL(\"имяфайла\",F31)),Т1[№ п./п.]),ROW(C30))),\"\")","v":""},{"$f":"IFERROR(INDEX(Т1[Дата рождения],SMALL(IF(LEFTB(Т1[Фамилия И.О.])=RIGHTB(CELL(\"имяфайла\",G31)),Т1[№ п./п.]),ROW(D30))),\"\")","v":""}]
[null,{"$f":"IFERROR(INDEX(Т1[№ п./п.],SMALL(IF(LEFTB(Т1[Фамилия И.О.])=RIGHTB(CELL(\"имяфайла\",E32)),Т1[№ п./п.]),ROW(B31))),\"\")","v":""},{"$f":"IFERROR(INDEX(Т1[Фамилия И.О.],SMALL(IF(LEFTB(Т1[Фамилия И.О.])=RIGHTB(CELL(\"имяфайла\",F32)),Т1[№ п./п.]),ROW(C31))),\"\")","v":""},{"$f":"IFERROR(INDEX(Т1[Дата рождения],SMALL(IF(LEFTB(Т1[Фамилия И.О.])=RIGHTB(CELL(\"имяфайла\",G32)),Т1[№ п./п.]),ROW(D31))),\"\")","v":""}]
[null,{"$f":"IFERROR(INDEX(Т1[№ п./п.],SMALL(IF(LEFTB(Т1[Фамилия И.О.])=RIGHTB(CELL(\"имяфайла\",E33)),Т1[№ п./п.]),ROW(B32))),\"\")","v":""},{"$f":"IFERROR(INDEX(Т1[Фамилия И.О.],SMALL(IF(LEFTB(Т1[Фамилия И.О.])=RIGHTB(CELL(\"имяфайла\",F33)),Т1[№ п./п.]),ROW(C32))),\"\")","v":""},{"$f":"IFERROR(INDEX(Т1[Дата рождения],SMALL(IF(LEFTB(Т1[Фамилия И.О.])=RIGHTB(CELL(\"имяфайла\",G33)),Т1[№ п./п.]),ROW(D32))),\"\")","v":""}]
[null,{"$f":"IFERROR(INDEX(Т1[№ п./п.],SMALL(IF(LEFTB(Т1[Фамилия И.О.])=RIGHTB(CELL(\"имяфайла\",E34)),Т1[№ п./п.]),ROW(B33))),\"\")","v":""},{"$f":"IFERROR(INDEX(Т1[Фамилия И.О.],SMALL(IF(LEFTB(Т1[Фамилия И.О.])=RIGHTB(CELL(\"имяфайла\",F34)),Т1[№ п./п.]),ROW(C33))),\"\")","v":""},{"$f":"IFERROR(INDEX(Т1[Дата рождения],SMALL(IF(LEFTB(Т1[Фамилия И.О.])=RIGHTB(CELL(\"имяфайла\",G34)),Т1[№ п./п.]),ROW(D33))),\"\")","v":""}]
[null,{"$f":"IFERROR(INDEX(Т1[№ п./п.],SMALL(IF(LEFTB(Т1[Фамилия И.О.])=RIGHTB(CELL(\"имяфайла\",E35)),Т1[№ п./п.]),ROW(B34))),\"\")","v":""},{"$f":"IFERROR(INDEX(Т1[Фамилия И.О.],SMALL(IF(LEFTB(Т1[Фамилия И.О.])=RIGHTB(CELL(\"имяфайла\",F35)),Т1[№ п./п.]),ROW(C34))),\"\")","v":""},{"$f":"IFERROR(INDEX(Т1[Дата рождения],SMALL(IF(LEFTB(Т1[Фамилия И.О.])=RIGHTB(CELL(\"имяфайла\",G35)),Т1[№ п./п.]),ROW(D34))),\"\")","v":""}]
[null,{"$f":"IFERROR(INDEX(Т1[№ п./п.],SMALL(IF(LEFTB(Т1[Фамилия И.О.])=RIGHTB(CELL(\"имяфайла\",E36)),Т1[№ п./п.]),ROW(B35))),\"\")","v":""},{"$f":"IFERROR(INDEX(Т1[Фамилия И.О.],SMALL(IF(LEFTB(Т1[Фамилия И.О.])=RIGHTB(CELL(\"имяфайла\",F36)),Т1[№ п./п.]),ROW(C35))),\"\")","v":""},{"$f":"IFERROR(INDEX(Т1[Дата рождения],SMALL(IF(LEFTB(Т1[Фамилия И.О.])=RIGHTB(CELL(\"имяфайла\",G36)),Т1[№ п./п.]),ROW(D35))),\"\")","v":""}]
[null,{"$f":"IFERROR(INDEX(Т1[№ п./п.],SMALL(IF(LEFTB(Т1[Фамилия И.О.])=RIGHTB(CELL(\"имяфайла\",E37)),Т1[№ п./п.]),ROW(B36))),\"\")","v":""},{"$f":"IFERROR(INDEX(Т1[Фамилия И.О.],SMALL(IF(LEFTB(Т1[Фамилия И.О.])=RIGHTB(CELL(\"имяфайла\",F37)),Т1[№ п./п.]),ROW(C36))),\"\")","v":""},{"$f":"IFERROR(INDEX(Т1[Дата рождения],SMALL(IF(LEFTB(Т1[Фамилия И.О.])=RIGHTB(CELL(\"имяфайла\",G37)),Т1[№ п./п.]),ROW(D36))),\"\")","v":""}]
[null,{"$f":"IFERROR(INDEX(Т1[№ п./п.],SMALL(IF(LEFTB(Т1[Фамилия И.О.])=RIGHTB(CELL(\"имяфайла\",E38)),Т1[№ п./п.]),ROW(B37))),\"\")","v":""},{"$f":"IFERROR(INDEX(Т1[Фамилия И.О.],SMALL(IF(LEFTB(Т1[Фамилия И.О.])=RIGHTB(CELL(\"имяфайла\",F38)),Т1[№ п./п.]),ROW(C37))),\"\")","v":""},{"$f":"IFERROR(INDEX(Т1[Дата рождения],SMALL(IF(LEFTB(Т1[Фамилия И.О.])=RIGHTB(CELL(\"имяфайла\",G38)),Т1[№ п./п.]),ROW(D37))),\"\")","v":""}]
[null,{"$f":"IFERROR(INDEX(Т1[№ п./п.],SMALL(IF(LEFTB(Т1[Фамилия И.О.])=RIGHTB(CELL(\"имяфайла\",E39)),Т1[№ п./п.]),ROW(B38))),\"\")","v":""},{"$f":"IFERROR(INDEX(Т1[Фамилия И.О.],SMALL(IF(LEFTB(Т1[Фамилия И.О.])=RIGHTB(CELL(\"имяфайла\",F39)),Т1[№ п./п.]),ROW(C38))),\"\")","v":""},{"$f":"IFERROR(INDEX(Т1[Дата рождения],SMALL(IF(LEFTB(Т1[Фамилия И.О.])=RIGHTB(CELL(\"имяфайла\",G39)),Т1[№ п./п.]),ROW(D38))),\"\")","v":""}]
[null,{"$f":"IFERROR(INDEX(Т1[№ п./п.],SMALL(IF(LEFTB(Т1[Фамилия И.О.])=RIGHTB(CELL(\"имяфайла\",E40)),Т1[№ п./п.]),ROW(B39))),\"\")","v":""},{"$f":"IFERROR(INDEX(Т1[Фамилия И.О.],SMALL(IF(LEFTB(Т1[Фамилия И.О.])=RIGHTB(CELL(\"имяфайла\",F40)),Т1[№ п./п.]),ROW(C39))),\"\")","v":""},{"$f":"IFERROR(INDEX(Т1[Дата рождения],SMALL(IF(LEFTB(Т1[Фамилия И.О.])=RIGHTB(CELL(\"имяфайла\",G40)),Т1[№ п./п.]),ROW(D39))),\"\")","v":""}]
[null,{"$f":"IFERROR(INDEX(Т1[№ п./п.],SMALL(IF(LEFTB(Т1[Фамилия И.О.])=RIGHTB(CELL(\"имяфайла\",E41)),Т1[№ п./п.]),ROW(B40))),\"\")","v":""},{"$f":"IFERROR(INDEX(Т1[Фамилия И.О.],SMALL(IF(LEFTB(Т1[Фамилия И.О.])=RIGHTB(CELL(\"имяфайла\",F41)),Т1[№ п./п.]),ROW(C40))),\"\")","v":""},{"$f":"IFERROR(INDEX(Т1[Дата рождения],SMALL(IF(LEFTB(Т1[Фамилия И.О.])=RIGHTB(CELL(\"имяфайла\",G41)),Т1[№ п./п.]),ROW(D40))),\"\")","v":""}]
[null,{"$f":"IFERROR(INDEX(Т1[№ п./п.],SMALL(IF(LEFTB(Т1[Фамилия И.О.])=RIGHTB(CELL(\"имяфайла\",E42)),Т1[№ п./п.]),ROW(B41))),\"\")","v":""},{"$f":"IFERROR(INDEX(Т1[Фамилия И.О.],SMALL(IF(LEFTB(Т1[Фамилия И.О.])=RIGHTB(CELL(\"имяфайла\",F42)),Т1[№ п./п.]),ROW(C41))),\"\")","v":""},{"$f":"IFERROR(INDEX(Т1[Дата рождения],SMALL(IF(LEFTB(Т1[Фамилия И.О.])=RIGHTB(CELL(\"имяфайла\",G42)),Т1[№ п./п.]),ROW(D41))),\"\")","v":""}]
[null,{"$f":"IFERROR(INDEX(Т1[№ п./п.],SMALL(IF(LEFTB(Т1[Фамилия И.О.])=RIGHTB(CELL(\"имяфайла\",E43)),Т1[№ п./п.]),ROW(B42))),\"\")","v":""},{"$f":"IFERROR(INDEX(Т1[Фамилия И.О.],SMALL(IF(LEFTB(Т1[Фамилия И.О.])=RIGHTB(CELL(\"имяфайла\",F43)),Т1[№ п./п.]),ROW(C42))),\"\")","v":""},{"$f":"IFERROR(INDEX(Т1[Дата рождения],SMALL(IF(LEFTB(Т1[Фамилия И.О.])=RIGHTB(CELL(\"имяфайла\",G43)),Т1[№ п./п.]),ROW(D42))),\"\")","v":""}]
[null,{"$f":"IFERROR(INDEX(Т1[№ п./п.],SMALL(IF(LEFTB(Т1[Фамилия И.О.])=RIGHTB(CELL(\"имяфайла\",E44)),Т1[№ п./п.]),ROW(B43))),\"\")","v":""},{"$f":"IFERROR(INDEX(Т1[Фамилия И.О.],SMALL(IF(LEFTB(Т1[Фамилия И.О.])=RIGHTB(CELL(\"имяфайла\",F44)),Т1[№ п./п.]),ROW(C43))),\"\")","v":""},{"$f":"IFERROR(INDEX(Т1[Дата рождения],SMALL(IF(LEFTB(Т1[Фамилия И.О.])=RIGHTB(CELL(\"имяфайла\",G44)),Т1[№ п./п.]),ROW(D43))),\"\")","v":""}]
[null,{"$f":"IFERROR(INDEX(Т1[№ п./п.],SMALL(IF(LEFTB(Т1[Фамилия И.О.])=RIGHTB(CELL(\"имяфайла\",E45)),Т1[№ п./п.]),ROW(B44))),\"\")","v":""},{"$f":"IFERROR(INDEX(Т1[Фамилия И.О.],SMALL(IF(LEFTB(Т1[Фамилия И.О.])=RIGHTB(CELL(\"имяфайла\",F45)),Т1[№ п./п.]),ROW(C44))),\"\")","v":""},{"$f":"IFERROR(INDEX(Т1[Дата рождения],SMALL(IF(LEFTB(Т1[Фамилия И.О.])=RIGHTB(CELL(\"имяфайла\",G45)),Т1[№ п./п.]),ROW(D44))),\"\")","v":""}]
[null,{"$f":"IFERROR(INDEX(Т1[№ п./п.],SMALL(IF(LEFTB(Т1[Фамилия И.О.])=RIGHTB(CELL(\"имяфайла\",E46)),Т1[№ п./п.]),ROW(B45))),\"\")","v":""},{"$f":"IFERROR(INDEX(Т1[Фамилия И.О.],SMALL(IF(LEFTB(Т1[Фамилия И.О.])=RIGHTB(CELL(\"имяфайла\",F46)),Т1[№ п./п.]),ROW(C45))),\"\")","v":""},{"$f":"IFERROR(INDEX(Т1[Дата рождения],SMALL(IF(LEFTB(Т1[Фамилия И.О.])=RIGHTB(CELL(\"имяфайла\",G46)),Т1[№ п./п.]),ROW(D45))),\"\")","v":""}]
[null,{"$f":"IFERROR(INDEX(Т1[№ п./п.],SMALL(IF(LEFTB(Т1[Фамилия И.О.])=RIGHTB(CELL(\"имяфайла\",E47)),Т1[№ п./п.]),ROW(B46))),\"\")","v":""},{"$f":"IFERROR(INDEX(Т1[Фамилия И.О.],SMALL(IF(LEFTB(Т1[Фамилия И.О.])=RIGHTB(CELL(\"имяфайла\",F47)),Т1[№ п./п.]),ROW(C46))),\"\")","v":""},{"$f":"IFERROR(INDEX(Т1[Дата рождения],SMALL(IF(LEFTB(Т1[Фамилия И.О.])=RIGHTB(CELL(\"имяфайла\",G47)),Т1[№ п./п.]),ROW(D46))),\"\")","v":""}]
[null,{"$f":"IFERROR(INDEX(Т1[№ п./п.],SMALL(IF(LEFTB(Т1[Фамилия И.О.])=RIGHTB(CELL(\"имяфайла\",E48)),Т1[№ п./п.]),ROW(B47))),\"\")","v":""},{"$f":"IFERROR(INDEX(Т1[Фамилия И.О.],SMALL(IF(LEFTB(Т1[Фамилия И.О.])=RIGHTB(CELL(\"имяфайла\",F48)),Т1[№ п./п.]),ROW(C47))),\"\")","v":""},{"$f":"IFERROR(INDEX(Т1[Дата рождения],SMALL(IF(LEFTB(Т1[Фамилия И.О.])=RIGHTB(CELL(\"имяфайла\",G48)),Т1[№ п./п.]),ROW(D47))),\"\")","v":""}]
[null,{"$f":"IFERROR(INDEX(Т1[№ п./п.],SMALL(IF(LEFTB(Т1[Фамилия И.О.])=RIGHTB(CELL(\"имяфайла\",E49)),Т1[№ п./п.]),ROW(B48))),\"\")","v":""},{"$f":"IFERROR(INDEX(Т1[Фамилия И.О.],SMALL(IF(LEFTB(Т1[Фамилия И.О.])=RIGHTB(CELL(\"имяфайла\",F49)),Т1[№ п./п.]),ROW(C48))),\"\")","v":""},{"$f":"IFERROR(INDEX(Т1[Дата рождения],SMALL(IF(LEFTB(Т1[Фамилия И.О.])=RIGHTB(CELL(\"имяфайла\",G49)),Т1[№ п./п.]),ROW(D48))),\"\")","v":""}]
[null,{"$f":"IFERROR(INDEX(Т1[№ п./п.],SMALL(IF(LEFTB(Т1[Фамилия И.О.])=RIGHTB(CELL(\"имяфайла\",E50)),Т1[№ п./п.]),ROW(B49))),\"\")","v":""},{"$f":"IFERROR(INDEX(Т1[Фамилия И.О.],SMALL(IF(LEFTB(Т1[Фамилия И.О.])=RIGHTB(CELL(\"имяфайла\",F50)),Т1[№ п./п.]),ROW(C49))),\"\")","v":""},{"$f":"IFERROR(INDEX(Т1[Дата рождения],SMALL(IF(LEFTB(Т1[Фамилия И.О.])=RIGHTB(CELL(\"имяфайла\",G50)),Т1[№ п./п.]),ROW(D49))),\"\")","v":""}]
[null,{"$f":"IFERROR(INDEX(Т1[№ п./п.],SMALL(IF(LEFTB(Т1[Фамилия И.О.])=RIGHTB(CELL(\"имяфайла\",E51)),Т1[№ п./п.]),ROW(B50))),\"\")","v":""},{"$f":"IFERROR(INDEX(Т1[Фамилия И.О.],SMALL(IF(LEFTB(Т1[Фамилия И.О.])=RIGHTB(CELL(\"имяфайла\",F51)),Т1[№ п./п.]),ROW(C50))),\"\")","v":""},{"$f":"IFERROR(INDEX(Т1[Дата рождения],SMALL(IF(LEFTB(Т1[Фамилия И.О.])=RIGHTB(CELL(\"имяфайла\",G51)),Т1[№ п./п.]),ROW(D50))),\"\")","v":""}]
[null,{"$f":"IFERROR(INDEX(Т1[№ п./п.],SMALL(IF(LEFTB(Т1[Фамилия И.О.])=RIGHTB(CELL(\"имяфайла\",E52)),Т1[№ п./п.]),ROW(B51))),\"\")","v":""},{"$f":"IFERROR(INDEX(Т1[Фамилия И.О.],SMALL(IF(LEFTB(Т1[Фамилия И.О.])=RIGHTB(CELL(\"имяфайла\",F52)),Т1[№ п./п.]),ROW(C51))),\"\")","v":""},{"$f":"IFERROR(INDEX(Т1[Дата рождения],SMALL(IF(LEFTB(Т1[Фамилия И.О.])=RIGHTB(CELL(\"имяфайла\",G52)),Т1[№ п./п.]),ROW(D51))),\"\")","v":""}]
[null,{"$f":"IFERROR(INDEX(Т1[№ п./п.],SMALL(IF(LEFTB(Т1[Фамилия И.О.])=RIGHTB(CELL(\"имяфайла\",E53)),Т1[№ п./п.]),ROW(B52))),\"\")","v":""},{"$f":"IFERROR(INDEX(Т1[Фамилия И.О.],SMALL(IF(LEFTB(Т1[Фамилия И.О.])=RIGHTB(CELL(\"имяфайла\",F53)),Т1[№ п./п.]),ROW(C52))),\"\")","v":""},{"$f":"IFERROR(INDEX(Т1[Дата рождения],SMALL(IF(LEFTB(Т1[Фамилия И.О.])=RIGHTB(CELL(\"имяфайла\",G53)),Т1[№ п./п.]),ROW(D52))),\"\")","v":""}]
[null,{"$f":"IFERROR(INDEX(Т1[№ п./п.],SMALL(IF(LEFTB(Т1[Фамилия И.О.])=RIGHTB(CELL(\"имяфайла\",E54)),Т1[№ п./п.]),ROW(B53))),\"\")","v":""},{"$f":"IFERROR(INDEX(Т1[Фамилия И.О.],SMALL(IF(LEFTB(Т1[Фамилия И.О.])=RIGHTB(CELL(\"имяфайла\",F54)),Т1[№ п./п.]),ROW(C53))),\"\")","v":""},{"$f":"IFERROR(INDEX(Т1[Дата рождения],SMALL(IF(LEFTB(Т1[Фамилия И.О.])=RIGHTB(CELL(\"имяфайла\",G54)),Т1[№ п./п.]),ROW(D53))),\"\")","v":""}]
[null,{"$f":"IFERROR(INDEX(Т1[№ п./п.],SMALL(IF(LEFTB(Т1[Фамилия И.О.])=RIGHTB(CELL(\"имяфайла\",E55)),Т1[№ п./п.]),ROW(B54))),\"\")","v":""},{"$f":"IFERROR(INDEX(Т1[Фамилия И.О.],SMALL(IF(LEFTB(Т1[Фамилия И.О.])=RIGHTB(CELL(\"имяфайла\",F55)),Т1[№ п./п.]),ROW(C54))),\"\")","v":""},{"$f":"IFERROR(INDEX(Т1[Дата рождения],SMALL(IF(LEFTB(Т1[Фамилия И.О.])=RIGHTB(CELL(\"имяфайла\",G55)),Т1[№ п./п.]),ROW(D54))),\"\")","v":""}]
[null,{"$f":"IFERROR(INDEX(Т1[№ п./п.],SMALL(IF(LEFTB(Т1[Фамилия И.О.])=RIGHTB(CELL(\"имяфайла\",E56)),Т1[№ п./п.]),ROW(B55))),\"\")","v":""},{"$f":"IFERROR(INDEX(Т1[Фамилия И.О.],SMALL(IF(LEFTB(Т1[Фамилия И.О.])=RIGHTB(CELL(\"имяфайла\",F56)),Т1[№ п./п.]),ROW(C55))),\"\")","v":""},{"$f":"IFERROR(INDEX(Т1[Дата рождения],SMALL(IF(LEFTB(Т1[Фамилия И.О.])=RIGHTB(CELL(\"имяфайла\",G56)),Т1[№ п./п.]),ROW(D55))),\"\")","v":""}]
[null,{"$f":"IFERROR(INDEX(Т1[№ п./п.],SMALL(IF(LEFTB(Т1[Фамилия И.О.])=RIGHTB(CELL(\"имяфайла\",E57)),Т1[№ п./п.]),ROW(B56))),\"\")","v":""},{"$f":"IFERROR(INDEX(Т1[Фамилия И.О.],SMALL(IF(LEFTB(Т1[Фамилия И.О.])=RIGHTB(CELL(\"имяфайла\",F57)),Т1[№ п./п.]),ROW(C56))),\"\")","v":""},{"$f":"IFERROR(INDEX(Т1[Дата рождения],SMALL(IF(LEFTB(Т1[Фамилия И.О.])=RIGHTB(CELL(\"имяфайла\",G57)),Т1[№ п./п.]),ROW(D56))),\"\")","v":""}]
[null,{"$f":"IFERROR(INDEX(Т1[№ п./п.],SMALL(IF(LEFTB(Т1[Фамилия И.О.])=RIGHTB(CELL(\"имяфайла\",E58)),Т1[№ п./п.]),ROW(B57))),\"\")","v":""},{"$f":"IFERROR(INDEX(Т1[Фамилия И.О.],SMALL(IF(LEFTB(Т1[Фамилия И.О.])=RIGHTB(CELL(\"имяфайла\",F58)),Т1[№ п./п.]),ROW(C57))),\"\")","v":""},{"$f":"IFERROR(INDEX(Т1[Дата рождения],SMALL(IF(LEFTB(Т1[Фамилия И.О.])=RIGHTB(CELL(\"имяфайла\",G58)),Т1[№ п./п.]),ROW(D57))),\"\")","v":""}]
[null,{"$f":"IFERROR(INDEX(Т1[№ п./п.],SMALL(IF(LEFTB(Т1[Фамилия И.О.])=RIGHTB(CELL(\"имяфайла\",E59)),Т1[№ п./п.]),ROW(B58))),\"\")","v":""},{"$f":"IFERROR(INDEX(Т1[Фамилия И.О.],SMALL(IF(LEFTB(Т1[Фамилия И.О.])=RIGHTB(CELL(\"имяфайла\",F59)),Т1[№ п./п.]),ROW(C58))),\"\")","v":""},{"$f":"IFERROR(INDEX(Т1[Дата рождения],SMALL(IF(LEFTB(Т1[Фамилия И.О.])=RIGHTB(CELL(\"имяфайла\",G59)),Т1[№ п./п.]),ROW(D58))),\"\")","v":""}]
[null,{"$f":"IFERROR(INDEX(Т1[№ п./п.],SMALL(IF(LEFTB(Т1[Фамилия И.О.])=RIGHTB(CELL(\"имяфайла\",E60)),Т1[№ п./п.]),ROW(B59))),\"\")","v":""},{"$f":"IFERROR(INDEX(Т1[Фамилия И.О.],SMALL(IF(LEFTB(Т1[Фамилия И.О.])=RIGHTB(CELL(\"имяфайла\",F60)),Т1[№ п./п.]),ROW(C59))),\"\")","v":""},{"$f":"IFERROR(INDEX(Т1[Дата рождения],SMALL(IF(LEFTB(Т1[Фамилия И.О.])=RIGHTB(CELL(\"имяфайла\",G60)),Т1[№ п./п.]),ROW(D59))),\"\")","v":""}]
[null,{"$f":"IFERROR(INDEX(Т1[№ п./п.],SMALL(IF(LEFTB(Т1[Фамилия И.О.])=RIGHTB(CELL(\"имяфайла\",E61)),Т1[№ п./п.]),ROW(B60))),\"\")","v":""},{"$f":"IFERROR(INDEX(Т1[Фамилия И.О.],SMALL(IF(LEFTB(Т1[Фамилия И.О.])=RIGHTB(CELL(\"имяфайла\",F61)),Т1[№ п./п.]),ROW(C60))),\"\")","v":""},{"$f":"IFERROR(INDEX(Т1[Дата рождения],SMALL(IF(LEFTB(Т1[Фамилия И.О.])=RIGHTB(CELL(\"имяфайла\",G61)),Т1[№ п./п.]),ROW(D60))),\"\")","v":""}]
[null,{"$f":"IFERROR(INDEX(Т1[№ п./п.],SMALL(IF(LEFTB(Т1[Фамилия И.О.])=RIGHTB(CELL(\"имяфайла\",E62)),Т1[№ п./п.]),ROW(B61))),\"\")","v":""},{"$f":"IFERROR(INDEX(Т1[Фамилия И.О.],SMALL(IF(LEFTB(Т1[Фамилия И.О.])=RIGHTB(CELL(\"имяфайла\",F62)),Т1[№ п./п.]),ROW(C61))),\"\")","v":""},{"$f":"IFERROR(INDEX(Т1[Дата рождения],SMALL(IF(LEFTB(Т1[Фамилия И.О.])=RIGHTB(CELL(\"имяфайла\",G62)),Т1[№ п./п.]),ROW(D61))),\"\")","v":""}]
[null,{"$f":"IFERROR(INDEX(Т1[№ п./п.],SMALL(IF(LEFTB(Т1[Фамилия И.О.])=RIGHTB(CELL(\"имяфайла\",E63)),Т1[№ п./п.]),ROW(B62))),\"\")","v":""},{"$f":"IFERROR(INDEX(Т1[Фамилия И.О.],SMALL(IF(LEFTB(Т1[Фамилия И.О.])=RIGHTB(CELL(\"имяфайла\",F63)),Т1[№ п./п.]),ROW(C62))),\"\")","v":""},{"$f":"IFERROR(INDEX(Т1[Дата рождения],SMALL(IF(LEFTB(Т1[Фамилия И.О.])=RIGHTB(CELL(\"имяфайла\",G63)),Т1[№ п./п.]),ROW(D62))),\"\")","v":""}]
[null,{"$f":"IFERROR(INDEX(Т1[№ п./п.],SMALL(IF(LEFTB(Т1[Фамилия И.О.])=RIGHTB(CELL(\"имяфайла\",E64)),Т1[№ п./п.]),ROW(B63))),\"\")","v":""},{"$f":"IFERROR(INDEX(Т1[Фамилия И.О.],SMALL(IF(LEFTB(Т1[Фамилия И.О.])=RIGHTB(CELL(\"имяфайла\",F64)),Т1[№ п./п.]),ROW(C63))),\"\")","v":""},{"$f":"IFERROR(INDEX(Т1[Дата рождения],SMALL(IF(LEFTB(Т1[Фамилия И.О.])=RIGHTB(CELL(\"имяфайла\",G64)),Т1[№ п./п.]),ROW(D63))),\"\")","v":""}]
[null,{"$f":"IFERROR(INDEX(Т1[№ п./п.],SMALL(IF(LEFTB(Т1[Фамилия И.О.])=RIGHTB(CELL(\"имяфайла\",E65)),Т1[№ п./п.]),ROW(B64))),\"\")","v":""},{"$f":"IFERROR(INDEX(Т1[Фамилия И.О.],SMALL(IF(LEFTB(Т1[Фамилия И.О.])=RIGHTB(CELL(\"имяфайла\",F65)),Т1[№ п./п.]),ROW(C64))),\"\")","v":""},{"$f":"IFERROR(INDEX(Т1[Дата рождения],SMALL(IF(LEFTB(Т1[Фамилия И.О.])=RIGHTB(CELL(\"имяфайла\",G65)),Т1[№ п./п.]),ROW(D64))),\"\")","v":""}]
[null,{"$f":"IFERROR(INDEX(Т1[№ п./п.],SMALL(IF(LEFTB(Т1[Фамилия И.О.])=RIGHTB(CELL(\"имяфайла\",E66)),Т1[№ п./п.]),ROW(B65))),\"\")","v":""},{"$f":"IFERROR(INDEX(Т1[Фамилия И.О.],SMALL(IF(LEFTB(Т1[Фамилия И.О.])=RIGHTB(CELL(\"имяфайла\",F66)),Т1[№ п./п.]),ROW(C65))),\"\")","v":""},{"$f":"IFERROR(INDEX(Т1[Дата рождения],SMALL(IF(LEFTB(Т1[Фамилия И.О.])=RIGHTB(CELL(\"имяфайла\",G66)),Т1[№ п./п.]),ROW(D65))),\"\")","v":""}]
[null,{"$f":"IFERROR(INDEX(Т1[№ п./п.],SMALL(IF(LEFTB(Т1[Фамилия И.О.])=RIGHTB(CELL(\"имяфайла\",E67)),Т1[№ п./п.]),ROW(B66))),\"\")","v":""},{"$f":"IFERROR(INDEX(Т1[Фамилия И.О.],SMALL(IF(LEFTB(Т1[Фамилия И.О.])=RIGHTB(CELL(\"имяфайла\",F67)),Т1[№ п./п.]),ROW(C66))),\"\")","v":""},{"$f":"IFERROR(INDEX(Т1[Дата рождения],SMALL(IF(LEFTB(Т1[Фамилия И.О.])=RIGHTB(CELL(\"имяфайла\",G67)),Т1[№ п./п.]),ROW(D66))),\"\")","v":""}]
[null,{"$f":"IFERROR(INDEX(Т1[№ п./п.],SMALL(IF(LEFTB(Т1[Фамилия И.О.])=RIGHTB(CELL(\"имяфайла\",E68)),Т1[№ п./п.]),ROW(B67))),\"\")","v":""},{"$f":"IFERROR(INDEX(Т1[Фамилия И.О.],SMALL(IF(LEFTB(Т1[Фамилия И.О.])=RIGHTB(CELL(\"имяфайла\",F68)),Т1[№ п./п.]),ROW(C67))),\"\")","v":""},{"$f":"IFERROR(INDEX(Т1[Дата рождения],SMALL(IF(LEFTB(Т1[Фамилия И.О.])=RIGHTB(CELL(\"имяфайла\",G68)),Т1[№ п./п.]),ROW(D67))),\"\")","v":""}]
[null,{"$f":"IFERROR(INDEX(Т1[№ п./п.],SMALL(IF(LEFTB(Т1[Фамилия И.О.])=RIGHTB(CELL(\"имяфайла\",E69)),Т1[№ п./п.]),ROW(B68))),\"\")","v":""},{"$f":"IFERROR(INDEX(Т1[Фамилия И.О.],SMALL(IF(LEFTB(Т1[Фамилия И.О.])=RIGHTB(CELL(\"имяфайла\",F69)),Т1[№ п./п.]),ROW(C68))),\"\")","v":""},{"$f":"IFERROR(INDEX(Т1[Дата рождения],SMALL(IF(LEFTB(Т1[Фамилия И.О.])=RIGHTB(CELL(\"имяфайла\",G69)),Т1[№ п./п.]),ROW(D68))),\"\")","v":""}]
[null,{"$f":"IFERROR(INDEX(Т1[№ п./п.],SMALL(IF(LEFTB(Т1[Фамилия И.О.])=RIGHTB(CELL(\"имяфайла\",E70)),Т1[№ п./п.]),ROW(B69))),\"\")","v":""},{"$f":"IFERROR(INDEX(Т1[Фамилия И.О.],SMALL(IF(LEFTB(Т1[Фамилия И.О.])=RIGHTB(CELL(\"имяфайла\",F70)),Т1[№ п./п.]),ROW(C69))),\"\")","v":""},{"$f":"IFERROR(INDEX(Т1[Дата рождения],SMALL(IF(LEFTB(Т1[Фамилия И.О.])=RIGHTB(CELL(\"имяфайла\",G70)),Т1[№ п./п.]),ROW(D69))),\"\")","v":""}]
[null,{"$f":"IFERROR(INDEX(Т1[№ п./п.],SMALL(IF(LEFTB(Т1[Фамилия И.О.])=RIGHTB(CELL(\"имяфайла\",E71)),Т1[№ п./п.]),ROW(B70))),\"\")","v":""},{"$f":"IFERROR(INDEX(Т1[Фамилия И.О.],SMALL(IF(LEFTB(Т1[Фамилия И.О.])=RIGHTB(CELL(\"имяфайла\",F71)),Т1[№ п./п.]),ROW(C70))),\"\")","v":""},{"$f":"IFERROR(INDEX(Т1[Дата рождения],SMALL(IF(LEFTB(Т1[Фамилия И.О.])=RIGHTB(CELL(\"имяфайла\",G71)),Т1[№ п./п.]),ROW(D70))),\"\")","v":""}]
[null,{"$f":"IFERROR(INDEX(Т1[№ п./п.],SMALL(IF(LEFTB(Т1[Фамилия И.О.])=RIGHTB(CELL(\"имяфайла\",E72)),Т1[№ п./п.]),ROW(B71))),\"\")","v":""},{"$f":"IFERROR(INDEX(Т1[Фамилия И.О.],SMALL(IF(LEFTB(Т1[Фамилия И.О.])=RIGHTB(CELL(\"имяфайла\",F72)),Т1[№ п./п.]),ROW(C71))),\"\")","v":""},{"$f":"IFERROR(INDEX(Т1[Дата рождения],SMALL(IF(LEFTB(Т1[Фамилия И.О.])=RIGHTB(CELL(\"имяфайла\",G72)),Т1[№ п./п.]),ROW(D71))),\"\")","v":""}]
[null,{"$f":"IFERROR(INDEX(Т1[№ п./п.],SMALL(IF(LEFTB(Т1[Фамилия И.О.])=RIGHTB(CELL(\"имяфайла\",E73)),Т1[№ п./п.]),ROW(B72))),\"\")","v":""},{"$f":"IFERROR(INDEX(Т1[Фамилия И.О.],SMALL(IF(LEFTB(Т1[Фамилия И.О.])=RIGHTB(CELL(\"имяфайла\",F73)),Т1[№ п./п.]),ROW(C72))),\"\")","v":""},{"$f":"IFERROR(INDEX(Т1[Дата рождения],SMALL(IF(LEFTB(Т1[Фамилия И.О.])=RIGHTB(CELL(\"имяфайла\",G73)),Т1[№ п./п.]),ROW(D72))),\"\")","v":""}]
[null,{"$f":"IFERROR(INDEX(Т1[№ п./п.],SMALL(IF(LEFTB(Т1[Фамилия И.О.])=RIGHTB(CELL(\"имяфайла\",E74)),Т1[№ п./п.]),ROW(B73))),\"\")","v":""},{"$f":"IFERROR(INDEX(Т1[Фамилия И.О.],SMALL(IF(LEFTB(Т1[Фамилия И.О.])=RIGHTB(CELL(\"имяфайла\",F74)),Т1[№ п./п.]),ROW(C73))),\"\")","v":""},{"$f":"IFERROR(INDEX(Т1[Дата рождения],SMALL(IF(LEFTB(Т1[Фамилия И.О.])=RIGHTB(CELL(\"имяфайла\",G74)),Т1[№ п./п.]),ROW(D73))),\"\")","v":""}]
[null,{"$f":"IFERROR(INDEX(Т1[№ п./п.],SMALL(IF(LEFTB(Т1[Фамилия И.О.])=RIGHTB(CELL(\"имяфайла\",E75)),Т1[№ п./п.]),ROW(B74))),\"\")","v":""},{"$f":"IFERROR(INDEX(Т1[Фамилия И.О.],SMALL(IF(LEFTB(Т1[Фамилия И.О.])=RIGHTB(CELL(\"имяфайла\",F75)),Т1[№ п./п.]),ROW(C74))),\"\")","v":""},{"$f":"IFERROR(INDEX(Т1[Дата рождения],SMALL(IF(LEFTB(Т1[Фамилия И.О.])=RIGHTB(CELL(\"имяфайла\",G75)),Т1[№ п./п.]),ROW(D74))),\"\")","v":""}]
[null,{"$f":"IFERROR(INDEX(Т1[№ п./п.],SMALL(IF(LEFTB(Т1[Фамилия И.О.])=RIGHTB(CELL(\"имяфайла\",E76)),Т1[№ п./п.]),ROW(B75))),\"\")","v":""},{"$f":"IFERROR(INDEX(Т1[Фамилия И.О.],SMALL(IF(LEFTB(Т1[Фамилия И.О.])=RIGHTB(CELL(\"имяфайла\",F76)),Т1[№ п./п.]),ROW(C75))),\"\")","v":""},{"$f":"IFERROR(INDEX(Т1[Дата рождения],SMALL(IF(LEFTB(Т1[Фамилия И.О.])=RIGHTB(CELL(\"имяфайла\",G76)),Т1[№ п./п.]),ROW(D75))),\"\")","v":""}]
[null,{"$f":"IFERROR(INDEX(Т1[№ п./п.],SMALL(IF(LEFTB(Т1[Фамилия И.О.])=RIGHTB(CELL(\"имяфайла\",E77)),Т1[№ п./п.]),ROW(B76))),\"\")","v":""},{"$f":"IFERROR(INDEX(Т1[Фамилия И.О.],SMALL(IF(LEFTB(Т1[Фамилия И.О.])=RIGHTB(CELL(\"имяфайла\",F77)),Т1[№ п./п.]),ROW(C76))),\"\")","v":""},{"$f":"IFERROR(INDEX(Т1[Дата рождения],SMALL(IF(LEFTB(Т1[Фамилия И.О.])=RIGHTB(CELL(\"имяфайла\",G77)),Т1[№ п./п.]),ROW(D76))),\"\")","v":""}]
[null,{"$f":"IFERROR(INDEX(Т1[№ п./п.],SMALL(IF(LEFTB(Т1[Фамилия И.О.])=RIGHTB(CELL(\"имяфайла\",E78)),Т1[№ п./п.]),ROW(B77))),\"\")","v":""},{"$f":"IFERROR(INDEX(Т1[Фамилия И.О.],SMALL(IF(LEFTB(Т1[Фамилия И.О.])=RIGHTB(CELL(\"имяфайла\",F78)),Т1[№ п./п.]),ROW(C77))),\"\")","v":""},{"$f":"IFERROR(INDEX(Т1[Дата рождения],SMALL(IF(LEFTB(Т1[Фамилия И.О.])=RIGHTB(CELL(\"имяфайла\",G78)),Т1[№ п./п.]),ROW(D77))),\"\")","v":""}]
[null,{"$f":"IFERROR(INDEX(Т1[№ п./п.],SMALL(IF(LEFTB(Т1[Фамилия И.О.])=RIGHTB(CELL(\"имяфайла\",E79)),Т1[№ п./п.]),ROW(B78))),\"\")","v":""},{"$f":"IFERROR(INDEX(Т1[Фамилия И.О.],SMALL(IF(LEFTB(Т1[Фамилия И.О.])=RIGHTB(CELL(\"имяфайла\",F79)),Т1[№ п./п.]),ROW(C78))),\"\")","v":""},{"$f":"IFERROR(INDEX(Т1[Дата рождения],SMALL(IF(LEFTB(Т1[Фамилия И.О.])=RIGHTB(CELL(\"имяфайла\",G79)),Т1[№ п./п.]),ROW(D78))),\"\")","v":""}]
[null,{"$f":"IFERROR(INDEX(Т1[№ п./п.],SMALL(IF(LEFTB(Т1[Фамилия И.О.])=RIGHTB(CELL(\"имяфайла\",E80)),Т1[№ п./п.]),ROW(B79))),\"\")","v":""},{"$f":"IFERROR(INDEX(Т1[Фамилия И.О.],SMALL(IF(LEFTB(Т1[Фамилия И.О.])=RIGHTB(CELL(\"имяфайла\",F80)),Т1[№ п./п.]),ROW(C79))),\"\")","v":""},{"$f":"IFERROR(INDEX(Т1[Дата рождения],SMALL(IF(LEFTB(Т1[Фамилия И.О.])=RIGHTB(CELL(\"имяфайла\",G80)),Т1[№ п./п.]),ROW(D79))),\"\")","v":""}]
[null,{"$f":"IFERROR(INDEX(Т1[№ п./п.],SMALL(IF(LEFTB(Т1[Фамилия И.О.])=RIGHTB(CELL(\"имяфайла\",E81)),Т1[№ п./п.]),ROW(B80))),\"\")","v":""},{"$f":"IFERROR(INDEX(Т1[Фамилия И.О.],SMALL(IF(LEFTB(Т1[Фамилия И.О.])=RIGHTB(CELL(\"имяфайла\",F81)),Т1[№ п./п.]),ROW(C80))),\"\")","v":""},{"$f":"IFERROR(INDEX(Т1[Дата рождения],SMALL(IF(LEFTB(Т1[Фамилия И.О.])=RIGHTB(CELL(\"имяфайла\",G81)),Т1[№ п./п.]),ROW(D80))),\"\")","v":""}]
[null,{"$f":"IFERROR(INDEX(Т1[№ п./п.],SMALL(IF(LEFTB(Т1[Фамилия И.О.])=RIGHTB(CELL(\"имяфайла\",E82)),Т1[№ п./п.]),ROW(B81))),\"\")","v":""},{"$f":"IFERROR(INDEX(Т1[Фамилия И.О.],SMALL(IF(LEFTB(Т1[Фамилия И.О.])=RIGHTB(CELL(\"имяфайла\",F82)),Т1[№ п./п.]),ROW(C81))),\"\")","v":""},{"$f":"IFERROR(INDEX(Т1[Дата рождения],SMALL(IF(LEFTB(Т1[Фамилия И.О.])=RIGHTB(CELL(\"имяфайла\",G82)),Т1[№ п./п.]),ROW(D81))),\"\")","v":""}]
[null,{"$f":"IFERROR(INDEX(Т1[№ п./п.],SMALL(IF(LEFTB(Т1[Фамилия И.О.])=RIGHTB(CELL(\"имяфайла\",E83)),Т1[№ п./п.]),ROW(B82))),\"\")","v":""},{"$f":"IFERROR(INDEX(Т1[Фамилия И.О.],SMALL(IF(LEFTB(Т1[Фамилия И.О.])=RIGHTB(CELL(\"имяфайла\",F83)),Т1[№ п./п.]),ROW(C82))),\"\")","v":""},{"$f":"IFERROR(INDEX(Т1[Дата рождения],SMALL(IF(LEFTB(Т1[Фамилия И.О.])=RIGHTB(CELL(\"имяфайла\",G83)),Т1[№ п./п.]),ROW(D82))),\"\")","v":""}]
[null,{"$f":"IFERROR(INDEX(Т1[№ п./п.],SMALL(IF(LEFTB(Т1[Фамилия И.О.])=RIGHTB(CELL(\"имяфайла\",E84)),Т1[№ п./п.]),ROW(B83))),\"\")","v":""},{"$f":"IFERROR(INDEX(Т1[Фамилия И.О.],SMALL(IF(LEFTB(Т1[Фамилия И.О.])=RIGHTB(CELL(\"имяфайла\",F84)),Т1[№ п./п.]),ROW(C83))),\"\")","v":""},{"$f":"IFERROR(INDEX(Т1[Дата рождения],SMALL(IF(LEFTB(Т1[Фамилия И.О.])=RIGHTB(CELL(\"имяфайла\",G84)),Т1[№ п./п.]),ROW(D83))),\"\")","v":""}]
[null,{"$f":"IFERROR(INDEX(Т1[№ п./п.],SMALL(IF(LEFTB(Т1[Фамилия И.О.])=RIGHTB(CELL(\"имяфайла\",E85)),Т1[№ п./п.]),ROW(B84))),\"\")","v":""},{"$f":"IFERROR(INDEX(Т1[Фамилия И.О.],SMALL(IF(LEFTB(Т1[Фамилия И.О.])=RIGHTB(CELL(\"имяфайла\",F85)),Т1[№ п./п.]),ROW(C84))),\"\")","v":""},{"$f":"IFERROR(INDEX(Т1[Дата рождения],SMALL(IF(LEFTB(Т1[Фамилия И.О.])=RIGHTB(CELL(\"имяфайла\",G85)),Т1[№ п./п.]),ROW(D84))),\"\")","v":""}]
[null,{"$f":"IFERROR(INDEX(Т1[№ п./п.],SMALL(IF(LEFTB(Т1[Фамилия И.О.])=RIGHTB(CELL(\"имяфайла\",E86)),Т1[№ п./п.]),ROW(B85))),\"\")","v":""},{"$f":"IFERROR(INDEX(Т1[Фамилия И.О.],SMALL(IF(LEFTB(Т1[Фамилия И.О.])=RIGHTB(CELL(\"имяфайла\",F86)),Т1[№ п./п.]),ROW(C85))),\"\")","v":""},{"$f":"IFERROR(INDEX(Т1[Дата рождения],SMALL(IF(LEFTB(Т1[Фамилия И.О.])=RIGHTB(CELL(\"имяфайла\",G86)),Т1[№ п./п.]),ROW(D85))),\"\")","v":""}]
[null,{"$f":"IFERROR(INDEX(Т1[№ п./п.],SMALL(IF(LEFTB(Т1[Фамилия И.О.])=RIGHTB(CELL(\"имяфайла\",E87)),Т1[№ п./п.]),ROW(B86))),\"\")","v":""},{"$f":"IFERROR(INDEX(Т1[Фамилия И.О.],SMALL(IF(LEFTB(Т1[Фамилия И.О.])=RIGHTB(CELL(\"имяфайла\",F87)),Т1[№ п./п.]),ROW(C86))),\"\")","v":""},{"$f":"IFERROR(INDEX(Т1[Дата рождения],SMALL(IF(LEFTB(Т1[Фамилия И.О.])=RIGHTB(CELL(\"имяфайла\",G87)),Т1[№ п./п.]),ROW(D86))),\"\")","v":""}]
[null,{"$f":"IFERROR(INDEX(Т1[№ п./п.],SMALL(IF(LEFTB(Т1[Фамилия И.О.])=RIGHTB(CELL(\"имяфайла\",E88)),Т1[№ п./п.]),ROW(B87))),\"\")","v":""},{"$f":"IFERROR(INDEX(Т1[Фамилия И.О.],SMALL(IF(LEFTB(Т1[Фамилия И.О.])=RIGHTB(CELL(\"имяфайла\",F88)),Т1[№ п./п.]),ROW(C87))),\"\")","v":""},{"$f":"IFERROR(INDEX(Т1[Дата рождения],SMALL(IF(LEFTB(Т1[Фамилия И.О.])=RIGHTB(CELL(\"имяфайла\",G88)),Т1[№ п./п.]),ROW(D87))),\"\")","v":""}]
[null,{"$f":"IFERROR(INDEX(Т1[№ п./п.],SMALL(IF(LEFTB(Т1[Фамилия И.О.])=RIGHTB(CELL(\"имяфайла\",E89)),Т1[№ п./п.]),ROW(B88))),\"\")","v":""},{"$f":"IFERROR(INDEX(Т1[Фамилия И.О.],SMALL(IF(LEFTB(Т1[Фамилия И.О.])=RIGHTB(CELL(\"имяфайла\",F89)),Т1[№ п./п.]),ROW(C88))),\"\")","v":""},{"$f":"IFERROR(INDEX(Т1[Дата рождения],SMALL(IF(LEFTB(Т1[Фамилия И.О.])=RIGHTB(CELL(\"имяфайла\",G89)),Т1[№ п./п.]),ROW(D88))),\"\")","v":""}]
[null,{"$f":"IFERROR(INDEX(Т1[№ п./п.],SMALL(IF(LEFTB(Т1[Фамилия И.О.])=RIGHTB(CELL(\"имяфайла\",E90)),Т1[№ п./п.]),ROW(B89))),\"\")","v":""},{"$f":"IFERROR(INDEX(Т1[Фамилия И.О.],SMALL(IF(LEFTB(Т1[Фамилия И.О.])=RIGHTB(CELL(\"имяфайла\",F90)),Т1[№ п./п.]),ROW(C89))),\"\")","v":""},{"$f":"IFERROR(INDEX(Т1[Дата рождения],SMALL(IF(LEFTB(Т1[Фамилия И.О.])=RIGHTB(CELL(\"имяфайла\",G90)),Т1[№ п./п.]),ROW(D89))),\"\")","v":""}]
[null,{"$f":"IFERROR(INDEX(Т1[№ п./п.],SMALL(IF(LEFTB(Т1[Фамилия И.О.])=RIGHTB(CELL(\"имяфайла\",E91)),Т1[№ п./п.]),ROW(B90))),\"\")","v":""},{"$f":"IFERROR(INDEX(Т1[Фамилия И.О.],SMALL(IF(LEFTB(Т1[Фамилия И.О.])=RIGHTB(CELL(\"имяфайла\",F91)),Т1[№ п./п.]),ROW(C90))),\"\")","v":""},{"$f":"IFERROR(INDEX(Т1[Дата рождения],SMALL(IF(LEFTB(Т1[Фамилия И.О.])=RIGHTB(CELL(\"имяфайла\",G91)),Т1[№ п./п.]),ROW(D90))),\"\")","v":""}]
[null,{"$f":"IFERROR(INDEX(Т1[№ п./п.],SMALL(IF(LEFTB(Т1[Фамилия И.О.])=RIGHTB(CELL(\"имяфайла\",E92)),Т1[№ п./п.]),ROW(B91))),\"\")","v":""},{"$f":"IFERROR(INDEX(Т1[Фамилия И.О.],SMALL(IF(LEFTB(Т1[Фамилия И.О.])=RIGHTB(CELL(\"имяфайла\",F92)),Т1[№ п./п.]),ROW(C91))),\"\")","v":""},{"$f":"IFERROR(INDEX(Т1[Дата рождения],SMALL(IF(LEFTB(Т1[Фамилия И.О.])=RIGHTB(CELL(\"имяфайла\",G92)),Т1[№ п./п.]),ROW(D91))),\"\")","v":""}]
[null,{"$f":"IFERROR(INDEX(Т1[№ п./п.],SMALL(IF(LEFTB(Т1[Фамилия И.О.])=RIGHTB(CELL(\"имяфайла\",E93)),Т1[№ п./п.]),ROW(B92))),\"\")","v":""},{"$f":"IFERROR(INDEX(Т1[Фамилия И.О.],SMALL(IF(LEFTB(Т1[Фамилия И.О.])=RIGHTB(CELL(\"имяфайла\",F93)),Т1[№ п./п.]),ROW(C92))),\"\")","v":""},{"$f":"IFERROR(INDEX(Т1[Дата рождения],SMALL(IF(LEFTB(Т1[Фамилия И.О.])=RIGHTB(CELL(\"имяфайла\",G93)),Т1[№ п./п.]),ROW(D92))),\"\")","v":""}]
[null,{"$f":"IFERROR(INDEX(Т1[№ п./п.],SMALL(IF(LEFTB(Т1[Фамилия И.О.])=RIGHTB(CELL(\"имяфайла\",E94)),Т1[№ п./п.]),ROW(B93))),\"\")","v":""},{"$f":"IFERROR(INDEX(Т1[Фамилия И.О.],SMALL(IF(LEFTB(Т1[Фамилия И.О.])=RIGHTB(CELL(\"имяфайла\",F94)),Т1[№ п./п.]),ROW(C93))),\"\")","v":""},{"$f":"IFERROR(INDEX(Т1[Дата рождения],SMALL(IF(LEFTB(Т1[Фамилия И.О.])=RIGHTB(CELL(\"имяфайла\",G94)),Т1[№ п./п.]),ROW(D93))),\"\")","v":""}]
[null,{"$f":"IFERROR(INDEX(Т1[№ п./п.],SMALL(IF(LEFTB(Т1[Фамилия И.О.])=RIGHTB(CELL(\"имяфайла\",E95)),Т1[№ п./п.]),ROW(B94))),\"\")","v":""},{"$f":"IFERROR(INDEX(Т1[Фамилия И.О.],SMALL(IF(LEFTB(Т1[Фамилия И.О.])=RIGHTB(CELL(\"имяфайла\",F95)),Т1[№ п./п.]),ROW(C94))),\"\")","v":""},{"$f":"IFERROR(INDEX(Т1[Дата рождения],SMALL(IF(LEFTB(Т1[Фамилия И.О.])=RIGHTB(CELL(\"имяфайла\",G95)),Т1[№ п./п.]),ROW(D94))),\"\")","v":""}]
[null,{"$f":"IFERROR(INDEX(Т1[№ п./п.],SMALL(IF(LEFTB(Т1[Фамилия И.О.])=RIGHTB(CELL(\"имяфайла\",E96)),Т1[№ п./п.]),ROW(B95))),\"\")","v":""},{"$f":"IFERROR(INDEX(Т1[Фамилия И.О.],SMALL(IF(LEFTB(Т1[Фамилия И.О.])=RIGHTB(CELL(\"имяфайла\",F96)),Т1[№ п./п.]),ROW(C95))),\"\")","v":""},{"$f":"IFERROR(INDEX(Т1[Дата рождения],SMALL(IF(LEFTB(Т1[Фамилия И.О.])=RIGHTB(CELL(\"имяфайла\",G96)),Т1[№ п./п.]),ROW(D95))),\"\")","v":""}]
[null,{"$f":"IFERROR(INDEX(Т1[№ п./п.],SMALL(IF(LEFTB(Т1[Фамилия И.О.])=RIGHTB(CELL(\"имяфайла\",E97)),Т1[№ п./п.]),ROW(B96))),\"\")","v":""},{"$f":"IFERROR(INDEX(Т1[Фамилия И.О.],SMALL(IF(LEFTB(Т1[Фамилия И.О.])=RIGHTB(CELL(\"имяфайла\",F97)),Т1[№ п./п.]),ROW(C96))),\"\")","v":""},{"$f":"IFERROR(INDEX(Т1[Дата рождения],SMALL(IF(LEFTB(Т1[Фамилия И.О.])=RIGHTB(CELL(\"имяфайла\",G97)),Т1[№ п./п.]),ROW(D96))),\"\")","v":""}]
[null,{"$f":"IFERROR(INDEX(Т1[№ п./п.],SMALL(IF(LEFTB(Т1[Фамилия И.О.])=RIGHTB(CELL(\"имяфайла\",E98)),Т1[№ п./п.]),ROW(B97))),\"\")","v":""},{"$f":"IFERROR(INDEX(Т1[Фамилия И.О.],SMALL(IF(LEFTB(Т1[Фамилия И.О.])=RIGHTB(CELL(\"имяфайла\",F98)),Т1[№ п./п.]),ROW(C97))),\"\")","v":""},{"$f":"IFERROR(INDEX(Т1[Дата рождения],SMALL(IF(LEFTB(Т1[Фамилия И.О.])=RIGHTB(CELL(\"имяфайла\",G98)),Т1[№ п./п.]),ROW(D97))),\"\")","v":""}]
[null,{"$f":"IFERROR(INDEX(Т1[№ п./п.],SMALL(IF(LEFTB(Т1[Фамилия И.О.])=RIGHTB(CELL(\"имяфайла\",E99)),Т1[№ п./п.]),ROW(B98))),\"\")","v":""},{"$f":"IFERROR(INDEX(Т1[Фамилия И.О.],SMALL(IF(LEFTB(Т1[Фамилия И.О.])=RIGHTB(CELL(\"имяфайла\",F99)),Т1[№ п./п.]),ROW(C98))),\"\")","v":""},{"$f":"IFERROR(INDEX(Т1[Дата рождения],SMALL(IF(LEFTB(Т1[Фамилия И.О.])=RIGHTB(CELL(\"имяфайла\",G99)),Т1[№ п./п.]),ROW(D98))),\"\")","v":""}]
[null,{"$f":"IFERROR(INDEX(Т1[№ п./п.],SMALL(IF(LEFTB(Т1[Фамилия И.О.])=RIGHTB(CELL(\"имяфайла\",E100)),Т1[№ п./п.]),ROW(B99))),\"\")","v":""},{"$f":"IFERROR(INDEX(Т1[Фамилия И.О.],SMALL(IF(LEFTB(Т1[Фамилия И.О.])=RIGHTB(CELL(\"имяфайла\",F100)),Т1[№ п./п.]),ROW(C99))),\"\")","v":""},{"$f":"IFERROR(INDEX(Т1[Дата рождения],SMALL(IF(LEFTB(Т1[Фамилия И.О.])=RIGHTB(CELL(\"имяфайла\",G100)),Т1[№ п./п.]),ROW(D99))),\"\")","v":""}]
[null,{"$f":"IFERROR(INDEX(Т1[№ п./п.],SMALL(IF(LEFTB(Т1[Фамилия И.О.])=RIGHTB(CELL(\"имяфайла\",E101)),Т1[№ п./п.]),ROW(B100))),\"\")","v":""},{"$f":"IFERROR(INDEX(Т1[Фамилия И.О.],SMALL(IF(LEFTB(Т1[Фамилия И.О.])=RIGHTB(CELL(\"имяфайла\",F101)),Т1[№ п./п.]),ROW(C100))),\"\")","v":""},{"$f":"IFERROR(INDEX(Т1[Дата рождения],SMALL(IF(LEFTB(Т1[Фамилия И.О.])=RIGHTB(CELL(\"имяфайла\",G101)),Т1[№ п./п.]),ROW(D100))),\"\")","v":""}]
[null,{"$f":"IFERROR(INDEX(Т1[№ п./п.],SMALL(IF(LEFTB(Т1[Фамилия И.О.])=RIGHTB(CELL(\"имяфайла\",E102)),Т1[№ п./п.]),ROW(B101))),\"\")","v":""},{"$f":"IFERROR(INDEX(Т1[Фамилия И.О.],SMALL(IF(LEFTB(Т1[Фамилия И.О.])=RIGHTB(CELL(\"имяфайла\",F102)),Т1[№ п./п.]),ROW(C101))),\"\")","v":""},{"$f":"IFERROR(INDEX(Т1[Дата рождения],SMALL(IF(LEFTB(Т1[Фамилия И.О.])=RIGHTB(CELL(\"имяфайла\",G102)),Т1[№ п./п.]),ROW(D101))),\"\")","v":""}]
[null,{"$f":"IFERROR(INDEX(Т1[№ п./п.],SMALL(IF(LEFTB(Т1[Фамилия И.О.])=RIGHTB(CELL(\"имяфайла\",E103)),Т1[№ п./п.]),ROW(B102))),\"\")","v":""},{"$f":"IFERROR(INDEX(Т1[Фамилия И.О.],SMALL(IF(LEFTB(Т1[Фамилия И.О.])=RIGHTB(CELL(\"имяфайла\",F103)),Т1[№ п./п.]),ROW(C102))),\"\")","v":""},{"$f":"IFERROR(INDEX(Т1[Дата рождения],SMALL(IF(LEFTB(Т1[Фамилия И.О.])=RIGHTB(CELL(\"имяфайла\",G103)),Т1[№ п./п.]),ROW(D102))),\"\")","v":""}]
[null,{"$f":"IFERROR(INDEX(Т1[№ п./п.],SMALL(IF(LEFTB(Т1[Фамилия И.О.])=RIGHTB(CELL(\"имяфайла\",E104)),Т1[№ п./п.]),ROW(B103))),\"\")","v":""},{"$f":"IFERROR(INDEX(Т1[Фамилия И.О.],SMALL(IF(LEFTB(Т1[Фамилия И.О.])=RIGHTB(CELL(\"имяфайла\",F104)),Т1[№ п./п.]),ROW(C103))),\"\")","v":""},{"$f":"IFERROR(INDEX(Т1[Дата рождения],SMALL(IF(LEFTB(Т1[Фамилия И.О.])=RIGHTB(CELL(\"имяфайла\",G104)),Т1[№ п./п.]),ROW(D103))),\"\")","v":""}]
[null,{"$f":"IFERROR(INDEX(Т1[№ п./п.],SMALL(IF(LEFTB(Т1[Фамилия И.О.])=RIGHTB(CELL(\"имяфайла\",E105)),Т1[№ п./п.]),ROW(B104))),\"\")","v":""},{"$f":"IFERROR(INDEX(Т1[Фамилия И.О.],SMALL(IF(LEFTB(Т1[Фамилия И.О.])=RIGHTB(CELL(\"имяфайла\",F105)),Т1[№ п./п.]),ROW(C104))),\"\")","v":""},{"$f":"IFERROR(INDEX(Т1[Дата рождения],SMALL(IF(LEFTB(Т1[Фамилия И.О.])=RIGHTB(CELL(\"имяфайла\",G105)),Т1[№ п./п.]),ROW(D104))),\"\")","v":""}]
[null,{"$f":"IFERROR(INDEX(Т1[№ п./п.],SMALL(IF(LEFTB(Т1[Фамилия И.О.])=RIGHTB(CELL(\"имяфайла\",E106)),Т1[№ п./п.]),ROW(B105))),\"\")","v":""},{"$f":"IFERROR(INDEX(Т1[Фамилия И.О.],SMALL(IF(LEFTB(Т1[Фамилия И.О.])=RIGHTB(CELL(\"имяфайла\",F106)),Т1[№ п./п.]),ROW(C105))),\"\")","v":""},{"$f":"IFERROR(INDEX(Т1[Дата рождения],SMALL(IF(LEFTB(Т1[Фамилия И.О.])=RIGHTB(CELL(\"имяфайла\",G106)),Т1[№ п./п.]),ROW(D105))),\"\")","v":""}]
[null,{"$f":"IFERROR(INDEX(Т1[№ п./п.],SMALL(IF(LEFTB(Т1[Фамилия И.О.])=RIGHTB(CELL(\"имяфайла\",E107)),Т1[№ п./п.]),ROW(B106))),\"\")","v":""},{"$f":"IFERROR(INDEX(Т1[Фамилия И.О.],SMALL(IF(LEFTB(Т1[Фамилия И.О.])=RIGHTB(CELL(\"имяфайла\",F107)),Т1[№ п./п.]),ROW(C106))),\"\")","v":""},{"$f":"IFERROR(INDEX(Т1[Дата рождения],SMALL(IF(LEFTB(Т1[Фамилия И.О.])=RIGHTB(CELL(\"имяфайла\",G107)),Т1[№ п./п.]),ROW(D106))),\"\")","v":""}]
[null,{"$f":"IFERROR(INDEX(Т1[№ п./п.],SMALL(IF(LEFTB(Т1[Фамилия И.О.])=RIGHTB(CELL(\"имяфайла\",E108)),Т1[№ п./п.]),ROW(B107))),\"\")","v":""},{"$f":"IFERROR(INDEX(Т1[Фамилия И.О.],SMALL(IF(LEFTB(Т1[Фамилия И.О.])=RIGHTB(CELL(\"имяфайла\",F108)),Т1[№ п./п.]),ROW(C107))),\"\")","v":""},{"$f":"IFERROR(INDEX(Т1[Дата рождения],SMALL(IF(LEFTB(Т1[Фамилия И.О.])=RIGHTB(CELL(\"имяфайла\",G108)),Т1[№ п./п.]),ROW(D107))),\"\")","v":""}]
[null,{"$f":"IFERROR(INDEX(Т1[№ п./п.],SMALL(IF(LEFTB(Т1[Фамилия И.О.])=RIGHTB(CELL(\"имяфайла\",E109)),Т1[№ п./п.]),ROW(B108))),\"\")","v":""},{"$f":"IFERROR(INDEX(Т1[Фамилия И.О.],SMALL(IF(LEFTB(Т1[Фамилия И.О.])=RIGHTB(CELL(\"имяфайла\",F109)),Т1[№ п./п.]),ROW(C108))),\"\")","v":""},{"$f":"IFERROR(INDEX(Т1[Дата рождения],SMALL(IF(LEFTB(Т1[Фамилия И.О.])=RIGHTB(CELL(\"имяфайла\",G109)),Т1[№ п./п.]),ROW(D108))),\"\")","v":""}]
[null,{"$f":"IFERROR(INDEX(Т1[№ п./п.],SMALL(IF(LEFTB(Т1[Фамилия И.О.])=RIGHTB(CELL(\"имяфайла\",E110)),Т1[№ п./п.]),ROW(B109))),\"\")","v":""},{"$f":"IFERROR(INDEX(Т1[Фамилия И.О.],SMALL(IF(LEFTB(Т1[Фамилия И.О.])=RIGHTB(CELL(\"имяфайла\",F110)),Т1[№ п./п.]),ROW(C109))),\"\")","v":""},{"$f":"IFERROR(INDEX(Т1[Дата рождения],SMALL(IF(LEFTB(Т1[Фамилия И.О.])=RIGHTB(CELL(\"имяфайла\",G110)),Т1[№ п./п.]),ROW(D109))),\"\")","v":""}]
[null,{"$f":"IFERROR(INDEX(Т1[№ п./п.],SMALL(IF(LEFTB(Т1[Фамилия И.О.])=RIGHTB(CELL(\"имяфайла\",E111)),Т1[№ п./п.]),ROW(B110))),\"\")","v":""},{"$f":"IFERROR(INDEX(Т1[Фамилия И.О.],SMALL(IF(LEFTB(Т1[Фамилия И.О.])=RIGHTB(CELL(\"имяфайла\",F111)),Т1[№ п./п.]),ROW(C110))),\"\")","v":""},{"$f":"IFERROR(INDEX(Т1[Дата рождения],SMALL(IF(LEFTB(Т1[Фамилия И.О.])=RIGHTB(CELL(\"имяфайла\",G111)),Т1[№ п./п.]),ROW(D110))),\"\")","v":""}]
[null,{"$f":"IFERROR(INDEX(Т1[№ п./п.],SMALL(IF(LEFTB(Т1[Фамилия И.О.])=RIGHTB(CELL(\"имяфайла\",E112)),Т1[№ п./п.]),ROW(B111))),\"\")","v":""},{"$f":"IFERROR(INDEX(Т1[Фамилия И.О.],SMALL(IF(LEFTB(Т1[Фамилия И.О.])=RIGHTB(CELL(\"имяфайла\",F112)),Т1[№ п./п.]),ROW(C111))),\"\")","v":""},{"$f":"IFERROR(INDEX(Т1[Дата рождения],SMALL(IF(LEFTB(Т1[Фамилия И.О.])=RIGHTB(CELL(\"имяфайла\",G112)),Т1[№ п./п.]),ROW(D111))),\"\")","v":""}]
[null,{"$f":"IFERROR(INDEX(Т1[№ п./п.],SMALL(IF(LEFTB(Т1[Фамилия И.О.])=RIGHTB(CELL(\"имяфайла\",E113)),Т1[№ п./п.]),ROW(B112))),\"\")","v":""},{"$f":"IFERROR(INDEX(Т1[Фамилия И.О.],SMALL(IF(LEFTB(Т1[Фамилия И.О.])=RIGHTB(CELL(\"имяфайла\",F113)),Т1[№ п./п.]),ROW(C112))),\"\")","v":""},{"$f":"IFERROR(INDEX(Т1[Дата рождения],SMALL(IF(LEFTB(Т1[Фамилия И.О.])=RIGHTB(CELL(\"имяфайла\",G113)),Т1[№ п./п.]),ROW(D112))),\"\")","v":""}]
[null,{"$f":"IFERROR(INDEX(Т1[№ п./п.],SMALL(IF(LEFTB(Т1[Фамилия И.О.])=RIGHTB(CELL(\"имяфайла\",E114)),Т1[№ п./п.]),ROW(B113))),\"\")","v":""},{"$f":"IFERROR(INDEX(Т1[Фамилия И.О.],SMALL(IF(LEFTB(Т1[Фамилия И.О.])=RIGHTB(CELL(\"имяфайла\",F114)),Т1[№ п./п.]),ROW(C113))),\"\")","v":""},{"$f":"IFERROR(INDEX(Т1[Дата рождения],SMALL(IF(LEFTB(Т1[Фамилия И.О.])=RIGHTB(CELL(\"имяфайла\",G114)),Т1[№ п./п.]),ROW(D113))),\"\")","v":""}]
[null,{"$f":"IFERROR(INDEX(Т1[№ п./п.],SMALL(IF(LEFTB(Т1[Фамилия И.О.])=RIGHTB(CELL(\"имяфайла\",E115)),Т1[№ п./п.]),ROW(B114))),\"\")","v":""},{"$f":"IFERROR(INDEX(Т1[Фамилия И.О.],SMALL(IF(LEFTB(Т1[Фамилия И.О.])=RIGHTB(CELL(\"имяфайла\",F115)),Т1[№ п./п.]),ROW(C114))),\"\")","v":""},{"$f":"IFERROR(INDEX(Т1[Дата рождения],SMALL(IF(LEFTB(Т1[Фамилия И.О.])=RIGHTB(CELL(\"имяфайла\",G115)),Т1[№ п./п.]),ROW(D114))),\"\")","v":""}]
[null,{"$f":"IFERROR(INDEX(Т1[№ п./п.],SMALL(IF(LEFTB(Т1[Фамилия И.О.])=RIGHTB(CELL(\"имяфайла\",E116)),Т1[№ п./п.]),ROW(B115))),\"\")","v":""},{"$f":"IFERROR(INDEX(Т1[Фамилия И.О.],SMALL(IF(LEFTB(Т1[Фамилия И.О.])=RIGHTB(CELL(\"имяфайла\",F116)),Т1[№ п./п.]),ROW(C115))),\"\")","v":""},{"$f":"IFERROR(INDEX(Т1[Дата рождения],SMALL(IF(LEFTB(Т1[Фамилия И.О.])=RIGHTB(CELL(\"имяфайла\",G116)),Т1[№ п./п.]),ROW(D115))),\"\")","v":""}]
[null,{"$f":"IFERROR(INDEX(Т1[№ п./п.],SMALL(IF(LEFTB(Т1[Фамилия И.О.])=RIGHTB(CELL(\"имяфайла\",E117)),Т1[№ п./п.]),ROW(B116))),\"\")","v":""},{"$f":"IFERROR(INDEX(Т1[Фамилия И.О.],SMALL(IF(LEFTB(Т1[Фамилия И.О.])=RIGHTB(CELL(\"имяфайла\",F117)),Т1[№ п./п.]),ROW(C116))),\"\")","v":""},{"$f":"IFERROR(INDEX(Т1[Дата рождения],SMALL(IF(LEFTB(Т1[Фамилия И.О.])=RIGHTB(CELL(\"имяфайла\",G117)),Т1[№ п./п.]),ROW(D116))),\"\")","v":""}]
[null,{"$f":"IFERROR(INDEX(Т1[№ п./п.],SMALL(IF(LEFTB(Т1[Фамилия И.О.])=RIGHTB(CELL(\"имяфайла\",E118)),Т1[№ п./п.]),ROW(B117))),\"\")","v":""},{"$f":"IFERROR(INDEX(Т1[Фамилия И.О.],SMALL(IF(LEFTB(Т1[Фамилия И.О.])=RIGHTB(CELL(\"имяфайла\",F118)),Т1[№ п./п.]),ROW(C117))),\"\")","v":""},{"$f":"IFERROR(INDEX(Т1[Дата рождения],SMALL(IF(LEFTB(Т1[Фамилия И.О.])=RIGHTB(CELL(\"имяфайла\",G118)),Т1[№ п./п.]),ROW(D117))),\"\")","v":""}]
[null,{"$f":"IFERROR(INDEX(Т1[№ п./п.],SMALL(IF(LEFTB(Т1[Фамилия И.О.])=RIGHTB(CELL(\"имяфайла\",E119)),Т1[№ п./п.]),ROW(B118))),\"\")","v":""},{"$f":"IFERROR(INDEX(Т1[Фамилия И.О.],SMALL(IF(LEFTB(Т1[Фамилия И.О.])=RIGHTB(CELL(\"имяфайла\",F119)),Т1[№ п./п.]),ROW(C118))),\"\")","v":""},{"$f":"IFERROR(INDEX(Т1[Дата рождения],SMALL(IF(LEFTB(Т1[Фамилия И.О.])=RIGHTB(CELL(\"имяфайла\",G119)),Т1[№ п./п.]),ROW(D118))),\"\")","v":""}]
[null,{"$f":"IFERROR(INDEX(Т1[№ п./п.],SMALL(IF(LEFTB(Т1[Фамилия И.О.])=RIGHTB(CELL(\"имяфайла\",E120)),Т1[№ п./п.]),ROW(B119))),\"\")","v":""},{"$f":"IFERROR(INDEX(Т1[Фамилия И.О.],SMALL(IF(LEFTB(Т1[Фамилия И.О.])=RIGHTB(CELL(\"имяфайла\",F120)),Т1[№ п./п.]),ROW(C119))),\"\")","v":""},{"$f":"IFERROR(INDEX(Т1[Дата рождения],SMALL(IF(LEFTB(Т1[Фамилия И.О.])=RIGHTB(CELL(\"имяфайла\",G120)),Т1[№ п./п.]),ROW(D119))),\"\")","v":""}]
[null,{"$f":"IFERROR(INDEX(Т1[№ п./п.],SMALL(IF(LEFTB(Т1[Фамилия И.О.])=RIGHTB(CELL(\"имяфайла\",E121)),Т1[№ п./п.]),ROW(B120))),\"\")","v":""},{"$f":"IFERROR(INDEX(Т1[Фамилия И.О.],SMALL(IF(LEFTB(Т1[Фамилия И.О.])=RIGHTB(CELL(\"имяфайла\",F121)),Т1[№ п./п.]),ROW(C120))),\"\")","v":""},{"$f":"IFERROR(INDEX(Т1[Дата рождения],SMALL(IF(LEFTB(Т1[Фамилия И.О.])=RIGHTB(CELL(\"имяфайла\",G121)),Т1[№ п./п.]),ROW(D120))),\"\")","v":""}]
[null,{"$f":"IFERROR(INDEX(Т1[№ п./п.],SMALL(IF(LEFTB(Т1[Фамилия И.О.])=RIGHTB(CELL(\"имяфайла\",E122)),Т1[№ п./п.]),ROW(B121))),\"\")","v":""},{"$f":"IFERROR(INDEX(Т1[Фамилия И.О.],SMALL(IF(LEFTB(Т1[Фамилия И.О.])=RIGHTB(CELL(\"имяфайла\",F122)),Т1[№ п./п.]),ROW(C121))),\"\")","v":""},{"$f":"IFERROR(INDEX(Т1[Дата рождения],SMALL(IF(LEFTB(Т1[Фамилия И.О.])=RIGHTB(CELL(\"имяфайла\",G122)),Т1[№ п./п.]),ROW(D121))),\"\")","v":""}]
[null,{"$f":"IFERROR(INDEX(Т1[№ п./п.],SMALL(IF(LEFTB(Т1[Фамилия И.О.])=RIGHTB(CELL(\"имяфайла\",E123)),Т1[№ п./п.]),ROW(B122))),\"\")","v":""},{"$f":"IFERROR(INDEX(Т1[Фамилия И.О.],SMALL(IF(LEFTB(Т1[Фамилия И.О.])=RIGHTB(CELL(\"имяфайла\",F123)),Т1[№ п./п.]),ROW(C122))),\"\")","v":""},{"$f":"IFERROR(INDEX(Т1[Дата рождения],SMALL(IF(LEFTB(Т1[Фамилия И.О.])=RIGHTB(CELL(\"имяфайла\",G123)),Т1[№ п./п.]),ROW(D122))),\"\")","v":""}]
[null,{"$f":"IFERROR(INDEX(Т1[№ п./п.],SMALL(IF(LEFTB(Т1[Фамилия И.О.])=RIGHTB(CELL(\"имяфайла\",E124)),Т1[№ п./п.]),ROW(B123))),\"\")","v":""},{"$f":"IFERROR(INDEX(Т1[Фамилия И.О.],SMALL(IF(LEFTB(Т1[Фамилия И.О.])=RIGHTB(CELL(\"имяфайла\",F124)),Т1[№ п./п.]),ROW(C123))),\"\")","v":""},{"$f":"IFERROR(INDEX(Т1[Дата рождения],SMALL(IF(LEFTB(Т1[Фамилия И.О.])=RIGHTB(CELL(\"имяфайла\",G124)),Т1[№ п./п.]),ROW(D123))),\"\")","v":""}]
[null,{"$f":"IFERROR(INDEX(Т1[№ п./п.],SMALL(IF(LEFTB(Т1[Фамилия И.О.])=RIGHTB(CELL(\"имяфайла\",E125)),Т1[№ п./п.]),ROW(B124))),\"\")","v":""},{"$f":"IFERROR(INDEX(Т1[Фамилия И.О.],SMALL(IF(LEFTB(Т1[Фамилия И.О.])=RIGHTB(CELL(\"имяфайла\",F125)),Т1[№ п./п.]),ROW(C124))),\"\")","v":""},{"$f":"IFERROR(INDEX(Т1[Дата рождения],SMALL(IF(LEFTB(Т1[Фамилия И.О.])=RIGHTB(CELL(\"имяфайла\",G125)),Т1[№ п./п.]),ROW(D124))),\"\")","v":""}]
[null,{"$f":"IFERROR(INDEX(Т1[№ п./п.],SMALL(IF(LEFTB(Т1[Фамилия И.О.])=RIGHTB(CELL(\"имяфайла\",E126)),Т1[№ п./п.]),ROW(B125))),\"\")","v":""},{"$f":"IFERROR(INDEX(Т1[Фамилия И.О.],SMALL(IF(LEFTB(Т1[Фамилия И.О.])=RIGHTB(CELL(\"имяфайла\",F126)),Т1[№ п./п.]),ROW(C125))),\"\")","v":""},{"$f":"IFERROR(INDEX(Т1[Дата рождения],SMALL(IF(LEFTB(Т1[Фамилия И.О.])=RIGHTB(CELL(\"имяфайла\",G126)),Т1[№ п./п.]),ROW(D125))),\"\")","v":""}]
[null,{"$f":"IFERROR(INDEX(Т1[№ п./п.],SMALL(IF(LEFTB(Т1[Фамилия И.О.])=RIGHTB(CELL(\"имяфайла\",E127)),Т1[№ п./п.]),ROW(B126))),\"\")","v":""},{"$f":"IFERROR(INDEX(Т1[Фамилия И.О.],SMALL(IF(LEFTB(Т1[Фамилия И.О.])=RIGHTB(CELL(\"имяфайла\",F127)),Т1[№ п./п.]),ROW(C126))),\"\")","v":""},{"$f":"IFERROR(INDEX(Т1[Дата рождения],SMALL(IF(LEFTB(Т1[Фамилия И.О.])=RIGHTB(CELL(\"имяфайла\",G127)),Т1[№ п./п.]),ROW(D126))),\"\")","v":""}]
[null,{"$f":"IFERROR(INDEX(Т1[№ п./п.],SMALL(IF(LEFTB(Т1[Фамилия И.О.])=RIGHTB(CELL(\"имяфайла\",E128)),Т1[№ п./п.]),ROW(B127))),\"\")","v":""},{"$f":"IFERROR(INDEX(Т1[Фамилия И.О.],SMALL(IF(LEFTB(Т1[Фамилия И.О.])=RIGHTB(CELL(\"имяфайла\",F128)),Т1[№ п./п.]),ROW(C127))),\"\")","v":""},{"$f":"IFERROR(INDEX(Т1[Дата рождения],SMALL(IF(LEFTB(Т1[Фамилия И.О.])=RIGHTB(CELL(\"имяфайла\",G128)),Т1[№ п./п.]),ROW(D127))),\"\")","v":""}]
[null,{"$f":"IFERROR(INDEX(Т1[№ п./п.],SMALL(IF(LEFTB(Т1[Фамилия И.О.])=RIGHTB(CELL(\"имяфайла\",E129)),Т1[№ п./п.]),ROW(B128))),\"\")","v":""},{"$f":"IFERROR(INDEX(Т1[Фамилия И.О.],SMALL(IF(LEFTB(Т1[Фамилия И.О.])=RIGHTB(CELL(\"имяфайла\",F129)),Т1[№ п./п.]),ROW(C128))),\"\")","v":""},{"$f":"IFERROR(INDEX(Т1[Дата рождения],SMALL(IF(LEFTB(Т1[Фамилия И.О.])=RIGHTB(CELL(\"имяфайла\",G129)),Т1[№ п./п.]),ROW(D128))),\"\")","v":""}]
[null,{"$f":"IFERROR(INDEX(Т1[№ п./п.],SMALL(IF(LEFTB(Т1[Фамилия И.О.])=RIGHTB(CELL(\"имяфайла\",E130)),Т1[№ п./п.]),ROW(B129))),\"\")","v":""},{"$f":"IFERROR(INDEX(Т1[Фамилия И.О.],SMALL(IF(LEFTB(Т1[Фамилия И.О.])=RIGHTB(CELL(\"имяфайла\",F130)),Т1[№ п./п.]),ROW(C129))),\"\")","v":""},{"$f":"IFERROR(INDEX(Т1[Дата рождения],SMALL(IF(LEFTB(Т1[Фамилия И.О.])=RIGHTB(CELL(\"имяфайла\",G130)),Т1[№ п./п.]),ROW(D129))),\"\")","v":""}]
[null,{"$f":"IFERROR(INDEX(Т1[№ п./п.],SMALL(IF(LEFTB(Т1[Фамилия И.О.])=RIGHTB(CELL(\"имяфайла\",E131)),Т1[№ п./п.]),ROW(B130))),\"\")","v":""},{"$f":"IFERROR(INDEX(Т1[Фамилия И.О.],SMALL(IF(LEFTB(Т1[Фамилия И.О.])=RIGHTB(CELL(\"имяфайла\",F131)),Т1[№ п./п.]),ROW(C130))),\"\")","v":""},{"$f":"IFERROR(INDEX(Т1[Дата рождения],SMALL(IF(LEFTB(Т1[Фамилия И.О.])=RIGHTB(CELL(\"имяфайла\",G131)),Т1[№ п./п.]),ROW(D130))),\"\")","v":""}]
[null,{"$f":"IFERROR(INDEX(Т1[№ п./п.],SMALL(IF(LEFTB(Т1[Фамилия И.О.])=RIGHTB(CELL(\"имяфайла\",E132)),Т1[№ п./п.]),ROW(B131))),\"\")","v":""},{"$f":"IFERROR(INDEX(Т1[Фамилия И.О.],SMALL(IF(LEFTB(Т1[Фамилия И.О.])=RIGHTB(CELL(\"имяфайла\",F132)),Т1[№ п./п.]),ROW(C131))),\"\")","v":""},{"$f":"IFERROR(INDEX(Т1[Дата рождения],SMALL(IF(LEFTB(Т1[Фамилия И.О.])=RIGHTB(CELL(\"имяфайла\",G132)),Т1[№ п./п.]),ROW(D131))),\"\")","v":""}]
[null,{"$f":"IFERROR(INDEX(Т1[№ п./п.],SMALL(IF(LEFTB(Т1[Фамилия И.О.])=RIGHTB(CELL(\"имяфайла\",E133)),Т1[№ п./п.]),ROW(B132))),\"\")","v":""},{"$f":"IFERROR(INDEX(Т1[Фамилия И.О.],SMALL(IF(LEFTB(Т1[Фамилия И.О.])=RIGHTB(CELL(\"имяфайла\",F133)),Т1[№ п./п.]),ROW(C132))),\"\")","v":""},{"$f":"IFERROR(INDEX(Т1[Дата рождения],SMALL(IF(LEFTB(Т1[Фамилия И.О.])=RIGHTB(CELL(\"имяфайла\",G133)),Т1[№ п./п.]),ROW(D132))),\"\")","v":""}]
[null,{"$f":"IFERROR(INDEX(Т1[№ п./п.],SMALL(IF(LEFTB(Т1[Фамилия И.О.])=RIGHTB(CELL(\"имяфайла\",E134)),Т1[№ п./п.]),ROW(B133))),\"\")","v":""},{"$f":"IFERROR(INDEX(Т1[Фамилия И.О.],SMALL(IF(LEFTB(Т1[Фамилия И.О.])=RIGHTB(CELL(\"имяфайла\",F134)),Т1[№ п./п.]),ROW(C133))),\"\")","v":""},{"$f":"IFERROR(INDEX(Т1[Дата рождения],SMALL(IF(LEFTB(Т1[Фамилия И.О.])=RIGHTB(CELL(\"имяфайла\",G134)),Т1[№ п./п.]),ROW(D133))),\"\")","v":""}]
[null,{"$f":"IFERROR(INDEX(Т1[№ п./п.],SMALL(IF(LEFTB(Т1[Фамилия И.О.])=RIGHTB(CELL(\"имяфайла\",E135)),Т1[№ п./п.]),ROW(B134))),\"\")","v":""},{"$f":"IFERROR(INDEX(Т1[Фамилия И.О.],SMALL(IF(LEFTB(Т1[Фамилия И.О.])=RIGHTB(CELL(\"имяфайла\",F135)),Т1[№ п./п.]),ROW(C134))),\"\")","v":""},{"$f":"IFERROR(INDEX(Т1[Дата рождения],SMALL(IF(LEFTB(Т1[Фамилия И.О.])=RIGHTB(CELL(\"имяфайла\",G135)),Т1[№ п./п.]),ROW(D134))),\"\")","v":""}]
[null,{"$f":"IFERROR(INDEX(Т1[№ п./п.],SMALL(IF(LEFTB(Т1[Фамилия И.О.])=RIGHTB(CELL(\"имяфайла\",E136)),Т1[№ п./п.]),ROW(B135))),\"\")","v":""},{"$f":"IFERROR(INDEX(Т1[Фамилия И.О.],SMALL(IF(LEFTB(Т1[Фамилия И.О.])=RIGHTB(CELL(\"имяфайла\",F136)),Т1[№ п./п.]),ROW(C135))),\"\")","v":""},{"$f":"IFERROR(INDEX(Т1[Дата рождения],SMALL(IF(LEFTB(Т1[Фамилия И.О.])=RIGHTB(CELL(\"имяфайла\",G136)),Т1[№ п./п.]),ROW(D135))),\"\")","v":""}]
[null,{"$f":"IFERROR(INDEX(Т1[№ п./п.],SMALL(IF(LEFTB(Т1[Фамилия И.О.])=RIGHTB(CELL(\"имяфайла\",E137)),Т1[№ п./п.]),ROW(B136))),\"\")","v":""},{"$f":"IFERROR(INDEX(Т1[Фамилия И.О.],SMALL(IF(LEFTB(Т1[Фамилия И.О.])=RIGHTB(CELL(\"имяфайла\",F137)),Т1[№ п./п.]),ROW(C136))),\"\")","v":""},{"$f":"IFERROR(INDEX(Т1[Дата рождения],SMALL(IF(LEFTB(Т1[Фамилия И.О.])=RIGHTB(CELL(\"имяфайла\",G137)),Т1[№ п./п.]),ROW(D136))),\"\")","v":""}]
[null,{"$f":"IFERROR(INDEX(Т1[№ п./п.],SMALL(IF(LEFTB(Т1[Фамилия И.О.])=RIGHTB(CELL(\"имяфайла\",E138)),Т1[№ п./п.]),ROW(B137))),\"\")","v":""},{"$f":"IFERROR(INDEX(Т1[Фамилия И.О.],SMALL(IF(LEFTB(Т1[Фамилия И.О.])=RIGHTB(CELL(\"имяфайла\",F138)),Т1[№ п./п.]),ROW(C137))),\"\")","v":""},{"$f":"IFERROR(INDEX(Т1[Дата рождения],SMALL(IF(LEFTB(Т1[Фамилия И.О.])=RIGHTB(CELL(\"имяфайла\",G138)),Т1[№ п./п.]),ROW(D137))),\"\")","v":""}]
[null,{"$f":"IFERROR(INDEX(Т1[№ п./п.],SMALL(IF(LEFTB(Т1[Фамилия И.О.])=RIGHTB(CELL(\"имяфайла\",E139)),Т1[№ п./п.]),ROW(B138))),\"\")","v":""},{"$f":"IFERROR(INDEX(Т1[Фамилия И.О.],SMALL(IF(LEFTB(Т1[Фамилия И.О.])=RIGHTB(CELL(\"имяфайла\",F139)),Т1[№ п./п.]),ROW(C138))),\"\")","v":""},{"$f":"IFERROR(INDEX(Т1[Дата рождения],SMALL(IF(LEFTB(Т1[Фамилия И.О.])=RIGHTB(CELL(\"имяфайла\",G139)),Т1[№ п./п.]),ROW(D138))),\"\")","v":""}]
[null,{"$f":"IFERROR(INDEX(Т1[№ п./п.],SMALL(IF(LEFTB(Т1[Фамилия И.О.])=RIGHTB(CELL(\"имяфайла\",E140)),Т1[№ п./п.]),ROW(B139))),\"\")","v":""},{"$f":"IFERROR(INDEX(Т1[Фамилия И.О.],SMALL(IF(LEFTB(Т1[Фамилия И.О.])=RIGHTB(CELL(\"имяфайла\",F140)),Т1[№ п./п.]),ROW(C139))),\"\")","v":""},{"$f":"IFERROR(INDEX(Т1[Дата рождения],SMALL(IF(LEFTB(Т1[Фамилия И.О.])=RIGHTB(CELL(\"имяфайла\",G140)),Т1[№ п./п.]),ROW(D139))),\"\")","v":""}]
[null,{"$f":"IFERROR(INDEX(Т1[№ п./п.],SMALL(IF(LEFTB(Т1[Фамилия И.О.])=RIGHTB(CELL(\"имяфайла\",E141)),Т1[№ п./п.]),ROW(B140))),\"\")","v":""},{"$f":"IFERROR(INDEX(Т1[Фамилия И.О.],SMALL(IF(LEFTB(Т1[Фамилия И.О.])=RIGHTB(CELL(\"имяфайла\",F141)),Т1[№ п./п.]),ROW(C140))),\"\")","v":""},{"$f":"IFERROR(INDEX(Т1[Дата рождения],SMALL(IF(LEFTB(Т1[Фамилия И.О.])=RIGHTB(CELL(\"имяфайла\",G141)),Т1[№ п./п.]),ROW(D140))),\"\")","v":""}]
[null,{"$f":"IFERROR(INDEX(Т1[№ п./п.],SMALL(IF(LEFTB(Т1[Фамилия И.О.])=RIGHTB(CELL(\"имяфайла\",E142)),Т1[№ п./п.]),ROW(B141))),\"\")","v":""},{"$f":"IFERROR(INDEX(Т1[Фамилия И.О.],SMALL(IF(LEFTB(Т1[Фамилия И.О.])=RIGHTB(CELL(\"имяфайла\",F142)),Т1[№ п./п.]),ROW(C141))),\"\")","v":""},{"$f":"IFERROR(INDEX(Т1[Дата рождения],SMALL(IF(LEFTB(Т1[Фамилия И.О.])=RIGHTB(CELL(\"имяфайла\",G142)),Т1[№ п./п.]),ROW(D141))),\"\")","v":""}]
[null,{"$f":"IFERROR(INDEX(Т1[№ п./п.],SMALL(IF(LEFTB(Т1[Фамилия И.О.])=RIGHTB(CELL(\"имяфайла\",E143)),Т1[№ п./п.]),ROW(B142))),\"\")","v":""},{"$f":"IFERROR(INDEX(Т1[Фамилия И.О.],SMALL(IF(LEFTB(Т1[Фамилия И.О.])=RIGHTB(CELL(\"имяфайла\",F143)),Т1[№ п./п.]),ROW(C142))),\"\")","v":""},{"$f":"IFERROR(INDEX(Т1[Дата рождения],SMALL(IF(LEFTB(Т1[Фамилия И.О.])=RIGHTB(CELL(\"имяфайла\",G143)),Т1[№ п./п.]),ROW(D142))),\"\")","v":""}]
[null,{"$f":"IFERROR(INDEX(Т1[№ п./п.],SMALL(IF(LEFTB(Т1[Фамилия И.О.])=RIGHTB(CELL(\"имяфайла\",E144)),Т1[№ п./п.]),ROW(B143))),\"\")","v":""},{"$f":"IFERROR(INDEX(Т1[Фамилия И.О.],SMALL(IF(LEFTB(Т1[Фамилия И.О.])=RIGHTB(CELL(\"имяфайла\",F144)),Т1[№ п./п.]),ROW(C143))),\"\")","v":""},{"$f":"IFERROR(INDEX(Т1[Дата рождения],SMALL(IF(LEFTB(Т1[Фамилия И.О.])=RIGHTB(CELL(\"имяфайла\",G144)),Т1[№ п./п.]),ROW(D143))),\"\")","v":""}]
[null,{"$f":"IFERROR(INDEX(Т1[№ п./п.],SMALL(IF(LEFTB(Т1[Фамилия И.О.])=RIGHTB(CELL(\"имяфайла\",E145)),Т1[№ п./п.]),ROW(B144))),\"\")","v":""},{"$f":"IFERROR(INDEX(Т1[Фамилия И.О.],SMALL(IF(LEFTB(Т1[Фамилия И.О.])=RIGHTB(CELL(\"имяфайла\",F145)),Т1[№ п./п.]),ROW(C144))),\"\")","v":""},{"$f":"IFERROR(INDEX(Т1[Дата рождения],SMALL(IF(LEFTB(Т1[Фамилия И.О.])=RIGHTB(CELL(\"имяфайла\",G145)),Т1[№ п./п.]),ROW(D144))),\"\")","v":""}]
[null,{"$f":"IFERROR(INDEX(Т1[№ п./п.],SMALL(IF(LEFTB(Т1[Фамилия И.О.])=RIGHTB(CELL(\"имяфайла\",E146)),Т1[№ п./п.]),ROW(B145))),\"\")","v":""},{"$f":"IFERROR(INDEX(Т1[Фамилия И.О.],SMALL(IF(LEFTB(Т1[Фамилия И.О.])=RIGHTB(CELL(\"имяфайла\",F146)),Т1[№ п./п.]),ROW(C145))),\"\")","v":""},{"$f":"IFERROR(INDEX(Т1[Дата рождения],SMALL(IF(LEFTB(Т1[Фамилия И.О.])=RIGHTB(CELL(\"имяфайла\",G146)),Т1[№ п./п.]),ROW(D145))),\"\")","v":""}]
[null,{"$f":"IFERROR(INDEX(Т1[№ п./п.],SMALL(IF(LEFTB(Т1[Фамилия И.О.])=RIGHTB(CELL(\"имяфайла\",E147)),Т1[№ п./п.]),ROW(B146))),\"\")","v":""},{"$f":"IFERROR(INDEX(Т1[Фамилия И.О.],SMALL(IF(LEFTB(Т1[Фамилия И.О.])=RIGHTB(CELL(\"имяфайла\",F147)),Т1[№ п./п.]),ROW(C146))),\"\")","v":""},{"$f":"IFERROR(INDEX(Т1[Дата рождения],SMALL(IF(LEFTB(Т1[Фамилия И.О.])=RIGHTB(CELL(\"имяфайла\",G147)),Т1[№ п./п.]),ROW(D146))),\"\")","v":""}]
[null,{"$f":"IFERROR(INDEX(Т1[№ п./п.],SMALL(IF(LEFTB(Т1[Фамилия И.О.])=RIGHTB(CELL(\"имяфайла\",E148)),Т1[№ п./п.]),ROW(B147))),\"\")","v":""},{"$f":"IFERROR(INDEX(Т1[Фамилия И.О.],SMALL(IF(LEFTB(Т1[Фамилия И.О.])=RIGHTB(CELL(\"имяфайла\",F148)),Т1[№ п./п.]),ROW(C147))),\"\")","v":""},{"$f":"IFERROR(INDEX(Т1[Дата рождения],SMALL(IF(LEFTB(Т1[Фамилия И.О.])=RIGHTB(CELL(\"имяфайла\",G148)),Т1[№ п./п.]),ROW(D147))),\"\")","v":""}]
[null,{"$f":"IFERROR(INDEX(Т1[№ п./п.],SMALL(IF(LEFTB(Т1[Фамилия И.О.])=RIGHTB(CELL(\"имяфайла\",E149)),Т1[№ п./п.]),ROW(B148))),\"\")","v":""},{"$f":"IFERROR(INDEX(Т1[Фамилия И.О.],SMALL(IF(LEFTB(Т1[Фамилия И.О.])=RIGHTB(CELL(\"имяфайла\",F149)),Т1[№ п./п.]),ROW(C148))),\"\")","v":""},{"$f":"IFERROR(INDEX(Т1[Дата рождения],SMALL(IF(LEFTB(Т1[Фамилия И.О.])=RIGHTB(CELL(\"имяфайла\",G149)),Т1[№ п./п.]),ROW(D148))),\"\")","v":""}]
[null,{"$f":"IFERROR(INDEX(Т1[№ п./п.],SMALL(IF(LEFTB(Т1[Фамилия И.О.])=RIGHTB(CELL(\"имяфайла\",E150)),Т1[№ п./п.]),ROW(B149))),\"\")","v":""},{"$f":"IFERROR(INDEX(Т1[Фамилия И.О.],SMALL(IF(LEFTB(Т1[Фамилия И.О.])=RIGHTB(CELL(\"имяфайла\",F150)),Т1[№ п./п.]),ROW(C149))),\"\")","v":""},{"$f":"IFERROR(INDEX(Т1[Дата рождения],SMALL(IF(LEFTB(Т1[Фамилия И.О.])=RIGHTB(CELL(\"имяфайла\",G150)),Т1[№ п./п.]),ROW(D149))),\"\")","v":""}]
[null,{"$f":"IFERROR(INDEX(Т1[№ п./п.],SMALL(IF(LEFTB(Т1[Фамилия И.О.])=RIGHTB(CELL(\"имяфайла\",E151)),Т1[№ п./п.]),ROW(B150))),\"\")","v":""},{"$f":"IFERROR(INDEX(Т1[Фамилия И.О.],SMALL(IF(LEFTB(Т1[Фамилия И.О.])=RIGHTB(CELL(\"имяфайла\",F151)),Т1[№ п./п.]),ROW(C150))),\"\")","v":""},{"$f":"IFERROR(INDEX(Т1[Дата рождения],SMALL(IF(LEFTB(Т1[Фамилия И.О.])=RIGHTB(CELL(\"имяфайла\",G151)),Т1[№ п./п.]),ROW(D150))),\"\")","v":""}]
[null,{"$f":"IFERROR(INDEX(Т1[№ п./п.],SMALL(IF(LEFTB(Т1[Фамилия И.О.])=RIGHTB(CELL(\"имяфайла\",E152)),Т1[№ п./п.]),ROW(B151))),\"\")","v":""},{"$f":"IFERROR(INDEX(Т1[Фамилия И.О.],SMALL(IF(LEFTB(Т1[Фамилия И.О.])=RIGHTB(CELL(\"имяфайла\",F152)),Т1[№ п./п.]),ROW(C151))),\"\")","v":""},{"$f":"IFERROR(INDEX(Т1[Дата рождения],SMALL(IF(LEFTB(Т1[Фамилия И.О.])=RIGHTB(CELL(\"имяфайла\",G152)),Т1[№ п./п.]),ROW(D151))),\"\")","v":""}]
[null,{"$f":"IFERROR(INDEX(Т1[№ п./п.],SMALL(IF(LEFTB(Т1[Фамилия И.О.])=RIGHTB(CELL(\"имяфайла\",E153)),Т1[№ п./п.]),ROW(B152))),\"\")","v":""},{"$f":"IFERROR(INDEX(Т1[Фамилия И.О.],SMALL(IF(LEFTB(Т1[Фамилия И.О.])=RIGHTB(CELL(\"имяфайла\",F153)),Т1[№ п./п.]),ROW(C152))),\"\")","v":""},{"$f":"IFERROR(INDEX(Т1[Дата рождения],SMALL(IF(LEFTB(Т1[Фамилия И.О.])=RIGHTB(CELL(\"имяфайла\",G153)),Т1[№ п./п.]),ROW(D152))),\"\")","v":""}]
[null,{"$f":"IFERROR(INDEX(Т1[№ п./п.],SMALL(IF(LEFTB(Т1[Фамилия И.О.])=RIGHTB(CELL(\"имяфайла\",E154)),Т1[№ п./п.]),ROW(B153))),\"\")","v":""},{"$f":"IFERROR(INDEX(Т1[Фамилия И.О.],SMALL(IF(LEFTB(Т1[Фамилия И.О.])=RIGHTB(CELL(\"имяфайла\",F154)),Т1[№ п./п.]),ROW(C153))),\"\")","v":""},{"$f":"IFERROR(INDEX(Т1[Дата рождения],SMALL(IF(LEFTB(Т1[Фамилия И.О.])=RIGHTB(CELL(\"имяфайла\",G154)),Т1[№ п./п.]),ROW(D153))),\"\")","v":""}]
[null,{"$f":"IFERROR(INDEX(Т1[№ п./п.],SMALL(IF(LEFTB(Т1[Фамилия И.О.])=RIGHTB(CELL(\"имяфайла\",E155)),Т1[№ п./п.]),ROW(B154))),\"\")","v":""},{"$f":"IFERROR(INDEX(Т1[Фамилия И.О.],SMALL(IF(LEFTB(Т1[Фамилия И.О.])=RIGHTB(CELL(\"имяфайла\",F155)),Т1[№ п./п.]),ROW(C154))),\"\")","v":""},{"$f":"IFERROR(INDEX(Т1[Дата рождения],SMALL(IF(LEFTB(Т1[Фамилия И.О.])=RIGHTB(CELL(\"имяфайла\",G155)),Т1[№ п./п.]),ROW(D154))),\"\")","v":""}]
[null,{"$f":"IFERROR(INDEX(Т1[№ п./п.],SMALL(IF(LEFTB(Т1[Фамилия И.О.])=RIGHTB(CELL(\"имяфайла\",E156)),Т1[№ п./п.]),ROW(B155))),\"\")","v":""},{"$f":"IFERROR(INDEX(Т1[Фамилия И.О.],SMALL(IF(LEFTB(Т1[Фамилия И.О.])=RIGHTB(CELL(\"имяфайла\",F156)),Т1[№ п./п.]),ROW(C155))),\"\")","v":""},{"$f":"IFERROR(INDEX(Т1[Дата рождения],SMALL(IF(LEFTB(Т1[Фамилия И.О.])=RIGHTB(CELL(\"имяфайла\",G156)),Т1[№ п./п.]),ROW(D155))),\"\")","v":""}]
[null,{"$f":"IFERROR(INDEX(Т1[№ п./п.],SMALL(IF(LEFTB(Т1[Фамилия И.О.])=RIGHTB(CELL(\"имяфайла\",E157)),Т1[№ п./п.]),ROW(B156))),\"\")","v":""},{"$f":"IFERROR(INDEX(Т1[Фамилия И.О.],SMALL(IF(LEFTB(Т1[Фамилия И.О.])=RIGHTB(CELL(\"имяфайла\",F157)),Т1[№ п./п.]),ROW(C156))),\"\")","v":""},{"$f":"IFERROR(INDEX(Т1[Дата рождения],SMALL(IF(LEFTB(Т1[Фамилия И.О.])=RIGHTB(CELL(\"имяфайла\",G157)),Т1[№ п./п.]),ROW(D156))),\"\")","v":""}]
[null,{"$f":"IFERROR(INDEX(Т1[№ п./п.],SMALL(IF(LEFTB(Т1[Фамилия И.О.])=RIGHTB(CELL(\"имяфайла\",E158)),Т1[№ п./п.]),ROW(B157))),\"\")","v":""},{"$f":"IFERROR(INDEX(Т1[Фамилия И.О.],SMALL(IF(LEFTB(Т1[Фамилия И.О.])=RIGHTB(CELL(\"имяфайла\",F158)),Т1[№ п./п.]),ROW(C157))),\"\")","v":""},{"$f":"IFERROR(INDEX(Т1[Дата рождения],SMALL(IF(LEFTB(Т1[Фамилия И.О.])=RIGHTB(CELL(\"имяфайла\",G158)),Т1[№ п./п.]),ROW(D157))),\"\")","v":""}]
[null,{"$f":"IFERROR(INDEX(Т1[№ п./п.],SMALL(IF(LEFTB(Т1[Фамилия И.О.])=RIGHTB(CELL(\"имяфайла\",E159)),Т1[№ п./п.]),ROW(B158))),\"\")","v":""},{"$f":"IFERROR(INDEX(Т1[Фамилия И.О.],SMALL(IF(LEFTB(Т1[Фамилия И.О.])=RIGHTB(CELL(\"имяфайла\",F159)),Т1[№ п./п.]),ROW(C158))),\"\")","v":""},{"$f":"IFERROR(INDEX(Т1[Дата рождения],SMALL(IF(LEFTB(Т1[Фамилия И.О.])=RIGHTB(CELL(\"имяфайла\",G159)),Т1[№ п./п.]),ROW(D158))),\"\")","v":""}]
[null,{"$f":"IFERROR(INDEX(Т1[№ п./п.],SMALL(IF(LEFTB(Т1[Фамилия И.О.])=RIGHTB(CELL(\"имяфайла\",E160)),Т1[№ п./п.]),ROW(B159))),\"\")","v":""},{"$f":"IFERROR(INDEX(Т1[Фамилия И.О.],SMALL(IF(LEFTB(Т1[Фамилия И.О.])=RIGHTB(CELL(\"имяфайла\",F160)),Т1[№ п./п.]),ROW(C159))),\"\")","v":""},{"$f":"IFERROR(INDEX(Т1[Дата рождения],SMALL(IF(LEFTB(Т1[Фамилия И.О.])=RIGHTB(CELL(\"имяфайла\",G160)),Т1[№ п./п.]),ROW(D159))),\"\")","v":""}]
[null,{"$f":"IFERROR(INDEX(Т1[№ п./п.],SMALL(IF(LEFTB(Т1[Фамилия И.О.])=RIGHTB(CELL(\"имяфайла\",E161)),Т1[№ п./п.]),ROW(B160))),\"\")","v":""},{"$f":"IFERROR(INDEX(Т1[Фамилия И.О.],SMALL(IF(LEFTB(Т1[Фамилия И.О.])=RIGHTB(CELL(\"имяфайла\",F161)),Т1[№ п./п.]),ROW(C160))),\"\")","v":""},{"$f":"IFERROR(INDEX(Т1[Дата рождения],SMALL(IF(LEFTB(Т1[Фамилия И.О.])=RIGHTB(CELL(\"имяфайла\",G161)),Т1[№ п./п.]),ROW(D160))),\"\")","v":""}]
[null,{"$f":"IFERROR(INDEX(Т1[№ п./п.],SMALL(IF(LEFTB(Т1[Фамилия И.О.])=RIGHTB(CELL(\"имяфайла\",E162)),Т1[№ п./п.]),ROW(B161))),\"\")","v":""},{"$f":"IFERROR(INDEX(Т1[Фамилия И.О.],SMALL(IF(LEFTB(Т1[Фамилия И.О.])=RIGHTB(CELL(\"имяфайла\",F162)),Т1[№ п./п.]),ROW(C161))),\"\")","v":""},{"$f":"IFERROR(INDEX(Т1[Дата рождения],SMALL(IF(LEFTB(Т1[Фамилия И.О.])=RIGHTB(CELL(\"имяфайла\",G162)),Т1[№ п./п.]),ROW(D161))),\"\")","v":""}]
[null,{"$f":"IFERROR(INDEX(Т1[№ п./п.],SMALL(IF(LEFTB(Т1[Фамилия И.О.])=RIGHTB(CELL(\"имяфайла\",E163)),Т1[№ п./п.]),ROW(B162))),\"\")","v":""},{"$f":"IFERROR(INDEX(Т1[Фамилия И.О.],SMALL(IF(LEFTB(Т1[Фамилия И.О.])=RIGHTB(CELL(\"имяфайла\",F163)),Т1[№ п./п.]),ROW(C162))),\"\")","v":""},{"$f":"IFERROR(INDEX(Т1[Дата рождения],SMALL(IF(LEFTB(Т1[Фамилия И.О.])=RIGHTB(CELL(\"имяфайла\",G163)),Т1[№ п./п.]),ROW(D162))),\"\")","v":""}]
[null,{"$f":"IFERROR(INDEX(Т1[№ п./п.],SMALL(IF(LEFTB(Т1[Фамилия И.О.])=RIGHTB(CELL(\"имяфайла\",E164)),Т1[№ п./п.]),ROW(B163))),\"\")","v":""},{"$f":"IFERROR(INDEX(Т1[Фамилия И.О.],SMALL(IF(LEFTB(Т1[Фамилия И.О.])=RIGHTB(CELL(\"имяфайла\",F164)),Т1[№ п./п.]),ROW(C163))),\"\")","v":""},{"$f":"IFERROR(INDEX(Т1[Дата рождения],SMALL(IF(LEFTB(Т1[Фамилия И.О.])=RIGHTB(CELL(\"имяфайла\",G164)),Т1[№ п./п.]),ROW(D163))),\"\")","v":""}]
[null,{"$f":"IFERROR(INDEX(Т1[№ п./п.],SMALL(IF(LEFTB(Т1[Фамилия И.О.])=RIGHTB(CELL(\"имяфайла\",E165)),Т1[№ п./п.]),ROW(B164))),\"\")","v":""},{"$f":"IFERROR(INDEX(Т1[Фамилия И.О.],SMALL(IF(LEFTB(Т1[Фамилия И.О.])=RIGHTB(CELL(\"имяфайла\",F165)),Т1[№ п./п.]),ROW(C164))),\"\")","v":""},{"$f":"IFERROR(INDEX(Т1[Дата рождения],SMALL(IF(LEFTB(Т1[Фамилия И.О.])=RIGHTB(CELL(\"имяфайла\",G165)),Т1[№ п./п.]),ROW(D164))),\"\")","v":""}]
[null,{"$f":"IFERROR(INDEX(Т1[№ п./п.],SMALL(IF(LEFTB(Т1[Фамилия И.О.])=RIGHTB(CELL(\"имяфайла\",E166)),Т1[№ п./п.]),ROW(B165))),\"\")","v":""},{"$f":"IFERROR(INDEX(Т1[Фамилия И.О.],SMALL(IF(LEFTB(Т1[Фамилия И.О.])=RIGHTB(CELL(\"имяфайла\",F166)),Т1[№ п./п.]),ROW(C165))),\"\")","v":""},{"$f":"IFERROR(INDEX(Т1[Дата рождения],SMALL(IF(LEFTB(Т1[Фамилия И.О.])=RIGHTB(CELL(\"имяфайла\",G166)),Т1[№ п./п.]),ROW(D165))),\"\")","v":""}]
[null,{"$f":"IFERROR(INDEX(Т1[№ п./п.],SMALL(IF(LEFTB(Т1[Фамилия И.О.])=RIGHTB(CELL(\"имяфайла\",E167)),Т1[№ п./п.]),ROW(B166))),\"\")","v":""},{"$f":"IFERROR(INDEX(Т1[Фамилия И.О.],SMALL(IF(LEFTB(Т1[Фамилия И.О.])=RIGHTB(CELL(\"имяфайла\",F167)),Т1[№ п./п.]),ROW(C166))),\"\")","v":""},{"$f":"IFERROR(INDEX(Т1[Дата рождения],SMALL(IF(LEFTB(Т1[Фамилия И.О.])=RIGHTB(CELL(\"имяфайла\",G167)),Т1[№ п./п.]),ROW(D166))),\"\")","v":""}]
[null,{"$f":"IFERROR(INDEX(Т1[№ п./п.],SMALL(IF(LEFTB(Т1[Фамилия И.О.])=RIGHTB(CELL(\"имяфайла\",E168)),Т1[№ п./п.]),ROW(B167))),\"\")","v":""},{"$f":"IFERROR(INDEX(Т1[Фамилия И.О.],SMALL(IF(LEFTB(Т1[Фамилия И.О.])=RIGHTB(CELL(\"имяфайла\",F168)),Т1[№ п./п.]),ROW(C167))),\"\")","v":""},{"$f":"IFERROR(INDEX(Т1[Дата рождения],SMALL(IF(LEFTB(Т1[Фамилия И.О.])=RIGHTB(CELL(\"имяфайла\",G168)),Т1[№ п./п.]),ROW(D167))),\"\")","v":""}]
[null,{"$f":"IFERROR(INDEX(Т1[№ п./п.],SMALL(IF(LEFTB(Т1[Фамилия И.О.])=RIGHTB(CELL(\"имяфайла\",E169)),Т1[№ п./п.]),ROW(B168))),\"\")","v":""},{"$f":"IFERROR(INDEX(Т1[Фамилия И.О.],SMALL(IF(LEFTB(Т1[Фамилия И.О.])=RIGHTB(CELL(\"имяфайла\",F169)),Т1[№ п./п.]),ROW(C168))),\"\")","v":""},{"$f":"IFERROR(INDEX(Т1[Дата рождения],SMALL(IF(LEFTB(Т1[Фамилия И.О.])=RIGHTB(CELL(\"имяфайла\",G169)),Т1[№ п./п.]),ROW(D168))),\"\")","v":""}]
[null,{"$f":"IFERROR(INDEX(Т1[№ п./п.],SMALL(IF(LEFTB(Т1[Фамилия И.О.])=RIGHTB(CELL(\"имяфайла\",E170)),Т1[№ п./п.]),ROW(B169))),\"\")","v":""},{"$f":"IFERROR(INDEX(Т1[Фамилия И.О.],SMALL(IF(LEFTB(Т1[Фамилия И.О.])=RIGHTB(CELL(\"имяфайла\",F170)),Т1[№ п./п.]),ROW(C169))),\"\")","v":""},{"$f":"IFERROR(INDEX(Т1[Дата рождения],SMALL(IF(LEFTB(Т1[Фамилия И.О.])=RIGHTB(CELL(\"имяфайла\",G170)),Т1[№ п./п.]),ROW(D169))),\"\")","v":""}]
[null,{"$f":"IFERROR(INDEX(Т1[№ п./п.],SMALL(IF(LEFTB(Т1[Фамилия И.О.])=RIGHTB(CELL(\"имяфайла\",E171)),Т1[№ п./п.]),ROW(B170))),\"\")","v":""},{"$f":"IFERROR(INDEX(Т1[Фамилия И.О.],SMALL(IF(LEFTB(Т1[Фамилия И.О.])=RIGHTB(CELL(\"имяфайла\",F171)),Т1[№ п./п.]),ROW(C170))),\"\")","v":""},{"$f":"IFERROR(INDEX(Т1[Дата рождения],SMALL(IF(LEFTB(Т1[Фамилия И.О.])=RIGHTB(CELL(\"имяфайла\",G171)),Т1[№ п./п.]),ROW(D170))),\"\")","v":""}]
[null,{"$f":"IFERROR(INDEX(Т1[№ п./п.],SMALL(IF(LEFTB(Т1[Фамилия И.О.])=RIGHTB(CELL(\"имяфайла\",E172)),Т1[№ п./п.]),ROW(B171))),\"\")","v":""},{"$f":"IFERROR(INDEX(Т1[Фамилия И.О.],SMALL(IF(LEFTB(Т1[Фамилия И.О.])=RIGHTB(CELL(\"имяфайла\",F172)),Т1[№ п./п.]),ROW(C171))),\"\")","v":""},{"$f":"IFERROR(INDEX(Т1[Дата рождения],SMALL(IF(LEFTB(Т1[Фамилия И.О.])=RIGHTB(CELL(\"имяфайла\",G172)),Т1[№ п./п.]),ROW(D171))),\"\")","v":""}]
[null,{"$f":"IFERROR(INDEX(Т1[№ п./п.],SMALL(IF(LEFTB(Т1[Фамилия И.О.])=RIGHTB(CELL(\"имяфайла\",E173)),Т1[№ п./п.]),ROW(B172))),\"\")","v":""},{"$f":"IFERROR(INDEX(Т1[Фамилия И.О.],SMALL(IF(LEFTB(Т1[Фамилия И.О.])=RIGHTB(CELL(\"имяфайла\",F173)),Т1[№ п./п.]),ROW(C172))),\"\")","v":""},{"$f":"IFERROR(INDEX(Т1[Дата рождения],SMALL(IF(LEFTB(Т1[Фамилия И.О.])=RIGHTB(CELL(\"имяфайла\",G173)),Т1[№ п./п.]),ROW(D172))),\"\")","v":""}]
[null,{"$f":"IFERROR(INDEX(Т1[№ п./п.],SMALL(IF(LEFTB(Т1[Фамилия И.О.])=RIGHTB(CELL(\"имяфайла\",E174)),Т1[№ п./п.]),ROW(B173))),\"\")","v":""},{"$f":"IFERROR(INDEX(Т1[Фамилия И.О.],SMALL(IF(LEFTB(Т1[Фамилия И.О.])=RIGHTB(CELL(\"имяфайла\",F174)),Т1[№ п./п.]),ROW(C173))),\"\")","v":""},{"$f":"IFERROR(INDEX(Т1[Дата рождения],SMALL(IF(LEFTB(Т1[Фамилия И.О.])=RIGHTB(CELL(\"имяфайла\",G174)),Т1[№ п./п.]),ROW(D173))),\"\")","v":""}]
[null,{"$f":"IFERROR(INDEX(Т1[№ п./п.],SMALL(IF(LEFTB(Т1[Фамилия И.О.])=RIGHTB(CELL(\"имяфайла\",E175)),Т1[№ п./п.]),ROW(B174))),\"\")","v":""},{"$f":"IFERROR(INDEX(Т1[Фамилия И.О.],SMALL(IF(LEFTB(Т1[Фамилия И.О.])=RIGHTB(CELL(\"имяфайла\",F175)),Т1[№ п./п.]),ROW(C174))),\"\")","v":""},{"$f":"IFERROR(INDEX(Т1[Дата рождения],SMALL(IF(LEFTB(Т1[Фамилия И.О.])=RIGHTB(CELL(\"имяфайла\",G175)),Т1[№ п./п.]),ROW(D174))),\"\")","v":""}]
[null,{"$f":"IFERROR(INDEX(Т1[№ п./п.],SMALL(IF(LEFTB(Т1[Фамилия И.О.])=RIGHTB(CELL(\"имяфайла\",E176)),Т1[№ п./п.]),ROW(B175))),\"\")","v":""},{"$f":"IFERROR(INDEX(Т1[Фамилия И.О.],SMALL(IF(LEFTB(Т1[Фамилия И.О.])=RIGHTB(CELL(\"имяфайла\",F176)),Т1[№ п./п.]),ROW(C175))),\"\")","v":""},{"$f":"IFERROR(INDEX(Т1[Дата рождения],SMALL(IF(LEFTB(Т1[Фамилия И.О.])=RIGHTB(CELL(\"имяфайла\",G176)),Т1[№ п./п.]),ROW(D175))),\"\")","v":""}]
[null,{"$f":"IFERROR(INDEX(Т1[№ п./п.],SMALL(IF(LEFTB(Т1[Фамилия И.О.])=RIGHTB(CELL(\"имяфайла\",E177)),Т1[№ п./п.]),ROW(B176))),\"\")","v":""},{"$f":"IFERROR(INDEX(Т1[Фамилия И.О.],SMALL(IF(LEFTB(Т1[Фамилия И.О.])=RIGHTB(CELL(\"имяфайла\",F177)),Т1[№ п./п.]),ROW(C176))),\"\")","v":""},{"$f":"IFERROR(INDEX(Т1[Дата рождения],SMALL(IF(LEFTB(Т1[Фамилия И.О.])=RIGHTB(CELL(\"имяфайла\",G177)),Т1[№ п./п.]),ROW(D176))),\"\")","v":""}]
[null,{"$f":"IFERROR(INDEX(Т1[№ п./п.],SMALL(IF(LEFTB(Т1[Фамилия И.О.])=RIGHTB(CELL(\"имяфайла\",E178)),Т1[№ п./п.]),ROW(B177))),\"\")","v":""},{"$f":"IFERROR(INDEX(Т1[Фамилия И.О.],SMALL(IF(LEFTB(Т1[Фамилия И.О.])=RIGHTB(CELL(\"имяфайла\",F178)),Т1[№ п./п.]),ROW(C177))),\"\")","v":""},{"$f":"IFERROR(INDEX(Т1[Дата рождения],SMALL(IF(LEFTB(Т1[Фамилия И.О.])=RIGHTB(CELL(\"имяфайла\",G178)),Т1[№ п./п.]),ROW(D177))),\"\")","v":""}]
[null,{"$f":"IFERROR(INDEX(Т1[№ п./п.],SMALL(IF(LEFTB(Т1[Фамилия И.О.])=RIGHTB(CELL(\"имяфайла\",E179)),Т1[№ п./п.]),ROW(B178))),\"\")","v":""},{"$f":"IFERROR(INDEX(Т1[Фамилия И.О.],SMALL(IF(LEFTB(Т1[Фамилия И.О.])=RIGHTB(CELL(\"имяфайла\",F179)),Т1[№ п./п.]),ROW(C178))),\"\")","v":""},{"$f":"IFERROR(INDEX(Т1[Дата рождения],SMALL(IF(LEFTB(Т1[Фамилия И.О.])=RIGHTB(CELL(\"имяфайла\",G179)),Т1[№ п./п.]),ROW(D178))),\"\")","v":""}]
[null,{"$f":"IFERROR(INDEX(Т1[№ п./п.],SMALL(IF(LEFTB(Т1[Фамилия И.О.])=RIGHTB(CELL(\"имяфайла\",E180)),Т1[№ п./п.]),ROW(B179))),\"\")","v":""},{"$f":"IFERROR(INDEX(Т1[Фамилия И.О.],SMALL(IF(LEFTB(Т1[Фамилия И.О.])=RIGHTB(CELL(\"имяфайла\",F180)),Т1[№ п./п.]),ROW(C179))),\"\")","v":""},{"$f":"IFERROR(INDEX(Т1[Дата рождения],SMALL(IF(LEFTB(Т1[Фамилия И.О.])=RIGHTB(CELL(\"имяфайла\",G180)),Т1[№ п./п.]),ROW(D179))),\"\")","v":""}]
[null,{"$f":"IFERROR(INDEX(Т1[№ п./п.],SMALL(IF(LEFTB(Т1[Фамилия И.О.])=RIGHTB(CELL(\"имяфайла\",E181)),Т1[№ п./п.]),ROW(B180))),\"\")","v":""},{"$f":"IFERROR(INDEX(Т1[Фамилия И.О.],SMALL(IF(LEFTB(Т1[Фамилия И.О.])=RIGHTB(CELL(\"имяфайла\",F181)),Т1[№ п./п.]),ROW(C180))),\"\")","v":""},{"$f":"IFERROR(INDEX(Т1[Дата рождения],SMALL(IF(LEFTB(Т1[Фамилия И.О.])=RIGHTB(CELL(\"имяфайла\",G181)),Т1[№ п./п.]),ROW(D180))),\"\")","v":""}]
[null,{"$f":"IFERROR(INDEX(Т1[№ п./п.],SMALL(IF(LEFTB(Т1[Фамилия И.О.])=RIGHTB(CELL(\"имяфайла\",E182)),Т1[№ п./п.]),ROW(B181))),\"\")","v":""},{"$f":"IFERROR(INDEX(Т1[Фамилия И.О.],SMALL(IF(LEFTB(Т1[Фамилия И.О.])=RIGHTB(CELL(\"имяфайла\",F182)),Т1[№ п./п.]),ROW(C181))),\"\")","v":""},{"$f":"IFERROR(INDEX(Т1[Дата рождения],SMALL(IF(LEFTB(Т1[Фамилия И.О.])=RIGHTB(CELL(\"имяфайла\",G182)),Т1[№ п./п.]),ROW(D181))),\"\")","v":""}]
[null,{"$f":"IFERROR(INDEX(Т1[№ п./п.],SMALL(IF(LEFTB(Т1[Фамилия И.О.])=RIGHTB(CELL(\"имяфайла\",E183)),Т1[№ п./п.]),ROW(B182))),\"\")","v":""},{"$f":"IFERROR(INDEX(Т1[Фамилия И.О.],SMALL(IF(LEFTB(Т1[Фамилия И.О.])=RIGHTB(CELL(\"имяфайла\",F183)),Т1[№ п./п.]),ROW(C182))),\"\")","v":""},{"$f":"IFERROR(INDEX(Т1[Дата рождения],SMALL(IF(LEFTB(Т1[Фамилия И.О.])=RIGHTB(CELL(\"имяфайла\",G183)),Т1[№ п./п.]),ROW(D182))),\"\")","v":""}]

{"sheet":"Б","index":3,"n_rows":201,"n_cols":3,"rows_kept":201,"cut":false,"hidden":false,"merged":[]}
["№ п./п.","Фамилия И.О.","Дата"]
[{"$f":"IFERROR(INDEX(Т1[№ п./п.],SMALL(IF(LEFTB(Т1[Фамилия И.О.])=RIGHTB(CELL(\"имяфайла\",D2)),Т1[№ п./п.]),ROW(A1))),\"\")","v":1},{"$f":"IFERROR(INDEX(Т1[Фамилия И.О.],SMALL(IF(LEFTB(Т1[Фамилия И.О.])=RIGHTB(CELL(\"имяфайла\",E2)),Т1[№ п./п.]),ROW(B1))),\"\")","v":"Борисов С.П."},{"$f":"IFERROR(INDEX(Т1[Дата рождения],SMALL(IF(LEFTB(Т1[Фамилия И.О.])=RIGHTB(CELL(\"имяфайла\",F2)),Т1[№ п./п.]),ROW(C1))),\"\")","v":"2017-01-07"}]
[{"$f":"IFERROR(INDEX(Т1[№ п./п.],SMALL(IF(LEFTB(Т1[Фамилия И.О.])=RIGHTB(CELL(\"имяфайла\",D3)),Т1[№ п./п.]),ROW(A2))),\"\")","v":4},{"$f":"IFERROR(INDEX(Т1[Фамилия И.О.],SMALL(IF(LEFTB(Т1[Фамилия И.О.])=RIGHTB(CELL(\"имяфайла\",E3)),Т1[№ п./п.]),ROW(B2))),\"\")","v":"Бочаров"},{"$f":"IFERROR(INDEX(Т1[Дата рождения],SMALL(IF(LEFTB(Т1[Фамилия И.О.])=RIGHTB(CELL(\"имяфайла\",F3)),Т1[№ п./п.]),ROW(C2))),\"\")","v":"2017-01-03"}]
[{"$f":"IFERROR(INDEX(Т1[№ п./п.],SMALL(IF(LEFTB(Т1[Фамилия И.О.])=RIGHTB(CELL(\"имяфайла\",D4)),Т1[№ п./п.]),ROW(A3))),\"\")","v":5},{"$f":"IFERROR(INDEX(Т1[Фамилия И.О.],SMALL(IF(LEFTB(Т1[Фамилия И.О.])=RIGHTB(CELL(\"имяфайла\",E4)),Т1[№ п./п.]),ROW(B3))),\"\")","v":"Барыкин"},{"$f":"IFERROR(INDEX(Т1[Дата рождения],SMALL(IF(LEFTB(Т1[Фамилия И.О.])=RIGHTB(CELL(\"имяфайла\",F4)),Т1[№ п./п.]),ROW(C3))),\"\")","v":"2017-01-03"}]
[{"$f":"IFERROR(INDEX(Т1[№ п./п.],SMALL(IF(LEFTB(Т1[Фамилия И.О.])=RIGHTB(CELL(\"имяфайла\",D5)),Т1[№ п./п.]),ROW(A4))),\"\")","v":""},{"$f":"IFERROR(INDEX(Т1[Фамилия И.О.],SMALL(IF(LEFTB(Т1[Фамилия И.О.])=RIGHTB(CELL(\"имяфайла\",E5)),Т1[№ п./п.]),ROW(B4))),\"\")","v":""},{"$f":"IFERROR(INDEX(Т1[Дата рождения],SMALL(IF(LEFTB(Т1[Фамилия И.О.])=RIGHTB(CELL(\"имяфайла\",F5)),Т1[№ п./п.]),ROW(C4))),\"\")","v":""}]
[{"$f":"IFERROR(INDEX(Т1[№ п./п.],SMALL(IF(LEFTB(Т1[Фамилия И.О.])=RIGHTB(CELL(\"имяфайла\",D6)),Т1[№ п./п.]),ROW(A5))),\"\")","v":""},{"$f":"IFERROR(INDEX(Т1[Фамилия И.О.],SMALL(IF(LEFTB(Т1[Фамилия И.О.])=RIGHTB(CELL(\"имяфайла\",E6)),Т1[№ п./п.]),ROW(B5))),\"\")","v":""},{"$f":"IFERROR(INDEX(Т1[Дата рождения],SMALL(IF(LEFTB(Т1[Фамилия И.О.])=RIGHTB(CELL(\"имяфайла\",F6)),Т1[№ п./п.]),ROW(C5))),\"\")","v":""}]
[{"$f":"IFERROR(INDEX(Т1[№ п./п.],SMALL(IF(LEFTB(Т1[Фамилия И.О.])=RIGHTB(CELL(\"имяфайла\",D7)),Т1[№ п./п.]),ROW(A6))),\"\")","v":""},{"$f":"IFERROR(INDEX(Т1[Фамилия И.О.],SMALL(IF(LEFTB(Т1[Фамилия И.О.])=RIGHTB(CELL(\"имяфайла\",E7)),Т1[№ п./п.]),ROW(B6))),\"\")","v":""},{"$f":"IFERROR(INDEX(Т1[Дата рождения],SMALL(IF(LEFTB(Т1[Фамилия И.О.])=RIGHTB(CELL(\"имяфайла\",F7)),Т1[№ п./п.]),ROW(C6))),\"\")","v":""}]
[{"$f":"IFERROR(INDEX(Т1[№ п./п.],SMALL(IF(LEFTB(Т1[Фамилия И.О.])=RIGHTB(CELL(\"имяфайла\",D8)),Т1[№ п./п.]),ROW(A7))),\"\")","v":""},{"$f":"IFERROR(INDEX(Т1[Фамилия И.О.],SMALL(IF(LEFTB(Т1[Фамилия И.О.])=RIGHTB(CELL(\"имяфайла\",E8)),Т1[№ п./п.]),ROW(B7))),\"\")","v":""},{"$f":"IFERROR(INDEX(Т1[Дата рождения],SMALL(IF(LEFTB(Т1[Фамилия И.О.])=RIGHTB(CELL(\"имяфайла\",F8)),Т1[№ п./п.]),ROW(C7))),\"\")","v":""}]
[{"$f":"IFERROR(INDEX(Т1[№ п./п.],SMALL(IF(LEFTB(Т1[Фамилия И.О.])=RIGHTB(CELL(\"имяфайла\",D9)),Т1[№ п./п.]),ROW(A8))),\"\")","v":""},{"$f":"IFERROR(INDEX(Т1[Фамилия И.О.],SMALL(IF(LEFTB(Т1[Фамилия И.О.])=RIGHTB(CELL(\"имяфайла\",E9)),Т1[№ п./п.]),ROW(B8))),\"\")","v":""},{"$f":"IFERROR(INDEX(Т1[Дата рождения],SMALL(IF(LEFTB(Т1[Фамилия И.О.])=RIGHTB(CELL(\"имяфайла\",F9)),Т1[№ п./п.]),ROW(C8))),\"\")","v":""}]
[{"$f":"IFERROR(INDEX(Т1[№ п./п.],SMALL(IF(LEFTB(Т1[Фамилия И.О.])=RIGHTB(CELL(\"имяфайла\",D10)),Т1[№ п./п.]),ROW(A9))),\"\")","v":""},{"$f":"IFERROR(INDEX(Т1[Фамилия И.О.],SMALL(IF(LEFTB(Т1[Фамилия И.О.])=RIGHTB(CELL(\"имяфайла\",E10)),Т1[№ п./п.]),ROW(B9))),\"\")","v":""},{"$f":"IFERROR(INDEX(Т1[Дата рождения],SMALL(IF(LEFTB(Т1[Фамилия И.О.])=RIGHTB(CELL(\"имяфайла\",F10)),Т1[№ п./п.]),ROW(C9))),\"\")","v":""}]
[{"$f":"IFERROR(INDEX(Т1[№ п./п.],SMALL(IF(LEFTB(Т1[Фамилия И.О.])=RIGHTB(CELL(\"имяфайла\",D11)),Т1[№ п./п.]),ROW(A10))),\"\")","v":""},{"$f":"IFERROR(INDEX(Т1[Фамилия И.О.],SMALL(IF(LEFTB(Т1[Фамилия И.О.])=RIGHTB(CELL(\"имяфайла\",E11)),Т1[№ п./п.]),ROW(B10))),\"\")","v":""},{"$f":"IFERROR(INDEX(Т1[Дата рождения],SMALL(IF(LEFTB(Т1[Фамилия И.О.])=RIGHTB(CELL(\"имяфайла\",F11)),Т1[№ п./п.]),ROW(C10))),\"\")","v":""}]
[{"$f":"IFERROR(INDEX(Т1[№ п./п.],SMALL(IF(LEFTB(Т1[Фамилия И.О.])=RIGHTB(CELL(\"имяфайла\",D12)),Т1[№ п./п.]),ROW(A11))),\"\")","v":""},{"$f":"IFERROR(INDEX(Т1[Фамилия И.О.],SMALL(IF(LEFTB(Т1[Фамилия И.О.])=RIGHTB(CELL(\"имяфайла\",E12)),Т1[№ п./п.]),ROW(B11))),\"\")","v":""},{"$f":"IFERROR(INDEX(Т1[Дата рождения],SMALL(IF(LEFTB(Т1[Фамилия И.О.])=RIGHTB(CELL(\"имяфайла\",F12)),Т1[№ п./п.]),ROW(C11))),\"\")","v":""}]
[{"$f":"IFERROR(INDEX(Т1[№ п./п.],SMALL(IF(LEFTB(Т1[Фамилия И.О.])=RIGHTB(CELL(\"имяфайла\",D13)),Т1[№ п./п.]),ROW(A12))),\"\")","v":""},{"$f":"IFERROR(INDEX(Т1[Фамилия И.О.],SMALL(IF(LEFTB(Т1[Фамилия И.О.])=RIGHTB(CELL(\"имяфайла\",E13)),Т1[№ п./п.]),ROW(B12))),\"\")","v":""},{"$f":"IFERROR(INDEX(Т1[Дата рождения],SMALL(IF(LEFTB(Т1[Фамилия И.О.])=RIGHTB(CELL(\"имяфайла\",F13)),Т1[№ п./п.]),ROW(C12))),\"\")","v":""}]
[{"$f":"IFERROR(INDEX(Т1[№ п./п.],SMALL(IF(LEFTB(Т1[Фамилия И.О.])=RIGHTB(CELL(\"имяфайла\",D14)),Т1[№ п./п.]),ROW(A13))),\"\")","v":""},{"$f":"IFERROR(INDEX(Т1[Фамилия И.О.],SMALL(IF(LEFTB(Т1[Фамилия И.О.])=RIGHTB(CELL(\"имяфайла\",E14)),Т1[№ п./п.]),ROW(B13))),\"\")","v":""},{"$f":"IFERROR(INDEX(Т1[Дата рождения],SMALL(IF(LEFTB(Т1[Фамилия И.О.])=RIGHTB(CELL(\"имяфайла\",F14)),Т1[№ п./п.]),ROW(C13))),\"\")","v":""}]
[{"$f":"IFERROR(INDEX(Т1[№ п./п.],SMALL(IF(LEFTB(Т1[Фамилия И.О.])=RIGHTB(CELL(\"имяфайла\",D15)),Т1[№ п./п.]),ROW(A14))),\"\")","v":""},{"$f":"IFERROR(INDEX(Т1[Фамилия И.О.],SMALL(IF(LEFTB(Т1[Фамилия И.О.])=RIGHTB(CELL(\"имяфайла\",E15)),Т1[№ п./п.]),ROW(B14))),\"\")","v":""},{"$f":"IFERROR(INDEX(Т1[Дата рождения],SMALL(IF(LEFTB(Т1[Фамилия И.О.])=RIGHTB(CELL(\"имяфайла\",F15)),Т1[№ п./п.]),ROW(C14))),\"\")","v":""}]
[{"$f":"IFERROR(INDEX(Т1[№ п./п.],SMALL(IF(LEFTB(Т1[Фамилия И.О.])=RIGHTB(CELL(\"имяфайла\",D16)),Т1[№ п./п.]),ROW(A15))),\"\")","v":""},{"$f":"IFERROR(INDEX(Т1[Фамилия И.О.],SMALL(IF(LEFTB(Т1[Фамилия И.О.])=RIGHTB(CELL(\"имяфайла\",E16)),Т1[№ п./п.]),ROW(B15))),\"\")","v":""},{"$f":"IFERROR(INDEX(Т1[Дата рождения],SMALL(IF(LEFTB(Т1[Фамилия И.О.])=RIGHTB(CELL(\"имяфайла\",F16)),Т1[№ п./п.]),ROW(C15))),\"\")","v":""}]
[{"$f":"IFERROR(INDEX(Т1[№ п./п.],SMALL(IF(LEFTB(Т1[Фамилия И.О.])=RIGHTB(CELL(\"имяфайла\",D17)),Т1[№ п./п.]),ROW(A16))),\"\")","v":""},{"$f":"IFERROR(INDEX(Т1[Фамилия И.О.],SMALL(IF(LEFTB(Т1[Фамилия И.О.])=RIGHTB(CELL(\"имяфайла\",E17)),Т1[№ п./п.]),ROW(B16))),\"\")","v":""},{"$f":"IFERROR(INDEX(Т1[Дата рождения],SMALL(IF(LEFTB(Т1[Фамилия И.О.])=RIGHTB(CELL(\"имяфайла\",F17)),Т1[№ п./п.]),ROW(C16))),\"\")","v":""}]
[{"$f":"IFERROR(INDEX(Т1[№ п./п.],SMALL(IF(LEFTB(Т1[Фамилия И.О.])=RIGHTB(CELL(\"имяфайла\",D18)),Т1[№ п./п.]),ROW(A17))),\"\")","v":""},{"$f":"IFERROR(INDEX(Т1[Фамилия И.О.],SMALL(IF(LEFTB(Т1[Фамилия И.О.])=RIGHTB(CELL(\"имяфайла\",E18)),Т1[№ п./п.]),ROW(B17))),\"\")","v":""},{"$f":"IFERROR(INDEX(Т1[Дата рождения],SMALL(IF(LEFTB(Т1[Фамилия И.О.])=RIGHTB(CELL(\"имяфайла\",F18)),Т1[№ п./п.]),ROW(C17))),\"\")","v":""}]
[{"$f":"IFERROR(INDEX(Т1[№ п./п.],SMALL(IF(LEFTB(Т1[Фамилия И.О.])=RIGHTB(CELL(\"имяфайла\",D19)),Т1[№ п./п.]),ROW(A18))),\"\")","v":""},{"$f":"IFERROR(INDEX(Т1[Фамилия И.О.],SMALL(IF(LEFTB(Т1[Фамилия И.О.])=RIGHTB(CELL(\"имяфайла\",E19)),Т1[№ п./п.]),ROW(B18))),\"\")","v":""},{"$f":"IFERROR(INDEX(Т1[Дата рождения],SMALL(IF(LEFTB(Т1[Фамилия И.О.])=RIGHTB(CELL(\"имяфайла\",F19)),Т1[№ п./п.]),ROW(C18))),\"\")","v":""}]
[{"$f":"IFERROR(INDEX(Т1[№ п./п.],SMALL(IF(LEFTB(Т1[Фамилия И.О.])=RIGHTB(CELL(\"имяфайла\",D20)),Т1[№ п./п.]),ROW(A19))),\"\")","v":""},{"$f":"IFERROR(INDEX(Т1[Фамилия И.О.],SMALL(IF(LEFTB(Т1[Фамилия И.О.])=RIGHTB(CELL(\"имяфайла\",E20)),Т1[№ п./п.]),ROW(B19))),\"\")","v":""},{"$f":"IFERROR(INDEX(Т1[Дата рождения],SMALL(IF(LEFTB(Т1[Фамилия И.О.])=RIGHTB(CELL(\"имяфайла\",F20)),Т1[№ п./п.]),ROW(C19))),\"\")","v":""}]
[{"$f":"IFERROR(INDEX(Т1[№ п./п.],SMALL(IF(LEFTB(Т1[Фамилия И.О.])=RIGHTB(CELL(\"имяфайла\",D21)),Т1[№ п./п.]),ROW(A20))),\"\")","v":""},{"$f":"IFERROR(INDEX(Т1[Фамилия И.О.],SMALL(IF(LEFTB(Т1[Фамилия И.О.])=RIGHTB(CELL(\"имяфайла\",E21)),Т1[№ п./п.]),ROW(B20))),\"\")","v":""},{"$f":"IFERROR(INDEX(Т1[Дата рождения],SMALL(IF(LEFTB(Т1[Фамилия И.О.])=RIGHTB(CELL(\"имяфайла\",F21)),Т1[№ п./п.]),ROW(C20))),\"\")","v":""}]
[{"$f":"IFERROR(INDEX(Т1[№ п./п.],SMALL(IF(LEFTB(Т1[Фамилия И.О.])=RIGHTB(CELL(\"имяфайла\",D22)),Т1[№ п./п.]),ROW(A21))),\"\")","v":""},{"$f":"IFERROR(INDEX(Т1[Фамилия И.О.],SMALL(IF(LEFTB(Т1[Фамилия И.О.])=RIGHTB(CELL(\"имяфайла\",E22)),Т1[№ п./п.]),ROW(B21))),\"\")","v":""},{"$f":"IFERROR(INDEX(Т1[Дата рождения],SMALL(IF(LEFTB(Т1[Фамилия И.О.])=RIGHTB(CELL(\"имяфайла\",F22)),Т1[№ п./п.]),ROW(C21))),\"\")","v":""}]
[{"$f":"IFERROR(INDEX(Т1[№ п./п.],SMALL(IF(LEFTB(Т1[Фамилия И.О.])=RIGHTB(CELL(\"имяфайла\",D23)),Т1[№ п./п.]),ROW(A22))),\"\")","v":""},{"$f":"IFERROR(INDEX(Т1[Фамилия И.О.],SMALL(IF(LEFTB(Т1[Фамилия И.О.])=RIGHTB(CELL(\"имяфайла\",E23)),Т1[№ п./п.]),ROW(B22))),\"\")","v":""},{"$f":"IFERROR(INDEX(Т1[Дата рождения],SMALL(IF(LEFTB(Т1[Фамилия И.О.])=RIGHTB(CELL(\"имяфайла\",F23)),Т1[№ п./п.]),ROW(C22))),\"\")","v":""}]
[{"$f":"IFERROR(INDEX(Т1[№ п./п.],SMALL(IF(LEFTB(Т1[Фамилия И.О.])=RIGHTB(CELL(\"имяфайла\",D24)),Т1[№ п./п.]),ROW(A23))),\"\")","v":""},{"$f":"IFERROR(INDEX(Т1[Фамилия И.О.],SMALL(IF(LEFTB(Т1[Фамилия И.О.])=RIGHTB(CELL(\"имяфайла\",E24)),Т1[№ п./п.]),ROW(B23))),\"\")","v":""},{"$f":"IFERROR(INDEX(Т1[Дата рождения],SMALL(IF(LEFTB(Т1[Фамилия И.О.])=RIGHTB(CELL(\"имяфайла\",F24)),Т1[№ п./п.]),ROW(C23))),\"\")","v":""}]
[{"$f":"IFERROR(INDEX(Т1[№ п./п.],SMALL(IF(LEFTB(Т1[Фамилия И.О.])=RIGHTB(CELL(\"имяфайла\",D25)),Т1[№ п./п.]),ROW(A24))),\"\")","v":""},{"$f":"IFERROR(INDEX(Т1[Фамилия И.О.],SMALL(IF(LEFTB(Т1[Фамилия И.О.])=RIGHTB(CELL(\"имяфайла\",E25)),Т1[№ п./п.]),ROW(B24))),\"\")","v":""},{"$f":"IFERROR(INDEX(Т1[Дата рождения],SMALL(IF(LEFTB(Т1[Фамилия И.О.])=RIGHTB(CELL(\"имяфайла\",F25)),Т1[№ п./п.]),ROW(C24))),\"\")","v":""}]
[{"$f":"IFERROR(INDEX(Т1[№ п./п.],SMALL(IF(LEFTB(Т1[Фамилия И.О.])=RIGHTB(CELL(\"имяфайла\",D26)),Т1[№ п./п.]),ROW(A25))),\"\")","v":""},{"$f":"IFERROR(INDEX(Т1[Фамилия И.О.],SMALL(IF(LEFTB(Т1[Фамилия И.О.])=RIGHTB(CELL(\"имяфайла\",E26)),Т1[№ п./п.]),ROW(B25))),\"\")","v":""},{"$f":"IFERROR(INDEX(Т1[Дата рождения],SMALL(IF(LEFTB(Т1[Фамилия И.О.])=RIGHTB(CELL(\"имяфайла\",F26)),Т1[№ п./п.]),ROW(C25))),\"\")","v":""}]
[{"$f":"IFERROR(INDEX(Т1[№ п./п.],SMALL(IF(LEFTB(Т1[Фамилия И.О.])=RIGHTB(CELL(\"имяфайла\",D27)),Т1[№ п./п.]),ROW(A26))),\"\")","v":""},{"$f":"IFERROR(INDEX(Т1[Фамилия И.О.],SMALL(IF(LEFTB(Т1[Фамилия И.О.])=RIGHTB(CELL(\"имяфайла\",E27)),Т1[№ п./п.]),ROW(B26))),\"\")","v":""},{"$f":"IFERROR(INDEX(Т1[Дата рождения],SMALL(IF(LEFTB(Т1[Фамилия И.О.])=RIGHTB(CELL(\"имяфайла\",F27)),Т1[№ п./п.]),ROW(C26))),\"\")","v":""}]
[{"$f":"IFERROR(INDEX(Т1[№ п./п.],SMALL(IF(LEFTB(Т1[Фамилия И.О.])=RIGHTB(CELL(\"имяфайла\",D28)),Т1[№ п./п.]),ROW(A27))),\"\")","v":""},{"$f":"IFERROR(INDEX(Т1[Фамилия И.О.],SMALL(IF(LEFTB(Т1[Фамилия И.О.])=RIGHTB(CELL(\"имяфайла\",E28)),Т1[№ п./п.]),ROW(B27))),\"\")","v":""},{"$f":"IFERROR(INDEX(Т1[Дата рождения],SMALL(IF(LEFTB(Т1[Фамилия И.О.])=RIGHTB(CELL(\"имяфайла\",F28)),Т1[№ п./п.]),ROW(C27))),\"\")","v":""}]
[{"$f":"IFERROR(INDEX(Т1[№ п./п.],SMALL(IF(LEFTB(Т1[Фамилия И.О.])=RIGHTB(CELL(\"имяфайла\",D29)),Т1[№ п./п.]),ROW(A28))),\"\")","v":""},{"$f":"IFERROR(INDEX(Т1[Фамилия И.О.],SMALL(IF(LEFTB(Т1[Фамилия И.О.])=RIGHTB(CELL(\"имяфайла\",E29)),Т1[№ п./п.]),ROW(B28))),\"\")","v":""},{"$f":"IFERROR(INDEX(Т1[Дата рождения],SMALL(IF(LEFTB(Т1[Фамилия И.О.])=RIGHTB(CELL(\"имяфайла\",F29)),Т1[№ п./п.]),ROW(C28))),\"\")","v":""}]
[{"$f":"IFERROR(INDEX(Т1[№ п./п.],SMALL(IF(LEFTB(Т1[Фамилия И.О.])=RIGHTB(CELL(\"имяфайла\",D30)),Т1[№ п./п.]),ROW(A29))),\"\")","v":""},{"$f":"IFERROR(INDEX(Т1[Фамилия И.О.],SMALL(IF(LEFTB(Т1[Фамилия И.О.])=RIGHTB(CELL(\"имяфайла\",E30)),Т1[№ п./п.]),ROW(B29))),\"\")","v":""},{"$f":"IFERROR(INDEX(Т1[Дата рождения],SMALL(IF(LEFTB(Т1[Фамилия И.О.])=RIGHTB(CELL(\"имяфайла\",F30)),Т1[№ п./п.]),ROW(C29))),\"\")","v":""}]
[{"$f":"IFERROR(INDEX(Т1[№ п./п.],SMALL(IF(LEFTB(Т1[Фамилия И.О.])=RIGHTB(CELL(\"имяфайла\",D31)),Т1[№ п./п.]),ROW(A30))),\"\")","v":""},{"$f":"IFERROR(INDEX(Т1[Фамилия И.О.],SMALL(IF(LEFTB(Т1[Фамилия И.О.])=RIGHTB(CELL(\"имяфайла\",E31)),Т1[№ п./п.]),ROW(B30))),\"\")","v":""},{"$f":"IFERROR(INDEX(Т1[Дата рождения],SMALL(IF(LEFTB(Т1[Фамилия И.О.])=RIGHTB(CELL(\"имяфайла\",F31)),Т1[№ п./п.]),ROW(C30))),\"\")","v":""}]
[{"$f":"IFERROR(INDEX(Т1[№ п./п.],SMALL(IF(LEFTB(Т1[Фамилия И.О.])=RIGHTB(CELL(\"имяфайла\",D32)),Т1[№ п./п.]),ROW(A31))),\"\")","v":""},{"$f":"IFERROR(INDEX(Т1[Фамилия И.О.],SMALL(IF(LEFTB(Т1[Фамилия И.О.])=RIGHTB(CELL(\"имяфайла\",E32)),Т1[№ п./п.]),ROW(B31))),\"\")","v":""},{"$f":"IFERROR(INDEX(Т1[Дата рождения],SMALL(IF(LEFTB(Т1[Фамилия И.О.])=RIGHTB(CELL(\"имяфайла\",F32)),Т1[№ п./п.]),ROW(C31))),\"\")","v":""}]
[{"$f":"IFERROR(INDEX(Т1[№ п./п.],SMALL(IF(LEFTB(Т1[Фамилия И.О.])=RIGHTB(CELL(\"имяфайла\",D33)),Т1[№ п./п.]),ROW(A32))),\"\")","v":""},{"$f":"IFERROR(INDEX(Т1[Фамилия И.О.],SMALL(IF(LEFTB(Т1[Фамилия И.О.])=RIGHTB(CELL(\"имяфайла\",E33)),Т1[№ п./п.]),ROW(B32))),\"\")","v":""},{"$f":"IFERROR(INDEX(Т1[Дата рождения],SMALL(IF(LEFTB(Т1[Фамилия И.О.])=RIGHTB(CELL(\"имяфайла\",F33)),Т1[№ п./п.]),ROW(C32))),\"\")","v":""}]
[{"$f":"IFERROR(INDEX(Т1[№ п./п.],SMALL(IF(LEFTB(Т1[Фамилия И.О.])=RIGHTB(CELL(\"имяфайла\",D34)),Т1[№ п./п.]),ROW(A33))),\"\")","v":""},{"$f":"IFERROR(INDEX(Т1[Фамилия И.О.],SMALL(IF(LEFTB(Т1[Фамилия И.О.])=RIGHTB(CELL(\"имяфайла\",E34)),Т1[№ п./п.]),ROW(B33))),\"\")","v":""},{"$f":"IFERROR(INDEX(Т1[Дата рождения],SMALL(IF(LEFTB(Т1[Фамилия И.О.])=RIGHTB(CELL(\"имяфайла\",F34)),Т1[№ п./п.]),ROW(C33))),\"\")","v":""}]
[{"$f":"IFERROR(INDEX(Т1[№ п./п.],SMALL(IF(LEFTB(Т1[Фамилия И.О.])=RIGHTB(CELL(\"имяфайла\",D35)),Т1[№ п./п.]),ROW(A34))),\"\")","v":""},{"$f":"IFERROR(INDEX(Т1[Фамилия И.О.],SMALL(IF(LEFTB(Т1[Фамилия И.О.])=RIGHTB(CELL(\"имяфайла\",E35)),Т1[№ п./п.]),ROW(B34))),\"\")","v":""},{"$f":"IFERROR(INDEX(Т1[Дата рождения],SMALL(IF(LEFTB(Т1[Фамилия И.О.])=RIGHTB(CELL(\"имяфайла\",F35)),Т1[№ п./п.]),ROW(C34))),\"\")","v":""}]
[{"$f":"IFERROR(INDEX(Т1[№ п./п.],SMALL(IF(LEFTB(Т1[Фамилия И.О.])=RIGHTB(CELL(\"имяфайла\",D36)),Т1[№ п./п.]),ROW(A35))),\"\")","v":""},{"$f":"IFERROR(INDEX(Т1[Фамилия И.О.],SMALL(IF(LEFTB(Т1[Фамилия И.О.])=RIGHTB(CELL(\"имяфайла\",E36)),Т1[№ п./п.]),ROW(B35))),\"\")","v":""},{"$f":"IFERROR(INDEX(Т1[Дата рождения],SMALL(IF(LEFTB(Т1[Фамилия И.О.])=RIGHTB(CELL(\"имяфайла\",F36)),Т1[№ п./п.]),ROW(C35))),\"\")","v":""}]
[{"$f":"IFERROR(INDEX(Т1[№ п./п.],SMALL(IF(LEFTB(Т1[Фамилия И.О.])=RIGHTB(CELL(\"имяфайла\",D37)),Т1[№ п./п.]),ROW(A36))),\"\")","v":""},{"$f":"IFERROR(INDEX(Т1[Фамилия И.О.],SMALL(IF(LEFTB(Т1[Фамилия И.О.])=RIGHTB(CELL(\"имяфайла\",E37)),Т1[№ п./п.]),ROW(B36))),\"\")","v":""},{"$f":"IFERROR(INDEX(Т1[Дата рождения],SMALL(IF(LEFTB(Т1[Фамилия И.О.])=RIGHTB(CELL(\"имяфайла\",F37)),Т1[№ п./п.]),ROW(C36))),\"\")","v":""}]
[{"$f":"IFERROR(INDEX(Т1[№ п./п.],SMALL(IF(LEFTB(Т1[Фамилия И.О.])=RIGHTB(CELL(\"имяфайла\",D38)),Т1[№ п./п.]),ROW(A37))),\"\")","v":""},{"$f":"IFERROR(INDEX(Т1[Фамилия И.О.],SMALL(IF(LEFTB(Т1[Фамилия И.О.])=RIGHTB(CELL(\"имяфайла\",E38)),Т1[№ п./п.]),ROW(B37))),\"\")","v":""},{"$f":"IFERROR(INDEX(Т1[Дата рождения],SMALL(IF(LEFTB(Т1[Фамилия И.О.])=RIGHTB(CELL(\"имяфайла\",F38)),Т1[№ п./п.]),ROW(C37))),\"\")","v":""}]
[{"$f":"IFERROR(INDEX(Т1[№ п./п.],SMALL(IF(LEFTB(Т1[Фамилия И.О.])=RIGHTB(CELL(\"имяфайла\",D39)),Т1[№ п./п.]),ROW(A38))),\"\")","v":""},{"$f":"IFERROR(INDEX(Т1[Фамилия И.О.],SMALL(IF(LEFTB(Т1[Фамилия И.О.])=RIGHTB(CELL(\"имяфайла\",E39)),Т1[№ п./п.]),ROW(B38))),\"\")","v":""},{"$f":"IFERROR(INDEX(Т1[Дата рождения],SMALL(IF(LEFTB(Т1[Фамилия И.О.])=RIGHTB(CELL(\"имяфайла\",F39)),Т1[№ п./п.]),ROW(C38))),\"\")","v":""}]
[{"$f":"IFERROR(INDEX(Т1[№ п./п.],SMALL(IF(LEFTB(Т1[Фамилия И.О.])=RIGHTB(CELL(\"имяфайла\",D40)),Т1[№ п./п.]),ROW(A39))),\"\")","v":""},{"$f":"IFERROR(INDEX(Т1[Фамилия И.О.],SMALL(IF(LEFTB(Т1[Фамилия И.О.])=RIGHTB(CELL(\"имяфайла\",E40)),Т1[№ п./п.]),ROW(B39))),\"\")","v":""},{"$f":"IFERROR(INDEX(Т1[Дата рождения],SMALL(IF(LEFTB(Т1[Фамилия И.О.])=RIGHTB(CELL(\"имяфайла\",F40)),Т1[№ п./п.]),ROW(C39))),\"\")","v":""}]
[{"$f":"IFERROR(INDEX(Т1[№ п./п.],SMALL(IF(LEFTB(Т1[Фамилия И.О.])=RIGHTB(CELL(\"имяфайла\",D41)),Т1[№ п./п.]),ROW(A40))),\"\")","v":""},{"$f":"IFERROR(INDEX(Т1[Фамилия И.О.],SMALL(IF(LEFTB(Т1[Фамилия И.О.])=RIGHTB(CELL(\"имяфайла\",E41)),Т1[№ п./п.]),ROW(B40))),\"\")","v":""},{"$f":"IFERROR(INDEX(Т1[Дата рождения],SMALL(IF(LEFTB(Т1[Фамилия И.О.])=RIGHTB(CELL(\"имяфайла\",F41)),Т1[№ п./п.]),ROW(C40))),\"\")","v":""}]
[{"$f":"IFERROR(INDEX(Т1[№ п./п.],SMALL(IF(LEFTB(Т1[Фамилия И.О.])=RIGHTB(CELL(\"имяфайла\",D42)),Т1[№ п./п.]),ROW(A41))),\"\")","v":""},{"$f":"IFERROR(INDEX(Т1[Фамилия И.О.],SMALL(IF(LEFTB(Т1[Фамилия И.О.])=RIGHTB(CELL(\"имяфайла\",E42)),Т1[№ п./п.]),ROW(B41))),\"\")","v":""},{"$f":"IFERROR(INDEX(Т1[Дата рождения],SMALL(IF(LEFTB(Т1[Фамилия И.О.])=RIGHTB(CELL(\"имяфайла\",F42)),Т1[№ п./п.]),ROW(C41))),\"\")","v":""}]
[{"$f":"IFERROR(INDEX(Т1[№ п./п.],SMALL(IF(LEFTB(Т1[Фамилия И.О.])=RIGHTB(CELL(\"имяфайла\",D43)),Т1[№ п./п.]),ROW(A42))),\"\")","v":""},{"$f":"IFERROR(INDEX(Т1[Фамилия И.О.],SMALL(IF(LEFTB(Т1[Фамилия И.О.])=RIGHTB(CELL(\"имяфайла\",E43)),Т1[№ п./п.]),ROW(B42))),\"\")","v":""},{"$f":"IFERROR(INDEX(Т1[Дата рождения],SMALL(IF(LEFTB(Т1[Фамилия И.О.])=RIGHTB(CELL(\"имяфайла\",F43)),Т1[№ п./п.]),ROW(C42))),\"\")","v":""}]
[{"$f":"IFERROR(INDEX(Т1[№ п./п.],SMALL(IF(LEFTB(Т1[Фамилия И.О.])=RIGHTB(CELL(\"имяфайла\",D44)),Т1[№ п./п.]),ROW(A43))),\"\")","v":""},{"$f":"IFERROR(INDEX(Т1[Фамилия И.О.],SMALL(IF(LEFTB(Т1[Фамилия И.О.])=RIGHTB(CELL(\"имяфайла\",E44)),Т1[№ п./п.]),ROW(B43))),\"\")","v":""},{"$f":"IFERROR(INDEX(Т1[Дата рождения],SMALL(IF(LEFTB(Т1[Фамилия И.О.])=RIGHTB(CELL(\"имяфайла\",F44)),Т1[№ п./п.]),ROW(C43))),\"\")","v":""}]
[{"$f":"IFERROR(INDEX(Т1[№ п./п.],SMALL(IF(LEFTB(Т1[Фамилия И.О.])=RIGHTB(CELL(\"имяфайла\",D45)),Т1[№ п./п.]),ROW(A44))),\"\")","v":""},{"$f":"IFERROR(INDEX(Т1[Фамилия И.О.],SMALL(IF(LEFTB(Т1[Фамилия И.О.])=RIGHTB(CELL(\"имяфайла\",E45)),Т1[№ п./п.]),ROW(B44))),\"\")","v":""},{"$f":"IFERROR(INDEX(Т1[Дата рождения],SMALL(IF(LEFTB(Т1[Фамилия И.О.])=RIGHTB(CELL(\"имяфайла\",F45)),Т1[№ п./п.]),ROW(C44))),\"\")","v":""}]
[{"$f":"IFERROR(INDEX(Т1[№ п./п.],SMALL(IF(LEFTB(Т1[Фамилия И.О.])=RIGHTB(CELL(\"имяфайла\",D46)),Т1[№ п./п.]),ROW(A45))),\"\")","v":""},{"$f":"IFERROR(INDEX(Т1[Фамилия И.О.],SMALL(IF(LEFTB(Т1[Фамилия И.О.])=RIGHTB(CELL(\"имяфайла\",E46)),Т1[№ п./п.]),ROW(B45))),\"\")","v":""},{"$f":"IFERROR(INDEX(Т1[Дата рождения],SMALL(IF(LEFTB(Т1[Фамилия И.О.])=RIGHTB(CELL(\"имяфайла\",F46)),Т1[№ п./п.]),ROW(C45))),\"\")","v":""}]
[{"$f":"IFERROR(INDEX(Т1[№ п./п.],SMALL(IF(LEFTB(Т1[Фамилия И.О.])=RIGHTB(CELL(\"имяфайла\",D47)),Т1[№ п./п.]),ROW(A46))),\"\")","v":""},{"$f":"IFERROR(INDEX(Т1[Фамилия И.О.],SMALL(IF(LEFTB(Т1[Фамилия И.О.])=RIGHTB(CELL(\"имяфайла\",E47)),Т1[№ п./п.]),ROW(B46))),\"\")","v":""},{"$f":"IFERROR(INDEX(Т1[Дата рождения],SMALL(IF(LEFTB(Т1[Фамилия И.О.])=RIGHTB(CELL(\"имяфайла\",F47)),Т1[№ п./п.]),ROW(C46))),\"\")","v":""}]
[{"$f":"IFERROR(INDEX(Т1[№ п./п.],SMALL(IF(LEFTB(Т1[Фамилия И.О.])=RIGHTB(CELL(\"имяфайла\",D48)),Т1[№ п./п.]),ROW(A47))),\"\")","v":""},{"$f":"IFERROR(INDEX(Т1[Фамилия И.О.],SMALL(IF(LEFTB(Т1[Фамилия И.О.])=RIGHTB(CELL(\"имяфайла\",E48)),Т1[№ п./п.]),ROW(B47))),\"\")","v":""},{"$f":"IFERROR(INDEX(Т1[Дата рождения],SMALL(IF(LEFTB(Т1[Фамилия И.О.])=RIGHTB(CELL(\"имяфайла\",F48)),Т1[№ п./п.]),ROW(C47))),\"\")","v":""}]
[{"$f":"IFERROR(INDEX(Т1[№ п./п.],SMALL(IF(LEFTB(Т1[Фамилия И.О.])=RIGHTB(CELL(\"имяфайла\",D49)),Т1[№ п./п.]),ROW(A48))),\"\")","v":""},{"$f":"IFERROR(INDEX(Т1[Фамилия И.О.],SMALL(IF(LEFTB(Т1[Фамилия И.О.])=RIGHTB(CELL(\"имяфайла\",E49)),Т1[№ п./п.]),ROW(B48))),\"\")","v":""},{"$f":"IFERROR(INDEX(Т1[Дата рождения],SMALL(IF(LEFTB(Т1[Фамилия И.О.])=RIGHTB(CELL(\"имяфайла\",F49)),Т1[№ п./п.]),ROW(C48))),\"\")","v":""}]
[{"$f":"IFERROR(INDEX(Т1[№ п./п.],SMALL(IF(LEFTB(Т1[Фамилия И.О.])=RIGHTB(CELL(\"имяфайла\",D50)),Т1[№ п./п.]),ROW(A49))),\"\")","v":""},{"$f":"IFERROR(INDEX(Т1[Фамилия И.О.],SMALL(IF(LEFTB(Т1[Фамилия И.О.])=RIGHTB(CELL(\"имяфайла\",E50)),Т1[№ п./п.]),ROW(B49))),\"\")","v":""},{"$f":"IFERROR(INDEX(Т1[Дата рождения],SMALL(IF(LEFTB(Т1[Фамилия И.О.])=RIGHTB(CELL(\"имяфайла\",F50)),Т1[№ п./п.]),ROW(C49))),\"\")","v":""}]
[{"$f":"IFERROR(INDEX(Т1[№ п./п.],SMALL(IF(LEFTB(Т1[Фамилия И.О.])=RIGHTB(CELL(\"имяфайла\",D51)),Т1[№ п./п.]),ROW(A50))),\"\")","v":""},{"$f":"IFERROR(INDEX(Т1[Фамилия И.О.],SMALL(IF(LEFTB(Т1[Фамилия И.О.])=RIGHTB(CELL(\"имяфайла\",E51)),Т1[№ п./п.]),ROW(B50))),\"\")","v":""},{"$f":"IFERROR(INDEX(Т1[Дата рождения],SMALL(IF(LEFTB(Т1[Фамилия И.О.])=RIGHTB(CELL(\"имяфайла\",F51)),Т1[№ п./п.]),ROW(C50))),\"\")","v":""}]
[{"$f":"IFERROR(INDEX(Т1[№ п./п.],SMALL(IF(LEFTB(Т1[Фамилия И.О.])=RIGHTB(CELL(\"имяфайла\",D52)),Т1[№ п./п.]),ROW(A51))),\"\")","v":""},{"$f":"IFERROR(INDEX(Т1[Фамилия И.О.],SMALL(IF(LEFTB(Т1[Фамилия И.О.])=RIGHTB(CELL(\"имяфайла\",E52)),Т1[№ п./п.]),ROW(B51))),\"\")","v":""},{"$f":"IFERROR(INDEX(Т1[Дата рождения],SMALL(IF(LEFTB(Т1[Фамилия И.О.])=RIGHTB(CELL(\"имяфайла\",F52)),Т1[№ п./п.]),ROW(C51))),\"\")","v":""}]
[{"$f":"IFERROR(INDEX(Т1[№ п./п.],SMALL(IF(LEFTB(Т1[Фамилия И.О.])=RIGHTB(CELL(\"имяфайла\",D53)),Т1[№ п./п.]),ROW(A52))),\"\")","v":""},{"$f":"IFERROR(INDEX(Т1[Фамилия И.О.],SMALL(IF(LEFTB(Т1[Фамилия И.О.])=RIGHTB(CELL(\"имяфайла\",E53)),Т1[№ п./п.]),ROW(B52))),\"\")","v":""},{"$f":"IFERROR(INDEX(Т1[Дата рождения],SMALL(IF(LEFTB(Т1[Фамилия И.О.])=RIGHTB(CELL(\"имяфайла\",F53)),Т1[№ п./п.]),ROW(C52))),\"\")","v":""}]
[{"$f":"IFERROR(INDEX(Т1[№ п./п.],SMALL(IF(LEFTB(Т1[Фамилия И.О.])=RIGHTB(CELL(\"имяфайла\",D54)),Т1[№ п./п.]),ROW(A53))),\"\")","v":""},{"$f":"IFERROR(INDEX(Т1[Фамилия И.О.],SMALL(IF(LEFTB(Т1[Фамилия И.О.])=RIGHTB(CELL(\"имяфайла\",E54)),Т1[№ п./п.]),ROW(B53))),\"\")","v":""},{"$f":"IFERROR(INDEX(Т1[Дата рождения],SMALL(IF(LEFTB(Т1[Фамилия И.О.])=RIGHTB(CELL(\"имяфайла\",F54)),Т1[№ п./п.]),ROW(C53))),\"\")","v":""}]
[{"$f":"IFERROR(INDEX(Т1[№ п./п.],SMALL(IF(LEFTB(Т1[Фамилия И.О.])=RIGHTB(CELL(\"имяфайла\",D55)),Т1[№ п./п.]),ROW(A54))),\"\")","v":""},{"$f":"IFERROR(INDEX(Т1[Фамилия И.О.],SMALL(IF(LEFTB(Т1[Фамилия И.О.])=RIGHTB(CELL(\"имяфайла\",E55)),Т1[№ п./п.]),ROW(B54))),\"\")","v":""},{"$f":"IFERROR(INDEX(Т1[Дата рождения],SMALL(IF(LEFTB(Т1[Фамилия И.О.])=RIGHTB(CELL(\"имяфайла\",F55)),Т1[№ п./п.]),ROW(C54))),\"\")","v":""}]
[{"$f":"IFERROR(INDEX(Т1[№ п./п.],SMALL(IF(LEFTB(Т1[Фамилия И.О.])=RIGHTB(CELL(\"имяфайла\",D56)),Т1[№ п./п.]),ROW(A55))),\"\")","v":""},{"$f":"IFERROR(INDEX(Т1[Фамилия И.О.],SMALL(IF(LEFTB(Т1[Фамилия И.О.])=RIGHTB(CELL(\"имяфайла\",E56)),Т1[№ п./п.]),ROW(B55))),\"\")","v":""},{"$f":"IFERROR(INDEX(Т1[Дата рождения],SMALL(IF(LEFTB(Т1[Фамилия И.О.])=RIGHTB(CELL(\"имяфайла\",F56)),Т1[№ п./п.]),ROW(C55))),\"\")","v":""}]
[{"$f":"IFERROR(INDEX(Т1[№ п./п.],SMALL(IF(LEFTB(Т1[Фамилия И.О.])=RIGHTB(CELL(\"имяфайла\",D57)),Т1[№ п./п.]),ROW(A56))),\"\")","v":""},{"$f":"IFERROR(INDEX(Т1[Фамилия И.О.],SMALL(IF(LEFTB(Т1[Фамилия И.О.])=RIGHTB(CELL(\"имяфайла\",E57)),Т1[№ п./п.]),ROW(B56))),\"\")","v":""},{"$f":"IFERROR(INDEX(Т1[Дата рождения],SMALL(IF(LEFTB(Т1[Фамилия И.О.])=RIGHTB(CELL(\"имяфайла\",F57)),Т1[№ п./п.]),ROW(C56))),\"\")","v":""}]
[{"$f":"IFERROR(INDEX(Т1[№ п./п.],SMALL(IF(LEFTB(Т1[Фамилия И.О.])=RIGHTB(CELL(\"имяфайла\",D58)),Т1[№ п./п.]),ROW(A57))),\"\")","v":""},{"$f":"IFERROR(INDEX(Т1[Фамилия И.О.],SMALL(IF(LEFTB(Т1[Фамилия И.О.])=RIGHTB(CELL(\"имяфайла\",E58)),Т1[№ п./п.]),ROW(B57))),\"\")","v":""},{"$f":"IFERROR(INDEX(Т1[Дата рождения],SMALL(IF(LEFTB(Т1[Фамилия И.О.])=RIGHTB(CELL(\"имяфайла\",F58)),Т1[№ п./п.]),ROW(C57))),\"\")","v":""}]
[{"$f":"IFERROR(INDEX(Т1[№ п./п.],SMALL(IF(LEFTB(Т1[Фамилия И.О.])=RIGHTB(CELL(\"имяфайла\",D59)),Т1[№ п./п.]),ROW(A58))),\"\")","v":""},{"$f":"IFERROR(INDEX(Т1[Фамилия И.О.],SMALL(IF(LEFTB(Т1[Фамилия И.О.])=RIGHTB(CELL(\"имяфайла\",E59)),Т1[№ п./п.]),ROW(B58))),\"\")","v":""},{"$f":"IFERROR(INDEX(Т1[Дата рождения],SMALL(IF(LEFTB(Т1[Фамилия И.О.])=RIGHTB(CELL(\"имяфайла\",F59)),Т1[№ п./п.]),ROW(C58))),\"\")","v":""}]
[{"$f":"IFERROR(INDEX(Т1[№ п./п.],SMALL(IF(LEFTB(Т1[Фамилия И.О.])=RIGHTB(CELL(\"имяфайла\",D60)),Т1[№ п./п.]),ROW(A59))),\"\")","v":""},{"$f":"IFERROR(INDEX(Т1[Фамилия И.О.],SMALL(IF(LEFTB(Т1[Фамилия И.О.])=RIGHTB(CELL(\"имяфайла\",E60)),Т1[№ п./п.]),ROW(B59))),\"\")","v":""},{"$f":"IFERROR(INDEX(Т1[Дата рождения],SMALL(IF(LEFTB(Т1[Фамилия И.О.])=RIGHTB(CELL(\"имяфайла\",F60)),Т1[№ п./п.]),ROW(C59))),\"\")","v":""}]
[{"$f":"IFERROR(INDEX(Т1[№ п./п.],SMALL(IF(LEFTB(Т1[Фамилия И.О.])=RIGHTB(CELL(\"имяфайла\",D61)),Т1[№ п./п.]),ROW(A60))),\"\")","v":""},{"$f":"IFERROR(INDEX(Т1[Фамилия И.О.],SMALL(IF(LEFTB(Т1[Фамилия И.О.])=RIGHTB(CELL(\"имяфайла\",E61)),Т1[№ п./п.]),ROW(B60))),\"\")","v":""},{"$f":"IFERROR(INDEX(Т1[Дата рождения],SMALL(IF(LEFTB(Т1[Фамилия И.О.])=RIGHTB(CELL(\"имяфайла\",F61)),Т1[№ п./п.]),ROW(C60))),\"\")","v":""}]
[{"$f":"IFERROR(INDEX(Т1[№ п./п.],SMALL(IF(LEFTB(Т1[Фамилия И.О.])=RIGHTB(CELL(\"имяфайла\",D62)),Т1[№ п./п.]),ROW(A61))),\"\")","v":""},{"$f":"IFERROR(INDEX(Т1[Фамилия И.О.],SMALL(IF(LEFTB(Т1[Фамилия И.О.])=RIGHTB(CELL(\"имяфайла\",E62)),Т1[№ п./п.]),ROW(B61))),\"\")","v":""},{"$f":"IFERROR(INDEX(Т1[Дата рождения],SMALL(IF(LEFTB(Т1[Фамилия И.О.])=RIGHTB(CELL(\"имяфайла\",F62)),Т1[№ п./п.]),ROW(C61))),\"\")","v":""}]
[{"$f":"IFERROR(INDEX(Т1[№ п./п.],SMALL(IF(LEFTB(Т1[Фамилия И.О.])=RIGHTB(CELL(\"имяфайла\",D63)),Т1[№ п./п.]),ROW(A62))),\"\")","v":""},{"$f":"IFERROR(INDEX(Т1[Фамилия И.О.],SMALL(IF(LEFTB(Т1[Фамилия И.О.])=RIGHTB(CELL(\"имяфайла\",E63)),Т1[№ п./п.]),ROW(B62))),\"\")","v":""},{"$f":"IFERROR(INDEX(Т1[Дата рождения],SMALL(IF(LEFTB(Т1[Фамилия И.О.])=RIGHTB(CELL(\"имяфайла\",F63)),Т1[№ п./п.]),ROW(C62))),\"\")","v":""}]
[{"$f":"IFERROR(INDEX(Т1[№ п./п.],SMALL(IF(LEFTB(Т1[Фамилия И.О.])=RIGHTB(CELL(\"имяфайла\",D64)),Т1[№ п./п.]),ROW(A63))),\"\")","v":""},{"$f":"IFERROR(INDEX(Т1[Фамилия И.О.],SMALL(IF(LEFTB(Т1[Фамилия И.О.])=RIGHTB(CELL(\"имяфайла\",E64)),Т1[№ п./п.]),ROW(B63))),\"\")","v":""},{"$f":"IFERROR(INDEX(Т1[Дата рождения],SMALL(IF(LEFTB(Т1[Фамилия И.О.])=RIGHTB(CELL(\"имяфайла\",F64)),Т1[№ п./п.]),ROW(C63))),\"\")","v":""}]
[{"$f":"IFERROR(INDEX(Т1[№ п./п.],SMALL(IF(LEFTB(Т1[Фамилия И.О.])=RIGHTB(CELL(\"имяфайла\",D65)),Т1[№ п./п.]),ROW(A64))),\"\")","v":""},{"$f":"IFERROR(INDEX(Т1[Фамилия И.О.],SMALL(IF(LEFTB(Т1[Фамилия И.О.])=RIGHTB(CELL(\"имяфайла\",E65)),Т1[№ п./п.]),ROW(B64))),\"\")","v":""},{"$f":"IFERROR(INDEX(Т1[Дата рождения],SMALL(IF(LEFTB(Т1[Фамилия И.О.])=RIGHTB(CELL(\"имяфайла\",F65)),Т1[№ п./п.]),ROW(C64))),\"\")","v":""}]
[{"$f":"IFERROR(INDEX(Т1[№ п./п.],SMALL(IF(LEFTB(Т1[Фамилия И.О.])=RIGHTB(CELL(\"имяфайла\",D66)),Т1[№ п./п.]),ROW(A65))),\"\")","v":""},{"$f":"IFERROR(INDEX(Т1[Фамилия И.О.],SMALL(IF(LEFTB(Т1[Фамилия И.О.])=RIGHTB(CELL(\"имяфайла\",E66)),Т1[№ п./п.]),ROW(B65))),\"\")","v":""},{"$f":"IFERROR(INDEX(Т1[Дата рождения],SMALL(IF(LEFTB(Т1[Фамилия И.О.])=RIGHTB(CELL(\"имяфайла\",F66)),Т1[№ п./п.]),ROW(C65))),\"\")","v":""}]
[{"$f":"IFERROR(INDEX(Т1[№ п./п.],SMALL(IF(LEFTB(Т1[Фамилия И.О.])=RIGHTB(CELL(\"имяфайла\",D67)),Т1[№ п./п.]),ROW(A66))),\"\")","v":""},{"$f":"IFERROR(INDEX(Т1[Фамилия И.О.],SMALL(IF(LEFTB(Т1[Фамилия И.О.])=RIGHTB(CELL(\"имяфайла\",E67)),Т1[№ п./п.]),ROW(B66))),\"\")","v":""},{"$f":"IFERROR(INDEX(Т1[Дата рождения],SMALL(IF(LEFTB(Т1[Фамилия И.О.])=RIGHTB(CELL(\"имяфайла\",F67)),Т1[№ п./п.]),ROW(C66))),\"\")","v":""}]
[{"$f":"IFERROR(INDEX(Т1[№ п./п.],SMALL(IF(LEFTB(Т1[Фамилия И.О.])=RIGHTB(CELL(\"имяфайла\",D68)),Т1[№ п./п.]),ROW(A67))),\"\")","v":""},{"$f":"IFERROR(INDEX(Т1[Фамилия И.О.],SMALL(IF(LEFTB(Т1[Фамилия И.О.])=RIGHTB(CELL(\"имяфайла\",E68)),Т1[№ п./п.]),ROW(B67))),\"\")","v":""},{"$f":"IFERROR(INDEX(Т1[Дата рождения],SMALL(IF(LEFTB(Т1[Фамилия И.О.])=RIGHTB(CELL(\"имяфайла\",F68)),Т1[№ п./п.]),ROW(C67))),\"\")","v":""}]
[{"$f":"IFERROR(INDEX(Т1[№ п./п.],SMALL(IF(LEFTB(Т1[Фамилия И.О.])=RIGHTB(CELL(\"имяфайла\",D69)),Т1[№ п./п.]),ROW(A68))),\"\")","v":""},{"$f":"IFERROR(INDEX(Т1[Фамилия И.О.],SMALL(IF(LEFTB(Т1[Фамилия И.О.])=RIGHTB(CELL(\"имяфайла\",E69)),Т1[№ п./п.]),ROW(B68))),\"\")","v":""},{"$f":"IFERROR(INDEX(Т1[Дата рождения],SMALL(IF(LEFTB(Т1[Фамилия И.О.])=RIGHTB(CELL(\"имяфайла\",F69)),Т1[№ п./п.]),ROW(C68))),\"\")","v":""}]
[{"$f":"IFERROR(INDEX(Т1[№ п./п.],SMALL(IF(LEFTB(Т1[Фамилия И.О.])=RIGHTB(CELL(\"имяфайла\",D70)),Т1[№ п./п.]),ROW(A69))),\"\")","v":""},{"$f":"IFERROR(INDEX(Т1[Фамилия И.О.],SMALL(IF(LEFTB(Т1[Фамилия И.О.])=RIGHTB(CELL(\"имяфайла\",E70)),Т1[№ п./п.]),ROW(B69))),\"\")","v":""},{"$f":"IFERROR(INDEX(Т1[Дата рождения],SMALL(IF(LEFTB(Т1[Фамилия И.О.])=RIGHTB(CELL(\"имяфайла\",F70)),Т1[№ п./п.]),ROW(C69))),\"\")","v":""}]
[{"$f":"IFERROR(INDEX(Т1[№ п./п.],SMALL(IF(LEFTB(Т1[Фамилия И.О.])=RIGHTB(CELL(\"имяфайла\",D71)),Т1[№ п./п.]),ROW(A70))),\"\")","v":""},{"$f":"IFERROR(INDEX(Т1[Фамилия И.О.],SMALL(IF(LEFTB(Т1[Фамилия И.О.])=RIGHTB(CELL(\"имяфайла\",E71)),Т1[№ п./п.]),ROW(B70))),\"\")","v":""},{"$f":"IFERROR(INDEX(Т1[Дата рождения],SMALL(IF(LEFTB(Т1[Фамилия И.О.])=RIGHTB(CELL(\"имяфайла\",F71)),Т1[№ п./п.]),ROW(C70))),\"\")","v":""}]
[{"$f":"IFERROR(INDEX(Т1[№ п./п.],SMALL(IF(LEFTB(Т1[Фамилия И.О.])=RIGHTB(CELL(\"имяфайла\",D72)),Т1[№ п./п.]),ROW(A71))),\"\")","v":""},{"$f":"IFERROR(INDEX(Т1[Фамилия И.О.],SMALL(IF(LEFTB(Т1[Фамилия И.О.])=RIGHTB(CELL(\"имяфайла\",E72)),Т1[№ п./п.]),ROW(B71))),\"\")","v":""},{"$f":"IFERROR(INDEX(Т1[Дата рождения],SMALL(IF(LEFTB(Т1[Фамилия И.О.])=RIGHTB(CELL(\"имяфайла\",F72)),Т1[№ п./п.]),ROW(C71))),\"\")","v":""}]
[{"$f":"IFERROR(INDEX(Т1[№ п./п.],SMALL(IF(LEFTB(Т1[Фамилия И.О.])=RIGHTB(CELL(\"имяфайла\",D73)),Т1[№ п./п.]),ROW(A72))),\"\")","v":""},{"$f":"IFERROR(INDEX(Т1[Фамилия И.О.],SMALL(IF(LEFTB(Т1[Фамилия И.О.])=RIGHTB(CELL(\"имяфайла\",E73)),Т1[№ п./п.]),ROW(B72))),\"\")","v":""},{"$f":"IFERROR(INDEX(Т1[Дата рождения],SMALL(IF(LEFTB(Т1[Фамилия И.О.])=RIGHTB(CELL(\"имяфайла\",F73)),Т1[№ п./п.]),ROW(C72))),\"\")","v":""}]
[{"$f":"IFERROR(INDEX(Т1[№ п./п.],SMALL(IF(LEFTB(Т1[Фамилия И.О.])=RIGHTB(CELL(\"имяфайла\",D74)),Т1[№ п./п.]),ROW(A73))),\"\")","v":""},{"$f":"IFERROR(INDEX(Т1[Фамилия И.О.],SMALL(IF(LEFTB(Т1[Фамилия И.О.])=RIGHTB(CELL(\"имяфайла\",E74)),Т1[№ п./п.]),ROW(B73))),\"\")","v":""},{"$f":"IFERROR(INDEX(Т1[Дата рождения],SMALL(IF(LEFTB(Т1[Фамилия И.О.])=RIGHTB(CELL(\"имяфайла\",F74)),Т1[№ п./п.]),ROW(C73))),\"\")","v":""}]
[{"$f":"IFERROR(INDEX(Т1[№ п./п.],SMALL(IF(LEFTB(Т1[Фамилия И.О.])=RIGHTB(CELL(\"имяфайла\",D75)),Т1[№ п./п.]),ROW(A74))),\"\")","v":""},{"$f":"IFERROR(INDEX(Т1[Фамилия И.О.],SMALL(IF(LEFTB(Т1[Фамилия И.О.])=RIGHTB(CELL(\"имяфайла\",E75)),Т1[№ п./п.]),ROW(B74))),\"\")","v":""},{"$f":"IFERROR(INDEX(Т1[Дата рождения],SMALL(IF(LEFTB(Т1[Фамилия И.О.])=RIGHTB(CELL(\"имяфайла\",F75)),Т1[№ п./п.]),ROW(C74))),\"\")","v":""}]
[{"$f":"IFERROR(INDEX(Т1[№ п./п.],SMALL(IF(LEFTB(Т1[Фамилия И.О.])=RIGHTB(CELL(\"имяфайла\",D76)),Т1[№ п./п.]),ROW(A75))),\"\")","v":""},{"$f":"IFERROR(INDEX(Т1[Фамилия И.О.],SMALL(IF(LEFTB(Т1[Фамилия И.О.])=RIGHTB(CELL(\"имяфайла\",E76)),Т1[№ п./п.]),ROW(B75))),\"\")","v":""},{"$f":"IFERROR(INDEX(Т1[Дата рождения],SMALL(IF(LEFTB(Т1[Фамилия И.О.])=RIGHTB(CELL(\"имяфайла\",F76)),Т1[№ п./п.]),ROW(C75))),\"\")","v":""}]
[{"$f":"IFERROR(INDEX(Т1[№ п./п.],SMALL(IF(LEFTB(Т1[Фамилия И.О.])=RIGHTB(CELL(\"имяфайла\",D77)),Т1[№ п./п.]),ROW(A76))),\"\")","v":""},{"$f":"IFERROR(INDEX(Т1[Фамилия И.О.],SMALL(IF(LEFTB(Т1[Фамилия И.О.])=RIGHTB(CELL(\"имяфайла\",E77)),Т1[№ п./п.]),ROW(B76))),\"\")","v":""},{"$f":"IFERROR(INDEX(Т1[Дата рождения],SMALL(IF(LEFTB(Т1[Фамилия И.О.])=RIGHTB(CELL(\"имяфайла\",F77)),Т1[№ п./п.]),ROW(C76))),\"\")","v":""}]
[{"$f":"IFERROR(INDEX(Т1[№ п./п.],SMALL(IF(LEFTB(Т1[Фамилия И.О.])=RIGHTB(CELL(\"имяфайла\",D78)),Т1[№ п./п.]),ROW(A77))),\"\")","v":""},{"$f":"IFERROR(INDEX(Т1[Фамилия И.О.],SMALL(IF(LEFTB(Т1[Фамилия И.О.])=RIGHTB(CELL(\"имяфайла\",E78)),Т1[№ п./п.]),ROW(B77))),\"\")","v":""},{"$f":"IFERROR(INDEX(Т1[Дата рождения],SMALL(IF(LEFTB(Т1[Фамилия И.О.])=RIGHTB(CELL(\"имяфайла\",F78)),Т1[№ п./п.]),ROW(C77))),\"\")","v":""}]
[{"$f":"IFERROR(INDEX(Т1[№ п./п.],SMALL(IF(LEFTB(Т1[Фамилия И.О.])=RIGHTB(CELL(\"имяфайла\",D79)),Т1[№ п./п.]),ROW(A78))),\"\")","v":""},{"$f":"IFERROR(INDEX(Т1[Фамилия И.О.],SMALL(IF(LEFTB(Т1[Фамилия И.О.])=RIGHTB(CELL(\"имяфайла\",E79)),Т1[№ п./п.]),ROW(B78))),\"\")","v":""},{"$f":"IFERROR(INDEX(Т1[Дата рождения],SMALL(IF(LEFTB(Т1[Фамилия И.О.])=RIGHTB(CELL(\"имяфайла\",F79)),Т1[№ п./п.]),ROW(C78))),\"\")","v":""}]
[{"$f":"IFERROR(INDEX(Т1[№ п./п.],SMALL(IF(LEFTB(Т1[Фамилия И.О.])=RIGHTB(CELL(\"имяфайла\",D80)),Т1[№ п./п.]),ROW(A79))),\"\")","v":""},{"$f":"IFERROR(INDEX(Т1[Фамилия И.О.],SMALL(IF(LEFTB(Т1[Фамилия И.О.])=RIGHTB(CELL(\"имяфайла\",E80)),Т1[№ п./п.]),ROW(B79))),\"\")","v":""},{"$f":"IFERROR(INDEX(Т1[Дата рождения],SMALL(IF(LEFTB(Т1[Фамилия И.О.])=RIGHTB(CELL(\"имяфайла\",F80)),Т1[№ п./п.]),ROW(C79))),\"\")","v":""}]
[{"$f":"IFERROR(INDEX(Т1[№ п./п.],SMALL(IF(LEFTB(Т1[Фамилия И.О.])=RIGHTB(CELL(\"имяфайла\",D81)),Т1[№ п./п.]),ROW(A80))),\"\")","v":""},{"$f":"IFERROR(INDEX(Т1[Фамилия И.О.],SMALL(IF(LEFTB(Т1[Фамилия И.О.])=RIGHTB(CELL(\"имяфайла\",E81)),Т1[№ п./п.]),ROW(B80))),\"\")","v":""},{"$f":"IFERROR(INDEX(Т1[Дата рождения],SMALL(IF(LEFTB(Т1[Фамилия И.О.])=RIGHTB(CELL(\"имяфайла\",F81)),Т1[№ п./п.]),ROW(C80))),\"\")","v":""}]
[{"$f":"IFERROR(INDEX(Т1[№ п./п.],SMALL(IF(LEFTB(Т1[Фамилия И.О.])=RIGHTB(CELL(\"имяфайла\",D82)),Т1[№ п./п.]),ROW(A81))),\"\")","v":""},{"$f":"IFERROR(INDEX(Т1[Фамилия И.О.],SMALL(IF(LEFTB(Т1[Фамилия И.О.])=RIGHTB(CELL(\"имяфайла\",E82)),Т1[№ п./п.]),ROW(B81))),\"\")","v":""},{"$f":"IFERROR(INDEX(Т1[Дата рождения],SMALL(IF(LEFTB(Т1[Фамилия И.О.])=RIGHTB(CELL(\"имяфайла\",F82)),Т1[№ п./п.]),ROW(C81))),\"\")","v":""}]
[{"$f":"IFERROR(INDEX(Т1[№ п./п.],SMALL(IF(LEFTB(Т1[Фамилия И.О.])=RIGHTB(CELL(\"имяфайла\",D83)),Т1[№ п./п.]),ROW(A82))),\"\")","v":""},{"$f":"IFERROR(INDEX(Т1[Фамилия И.О.],SMALL(IF(LEFTB(Т1[Фамилия И.О.])=RIGHTB(CELL(\"имяфайла\",E83)),Т1[№ п./п.]),ROW(B82))),\"\")","v":""},{"$f":"IFERROR(INDEX(Т1[Дата рождения],SMALL(IF(LEFTB(Т1[Фамилия И.О.])=RIGHTB(CELL(\"имяфайла\",F83)),Т1[№ п./п.]),ROW(C82))),\"\")","v":""}]
[{"$f":"IFERROR(INDEX(Т1[№ п./п.],SMALL(IF(LEFTB(Т1[Фамилия И.О.])=RIGHTB(CELL(\"имяфайла\",D84)),Т1[№ п./п.]),ROW(A83))),\"\")","v":""},{"$f":"IFERROR(INDEX(Т1[Фамилия И.О.],SMALL(IF(LEFTB(Т1[Фамилия И.О.])=RIGHTB(CELL(\"имяфайла\",E84)),Т1[№ п./п.]),ROW(B83))),\"\")","v":""},{"$f":"IFERROR(INDEX(Т1[Дата рождения],SMALL(IF(LEFTB(Т1[Фамилия И.О.])=RIGHTB(CELL(\"имяфайла\",F84)),Т1[№ п./п.]),ROW(C83))),\"\")","v":""}]
[{"$f":"IFERROR(INDEX(Т1[№ п./п.],SMALL(IF(LEFTB(Т1[Фамилия И.О.])=RIGHTB(CELL(\"имяфайла\",D85)),Т1[№ п./п.]),ROW(A84))),\"\")","v":""},{"$f":"IFERROR(INDEX(Т1[Фамилия И.О.],SMALL(IF(LEFTB(Т1[Фамилия И.О.])=RIGHTB(CELL(\"имяфайла\",E85)),Т1[№ п./п.]),ROW(B84))),\"\")","v":""},{"$f":"IFERROR(INDEX(Т1[Дата рождения],SMALL(IF(LEFTB(Т1[Фамилия И.О.])=RIGHTB(CELL(\"имяфайла\",F85)),Т1[№ п./п.]),ROW(C84))),\"\")","v":""}]
[{"$f":"IFERROR(INDEX(Т1[№ п./п.],SMALL(IF(LEFTB(Т1[Фамилия И.О.])=RIGHTB(CELL(\"имяфайла\",D86)),Т1[№ п./п.]),ROW(A85))),\"\")","v":""},{"$f":"IFERROR(INDEX(Т1[Фамилия И.О.],SMALL(IF(LEFTB(Т1[Фамилия И.О.])=RIGHTB(CELL(\"имяфайла\",E86)),Т1[№ п./п.]),ROW(B85))),\"\")","v":""},{"$f":"IFERROR(INDEX(Т1[Дата рождения],SMALL(IF(LEFTB(Т1[Фамилия И.О.])=RIGHTB(CELL(\"имяфайла\",F86)),Т1[№ п./п.]),ROW(C85))),\"\")","v":""}]
[{"$f":"IFERROR(INDEX(Т1[№ п./п.],SMALL(IF(LEFTB(Т1[Фамилия И.О.])=RIGHTB(CELL(\"имяфайла\",D87)),Т1[№ п./п.]),ROW(A86))),\"\")","v":""},{"$f":"IFERROR(INDEX(Т1[Фамилия И.О.],SMALL(IF(LEFTB(Т1[Фамилия И.О.])=RIGHTB(CELL(\"имяфайла\",E87)),Т1[№ п./п.]),ROW(B86))),\"\")","v":""},{"$f":"IFERROR(INDEX(Т1[Дата рождения],SMALL(IF(LEFTB(Т1[Фамилия И.О.])=RIGHTB(CELL(\"имяфайла\",F87)),Т1[№ п./п.]),ROW(C86))),\"\")","v":""}]
[{"$f":"IFERROR(INDEX(Т1[№ п./п.],SMALL(IF(LEFTB(Т1[Фамилия И.О.])=RIGHTB(CELL(\"имяфайла\",D88)),Т1[№ п./п.]),ROW(A87))),\"\")","v":""},{"$f":"IFERROR(INDEX(Т1[Фамилия И.О.],SMALL(IF(LEFTB(Т1[Фамилия И.О.])=RIGHTB(CELL(\"имяфайла\",E88)),Т1[№ п./п.]),ROW(B87))),\"\")","v":""},{"$f":"IFERROR(INDEX(Т1[Дата рождения],SMALL(IF(LEFTB(Т1[Фамилия И.О.])=RIGHTB(CELL(\"имяфайла\",F88)),Т1[№ п./п.]),ROW(C87))),\"\")","v":""}]
[{"$f":"IFERROR(INDEX(Т1[№ п./п.],SMALL(IF(LEFTB(Т1[Фамилия И.О.])=RIGHTB(CELL(\"имяфайла\",D89)),Т1[№ п./п.]),ROW(A88))),\"\")","v":""},{"$f":"IFERROR(INDEX(Т1[Фамилия И.О.],SMALL(IF(LEFTB(Т1[Фамилия И.О.])=RIGHTB(CELL(\"имяфайла\",E89)),Т1[№ п./п.]),ROW(B88))),\"\")","v":""},{"$f":"IFERROR(INDEX(Т1[Дата рождения],SMALL(IF(LEFTB(Т1[Фамилия И.О.])=RIGHTB(CELL(\"имяфайла\",F89)),Т1[№ п./п.]),ROW(C88))),\"\")","v":""}]
[{"$f":"IFERROR(INDEX(Т1[№ п./п.],SMALL(IF(LEFTB(Т1[Фамилия И.О.])=RIGHTB(CELL(\"имяфайла\",D90)),Т1[№ п./п.]),ROW(A89))),\"\")","v":""},{"$f":"IFERROR(INDEX(Т1[Фамилия И.О.],SMALL(IF(LEFTB(Т1[Фамилия И.О.])=RIGHTB(CELL(\"имяфайла\",E90)),Т1[№ п./п.]),ROW(B89))),\"\")","v":""},{"$f":"IFERROR(INDEX(Т1[Дата рождения],SMALL(IF(LEFTB(Т1[Фамилия И.О.])=RIGHTB(CELL(\"имяфайла\",F90)),Т1[№ п./п.]),ROW(C89))),\"\")","v":""}]
[{"$f":"IFERROR(INDEX(Т1[№ п./п.],SMALL(IF(LEFTB(Т1[Фамилия И.О.])=RIGHTB(CELL(\"имяфайла\",D91)),Т1[№ п./п.]),ROW(A90))),\"\")","v":""},{"$f":"IFERROR(INDEX(Т1[Фамилия И.О.],SMALL(IF(LEFTB(Т1[Фамилия И.О.])=RIGHTB(CELL(\"имяфайла\",E91)),Т1[№ п./п.]),ROW(B90))),\"\")","v":""},{"$f":"IFERROR(INDEX(Т1[Дата рождения],SMALL(IF(LEFTB(Т1[Фамилия И.О.])=RIGHTB(CELL(\"имяфайла\",F91)),Т1[№ п./п.]),ROW(C90))),\"\")","v":""}]
[{"$f":"IFERROR(INDEX(Т1[№ п./п.],SMALL(IF(LEFTB(Т1[Фамилия И.О.])=RIGHTB(CELL(\"имяфайла\",D92)),Т1[№ п./п.]),ROW(A91))),\"\")","v":""},{"$f":"IFERROR(INDEX(Т1[Фамилия И.О.],SMALL(IF(LEFTB(Т1[Фамилия И.О.])=RIGHTB(CELL(\"имяфайла\",E92)),Т1[№ п./п.]),ROW(B91))),\"\")","v":""},{"$f":"IFERROR(INDEX(Т1[Дата рождения],SMALL(IF(LEFTB(Т1[Фамилия И.О.])=RIGHTB(CELL(\"имяфайла\",F92)),Т1[№ п./п.]),ROW(C91))),\"\")","v":""}]
[{"$f":"IFERROR(INDEX(Т1[№ п./п.],SMALL(IF(LEFTB(Т1[Фамилия И.О.])=RIGHTB(CELL(\"имяфайла\",D93)),Т1[№ п./п.]),ROW(A92))),\"\")","v":""},{"$f":"IFERROR(INDEX(Т1[Фамилия И.О.],SMALL(IF(LEFTB(Т1[Фамилия И.О.])=RIGHTB(CELL(\"имяфайла\",E93)),Т1[№ п./п.]),ROW(B92))),\"\")","v":""},{"$f":"IFERROR(INDEX(Т1[Дата рождения],SMALL(IF(LEFTB(Т1[Фамилия И.О.])=RIGHTB(CELL(\"имяфайла\",F93)),Т1[№ п./п.]),ROW(C92))),\"\")","v":""}]
[{"$f":"IFERROR(INDEX(Т1[№ п./п.],SMALL(IF(LEFTB(Т1[Фамилия И.О.])=RIGHTB(CELL(\"имяфайла\",D94)),Т1[№ п./п.]),ROW(A93))),\"\")","v":""},{"$f":"IFERROR(INDEX(Т1[Фамилия И.О.],SMALL(IF(LEFTB(Т1[Фамилия И.О.])=RIGHTB(CELL(\"имяфайла\",E94)),Т1[№ п./п.]),ROW(B93))),\"\")","v":""},{"$f":"IFERROR(INDEX(Т1[Дата рождения],SMALL(IF(LEFTB(Т1[Фамилия И.О.])=RIGHTB(CELL(\"имяфайла\",F94)),Т1[№ п./п.]),ROW(C93))),\"\")","v":""}]
[{"$f":"IFERROR(INDEX(Т1[№ п./п.],SMALL(IF(LEFTB(Т1[Фамилия И.О.])=RIGHTB(CELL(\"имяфайла\",D95)),Т1[№ п./п.]),ROW(A94))),\"\")","v":""},{"$f":"IFERROR(INDEX(Т1[Фамилия И.О.],SMALL(IF(LEFTB(Т1[Фамилия И.О.])=RIGHTB(CELL(\"имяфайла\",E95)),Т1[№ п./п.]),ROW(B94))),\"\")","v":""},{"$f":"IFERROR(INDEX(Т1[Дата рождения],SMALL(IF(LEFTB(Т1[Фамилия И.О.])=RIGHTB(CELL(\"имяфайла\",F95)),Т1[№ п./п.]),ROW(C94))),\"\")","v":""}]
[{"$f":"IFERROR(INDEX(Т1[№ п./п.],SMALL(IF(LEFTB(Т1[Фамилия И.О.])=RIGHTB(CELL(\"имяфайла\",D96)),Т1[№ п./п.]),ROW(A95))),\"\")","v":""},{"$f":"IFERROR(INDEX(Т1[Фамилия И.О.],SMALL(IF(LEFTB(Т1[Фамилия И.О.])=RIGHTB(CELL(\"имяфайла\",E96)),Т1[№ п./п.]),ROW(B95))),\"\")","v":""},{"$f":"IFERROR(INDEX(Т1[Дата рождения],SMALL(IF(LEFTB(Т1[Фамилия И.О.])=RIGHTB(CELL(\"имяфайла\",F96)),Т1[№ п./п.]),ROW(C95))),\"\")","v":""}]
[{"$f":"IFERROR(INDEX(Т1[№ п./п.],SMALL(IF(LEFTB(Т1[Фамилия И.О.])=RIGHTB(CELL(\"имяфайла\",D97)),Т1[№ п./п.]),ROW(A96))),\"\")","v":""},{"$f":"IFERROR(INDEX(Т1[Фамилия И.О.],SMALL(IF(LEFTB(Т1[Фамилия И.О.])=RIGHTB(CELL(\"имяфайла\",E97)),Т1[№ п./п.]),ROW(B96))),\"\")","v":""},{"$f":"IFERROR(INDEX(Т1[Дата рождения],SMALL(IF(LEFTB(Т1[Фамилия И.О.])=RIGHTB(CELL(\"имяфайла\",F97)),Т1[№ п./п.]),ROW(C96))),\"\")","v":""}]
[{"$f":"IFERROR(INDEX(Т1[№ п./п.],SMALL(IF(LEFTB(Т1[Фамилия И.О.])=RIGHTB(CELL(\"имяфайла\",D98)),Т1[№ п./п.]),ROW(A97))),\"\")","v":""},{"$f":"IFERROR(INDEX(Т1[Фамилия И.О.],SMALL(IF(LEFTB(Т1[Фамилия И.О.])=RIGHTB(CELL(\"имяфайла\",E98)),Т1[№ п./п.]),ROW(B97))),\"\")","v":""},{"$f":"IFERROR(INDEX(Т1[Дата рождения],SMALL(IF(LEFTB(Т1[Фамилия И.О.])=RIGHTB(CELL(\"имяфайла\",F98)),Т1[№ п./п.]),ROW(C97))),\"\")","v":""}]
[{"$f":"IFERROR(INDEX(Т1[№ п./п.],SMALL(IF(LEFTB(Т1[Фамилия И.О.])=RIGHTB(CELL(\"имяфайла\",D99)),Т1[№ п./п.]),ROW(A98))),\"\")","v":""},{"$f":"IFERROR(INDEX(Т1[Фамилия И.О.],SMALL(IF(LEFTB(Т1[Фамилия И.О.])=RIGHTB(CELL(\"имяфайла\",E99)),Т1[№ п./п.]),ROW(B98))),\"\")","v":""},{"$f":"IFERROR(INDEX(Т1[Дата рождения],SMALL(IF(LEFTB(Т1[Фамилия И.О.])=RIGHTB(CELL(\"имяфайла\",F99)),Т1[№ п./п.]),ROW(C98))),\"\")","v":""}]
[{"$f":"IFERROR(INDEX(Т1[№ п./п.],SMALL(IF(LEFTB(Т1[Фамилия И.О.])=RIGHTB(CELL(\"имяфайла\",D100)),Т1[№ п./п.]),ROW(A99))),\"\")","v":""},{"$f":"IFERROR(INDEX(Т1[Фамилия И.О.],SMALL(IF(LEFTB(Т1[Фамилия И.О.])=RIGHTB(CELL(\"имяфайла\",E100)),Т1[№ п./п.]),ROW(B99))),\"\")","v":""},{"$f":"IFERROR(INDEX(Т1[Дата рождения],SMALL(IF(LEFTB(Т1[Фамилия И.О.])=RIGHTB(CELL(\"имяфайла\",F100)),Т1[№ п./п.]),ROW(C99))),\"\")","v":""}]
[{"$f":"IFERROR(INDEX(Т1[№ п./п.],SMALL(IF(LEFTB(Т1[Фамилия И.О.])=RIGHTB(CELL(\"имяфайла\",D101)),Т1[№ п./п.]),ROW(A100))),\"\")","v":""},{"$f":"IFERROR(INDEX(Т1[Фамилия И.О.],SMALL(IF(LEFTB(Т1[Фамилия И.О.])=RIGHTB(CELL(\"имяфайла\",E101)),Т1[№ п./п.]),ROW(B100))),\"\")","v":""},{"$f":"IFERROR(INDEX(Т1[Дата рождения],SMALL(IF(LEFTB(Т1[Фамилия И.О.])=RIGHTB(CELL(\"имяфайла\",F101)),Т1[№ п./п.]),ROW(C100))),\"\")","v":""}]
[{"$f":"IFERROR(INDEX(Т1[№ п./п.],SMALL(IF(LEFTB(Т1[Фамилия И.О.])=RIGHTB(CELL(\"имяфайла\",D102)),Т1[№ п./п.]),ROW(A101))),\"\")","v":""},{"$f":"IFERROR(INDEX(Т1[Фамилия И.О.],SMALL(IF(LEFTB(Т1[Фамилия И.О.])=RIGHTB(CELL(\"имяфайла\",E102)),Т1[№ п./п.]),ROW(B101))),\"\")","v":""},{"$f":"IFERROR(INDEX(Т1[Дата рождения],SMALL(IF(LEFTB(Т1[Фамилия И.О.])=RIGHTB(CELL(\"имяфайла\",F102)),Т1[№ п./п.]),ROW(C101))),\"\")","v":""}]
[{"$f":"IFERROR(INDEX(Т1[№ п./п.],SMALL(IF(LEFTB(Т1[Фамилия И.О.])=RIGHTB(CELL(\"имяфайла\",D103)),Т1[№ п./п.]),ROW(A102))),\"\")","v":""},{"$f":"IFERROR(INDEX(Т1[Фамилия И.О.],SMALL(IF(LEFTB(Т1[Фамилия И.О.])=RIGHTB(CELL(\"имяфайла\",E103)),Т1[№ п./п.]),ROW(B102))),\"\")","v":""},{"$f":"IFERROR(INDEX(Т1[Дата рождения],SMALL(IF(LEFTB(Т1[Фамилия И.О.])=RIGHTB(CELL(\"имяфайла\",F103)),Т1[№ п./п.]),ROW(C102))),\"\")","v":""}]
[{"$f":"IFERROR(INDEX(Т1[№ п./п.],SMALL(IF(LEFTB(Т1[Фамилия И.О.])=RIGHTB(CELL(\"имяфайла\",D104)),Т1[№ п./п.]),ROW(A103))),\"\")","v":""},{"$f":"IFERROR(INDEX(Т1[Фамилия И.О.],SMALL(IF(LEFTB(Т1[Фамилия И.О.])=RIGHTB(CELL(\"имяфайла\",E104)),Т1[№ п./п.]),ROW(B103))),\"\")","v":""},{"$f":"IFERROR(INDEX(Т1[Дата рождения],SMALL(IF(LEFTB(Т1[Фамилия И.О.])=RIGHTB(CELL(\"имяфайла\",F104)),Т1[№ п./п.]),ROW(C103))),\"\")","v":""}]
[{"$f":"IFERROR(INDEX(Т1[№ п./п.],SMALL(IF(LEFTB(Т1[Фамилия И.О.])=RIGHTB(CELL(\"имяфайла\",D105)),Т1[№ п./п.]),ROW(A104))),\"\")","v":""},{"$f":"IFERROR(INDEX(Т1[Фамилия И.О.],SMALL(IF(LEFTB(Т1[Фамилия И.О.])=RIGHTB(CELL(\"имяфайла\",E105)),Т1[№ п./п.]),ROW(B104))),\"\")","v":""},{"$f":"IFERROR(INDEX(Т1[Дата рождения],SMALL(IF(LEFTB(Т1[Фамилия И.О.])=RIGHTB(CELL(\"имяфайла\",F105)),Т1[№ п./п.]),ROW(C104))),\"\")","v":""}]
[{"$f":"IFERROR(INDEX(Т1[№ п./п.],SMALL(IF(LEFTB(Т1[Фамилия И.О.])=RIGHTB(CELL(\"имяфайла\",D106)),Т1[№ п./п.]),ROW(A105))),\"\")","v":""},{"$f":"IFERROR(INDEX(Т1[Фамилия И.О.],SMALL(IF(LEFTB(Т1[Фамилия И.О.])=RIGHTB(CELL(\"имяфайла\",E106)),Т1[№ п./п.]),ROW(B105))),\"\")","v":""},{"$f":"IFERROR(INDEX(Т1[Дата рождения],SMALL(IF(LEFTB(Т1[Фамилия И.О.])=RIGHTB(CELL(\"имяфайла\",F106)),Т1[№ п./п.]),ROW(C105))),\"\")","v":""}]
[{"$f":"IFERROR(INDEX(Т1[№ п./п.],SMALL(IF(LEFTB(Т1[Фамилия И.О.])=RIGHTB(CELL(\"имяфайла\",D107)),Т1[№ п./п.]),ROW(A106))),\"\")","v":""},{"$f":"IFERROR(INDEX(Т1[Фамилия И.О.],SMALL(IF(LEFTB(Т1[Фамилия И.О.])=RIGHTB(CELL(\"имяфайла\",E107)),Т1[№ п./п.]),ROW(B106))),\"\")","v":""},{"$f":"IFERROR(INDEX(Т1[Дата рождения],SMALL(IF(LEFTB(Т1[Фамилия И.О.])=RIGHTB(CELL(\"имяфайла\",F107)),Т1[№ п./п.]),ROW(C106))),\"\")","v":""}]
[{"$f":"IFERROR(INDEX(Т1[№ п./п.],SMALL(IF(LEFTB(Т1[Фамилия И.О.])=RIGHTB(CELL(\"имяфайла\",D108)),Т1[№ п./п.]),ROW(A107))),\"\")","v":""},{"$f":"IFERROR(INDEX(Т1[Фамилия И.О.],SMALL(IF(LEFTB(Т1[Фамилия И.О.])=RIGHTB(CELL(\"имяфайла\",E108)),Т1[№ п./п.]),ROW(B107))),\"\")","v":""},{"$f":"IFERROR(INDEX(Т1[Дата рождения],SMALL(IF(LEFTB(Т1[Фамилия И.О.])=RIGHTB(CELL(\"имяфайла\",F108)),Т1[№ п./п.]),ROW(C107))),\"\")","v":""}]
[{"$f":"IFERROR(INDEX(Т1[№ п./п.],SMALL(IF(LEFTB(Т1[Фамилия И.О.])=RIGHTB(CELL(\"имяфайла\",D109)),Т1[№ п./п.]),ROW(A108))),\"\")","v":""},{"$f":"IFERROR(INDEX(Т1[Фамилия И.О.],SMALL(IF(LEFTB(Т1[Фамилия И.О.])=RIGHTB(CELL(\"имяфайла\",E109)),Т1[№ п./п.]),ROW(B108))),\"\")","v":""},{"$f":"IFERROR(INDEX(Т1[Дата рождения],SMALL(IF(LEFTB(Т1[Фамилия И.О.])=RIGHTB(CELL(\"имяфайла\",F109)),Т1[№ п./п.]),ROW(C108))),\"\")","v":""}]
[{"$f":"IFERROR(INDEX(Т1[№ п./п.],SMALL(IF(LEFTB(Т1[Фамилия И.О.])=RIGHTB(CELL(\"имяфайла\",D110)),Т1[№ п./п.]),ROW(A109))),\"\")","v":""},{"$f":"IFERROR(INDEX(Т1[Фамилия И.О.],SMALL(IF(LEFTB(Т1[Фамилия И.О.])=RIGHTB(CELL(\"имяфайла\",E110)),Т1[№ п./п.]),ROW(B109))),\"\")","v":""},{"$f":"IFERROR(INDEX(Т1[Дата рождения],SMALL(IF(LEFTB(Т1[Фамилия И.О.])=RIGHTB(CELL(\"имяфайла\",F110)),Т1[№ п./п.]),ROW(C109))),\"\")","v":""}]
[{"$f":"IFERROR(INDEX(Т1[№ п./п.],SMALL(IF(LEFTB(Т1[Фамилия И.О.])=RIGHTB(CELL(\"имяфайла\",D111)),Т1[№ п./п.]),ROW(A110))),\"\")","v":""},{"$f":"IFERROR(INDEX(Т1[Фамилия И.О.],SMALL(IF(LEFTB(Т1[Фамилия И.О.])=RIGHTB(CELL(\"имяфайла\",E111)),Т1[№ п./п.]),ROW(B110))),\"\")","v":""},{"$f":"IFERROR(INDEX(Т1[Дата рождения],SMALL(IF(LEFTB(Т1[Фамилия И.О.])=RIGHTB(CELL(\"имяфайла\",F111)),Т1[№ п./п.]),ROW(C110))),\"\")","v":""}]
[{"$f":"IFERROR(INDEX(Т1[№ п./п.],SMALL(IF(LEFTB(Т1[Фамилия И.О.])=RIGHTB(CELL(\"имяфайла\",D112)),Т1[№ п./п.]),ROW(A111))),\"\")","v":""},{"$f":"IFERROR(INDEX(Т1[Фамилия И.О.],SMALL(IF(LEFTB(Т1[Фамилия И.О.])=RIGHTB(CELL(\"имяфайла\",E112)),Т1[№ п./п.]),ROW(B111))),\"\")","v":""},{"$f":"IFERROR(INDEX(Т1[Дата рождения],SMALL(IF(LEFTB(Т1[Фамилия И.О.])=RIGHTB(CELL(\"имяфайла\",F112)),Т1[№ п./п.]),ROW(C111))),\"\")","v":""}]
[{"$f":"IFERROR(INDEX(Т1[№ п./п.],SMALL(IF(LEFTB(Т1[Фамилия И.О.])=RIGHTB(CELL(\"имяфайла\",D113)),Т1[№ п./п.]),ROW(A112))),\"\")","v":""},{"$f":"IFERROR(INDEX(Т1[Фамилия И.О.],SMALL(IF(LEFTB(Т1[Фамилия И.О.])=RIGHTB(CELL(\"имяфайла\",E113)),Т1[№ п./п.]),ROW(B112))),\"\")","v":""},{"$f":"IFERROR(INDEX(Т1[Дата рождения],SMALL(IF(LEFTB(Т1[Фамилия И.О.])=RIGHTB(CELL(\"имяфайла\",F113)),Т1[№ п./п.]),ROW(C112))),\"\")","v":""}]
[{"$f":"IFERROR(INDEX(Т1[№ п./п.],SMALL(IF(LEFTB(Т1[Фамилия И.О.])=RIGHTB(CELL(\"имяфайла\",D114)),Т1[№ п./п.]),ROW(A113))),\"\")","v":""},{"$f":"IFERROR(INDEX(Т1[Фамилия И.О.],SMALL(IF(LEFTB(Т1[Фамилия И.О.])=RIGHTB(CELL(\"имяфайла\",E114)),Т1[№ п./п.]),ROW(B113))),\"\")","v":""},{"$f":"IFERROR(INDEX(Т1[Дата рождения],SMALL(IF(LEFTB(Т1[Фамилия И.О.])=RIGHTB(CELL(\"имяфайла\",F114)),Т1[№ п./п.]),ROW(C113))),\"\")","v":""}]
[{"$f":"IFERROR(INDEX(Т1[№ п./п.],SMALL(IF(LEFTB(Т1[Фамилия И.О.])=RIGHTB(CELL(\"имяфайла\",D115)),Т1[№ п./п.]),ROW(A114))),\"\")","v":""},{"$f":"IFERROR(INDEX(Т1[Фамилия И.О.],SMALL(IF(LEFTB(Т1[Фамилия И.О.])=RIGHTB(CELL(\"имяфайла\",E115)),Т1[№ п./п.]),ROW(B114))),\"\")","v":""},{"$f":"IFERROR(INDEX(Т1[Дата рождения],SMALL(IF(LEFTB(Т1[Фамилия И.О.])=RIGHTB(CELL(\"имяфайла\",F115)),Т1[№ п./п.]),ROW(C114))),\"\")","v":""}]
[{"$f":"IFERROR(INDEX(Т1[№ п./п.],SMALL(IF(LEFTB(Т1[Фамилия И.О.])=RIGHTB(CELL(\"имяфайла\",D116)),Т1[№ п./п.]),ROW(A115))),\"\")","v":""},{"$f":"IFERROR(INDEX(Т1[Фамилия И.О.],SMALL(IF(LEFTB(Т1[Фамилия И.О.])=RIGHTB(CELL(\"имяфайла\",E116)),Т1[№ п./п.]),ROW(B115))),\"\")","v":""},{"$f":"IFERROR(INDEX(Т1[Дата рождения],SMALL(IF(LEFTB(Т1[Фамилия И.О.])=RIGHTB(CELL(\"имяфайла\",F116)),Т1[№ п./п.]),ROW(C115))),\"\")","v":""}]
[{"$f":"IFERROR(INDEX(Т1[№ п./п.],SMALL(IF(LEFTB(Т1[Фамилия И.О.])=RIGHTB(CELL(\"имяфайла\",D117)),Т1[№ п./п.]),ROW(A116))),\"\")","v":""},{"$f":"IFERROR(INDEX(Т1[Фамилия И.О.],SMALL(IF(LEFTB(Т1[Фамилия И.О.])=RIGHTB(CELL(\"имяфайла\",E117)),Т1[№ п./п.]),ROW(B116))),\"\")","v":""},{"$f":"IFERROR(INDEX(Т1[Дата рождения],SMALL(IF(LEFTB(Т1[Фамилия И.О.])=RIGHTB(CELL(\"имяфайла\",F117)),Т1[№ п./п.]),ROW(C116))),\"\")","v":""}]
[{"$f":"IFERROR(INDEX(Т1[№ п./п.],SMALL(IF(LEFTB(Т1[Фамилия И.О.])=RIGHTB(CELL(\"имяфайла\",D118)),Т1[№ п./п.]),ROW(A117))),\"\")","v":""},{"$f":"IFERROR(INDEX(Т1[Фамилия И.О.],SMALL(IF(LEFTB(Т1[Фамилия И.О.])=RIGHTB(CELL(\"имяфайла\",E118)),Т1[№ п./п.]),ROW(B117))),\"\")","v":""},{"$f":"IFERROR(INDEX(Т1[Дата рождения],SMALL(IF(LEFTB(Т1[Фамилия И.О.])=RIGHTB(CELL(\"имяфайла\",F118)),Т1[№ п./п.]),ROW(C117))),\"\")","v":""}]
[{"$f":"IFERROR(INDEX(Т1[№ п./п.],SMALL(IF(LEFTB(Т1[Фамилия И.О.])=RIGHTB(CELL(\"имяфайла\",D119)),Т1[№ п./п.]),ROW(A118))),\"\")","v":""},{"$f":"IFERROR(INDEX(Т1[Фамилия И.О.],SMALL(IF(LEFTB(Т1[Фамилия И.О.])=RIGHTB(CELL(\"имяфайла\",E119)),Т1[№ п./п.]),ROW(B118))),\"\")","v":""},{"$f":"IFERROR(INDEX(Т1[Дата рождения],SMALL(IF(LEFTB(Т1[Фамилия И.О.])=RIGHTB(CELL(\"имяфайла\",F119)),Т1[№ п./п.]),ROW(C118))),\"\")","v":""}]
[{"$f":"IFERROR(INDEX(Т1[№ п./п.],SMALL(IF(LEFTB(Т1[Фамилия И.О.])=RIGHTB(CELL(\"имяфайла\",D120)),Т1[№ п./п.]),ROW(A119))),\"\")","v":""},{"$f":"IFERROR(INDEX(Т1[Фамилия И.О.],SMALL(IF(LEFTB(Т1[Фамилия И.О.])=RIGHTB(CELL(\"имяфайла\",E120)),Т1[№ п./п.]),ROW(B119))),\"\")","v":""},{"$f":"IFERROR(INDEX(Т1[Дата рождения],SMALL(IF(LEFTB(Т1[Фамилия И.О.])=RIGHTB(CELL(\"имяфайла\",F120)),Т1[№ п./п.]),ROW(C119))),\"\")","v":""}]
[{"$f":"IFERROR(INDEX(Т1[№ п./п.],SMALL(IF(LEFTB(Т1[Фамилия И.О.])=RIGHTB(CELL(\"имяфайла\",D121)),Т1[№ п./п.]),ROW(A120))),\"\")","v":""},{"$f":"IFERROR(INDEX(Т1[Фамилия И.О.],SMALL(IF(LEFTB(Т1[Фамилия И.О.])=RIGHTB(CELL(\"имяфайла\",E121)),Т1[№ п./п.]),ROW(B120))),\"\")","v":""},{"$f":"IFERROR(INDEX(Т1[Дата рождения],SMALL(IF(LEFTB(Т1[Фамилия И.О.])=RIGHTB(CELL(\"имяфайла\",F121)),Т1[№ п./п.]),ROW(C120))),\"\")","v":""}]
[{"$f":"IFERROR(INDEX(Т1[№ п./п.],SMALL(IF(LEFTB(Т1[Фамилия И.О.])=RIGHTB(CELL(\"имяфайла\",D122)),Т1[№ п./п.]),ROW(A121))),\"\")","v":""},{"$f":"IFERROR(INDEX(Т1[Фамилия И.О.],SMALL(IF(LEFTB(Т1[Фамилия И.О.])=RIGHTB(CELL(\"имяфайла\",E122)),Т1[№ п./п.]),ROW(B121))),\"\")","v":""},{"$f":"IFERROR(INDEX(Т1[Дата рождения],SMALL(IF(LEFTB(Т1[Фамилия И.О.])=RIGHTB(CELL(\"имяфайла\",F122)),Т1[№ п./п.]),ROW(C121))),\"\")","v":""}]
[{"$f":"IFERROR(INDEX(Т1[№ п./п.],SMALL(IF(LEFTB(Т1[Фамилия И.О.])=RIGHTB(CELL(\"имяфайла\",D123)),Т1[№ п./п.]),ROW(A122))),\"\")","v":""},{"$f":"IFERROR(INDEX(Т1[Фамилия И.О.],SMALL(IF(LEFTB(Т1[Фамилия И.О.])=RIGHTB(CELL(\"имяфайла\",E123)),Т1[№ п./п.]),ROW(B122))),\"\")","v":""},{"$f":"IFERROR(INDEX(Т1[Дата рождения],SMALL(IF(LEFTB(Т1[Фамилия И.О.])=RIGHTB(CELL(\"имяфайла\",F123)),Т1[№ п./п.]),ROW(C122))),\"\")","v":""}]
[{"$f":"IFERROR(INDEX(Т1[№ п./п.],SMALL(IF(LEFTB(Т1[Фамилия И.О.])=RIGHTB(CELL(\"имяфайла\",D124)),Т1[№ п./п.]),ROW(A123))),\"\")","v":""},{"$f":"IFERROR(INDEX(Т1[Фамилия И.О.],SMALL(IF(LEFTB(Т1[Фамилия И.О.])=RIGHTB(CELL(\"имяфайла\",E124)),Т1[№ п./п.]),ROW(B123))),\"\")","v":""},{"$f":"IFERROR(INDEX(Т1[Дата рождения],SMALL(IF(LEFTB(Т1[Фамилия И.О.])=RIGHTB(CELL(\"имяфайла\",F124)),Т1[№ п./п.]),ROW(C123))),\"\")","v":""}]
[{"$f":"IFERROR(INDEX(Т1[№ п./п.],SMALL(IF(LEFTB(Т1[Фамилия И.О.])=RIGHTB(CELL(\"имяфайла\",D125)),Т1[№ п./п.]),ROW(A124))),\"\")","v":""},{"$f":"IFERROR(INDEX(Т1[Фамилия И.О.],SMALL(IF(LEFTB(Т1[Фамилия И.О.])=RIGHTB(CELL(\"имяфайла\",E125)),Т1[№ п./п.]),ROW(B124))),\"\")","v":""},{"$f":"IFERROR(INDEX(Т1[Дата рождения],SMALL(IF(LEFTB(Т1[Фамилия И.О.])=RIGHTB(CELL(\"имяфайла\",F125)),Т1[№ п./п.]),ROW(C124))),\"\")","v":""}]
[{"$f":"IFERROR(INDEX(Т1[№ п./п.],SMALL(IF(LEFTB(Т1[Фамилия И.О.])=RIGHTB(CELL(\"имяфайла\",D126)),Т1[№ п./п.]),ROW(A125))),\"\")","v":""},{"$f":"IFERROR(INDEX(Т1[Фамилия И.О.],SMALL(IF(LEFTB(Т1[Фамилия И.О.])=RIGHTB(CELL(\"имяфайла\",E126)),Т1[№ п./п.]),ROW(B125))),\"\")","v":""},{"$f":"IFERROR(INDEX(Т1[Дата рождения],SMALL(IF(LEFTB(Т1[Фамилия И.О.])=RIGHTB(CELL(\"имяфайла\",F126)),Т1[№ п./п.]),ROW(C125))),\"\")","v":""}]
[{"$f":"IFERROR(INDEX(Т1[№ п./п.],SMALL(IF(LEFTB(Т1[Фамилия И.О.])=RIGHTB(CELL(\"имяфайла\",D127)),Т1[№ п./п.]),ROW(A126))),\"\")","v":""},{"$f":"IFERROR(INDEX(Т1[Фамилия И.О.],SMALL(IF(LEFTB(Т1[Фамилия И.О.])=RIGHTB(CELL(\"имяфайла\",E127)),Т1[№ п./п.]),ROW(B126))),\"\")","v":""},{"$f":"IFERROR(INDEX(Т1[Дата рождения],SMALL(IF(LEFTB(Т1[Фамилия И.О.])=RIGHTB(CELL(\"имяфайла\",F127)),Т1[№ п./п.]),ROW(C126))),\"\")","v":""}]
[{"$f":"IFERROR(INDEX(Т1[№ п./п.],SMALL(IF(LEFTB(Т1[Фамилия И.О.])=RIGHTB(CELL(\"имяфайла\",D128)),Т1[№ п./п.]),ROW(A127))),\"\")","v":""},{"$f":"IFERROR(INDEX(Т1[Фамилия И.О.],SMALL(IF(LEFTB(Т1[Фамилия И.О.])=RIGHTB(CELL(\"имяфайла\",E128)),Т1[№ п./п.]),ROW(B127))),\"\")","v":""},{"$f":"IFERROR(INDEX(Т1[Дата рождения],SMALL(IF(LEFTB(Т1[Фамилия И.О.])=RIGHTB(CELL(\"имяфайла\",F128)),Т1[№ п./п.]),ROW(C127))),\"\")","v":""}]
[{"$f":"IFERROR(INDEX(Т1[№ п./п.],SMALL(IF(LEFTB(Т1[Фамилия И.О.])=RIGHTB(CELL(\"имяфайла\",D129)),Т1[№ п./п.]),ROW(A128))),\"\")","v":""},{"$f":"IFERROR(INDEX(Т1[Фамилия И.О.],SMALL(IF(LEFTB(Т1[Фамилия И.О.])=RIGHTB(CELL(\"имяфайла\",E129)),Т1[№ п./п.]),ROW(B128))),\"\")","v":""},{"$f":"IFERROR(INDEX(Т1[Дата рождения],SMALL(IF(LEFTB(Т1[Фамилия И.О.])=RIGHTB(CELL(\"имяфайла\",F129)),Т1[№ п./п.]),ROW(C128))),\"\")","v":""}]
[{"$f":"IFERROR(INDEX(Т1[№ п./п.],SMALL(IF(LEFTB(Т1[Фамилия И.О.])=RIGHTB(CELL(\"имяфайла\",D130)),Т1[№ п./п.]),ROW(A129))),\"\")","v":""},{"$f":"IFERROR(INDEX(Т1[Фамилия И.О.],SMALL(IF(LEFTB(Т1[Фамилия И.О.])=RIGHTB(CELL(\"имяфайла\",E130)),Т1[№ п./п.]),ROW(B129))),\"\")","v":""},{"$f":"IFERROR(INDEX(Т1[Дата рождения],SMALL(IF(LEFTB(Т1[Фамилия И.О.])=RIGHTB(CELL(\"имяфайла\",F130)),Т1[№ п./п.]),ROW(C129))),\"\")","v":""}]
[{"$f":"IFERROR(INDEX(Т1[№ п./п.],SMALL(IF(LEFTB(Т1[Фамилия И.О.])=RIGHTB(CELL(\"имяфайла\",D131)),Т1[№ п./п.]),ROW(A130))),\"\")","v":""},{"$f":"IFERROR(INDEX(Т1[Фамилия И.О.],SMALL(IF(LEFTB(Т1[Фамилия И.О.])=RIGHTB(CELL(\"имяфайла\",E131)),Т1[№ п./п.]),ROW(B130))),\"\")","v":""},{"$f":"IFERROR(INDEX(Т1[Дата рождения],SMALL(IF(LEFTB(Т1[Фамилия И.О.])=RIGHTB(CELL(\"имяфайла\",F131)),Т1[№ п./п.]),ROW(C130))),\"\")","v":""}]
[{"$f":"IFERROR(INDEX(Т1[№ п./п.],SMALL(IF(LEFTB(Т1[Фамилия И.О.])=RIGHTB(CELL(\"имяфайла\",D132)),Т1[№ п./п.]),ROW(A131))),\"\")","v":""},{"$f":"IFERROR(INDEX(Т1[Фамилия И.О.],SMALL(IF(LEFTB(Т1[Фамилия И.О.])=RIGHTB(CELL(\"имяфайла\",E132)),Т1[№ п./п.]),ROW(B131))),\"\")","v":""},{"$f":"IFERROR(INDEX(Т1[Дата рождения],SMALL(IF(LEFTB(Т1[Фамилия И.О.])=RIGHTB(CELL(\"имяфайла\",F132)),Т1[№ п./п.]),ROW(C131))),\"\")","v":""}]
[{"$f":"IFERROR(INDEX(Т1[№ п./п.],SMALL(IF(LEFTB(Т1[Фамилия И.О.])=RIGHTB(CELL(\"имяфайла\",D133)),Т1[№ п./п.]),ROW(A132))),\"\")","v":""},{"$f":"IFERROR(INDEX(Т1[Фамилия И.О.],SMALL(IF(LEFTB(Т1[Фамилия И.О.])=RIGHTB(CELL(\"имяфайла\",E133)),Т1[№ п./п.]),ROW(B132))),\"\")","v":""},{"$f":"IFERROR(INDEX(Т1[Дата рождения],SMALL(IF(LEFTB(Т1[Фамилия И.О.])=RIGHTB(CELL(\"имяфайла\",F133)),Т1[№ п./п.]),ROW(C132))),\"\")","v":""}]
[{"$f":"IFERROR(INDEX(Т1[№ п./п.],SMALL(IF(LEFTB(Т1[Фамилия И.О.])=RIGHTB(CELL(\"имяфайла\",D134)),Т1[№ п./п.]),ROW(A133))),\"\")","v":""},{"$f":"IFERROR(INDEX(Т1[Фамилия И.О.],SMALL(IF(LEFTB(Т1[Фамилия И.О.])=RIGHTB(CELL(\"имяфайла\",E134)),Т1[№ п./п.]),ROW(B133))),\"\")","v":""},{"$f":"IFERROR(INDEX(Т1[Дата рождения],SMALL(IF(LEFTB(Т1[Фамилия И.О.])=RIGHTB(CELL(\"имяфайла\",F134)),Т1[№ п./п.]),ROW(C133))),\"\")","v":""}]
[{"$f":"IFERROR(INDEX(Т1[№ п./п.],SMALL(IF(LEFTB(Т1[Фамилия И.О.])=RIGHTB(CELL(\"имяфайла\",D135)),Т1[№ п./п.]),ROW(A134))),\"\")","v":""},{"$f":"IFERROR(INDEX(Т1[Фамилия И.О.],SMALL(IF(LEFTB(Т1[Фамилия И.О.])=RIGHTB(CELL(\"имяфайла\",E135)),Т1[№ п./п.]),ROW(B134))),\"\")","v":""},{"$f":"IFERROR(INDEX(Т1[Дата рождения],SMALL(IF(LEFTB(Т1[Фамилия И.О.])=RIGHTB(CELL(\"имяфайла\",F135)),Т1[№ п./п.]),ROW(C134))),\"\")","v":""}]
[{"$f":"IFERROR(INDEX(Т1[№ п./п.],SMALL(IF(LEFTB(Т1[Фамилия И.О.])=RIGHTB(CELL(\"имяфайла\",D136)),Т1[№ п./п.]),ROW(A135))),\"\")","v":""},{"$f":"IFERROR(INDEX(Т1[Фамилия И.О.],SMALL(IF(LEFTB(Т1[Фамилия И.О.])=RIGHTB(CELL(\"имяфайла\",E136)),Т1[№ п./п.]),ROW(B135))),\"\")","v":""},{"$f":"IFERROR(INDEX(Т1[Дата рождения],SMALL(IF(LEFTB(Т1[Фамилия И.О.])=RIGHTB(CELL(\"имяфайла\",F136)),Т1[№ п./п.]),ROW(C135))),\"\")","v":""}]
[{"$f":"IFERROR(INDEX(Т1[№ п./п.],SMALL(IF(LEFTB(Т1[Фамилия И.О.])=RIGHTB(CELL(\"имяфайла\",D137)),Т1[№ п./п.]),ROW(A136))),\"\")","v":""},{"$f":"IFERROR(INDEX(Т1[Фамилия И.О.],SMALL(IF(LEFTB(Т1[Фамилия И.О.])=RIGHTB(CELL(\"имяфайла\",E137)),Т1[№ п./п.]),ROW(B136))),\"\")","v":""},{"$f":"IFERROR(INDEX(Т1[Дата рождения],SMALL(IF(LEFTB(Т1[Фамилия И.О.])=RIGHTB(CELL(\"имяфайла\",F137)),Т1[№ п./п.]),ROW(C136))),\"\")","v":""}]
[{"$f":"IFERROR(INDEX(Т1[№ п./п.],SMALL(IF(LEFTB(Т1[Фамилия И.О.])=RIGHTB(CELL(\"имяфайла\",D138)),Т1[№ п./п.]),ROW(A137))),\"\")","v":""},{"$f":"IFERROR(INDEX(Т1[Фамилия И.О.],SMALL(IF(LEFTB(Т1[Фамилия И.О.])=RIGHTB(CELL(\"имяфайла\",E138)),Т1[№ п./п.]),ROW(B137))),\"\")","v":""},{"$f":"IFERROR(INDEX(Т1[Дата рождения],SMALL(IF(LEFTB(Т1[Фамилия И.О.])=RIGHTB(CELL(\"имяфайла\",F138)),Т1[№ п./п.]),ROW(C137))),\"\")","v":""}]
[{"$f":"IFERROR(INDEX(Т1[№ п./п.],SMALL(IF(LEFTB(Т1[Фамилия И.О.])=RIGHTB(CELL(\"имяфайла\",D139)),Т1[№ п./п.]),ROW(A138))),\"\")","v":""},{"$f":"IFERROR(INDEX(Т1[Фамилия И.О.],SMALL(IF(LEFTB(Т1[Фамилия И.О.])=RIGHTB(CELL(\"имяфайла\",E139)),Т1[№ п./п.]),ROW(B138))),\"\")","v":""},{"$f":"IFERROR(INDEX(Т1[Дата рождения],SMALL(IF(LEFTB(Т1[Фамилия И.О.])=RIGHTB(CELL(\"имяфайла\",F139)),Т1[№ п./п.]),ROW(C138))),\"\")","v":""}]
[{"$f":"IFERROR(INDEX(Т1[№ п./п.],SMALL(IF(LEFTB(Т1[Фамилия И.О.])=RIGHTB(CELL(\"имяфайла\",D140)),Т1[№ п./п.]),ROW(A139))),\"\")","v":""},{"$f":"IFERROR(INDEX(Т1[Фамилия И.О.],SMALL(IF(LEFTB(Т1[Фамилия И.О.])=RIGHTB(CELL(\"имяфайла\",E140)),Т1[№ п./п.]),ROW(B139))),\"\")","v":""},{"$f":"IFERROR(INDEX(Т1[Дата рождения],SMALL(IF(LEFTB(Т1[Фамилия И.О.])=RIGHTB(CELL(\"имяфайла\",F140)),Т1[№ п./п.]),ROW(C139))),\"\")","v":""}]
[{"$f":"IFERROR(INDEX(Т1[№ п./п.],SMALL(IF(LEFTB(Т1[Фамилия И.О.])=RIGHTB(CELL(\"имяфайла\",D141)),Т1[№ п./п.]),ROW(A140))),\"\")","v":""},{"$f":"IFERROR(INDEX(Т1[Фамилия И.О.],SMALL(IF(LEFTB(Т1[Фамилия И.О.])=RIGHTB(CELL(\"имяфайла\",E141)),Т1[№ п./п.]),ROW(B140))),\"\")","v":""},{"$f":"IFERROR(INDEX(Т1[Дата рождения],SMALL(IF(LEFTB(Т1[Фамилия И.О.])=RIGHTB(CELL(\"имяфайла\",F141)),Т1[№ п./п.]),ROW(C140))),\"\")","v":""}]
[{"$f":"IFERROR(INDEX(Т1[№ п./п.],SMALL(IF(LEFTB(Т1[Фамилия И.О.])=RIGHTB(CELL(\"имяфайла\",D142)),Т1[№ п./п.]),ROW(A141))),\"\")","v":""},{"$f":"IFERROR(INDEX(Т1[Фамилия И.О.],SMALL(IF(LEFTB(Т1[Фамилия И.О.])=RIGHTB(CELL(\"имяфайла\",E142)),Т1[№ п./п.]),ROW(B141))),\"\")","v":""},{"$f":"IFERROR(INDEX(Т1[Дата рождения],SMALL(IF(LEFTB(Т1[Фамилия И.О.])=RIGHTB(CELL(\"имяфайла\",F142)),Т1[№ п./п.]),ROW(C141))),\"\")","v":""}]
[{"$f":"IFERROR(INDEX(Т1[№ п./п.],SMALL(IF(LEFTB(Т1[Фамилия И.О.])=RIGHTB(CELL(\"имяфайла\",D143)),Т1[№ п./п.]),ROW(A142))),\"\")","v":""},{"$f":"IFERROR(INDEX(Т1[Фамилия И.О.],SMALL(IF(LEFTB(Т1[Фамилия И.О.])=RIGHTB(CELL(\"имяфайла\",E143)),Т1[№ п./п.]),ROW(B142))),\"\")","v":""},{"$f":"IFERROR(INDEX(Т1[Дата рождения],SMALL(IF(LEFTB(Т1[Фамилия И.О.])=RIGHTB(CELL(\"имяфайла\",F143)),Т1[№ п./п.]),ROW(C142))),\"\")","v":""}]
[{"$f":"IFERROR(INDEX(Т1[№ п./п.],SMALL(IF(LEFTB(Т1[Фамилия И.О.])=RIGHTB(CELL(\"имяфайла\",D144)),Т1[№ п./п.]),ROW(A143))),\"\")","v":""},{"$f":"IFERROR(INDEX(Т1[Фамилия И.О.],SMALL(IF(LEFTB(Т1[Фамилия И.О.])=RIGHTB(CELL(\"имяфайла\",E144)),Т1[№ п./п.]),ROW(B143))),\"\")","v":""},{"$f":"IFERROR(INDEX(Т1[Дата рождения],SMALL(IF(LEFTB(Т1[Фамилия И.О.])=RIGHTB(CELL(\"имяфайла\",F144)),Т1[№ п./п.]),ROW(C143))),\"\")","v":""}]
[{"$f":"IFERROR(INDEX(Т1[№ п./п.],SMALL(IF(LEFTB(Т1[Фамилия И.О.])=RIGHTB(CELL(\"имяфайла\",D145)),Т1[№ п./п.]),ROW(A144))),\"\")","v":""},{"$f":"IFERROR(INDEX(Т1[Фамилия И.О.],SMALL(IF(LEFTB(Т1[Фамилия И.О.])=RIGHTB(CELL(\"имяфайла\",E145)),Т1[№ п./п.]),ROW(B144))),\"\")","v":""},{"$f":"IFERROR(INDEX(Т1[Дата рождения],SMALL(IF(LEFTB(Т1[Фамилия И.О.])=RIGHTB(CELL(\"имяфайла\",F145)),Т1[№ п./п.]),ROW(C144))),\"\")","v":""}]
[{"$f":"IFERROR(INDEX(Т1[№ п./п.],SMALL(IF(LEFTB(Т1[Фамилия И.О.])=RIGHTB(CELL(\"имяфайла\",D146)),Т1[№ п./п.]),ROW(A145))),\"\")","v":""},{"$f":"IFERROR(INDEX(Т1[Фамилия И.О.],SMALL(IF(LEFTB(Т1[Фамилия И.О.])=RIGHTB(CELL(\"имяфайла\",E146)),Т1[№ п./п.]),ROW(B145))),\"\")","v":""},{"$f":"IFERROR(INDEX(Т1[Дата рождения],SMALL(IF(LEFTB(Т1[Фамилия И.О.])=RIGHTB(CELL(\"имяфайла\",F146)),Т1[№ п./п.]),ROW(C145))),\"\")","v":""}]
[{"$f":"IFERROR(INDEX(Т1[№ п./п.],SMALL(IF(LEFTB(Т1[Фамилия И.О.])=RIGHTB(CELL(\"имяфайла\",D147)),Т1[№ п./п.]),ROW(A146))),\"\")","v":""},{"$f":"IFERROR(INDEX(Т1[Фамилия И.О.],SMALL(IF(LEFTB(Т1[Фамилия И.О.])=RIGHTB(CELL(\"имяфайла\",E147)),Т1[№ п./п.]),ROW(B146))),\"\")","v":""},{"$f":"IFERROR(INDEX(Т1[Дата рождения],SMALL(IF(LEFTB(Т1[Фамилия И.О.])=RIGHTB(CELL(\"имяфайла\",F147)),Т1[№ п./п.]),ROW(C146))),\"\")","v":""}]
[{"$f":"IFERROR(INDEX(Т1[№ п./п.],SMALL(IF(LEFTB(Т1[Фамилия И.О.])=RIGHTB(CELL(\"имяфайла\",D148)),Т1[№ п./п.]),ROW(A147))),\"\")","v":""},{"$f":"IFERROR(INDEX(Т1[Фамилия И.О.],SMALL(IF(LEFTB(Т1[Фамилия И.О.])=RIGHTB(CELL(\"имяфайла\",E148)),Т1[№ п./п.]),ROW(B147))),\"\")","v":""},{"$f":"IFERROR(INDEX(Т1[Дата рождения],SMALL(IF(LEFTB(Т1[Фамилия И.О.])=RIGHTB(CELL(\"имяфайла\",F148)),Т1[№ п./п.]),ROW(C147))),\"\")","v":""}]
[{"$f":"IFERROR(INDEX(Т1[№ п./п.],SMALL(IF(LEFTB(Т1[Фамилия И.О.])=RIGHTB(CELL(\"имяфайла\",D149)),Т1[№ п./п.]),ROW(A148))),\"\")","v":""},{"$f":"IFERROR(INDEX(Т1[Фамилия И.О.],SMALL(IF(LEFTB(Т1[Фамилия И.О.])=RIGHTB(CELL(\"имяфайла\",E149)),Т1[№ п./п.]),ROW(B148))),\"\")","v":""},{"$f":"IFERROR(INDEX(Т1[Дата рождения],SMALL(IF(LEFTB(Т1[Фамилия И.О.])=RIGHTB(CELL(\"имяфайла\",F149)),Т1[№ п./п.]),ROW(C148))),\"\")","v":""}]
[{"$f":"IFERROR(INDEX(Т1[№ п./п.],SMALL(IF(LEFTB(Т1[Фамилия И.О.])=RIGHTB(CELL(\"имяфайла\",D150)),Т1[№ п./п.]),ROW(A149))),\"\")","v":""},{"$f":"IFERROR(INDEX(Т1[Фамилия И.О.],SMALL(IF(LEFTB(Т1[Фамилия И.О.])=RIGHTB(CELL(\"имяфайла\",E150)),Т1[№ п./п.]),ROW(B149))),\"\")","v":""},{"$f":"IFERROR(INDEX(Т1[Дата рождения],SMALL(IF(LEFTB(Т1[Фамилия И.О.])=RIGHTB(CELL(\"имяфайла\",F150)),Т1[№ п./п.]),ROW(C149))),\"\")","v":""}]
[{"$f":"IFERROR(INDEX(Т1[№ п./п.],SMALL(IF(LEFTB(Т1[Фамилия И.О.])=RIGHTB(CELL(\"имяфайла\",D151)),Т1[№ п./п.]),ROW(A150))),\"\")","v":""},{"$f":"IFERROR(INDEX(Т1[Фамилия И.О.],SMALL(IF(LEFTB(Т1[Фамилия И.О.])=RIGHTB(CELL(\"имяфайла\",E151)),Т1[№ п./п.]),ROW(B150))),\"\")","v":""},{"$f":"IFERROR(INDEX(Т1[Дата рождения],SMALL(IF(LEFTB(Т1[Фамилия И.О.])=RIGHTB(CELL(\"имяфайла\",F151)),Т1[№ п./п.]),ROW(C150))),\"\")","v":""}]
[{"$f":"IFERROR(INDEX(Т1[№ п./п.],SMALL(IF(LEFTB(Т1[Фамилия И.О.])=RIGHTB(CELL(\"имяфайла\",D152)),Т1[№ п./п.]),ROW(A151))),\"\")","v":""},{"$f":"IFERROR(INDEX(Т1[Фамилия И.О.],SMALL(IF(LEFTB(Т1[Фамилия И.О.])=RIGHTB(CELL(\"имяфайла\",E152)),Т1[№ п./п.]),ROW(B151))),\"\")","v":""},{"$f":"IFERROR(INDEX(Т1[Дата рождения],SMALL(IF(LEFTB(Т1[Фамилия И.О.])=RIGHTB(CELL(\"имяфайла\",F152)),Т1[№ п./п.]),ROW(C151))),\"\")","v":""}]
[{"$f":"IFERROR(INDEX(Т1[№ п./п.],SMALL(IF(LEFTB(Т1[Фамилия И.О.])=RIGHTB(CELL(\"имяфайла\",D153)),Т1[№ п./п.]),ROW(A152))),\"\")","v":""},{"$f":"IFERROR(INDEX(Т1[Фамилия И.О.],SMALL(IF(LEFTB(Т1[Фамилия И.О.])=RIGHTB(CELL(\"имяфайла\",E153)),Т1[№ п./п.]),ROW(B152))),\"\")","v":""},{"$f":"IFERROR(INDEX(Т1[Дата рождения],SMALL(IF(LEFTB(Т1[Фамилия И.О.])=RIGHTB(CELL(\"имяфайла\",F153)),Т1[№ п./п.]),ROW(C152))),\"\")","v":""}]
[{"$f":"IFERROR(INDEX(Т1[№ п./п.],SMALL(IF(LEFTB(Т1[Фамилия И.О.])=RIGHTB(CELL(\"имяфайла\",D154)),Т1[№ п./п.]),ROW(A153))),\"\")","v":""},{"$f":"IFERROR(INDEX(Т1[Фамилия И.О.],SMALL(IF(LEFTB(Т1[Фамилия И.О.])=RIGHTB(CELL(\"имяфайла\",E154)),Т1[№ п./п.]),ROW(B153))),\"\")","v":""},{"$f":"IFERROR(INDEX(Т1[Дата рождения],SMALL(IF(LEFTB(Т1[Фамилия И.О.])=RIGHTB(CELL(\"имяфайла\",F154)),Т1[№ п./п.]),ROW(C153))),\"\")","v":""}]
[{"$f":"IFERROR(INDEX(Т1[№ п./п.],SMALL(IF(LEFTB(Т1[Фамилия И.О.])=RIGHTB(CELL(\"имяфайла\",D155)),Т1[№ п./п.]),ROW(A154))),\"\")","v":""},{"$f":"IFERROR(INDEX(Т1[Фамилия И.О.],SMALL(IF(LEFTB(Т1[Фамилия И.О.])=RIGHTB(CELL(\"имяфайла\",E155)),Т1[№ п./п.]),ROW(B154))),\"\")","v":""},{"$f":"IFERROR(INDEX(Т1[Дата рождения],SMALL(IF(LEFTB(Т1[Фамилия И.О.])=RIGHTB(CELL(\"имяфайла\",F155)),Т1[№ п./п.]),ROW(C154))),\"\")","v":""}]
[{"$f":"IFERROR(INDEX(Т1[№ п./п.],SMALL(IF(LEFTB(Т1[Фамилия И.О.])=RIGHTB(CELL(\"имяфайла\",D156)),Т1[№ п./п.]),ROW(A155))),\"\")","v":""},{"$f":"IFERROR(INDEX(Т1[Фамилия И.О.],SMALL(IF(LEFTB(Т1[Фамилия И.О.])=RIGHTB(CELL(\"имяфайла\",E156)),Т1[№ п./п.]),ROW(B155))),\"\")","v":""},{"$f":"IFERROR(INDEX(Т1[Дата рождения],SMALL(IF(LEFTB(Т1[Фамилия И.О.])=RIGHTB(CELL(\"имяфайла\",F156)),Т1[№ п./п.]),ROW(C155))),\"\")","v":""}]
[{"$f":"IFERROR(INDEX(Т1[№ п./п.],SMALL(IF(LEFTB(Т1[Фамилия И.О.])=RIGHTB(CELL(\"имяфайла\",D157)),Т1[№ п./п.]),ROW(A156))),\"\")","v":""},{"$f":"IFERROR(INDEX(Т1[Фамилия И.О.],SMALL(IF(LEFTB(Т1[Фамилия И.О.])=RIGHTB(CELL(\"имяфайла\",E157)),Т1[№ п./п.]),ROW(B156))),\"\")","v":""},{"$f":"IFERROR(INDEX(Т1[Дата рождения],SMALL(IF(LEFTB(Т1[Фамилия И.О.])=RIGHTB(CELL(\"имяфайла\",F157)),Т1[№ п./п.]),ROW(C156))),\"\")","v":""}]
[{"$f":"IFERROR(INDEX(Т1[№ п./п.],SMALL(IF(LEFTB(Т1[Фамилия И.О.])=RIGHTB(CELL(\"имяфайла\",D158)),Т1[№ п./п.]),ROW(A157))),\"\")","v":""},{"$f":"IFERROR(INDEX(Т1[Фамилия И.О.],SMALL(IF(LEFTB(Т1[Фамилия И.О.])=RIGHTB(CELL(\"имяфайла\",E158)),Т1[№ п./п.]),ROW(B157))),\"\")","v":""},{"$f":"IFERROR(INDEX(Т1[Дата рождения],SMALL(IF(LEFTB(Т1[Фамилия И.О.])=RIGHTB(CELL(\"имяфайла\",F158)),Т1[№ п./п.]),ROW(C157))),\"\")","v":""}]
[{"$f":"IFERROR(INDEX(Т1[№ п./п.],SMALL(IF(LEFTB(Т1[Фамилия И.О.])=RIGHTB(CELL(\"имяфайла\",D159)),Т1[№ п./п.]),ROW(A158))),\"\")","v":""},{"$f":"IFERROR(INDEX(Т1[Фамилия И.О.],SMALL(IF(LEFTB(Т1[Фамилия И.О.])=RIGHTB(CELL(\"имяфайла\",E159)),Т1[№ п./п.]),ROW(B158))),\"\")","v":""},{"$f":"IFERROR(INDEX(Т1[Дата рождения],SMALL(IF(LEFTB(Т1[Фамилия И.О.])=RIGHTB(CELL(\"имяфайла\",F159)),Т1[№ п./п.]),ROW(C158))),\"\")","v":""}]
[{"$f":"IFERROR(INDEX(Т1[№ п./п.],SMALL(IF(LEFTB(Т1[Фамилия И.О.])=RIGHTB(CELL(\"имяфайла\",D160)),Т1[№ п./п.]),ROW(A159))),\"\")","v":""},{"$f":"IFERROR(INDEX(Т1[Фамилия И.О.],SMALL(IF(LEFTB(Т1[Фамилия И.О.])=RIGHTB(CELL(\"имяфайла\",E160)),Т1[№ п./п.]),ROW(B159))),\"\")","v":""},{"$f":"IFERROR(INDEX(Т1[Дата рождения],SMALL(IF(LEFTB(Т1[Фамилия И.О.])=RIGHTB(CELL(\"имяфайла\",F160)),Т1[№ п./п.]),ROW(C159))),\"\")","v":""}]
[{"$f":"IFERROR(INDEX(Т1[№ п./п.],SMALL(IF(LEFTB(Т1[Фамилия И.О.])=RIGHTB(CELL(\"имяфайла\",D161)),Т1[№ п./п.]),ROW(A160))),\"\")","v":""},{"$f":"IFERROR(INDEX(Т1[Фамилия И.О.],SMALL(IF(LEFTB(Т1[Фамилия И.О.])=RIGHTB(CELL(\"имяфайла\",E161)),Т1[№ п./п.]),ROW(B160))),\"\")","v":""},{"$f":"IFERROR(INDEX(Т1[Дата рождения],SMALL(IF(LEFTB(Т1[Фамилия И.О.])=RIGHTB(CELL(\"имяфайла\",F161)),Т1[№ п./п.]),ROW(C160))),\"\")","v":""}]
[{"$f":"IFERROR(INDEX(Т1[№ п./п.],SMALL(IF(LEFTB(Т1[Фамилия И.О.])=RIGHTB(CELL(\"имяфайла\",D162)),Т1[№ п./п.]),ROW(A161))),\"\")","v":""},{"$f":"IFERROR(INDEX(Т1[Фамилия И.О.],SMALL(IF(LEFTB(Т1[Фамилия И.О.])=RIGHTB(CELL(\"имяфайла\",E162)),Т1[№ п./п.]),ROW(B161))),\"\")","v":""},{"$f":"IFERROR(INDEX(Т1[Дата рождения],SMALL(IF(LEFTB(Т1[Фамилия И.О.])=RIGHTB(CELL(\"имяфайла\",F162)),Т1[№ п./п.]),ROW(C161))),\"\")","v":""}]
[{"$f":"IFERROR(INDEX(Т1[№ п./п.],SMALL(IF(LEFTB(Т1[Фамилия И.О.])=RIGHTB(CELL(\"имяфайла\",D163)),Т1[№ п./п.]),ROW(A162))),\"\")","v":""},{"$f":"IFERROR(INDEX(Т1[Фамилия И.О.],SMALL(IF(LEFTB(Т1[Фамилия И.О.])=RIGHTB(CELL(\"имяфайла\",E163)),Т1[№ п./п.]),ROW(B162))),\"\")","v":""},{"$f":"IFERROR(INDEX(Т1[Дата рождения],SMALL(IF(LEFTB(Т1[Фамилия И.О.])=RIGHTB(CELL(\"имяфайла\",F163)),Т1[№ п./п.]),ROW(C162))),\"\")","v":""}]
[{"$f":"IFERROR(INDEX(Т1[№ п./п.],SMALL(IF(LEFTB(Т1[Фамилия И.О.])=RIGHTB(CELL(\"имяфайла\",D164)),Т1[№ п./п.]),ROW(A163))),\"\")","v":""},{"$f":"IFERROR(INDEX(Т1[Фамилия И.О.],SMALL(IF(LEFTB(Т1[Фамилия И.О.])=RIGHTB(CELL(\"имяфайла\",E164)),Т1[№ п./п.]),ROW(B163))),\"\")","v":""},{"$f":"IFERROR(INDEX(Т1[Дата рождения],SMALL(IF(LEFTB(Т1[Фамилия И.О.])=RIGHTB(CELL(\"имяфайла\",F164)),Т1[№ п./п.]),ROW(C163))),\"\")","v":""}]
[{"$f":"IFERROR(INDEX(Т1[№ п./п.],SMALL(IF(LEFTB(Т1[Фамилия И.О.])=RIGHTB(CELL(\"имяфайла\",D165)),Т1[№ п./п.]),ROW(A164))),\"\")","v":""},{"$f":"IFERROR(INDEX(Т1[Фамилия И.О.],SMALL(IF(LEFTB(Т1[Фамилия И.О.])=RIGHTB(CELL(\"имяфайла\",E165)),Т1[№ п./п.]),ROW(B164))),\"\")","v":""},{"$f":"IFERROR(INDEX(Т1[Дата рождения],SMALL(IF(LEFTB(Т1[Фамилия И.О.])=RIGHTB(CELL(\"имяфайла\",F165)),Т1[№ п./п.]),ROW(C164))),\"\")","v":""}]
[{"$f":"IFERROR(INDEX(Т1[№ п./п.],SMALL(IF(LEFTB(Т1[Фамилия И.О.])=RIGHTB(CELL(\"имяфайла\",D166)),Т1[№ п./п.]),ROW(A165))),\"\")","v":""},{"$f":"IFERROR(INDEX(Т1[Фамилия И.О.],SMALL(IF(LEFTB(Т1[Фамилия И.О.])=RIGHTB(CELL(\"имяфайла\",E166)),Т1[№ п./п.]),ROW(B165))),\"\")","v":""},{"$f":"IFERROR(INDEX(Т1[Дата рождения],SMALL(IF(LEFTB(Т1[Фамилия И.О.])=RIGHTB(CELL(\"имяфайла\",F166)),Т1[№ п./п.]),ROW(C165))),\"\")","v":""}]
[{"$f":"IFERROR(INDEX(Т1[№ п./п.],SMALL(IF(LEFTB(Т1[Фамилия И.О.])=RIGHTB(CELL(\"имяфайла\",D167)),Т1[№ п./п.]),ROW(A166))),\"\")","v":""},{"$f":"IFERROR(INDEX(Т1[Фамилия И.О.],SMALL(IF(LEFTB(Т1[Фамилия И.О.])=RIGHTB(CELL(\"имяфайла\",E167)),Т1[№ п./п.]),ROW(B166))),\"\")","v":""},{"$f":"IFERROR(INDEX(Т1[Дата рождения],SMALL(IF(LEFTB(Т1[Фамилия И.О.])=RIGHTB(CELL(\"имяфайла\",F167)),Т1[№ п./п.]),ROW(C166))),\"\")","v":""}]
[{"$f":"IFERROR(INDEX(Т1[№ п./п.],SMALL(IF(LEFTB(Т1[Фамилия И.О.])=RIGHTB(CELL(\"имяфайла\",D168)),Т1[№ п./п.]),ROW(A167))),\"\")","v":""},{"$f":"IFERROR(INDEX(Т1[Фамилия И.О.],SMALL(IF(LEFTB(Т1[Фамилия И.О.])=RIGHTB(CELL(\"имяфайла\",E168)),Т1[№ п./п.]),ROW(B167))),\"\")","v":""},{"$f":"IFERROR(INDEX(Т1[Дата рождения],SMALL(IF(LEFTB(Т1[Фамилия И.О.])=RIGHTB(CELL(\"имяфайла\",F168)),Т1[№ п./п.]),ROW(C167))),\"\")","v":""}]
[{"$f":"IFERROR(INDEX(Т1[№ п./п.],SMALL(IF(LEFTB(Т1[Фамилия И.О.])=RIGHTB(CELL(\"имяфайла\",D169)),Т1[№ п./п.]),ROW(A168))),\"\")","v":""},{"$f":"IFERROR(INDEX(Т1[Фамилия И.О.],SMALL(IF(LEFTB(Т1[Фамилия И.О.])=RIGHTB(CELL(\"имяфайла\",E169)),Т1[№ п./п.]),ROW(B168))),\"\")","v":""},{"$f":"IFERROR(INDEX(Т1[Дата рождения],SMALL(IF(LEFTB(Т1[Фамилия И.О.])=RIGHTB(CELL(\"имяфайла\",F169)),Т1[№ п./п.]),ROW(C168))),\"\")","v":""}]
[{"$f":"IFERROR(INDEX(Т1[№ п./п.],SMALL(IF(LEFTB(Т1[Фамилия И.О.])=RIGHTB(CELL(\"имяфайла\",D170)),Т1[№ п./п.]),ROW(A169))),\"\")","v":""},{"$f":"IFERROR(INDEX(Т1[Фамилия И.О.],SMALL(IF(LEFTB(Т1[Фамилия И.О.])=RIGHTB(CELL(\"имяфайла\",E170)),Т1[№ п./п.]),ROW(B169))),\"\")","v":""},{"$f":"IFERROR(INDEX(Т1[Дата рождения],SMALL(IF(LEFTB(Т1[Фамилия И.О.])=RIGHTB(CELL(\"имяфайла\",F170)),Т1[№ п./п.]),ROW(C169))),\"\")","v":""}]
[{"$f":"IFERROR(INDEX(Т1[№ п./п.],SMALL(IF(LEFTB(Т1[Фамилия И.О.])=RIGHTB(CELL(\"имяфайла\",D171)),Т1[№ п./п.]),ROW(A170))),\"\")","v":""},{"$f":"IFERROR(INDEX(Т1[Фамилия И.О.],SMALL(IF(LEFTB(Т1[Фамилия И.О.])=RIGHTB(CELL(\"имяфайла\",E171)),Т1[№ п./п.]),ROW(B170))),\"\")","v":""},{"$f":"IFERROR(INDEX(Т1[Дата рождения],SMALL(IF(LEFTB(Т1[Фамилия И.О.])=RIGHTB(CELL(\"имяфайла\",F171)),Т1[№ п./п.]),ROW(C170))),\"\")","v":""}]
[{"$f":"IFERROR(INDEX(Т1[№ п./п.],SMALL(IF(LEFTB(Т1[Фамилия И.О.])=RIGHTB(CELL(\"имяфайла\",D172)),Т1[№ п./п.]),ROW(A171))),\"\")","v":""},{"$f":"IFERROR(INDEX(Т1[Фамилия И.О.],SMALL(IF(LEFTB(Т1[Фамилия И.О.])=RIGHTB(CELL(\"имяфайла\",E172)),Т1[№ п./п.]),ROW(B171))),\"\")","v":""},{"$f":"IFERROR(INDEX(Т1[Дата рождения],SMALL(IF(LEFTB(Т1[Фамилия И.О.])=RIGHTB(CELL(\"имяфайла\",F172)),Т1[№ п./п.]),ROW(C171))),\"\")","v":""}]
[{"$f":"IFERROR(INDEX(Т1[№ п./п.],SMALL(IF(LEFTB(Т1[Фамилия И.О.])=RIGHTB(CELL(\"имяфайла\",D173)),Т1[№ п./п.]),ROW(A172))),\"\")","v":""},{"$f":"IFERROR(INDEX(Т1[Фамилия И.О.],SMALL(IF(LEFTB(Т1[Фамилия И.О.])=RIGHTB(CELL(\"имяфайла\",E173)),Т1[№ п./п.]),ROW(B172))),\"\")","v":""},{"$f":"IFERROR(INDEX(Т1[Дата рождения],SMALL(IF(LEFTB(Т1[Фамилия И.О.])=RIGHTB(CELL(\"имяфайла\",F173)),Т1[№ п./п.]),ROW(C172))),\"\")","v":""}]
[{"$f":"IFERROR(INDEX(Т1[№ п./п.],SMALL(IF(LEFTB(Т1[Фамилия И.О.])=RIGHTB(CELL(\"имяфайла\",D174)),Т1[№ п./п.]),ROW(A173))),\"\")","v":""},{"$f":"IFERROR(INDEX(Т1[Фамилия И.О.],SMALL(IF(LEFTB(Т1[Фамилия И.О.])=RIGHTB(CELL(\"имяфайла\",E174)),Т1[№ п./п.]),ROW(B173))),\"\")","v":""},{"$f":"IFERROR(INDEX(Т1[Дата рождения],SMALL(IF(LEFTB(Т1[Фамилия И.О.])=RIGHTB(CELL(\"имяфайла\",F174)),Т1[№ п./п.]),ROW(C173))),\"\")","v":""}]
[{"$f":"IFERROR(INDEX(Т1[№ п./п.],SMALL(IF(LEFTB(Т1[Фамилия И.О.])=RIGHTB(CELL(\"имяфайла\",D175)),Т1[№ п./п.]),ROW(A174))),\"\")","v":""},{"$f":"IFERROR(INDEX(Т1[Фамилия И.О.],SMALL(IF(LEFTB(Т1[Фамилия И.О.])=RIGHTB(CELL(\"имяфайла\",E175)),Т1[№ п./п.]),ROW(B174))),\"\")","v":""},{"$f":"IFERROR(INDEX(Т1[Дата рождения],SMALL(IF(LEFTB(Т1[Фамилия И.О.])=RIGHTB(CELL(\"имяфайла\",F175)),Т1[№ п./п.]),ROW(C174))),\"\")","v":""}]
[{"$f":"IFERROR(INDEX(Т1[№ п./п.],SMALL(IF(LEFTB(Т1[Фамилия И.О.])=RIGHTB(CELL(\"имяфайла\",D176)),Т1[№ п./п.]),ROW(A175))),\"\")","v":""},{"$f":"IFERROR(INDEX(Т1[Фамилия И.О.],SMALL(IF(LEFTB(Т1[Фамилия И.О.])=RIGHTB(CELL(\"имяфайла\",E176)),Т1[№ п./п.]),ROW(B175))),\"\")","v":""},{"$f":"IFERROR(INDEX(Т1[Дата рождения],SMALL(IF(LEFTB(Т1[Фамилия И.О.])=RIGHTB(CELL(\"имяфайла\",F176)),Т1[№ п./п.]),ROW(C175))),\"\")","v":""}]
[{"$f":"IFERROR(INDEX(Т1[№ п./п.],SMALL(IF(LEFTB(Т1[Фамилия И.О.])=RIGHTB(CELL(\"имяфайла\",D177)),Т1[№ п./п.]),ROW(A176))),\"\")","v":""},{"$f":"IFERROR(INDEX(Т1[Фамилия И.О.],SMALL(IF(LEFTB(Т1[Фамилия И.О.])=RIGHTB(CELL(\"имяфайла\",E177)),Т1[№ п./п.]),ROW(B176))),\"\")","v":""},{"$f":"IFERROR(INDEX(Т1[Дата рождения],SMALL(IF(LEFTB(Т1[Фамилия И.О.])=RIGHTB(CELL(\"имяфайла\",F177)),Т1[№ п./п.]),ROW(C176))),\"\")","v":""}]
[{"$f":"IFERROR(INDEX(Т1[№ п./п.],SMALL(IF(LEFTB(Т1[Фамилия И.О.])=RIGHTB(CELL(\"имяфайла\",D178)),Т1[№ п./п.]),ROW(A177))),\"\")","v":""},{"$f":"IFERROR(INDEX(Т1[Фамилия И.О.],SMALL(IF(LEFTB(Т1[Фамилия И.О.])=RIGHTB(CELL(\"имяфайла\",E178)),Т1[№ п./п.]),ROW(B177))),\"\")","v":""},{"$f":"IFERROR(INDEX(Т1[Дата рождения],SMALL(IF(LEFTB(Т1[Фамилия И.О.])=RIGHTB(CELL(\"имяфайла\",F178)),Т1[№ п./п.]),ROW(C177))),\"\")","v":""}]
[{"$f":"IFERROR(INDEX(Т1[№ п./п.],SMALL(IF(LEFTB(Т1[Фамилия И.О.])=RIGHTB(CELL(\"имяфайла\",D179)),Т1[№ п./п.]),ROW(A178))),\"\")","v":""},{"$f":"IFERROR(INDEX(Т1[Фамилия И.О.],SMALL(IF(LEFTB(Т1[Фамилия И.О.])=RIGHTB(CELL(\"имяфайла\",E179)),Т1[№ п./п.]),ROW(B178))),\"\")","v":""},{"$f":"IFERROR(INDEX(Т1[Дата рождения],SMALL(IF(LEFTB(Т1[Фамилия И.О.])=RIGHTB(CELL(\"имяфайла\",F179)),Т1[№ п./п.]),ROW(C178))),\"\")","v":""}]
[{"$f":"IFERROR(INDEX(Т1[№ п./п.],SMALL(IF(LEFTB(Т1[Фамилия И.О.])=RIGHTB(CELL(\"имяфайла\",D180)),Т1[№ п./п.]),ROW(A179))),\"\")","v":""},{"$f":"IFERROR(INDEX(Т1[Фамилия И.О.],SMALL(IF(LEFTB(Т1[Фамилия И.О.])=RIGHTB(CELL(\"имяфайла\",E180)),Т1[№ п./п.]),ROW(B179))),\"\")","v":""},{"$f":"IFERROR(INDEX(Т1[Дата рождения],SMALL(IF(LEFTB(Т1[Фамилия И.О.])=RIGHTB(CELL(\"имяфайла\",F180)),Т1[№ п./п.]),ROW(C179))),\"\")","v":""}]
[{"$f":"IFERROR(INDEX(Т1[№ п./п.],SMALL(IF(LEFTB(Т1[Фамилия И.О.])=RIGHTB(CELL(\"имяфайла\",D181)),Т1[№ п./п.]),ROW(A180))),\"\")","v":""},{"$f":"IFERROR(INDEX(Т1[Фамилия И.О.],SMALL(IF(LEFTB(Т1[Фамилия И.О.])=RIGHTB(CELL(\"имяфайла\",E181)),Т1[№ п./п.]),ROW(B180))),\"\")","v":""},{"$f":"IFERROR(INDEX(Т1[Дата рождения],SMALL(IF(LEFTB(Т1[Фамилия И.О.])=RIGHTB(CELL(\"имяфайла\",F181)),Т1[№ п./п.]),ROW(C180))),\"\")","v":""}]
[{"$f":"IFERROR(INDEX(Т1[№ п./п.],SMALL(IF(LEFTB(Т1[Фамилия И.О.])=RIGHTB(CELL(\"имяфайла\",D182)),Т1[№ п./п.]),ROW(A181))),\"\")","v":""},{"$f":"IFERROR(INDEX(Т1[Фамилия И.О.],SMALL(IF(LEFTB(Т1[Фамилия И.О.])=RIGHTB(CELL(\"имяфайла\",E182)),Т1[№ п./п.]),ROW(B181))),\"\")","v":""},{"$f":"IFERROR(INDEX(Т1[Дата рождения],SMALL(IF(LEFTB(Т1[Фамилия И.О.])=RIGHTB(CELL(\"имяфайла\",F182)),Т1[№ п./п.]),ROW(C181))),\"\")","v":""}]
[{"$f":"IFERROR(INDEX(Т1[№ п./п.],SMALL(IF(LEFTB(Т1[Фамилия И.О.])=RIGHTB(CELL(\"имяфайла\",D183)),Т1[№ п./п.]),ROW(A182))),\"\")","v":""},{"$f":"IFERROR(INDEX(Т1[Фамилия И.О.],SMALL(IF(LEFTB(Т1[Фамилия И.О.])=RIGHTB(CELL(\"имяфайла\",E183)),Т1[№ п./п.]),ROW(B182))),\"\")","v":""},{"$f":"IFERROR(INDEX(Т1[Дата рождения],SMALL(IF(LEFTB(Т1[Фамилия И.О.])=RIGHTB(CELL(\"имяфайла\",F183)),Т1[№ п./п.]),ROW(C182))),\"\")","v":""}]
[{"$f":"IFERROR(INDEX(Т1[№ п./п.],SMALL(IF(LEFTB(Т1[Фамилия И.О.])=RIGHTB(CELL(\"имяфайла\",D184)),Т1[№ п./п.]),ROW(A183))),\"\")","v":""},{"$f":"IFERROR(INDEX(Т1[Фамилия И.О.],SMALL(IF(LEFTB(Т1[Фамилия И.О.])=RIGHTB(CELL(\"имяфайла\",E184)),Т1[№ п./п.]),ROW(B183))),\"\")","v":""},{"$f":"IFERROR(INDEX(Т1[Дата рождения],SMALL(IF(LEFTB(Т1[Фамилия И.О.])=RIGHTB(CELL(\"имяфайла\",F184)),Т1[№ п./п.]),ROW(C183))),\"\")","v":""}]
[{"$f":"IFERROR(INDEX(Т1[№ п./п.],SMALL(IF(LEFTB(Т1[Фамилия И.О.])=RIGHTB(CELL(\"имяфайла\",D185)),Т1[№ п./п.]),ROW(A184))),\"\")","v":""},{"$f":"IFERROR(INDEX(Т1[Фамилия И.О.],SMALL(IF(LEFTB(Т1[Фамилия И.О.])=RIGHTB(CELL(\"имяфайла\",E185)),Т1[№ п./п.]),ROW(B184))),\"\")","v":""},{"$f":"IFERROR(INDEX(Т1[Дата рождения],SMALL(IF(LEFTB(Т1[Фамилия И.О.])=RIGHTB(CELL(\"имяфайла\",F185)),Т1[№ п./п.]),ROW(C184))),\"\")","v":""}]
[{"$f":"IFERROR(INDEX(Т1[№ п./п.],SMALL(IF(LEFTB(Т1[Фамилия И.О.])=RIGHTB(CELL(\"имяфайла\",D186)),Т1[№ п./п.]),ROW(A185))),\"\")","v":""},{"$f":"IFERROR(INDEX(Т1[Фамилия И.О.],SMALL(IF(LEFTB(Т1[Фамилия И.О.])=RIGHTB(CELL(\"имяфайла\",E186)),Т1[№ п./п.]),ROW(B185))),\"\")","v":""},{"$f":"IFERROR(INDEX(Т1[Дата рождения],SMALL(IF(LEFTB(Т1[Фамилия И.О.])=RIGHTB(CELL(\"имяфайла\",F186)),Т1[№ п./п.]),ROW(C185))),\"\")","v":""}]
[{"$f":"IFERROR(INDEX(Т1[№ п./п.],SMALL(IF(LEFTB(Т1[Фамилия И.О.])=RIGHTB(CELL(\"имяфайла\",D187)),Т1[№ п./п.]),ROW(A186))),\"\")","v":""},{"$f":"IFERROR(INDEX(Т1[Фамилия И.О.],SMALL(IF(LEFTB(Т1[Фамилия И.О.])=RIGHTB(CELL(\"имяфайла\",E187)),Т1[№ п./п.]),ROW(B186))),\"\")","v":""},{"$f":"IFERROR(INDEX(Т1[Дата рождения],SMALL(IF(LEFTB(Т1[Фамилия И.О.])=RIGHTB(CELL(\"имяфайла\",F187)),Т1[№ п./п.]),ROW(C186))),\"\")","v":""}]
[{"$f":"IFERROR(INDEX(Т1[№ п./п.],SMALL(IF(LEFTB(Т1[Фамилия И.О.])=RIGHTB(CELL(\"имяфайла\",D188)),Т1[№ п./п.]),ROW(A187))),\"\")","v":""},{"$f":"IFERROR(INDEX(Т1[Фамилия И.О.],SMALL(IF(LEFTB(Т1[Фамилия И.О.])=RIGHTB(CELL(\"имяфайла\",E188)),Т1[№ п./п.]),ROW(B187))),\"\")","v":""},{"$f":"IFERROR(INDEX(Т1[Дата рождения],SMALL(IF(LEFTB(Т1[Фамилия И.О.])=RIGHTB(CELL(\"имяфайла\",F188)),Т1[№ п./п.]),ROW(C187))),\"\")","v":""}]
[{"$f":"IFERROR(INDEX(Т1[№ п./п.],SMALL(IF(LEFTB(Т1[Фамилия И.О.])=RIGHTB(CELL(\"имяфайла\",D189)),Т1[№ п./п.]),ROW(A188))),\"\")","v":""},{"$f":"IFERROR(INDEX(Т1[Фамилия И.О.],SMALL(IF(LEFTB(Т1[Фамилия И.О.])=RIGHTB(CELL(\"имяфайла\",E189)),Т1[№ п./п.]),ROW(B188))),\"\")","v":""},{"$f":"IFERROR(INDEX(Т1[Дата рождения],SMALL(IF(LEFTB(Т1[Фамилия И.О.])=RIGHTB(CELL(\"имяфайла\",F189)),Т1[№ п./п.]),ROW(C188))),\"\")","v":""}]
[{"$f":"IFERROR(INDEX(Т1[№ п./п.],SMALL(IF(LEFTB(Т1[Фамилия И.О.])=RIGHTB(CELL(\"имяфайла\",D190)),Т1[№ п./п.]),ROW(A189))),\"\")","v":""},{"$f":"IFERROR(INDEX(Т1[Фамилия И.О.],SMALL(IF(LEFTB(Т1[Фамилия И.О.])=RIGHTB(CELL(\"имяфайла\",E190)),Т1[№ п./п.]),ROW(B189))),\"\")","v":""},{"$f":"IFERROR(INDEX(Т1[Дата рождения],SMALL(IF(LEFTB(Т1[Фамилия И.О.])=RIGHTB(CELL(\"имяфайла\",F190)),Т1[№ п./п.]),ROW(C189))),\"\")","v":""}]
[{"$f":"IFERROR(INDEX(Т1[№ п./п.],SMALL(IF(LEFTB(Т1[Фамилия И.О.])=RIGHTB(CELL(\"имяфайла\",D191)),Т1[№ п./п.]),ROW(A190))),\"\")","v":""},{"$f":"IFERROR(INDEX(Т1[Фамилия И.О.],SMALL(IF(LEFTB(Т1[Фамилия И.О.])=RIGHTB(CELL(\"имяфайла\",E191)),Т1[№ п./п.]),ROW(B190))),\"\")","v":""},{"$f":"IFERROR(INDEX(Т1[Дата рождения],SMALL(IF(LEFTB(Т1[Фамилия И.О.])=RIGHTB(CELL(\"имяфайла\",F191)),Т1[№ п./п.]),ROW(C190))),\"\")","v":""}]
[{"$f":"IFERROR(INDEX(Т1[№ п./п.],SMALL(IF(LEFTB(Т1[Фамилия И.О.])=RIGHTB(CELL(\"имяфайла\",D192)),Т1[№ п./п.]),ROW(A191))),\"\")","v":""},{"$f":"IFERROR(INDEX(Т1[Фамилия И.О.],SMALL(IF(LEFTB(Т1[Фамилия И.О.])=RIGHTB(CELL(\"имяфайла\",E192)),Т1[№ п./п.]),ROW(B191))),\"\")","v":""},{"$f":"IFERROR(INDEX(Т1[Дата рождения],SMALL(IF(LEFTB(Т1[Фамилия И.О.])=RIGHTB(CELL(\"имяфайла\",F192)),Т1[№ п./п.]),ROW(C191))),\"\")","v":""}]
[{"$f":"IFERROR(INDEX(Т1[№ п./п.],SMALL(IF(LEFTB(Т1[Фамилия И.О.])=RIGHTB(CELL(\"имяфайла\",D193)),Т1[№ п./п.]),ROW(A192))),\"\")","v":""},{"$f":"IFERROR(INDEX(Т1[Фамилия И.О.],SMALL(IF(LEFTB(Т1[Фамилия И.О.])=RIGHTB(CELL(\"имяфайла\",E193)),Т1[№ п./п.]),ROW(B192))),\"\")","v":""},{"$f":"IFERROR(INDEX(Т1[Дата рождения],SMALL(IF(LEFTB(Т1[Фамилия И.О.])=RIGHTB(CELL(\"имяфайла\",F193)),Т1[№ п./п.]),ROW(C192))),\"\")","v":""}]
[{"$f":"IFERROR(INDEX(Т1[№ п./п.],SMALL(IF(LEFTB(Т1[Фамилия И.О.])=RIGHTB(CELL(\"имяфайла\",D194)),Т1[№ п./п.]),ROW(A193))),\"\")","v":""},{"$f":"IFERROR(INDEX(Т1[Фамилия И.О.],SMALL(IF(LEFTB(Т1[Фамилия И.О.])=RIGHTB(CELL(\"имяфайла\",E194)),Т1[№ п./п.]),ROW(B193))),\"\")","v":""},{"$f":"IFERROR(INDEX(Т1[Дата рождения],SMALL(IF(LEFTB(Т1[Фамилия И.О.])=RIGHTB(CELL(\"имяфайла\",F194)),Т1[№ п./п.]),ROW(C193))),\"\")","v":""}]
[{"$f":"IFERROR(INDEX(Т1[№ п./п.],SMALL(IF(LEFTB(Т1[Фамилия И.О.])=RIGHTB(CELL(\"имяфайла\",D195)),Т1[№ п./п.]),ROW(A194))),\"\")","v":""},{"$f":"IFERROR(INDEX(Т1[Фамилия И.О.],SMALL(IF(LEFTB(Т1[Фамилия И.О.])=RIGHTB(CELL(\"имяфайла\",E195)),Т1[№ п./п.]),ROW(B194))),\"\")","v":""},{"$f":"IFERROR(INDEX(Т1[Дата рождения],SMALL(IF(LEFTB(Т1[Фамилия И.О.])=RIGHTB(CELL(\"имяфайла\",F195)),Т1[№ п./п.]),ROW(C194))),\"\")","v":""}]
[{"$f":"IFERROR(INDEX(Т1[№ п./п.],SMALL(IF(LEFTB(Т1[Фамилия И.О.])=RIGHTB(CELL(\"имяфайла\",D196)),Т1[№ п./п.]),ROW(A195))),\"\")","v":""},{"$f":"IFERROR(INDEX(Т1[Фамилия И.О.],SMALL(IF(LEFTB(Т1[Фамилия И.О.])=RIGHTB(CELL(\"имяфайла\",E196)),Т1[№ п./п.]),ROW(B195))),\"\")","v":""},{"$f":"IFERROR(INDEX(Т1[Дата рождения],SMALL(IF(LEFTB(Т1[Фамилия И.О.])=RIGHTB(CELL(\"имяфайла\",F196)),Т1[№ п./п.]),ROW(C195))),\"\")","v":""}]
[{"$f":"IFERROR(INDEX(Т1[№ п./п.],SMALL(IF(LEFTB(Т1[Фамилия И.О.])=RIGHTB(CELL(\"имяфайла\",D197)),Т1[№ п./п.]),ROW(A196))),\"\")","v":""},{"$f":"IFERROR(INDEX(Т1[Фамилия И.О.],SMALL(IF(LEFTB(Т1[Фамилия И.О.])=RIGHTB(CELL(\"имяфайла\",E197)),Т1[№ п./п.]),ROW(B196))),\"\")","v":""},{"$f":"IFERROR(INDEX(Т1[Дата рождения],SMALL(IF(LEFTB(Т1[Фамилия И.О.])=RIGHTB(CELL(\"имяфайла\",F197)),Т1[№ п./п.]),ROW(C196))),\"\")","v":""}]
[{"$f":"IFERROR(INDEX(Т1[№ п./п.],SMALL(IF(LEFTB(Т1[Фамилия И.О.])=RIGHTB(CELL(\"имяфайла\",D198)),Т1[№ п./п.]),ROW(A197))),\"\")","v":""},{"$f":"IFERROR(INDEX(Т1[Фамилия И.О.],SMALL(IF(LEFTB(Т1[Фамилия И.О.])=RIGHTB(CELL(\"имяфайла\",E198)),Т1[№ п./п.]),ROW(B197))),\"\")","v":""},{"$f":"IFERROR(INDEX(Т1[Дата рождения],SMALL(IF(LEFTB(Т1[Фамилия И.О.])=RIGHTB(CELL(\"имяфайла\",F198)),Т1[№ п./п.]),ROW(C197))),\"\")","v":""}]
[{"$f":"IFERROR(INDEX(Т1[№ п./п.],SMALL(IF(LEFTB(Т1[Фамилия И.О.])=RIGHTB(CELL(\"имяфайла\",D199)),Т1[№ п./п.]),ROW(A198))),\"\")","v":""},{"$f":"IFERROR(INDEX(Т1[Фамилия И.О.],SMALL(IF(LEFTB(Т1[Фамилия И.О.])=RIGHTB(CELL(\"имяфайла\",E199)),Т1[№ п./п.]),ROW(B198))),\"\")","v":""},{"$f":"IFERROR(INDEX(Т1[Дата рождения],SMALL(IF(LEFTB(Т1[Фамилия И.О.])=RIGHTB(CELL(\"имяфайла\",F199)),Т1[№ п./п.]),ROW(C198))),\"\")","v":""}]
[{"$f":"IFERROR(INDEX(Т1[№ п./п.],SMALL(IF(LEFTB(Т1[Фамилия И.О.])=RIGHTB(CELL(\"имяфайла\",D200)),Т1[№ п./п.]),ROW(A199))),\"\")","v":""},{"$f":"IFERROR(INDEX(Т1[Фамилия И.О.],SMALL(IF(LEFTB(Т1[Фамилия И.О.])=RIGHTB(CELL(\"имяфайла\",E200)),Т1[№ п./п.]),ROW(B199))),\"\")","v":""},{"$f":"IFERROR(INDEX(Т1[Дата рождения],SMALL(IF(LEFTB(Т1[Фамилия И.О.])=RIGHTB(CELL(\"имяфайла\",F200)),Т1[№ п./п.]),ROW(C199))),\"\")","v":""}]
[{"$f":"IFERROR(INDEX(Т1[№ п./п.],SMALL(IF(LEFTB(Т1[Фамилия И.О.])=RIGHTB(CELL(\"имяфайла\",D201)),Т1[№ п./п.]),ROW(A200))),\"\")","v":""},{"$f":"IFERROR(INDEX(Т1[Фамилия И.О.],SMALL(IF(LEFTB(Т1[Фамилия И.О.])=RIGHTB(CELL(\"имяфайла\",E201)),Т1[№ п./п.]),ROW(B200))),\"\")","v":""},{"$f":"IFERROR(INDEX(Т1[Дата рождения],SMALL(IF(LEFTB(Т1[Фамилия И.О.])=RIGHTB(CELL(\"имяфайла\",F201)),Т1[№ п./п.]),ROW(C200))),\"\")","v":""}]

{"sheet":"В","index":4,"n_rows":201,"n_cols":3,"rows_kept":201,"cut":false,"hidden":false,"merged":[]}
["№ п./п.","Фамилия И.О.","Дата"]
[{"$f":"IFERROR(INDEX(Т1[№ п./п.],SMALL(IF(LEFTB(Т1[Фамилия И.О.])=RIGHTB(CELL(\"имяфайла\",D2)),Т1[№ п./п.]),ROW(A1))),\"\")","v":6},{"$f":"IFERROR(INDEX(Т1[Фамилия И.О.],SMALL(IF(LEFTB(Т1[Фамилия И.О.])=RIGHTB(CELL(\"имяфайла\",E2)),Т1[№ п./п.]),ROW(B1))),\"\")","v":"Врунгель Х.Б."},{"$f":"IFERROR(INDEX(Т1[Дата рождения],SMALL(IF(LEFTB(Т1[Фамилия И.О.])=RIGHTB(CELL(\"имяфайла\",F2)),Т1[№ п./п.]),ROW(C1))),\"\")","v":"2017-02-02"}]
[{"$f":"IFERROR(INDEX(Т1[№ п./п.],SMALL(IF(LEFTB(Т1[Фамилия И.О.])=RIGHTB(CELL(\"имяфайла\",D3)),Т1[№ п./п.]),ROW(A2))),\"\")","v":""},{"$f":"IFERROR(INDEX(Т1[Фамилия И.О.],SMALL(IF(LEFTB(Т1[Фамилия И.О.])=RIGHTB(CELL(\"имяфайла\",E3)),Т1[№ п./п.]),ROW(B2))),\"\")","v":""},{"$f":"IFERROR(INDEX(Т1[Дата рождения],SMALL(IF(LEFTB(Т1[Фамилия И.О.])=RIGHTB(CELL(\"имяфайла\",F3)),Т1[№ п./п.]),ROW(C2))),\"\")","v":""}]
[{"$f":"IFERROR(INDEX(Т1[№ п./п.],SMALL(IF(LEFTB(Т1[Фамилия И.О.])=RIGHTB(CELL(\"имяфайла\",D4)),Т1[№ п./п.]),ROW(A3))),\"\")","v":""},{"$f":"IFERROR(INDEX(Т1[Фамилия И.О.],SMALL(IF(LEFTB(Т1[Фамилия И.О.])=RIGHTB(CELL(\"имяфайла\",E4)),Т1[№ п./п.]),ROW(B3))),\"\")","v":""},{"$f":"IFERROR(INDEX(Т1[Дата рождения],SMALL(IF(LEFTB(Т1[Фамилия И.О.])=RIGHTB(CELL(\"имяфайла\",F4)),Т1[№ п./п.]),ROW(C3))),\"\")","v":""}]
[{"$f":"IFERROR(INDEX(Т1[№ п./п.],SMALL(IF(LEFTB(Т1[Фамилия И.О.])=RIGHTB(CELL(\"имяфайла\",D5)),Т1[№ п./п.]),ROW(A4))),\"\")","v":""},{"$f":"IFERROR(INDEX(Т1[Фамилия И.О.],SMALL(IF(LEFTB(Т1[Фамилия И.О.])=RIGHTB(CELL(\"имяфайла\",E5)),Т1[№ п./п.]),ROW(B4))),\"\")","v":""},{"$f":"IFERROR(INDEX(Т1[Дата рождения],SMALL(IF(LEFTB(Т1[Фамилия И.О.])=RIGHTB(CELL(\"имяфайла\",F5)),Т1[№ п./п.]),ROW(C4))),\"\")","v":""}]
[{"$f":"IFERROR(INDEX(Т1[№ п./п.],SMALL(IF(LEFTB(Т1[Фамилия И.О.])=RIGHTB(CELL(\"имяфайла\",D6)),Т1[№ п./п.]),ROW(A5))),\"\")","v":""},{"$f":"IFERROR(INDEX(Т1[Фамилия И.О.],SMALL(IF(LEFTB(Т1[Фамилия И.О.])=RIGHTB(CELL(\"имяфайла\",E6)),Т1[№ п./п.]),ROW(B5))),\"\")","v":""},{"$f":"IFERROR(INDEX(Т1[Дата рождения],SMALL(IF(LEFTB(Т1[Фамилия И.О.])=RIGHTB(CELL(\"имяфайла\",F6)),Т1[№ п./п.]),ROW(C5))),\"\")","v":""}]
[{"$f":"IFERROR(INDEX(Т1[№ п./п.],SMALL(IF(LEFTB(Т1[Фамилия И.О.])=RIGHTB(CELL(\"имяфайла\",D7)),Т1[№ п./п.]),ROW(A6))),\"\")","v":""},{"$f":"IFERROR(INDEX(Т1[Фамилия И.О.],SMALL(IF(LEFTB(Т1[Фамилия И.О.])=RIGHTB(CELL(\"имяфайла\",E7)),Т1[№ п./п.]),ROW(B6))),\"\")","v":""},{"$f":"IFERROR(INDEX(Т1[Дата рождения],SMALL(IF(LEFTB(Т1[Фамилия И.О.])=RIGHTB(CELL(\"имяфайла\",F7)),Т1[№ п./п.]),ROW(C6))),\"\")","v":""}]
[{"$f":"IFERROR(INDEX(Т1[№ п./п.],SMALL(IF(LEFTB(Т1[Фамилия И.О.])=RIGHTB(CELL(\"имяфайла\",D8)),Т1[№ п./п.]),ROW(A7))),\"\")","v":""},{"$f":"IFERROR(INDEX(Т1[Фамилия И.О.],SMALL(IF(LEFTB(Т1[Фамилия И.О.])=RIGHTB(CELL(\"имяфайла\",E8)),Т1[№ п./п.]),ROW(B7))),\"\")","v":""},{"$f":"IFERROR(INDEX(Т1[Дата рождения],SMALL(IF(LEFTB(Т1[Фамилия И.О.])=RIGHTB(CELL(\"имяфайла\",F8)),Т1[№ п./п.]),ROW(C7))),\"\")","v":""}]
[{"$f":"IFERROR(INDEX(Т1[№ п./п.],SMALL(IF(LEFTB(Т1[Фамилия И.О.])=RIGHTB(CELL(\"имяфайла\",D9)),Т1[№ п./п.]),ROW(A8))),\"\")","v":""},{"$f":"IFERROR(INDEX(Т1[Фамилия И.О.],SMALL(IF(LEFTB(Т1[Фамилия И.О.])=RIGHTB(CELL(\"имяфайла\",E9)),Т1[№ п./п.]),ROW(B8))),\"\")","v":""},{"$f":"IFERROR(INDEX(Т1[Дата рождения],SMALL(IF(LEFTB(Т1[Фамилия И.О.])=RIGHTB(CELL(\"имяфайла\",F9)),Т1[№ п./п.]),ROW(C8))),\"\")","v":""}]
[{"$f":"IFERROR(INDEX(Т1[№ п./п.],SMALL(IF(LEFTB(Т1[Фамилия И.О.])=RIGHTB(CELL(\"имяфайла\",D10)),Т1[№ п./п.]),ROW(A9))),\"\")","v":""},{"$f":"IFERROR(INDEX(Т1[Фамилия И.О.],SMALL(IF(LEFTB(Т1[Фамилия И.О.])=RIGHTB(CELL(\"имяфайла\",E10)),Т1[№ п./п.]),ROW(B9))),\"\")","v":""},{"$f":"IFERROR(INDEX(Т1[Дата рождения],SMALL(IF(LEFTB(Т1[Фамилия И.О.])=RIGHTB(CELL(\"имяфайла\",F10)),Т1[№ п./п.]),ROW(C9))),\"\")","v":""}]
[{"$f":"IFERROR(INDEX(Т1[№ п./п.],SMALL(IF(LEFTB(Т1[Фамилия И.О.])=RIGHTB(CELL(\"имяфайла\",D11)),Т1[№ п./п.]),ROW(A10))),\"\")","v":""},{"$f":"IFERROR(INDEX(Т1[Фамилия И.О.],SMALL(IF(LEFTB(Т1[Фамилия И.О.])=RIGHTB(CELL(\"имяфайла\",E11)),Т1[№ п./п.]),ROW(B10))),\"\")","v":""},{"$f":"IFERROR(INDEX(Т1[Дата рождения],SMALL(IF(LEFTB(Т1[Фамилия И.О.])=RIGHTB(CELL(\"имяфайла\",F11)),Т1[№ п./п.]),ROW(C10))),\"\")","v":""}]
[{"$f":"IFERROR(INDEX(Т1[№ п./п.],SMALL(IF(LEFTB(Т1[Фамилия И.О.])=RIGHTB(CELL(\"имяфайла\",D12)),Т1[№ п./п.]),ROW(A11))),\"\")","v":""},{"$f":"IFERROR(INDEX(Т1[Фамилия И.О.],SMALL(IF(LEFTB(Т1[Фамилия И.О.])=RIGHTB(CELL(\"имяфайла\",E12)),Т1[№ п./п.]),ROW(B11))),\"\")","v":""},{"$f":"IFERROR(INDEX(Т1[Дата рождения],SMALL(IF(LEFTB(Т1[Фамилия И.О.])=RIGHTB(CELL(\"имяфайла\",F12)),Т1[№ п./п.]),ROW(C11))),\"\")","v":""}]
[{"$f":"IFERROR(INDEX(Т1[№ п./п.],SMALL(IF(LEFTB(Т1[Фамилия И.О.])=RIGHTB(CELL(\"имяфайла\",D13)),Т1[№ п./п.]),ROW(A12))),\"\")","v":""},{"$f":"IFERROR(INDEX(Т1[Фамилия И.О.],SMALL(IF(LEFTB(Т1[Фамилия И.О.])=RIGHTB(CELL(\"имяфайла\",E13)),Т1[№ п./п.]),ROW(B12))),\"\")","v":""},{"$f":"IFERROR(INDEX(Т1[Дата рождения],SMALL(IF(LEFTB(Т1[Фамилия И.О.])=RIGHTB(CELL(\"имяфайла\",F13)),Т1[№ п./п.]),ROW(C12))),\"\")","v":""}]
[{"$f":"IFERROR(INDEX(Т1[№ п./п.],SMALL(IF(LEFTB(Т1[Фамилия И.О.])=RIGHTB(CELL(\"имяфайла\",D14)),Т1[№ п./п.]),ROW(A13))),\"\")","v":""},{"$f":"IFERROR(INDEX(Т1[Фамилия И.О.],SMALL(IF(LEFTB(Т1[Фамилия И.О.])=RIGHTB(CELL(\"имяфайла\",E14)),Т1[№ п./п.]),ROW(B13))),\"\")","v":""},{"$f":"IFERROR(INDEX(Т1[Дата рождения],SMALL(IF(LEFTB(Т1[Фамилия И.О.])=RIGHTB(CELL(\"имяфайла\",F14)),Т1[№ п./п.]),ROW(C13))),\"\")","v":""}]
[{"$f":"IFERROR(INDEX(Т1[№ п./п.],SMALL(IF(LEFTB(Т1[Фамилия И.О.])=RIGHTB(CELL(\"имяфайла\",D15)),Т1[№ п./п.]),ROW(A14))),\"\")","v":""},{"$f":"IFERROR(INDEX(Т1[Фамилия И.О.],SMALL(IF(LEFTB(Т1[Фамилия И.О.])=RIGHTB(CELL(\"имяфайла\",E15)),Т1[№ п./п.]),ROW(B14))),\"\")","v":""},{"$f":"IFERROR(INDEX(Т1[Дата рождения],SMALL(IF(LEFTB(Т1[Фамилия И.О.])=RIGHTB(CELL(\"имяфайла\",F15)),Т1[№ п./п.]),ROW(C14))),\"\")","v":""}]
[{"$f":"IFERROR(INDEX(Т1[№ п./п.],SMALL(IF(LEFTB(Т1[Фамилия И.О.])=RIGHTB(CELL(\"имяфайла\",D16)),Т1[№ п./п.]),ROW(A15))),\"\")","v":""},{"$f":"IFERROR(INDEX(Т1[Фамилия И.О.],SMALL(IF(LEFTB(Т1[Фамилия И.О.])=RIGHTB(CELL(\"имяфайла\",E16)),Т1[№ п./п.]),ROW(B15))),\"\")","v":""},{"$f":"IFERROR(INDEX(Т1[Дата рождения],SMALL(IF(LEFTB(Т1[Фамилия И.О.])=RIGHTB(CELL(\"имяфайла\",F16)),Т1[№ п./п.]),ROW(C15))),\"\")","v":""}]
[{"$f":"IFERROR(INDEX(Т1[№ п./п.],SMALL(IF(LEFTB(Т1[Фамилия И.О.])=RIGHTB(CELL(\"имяфайла\",D17)),Т1[№ п./п.]),ROW(A16))),\"\")","v":""},{"$f":"IFERROR(INDEX(Т1[Фамилия И.О.],SMALL(IF(LEFTB(Т1[Фамилия И.О.])=RIGHTB(CELL(\"имяфайла\",E17)),Т1[№ п./п.]),ROW(B16))),\"\")","v":""},{"$f":"IFERROR(INDEX(Т1[Дата рождения],SMALL(IF(LEFTB(Т1[Фамилия И.О.])=RIGHTB(CELL(\"имяфайла\",F17)),Т1[№ п./п.]),ROW(C16))),\"\")","v":""}]
[{"$f":"IFERROR(INDEX(Т1[№ п./п.],SMALL(IF(LEFTB(Т1[Фамилия И.О.])=RIGHTB(CELL(\"имяфайла\",D18)),Т1[№ п./п.]),ROW(A17))),\"\")","v":""},{"$f":"IFERROR(INDEX(Т1[Фамилия И.О.],SMALL(IF(LEFTB(Т1[Фамилия И.О.])=RIGHTB(CELL(\"имяфайла\",E18)),Т1[№ п./п.]),ROW(B17))),\"\")","v":""},{"$f":"IFERROR(INDEX(Т1[Дата рождения],SMALL(IF(LEFTB(Т1[Фамилия И.О.])=RIGHTB(CELL(\"имяфайла\",F18)),Т1[№ п./п.]),ROW(C17))),\"\")","v":""}]
[{"$f":"IFERROR(INDEX(Т1[№ п./п.],SMALL(IF(LEFTB(Т1[Фамилия И.О.])=RIGHTB(CELL(\"имяфайла\",D19)),Т1[№ п./п.]),ROW(A18))),\"\")","v":""},{"$f":"IFERROR(INDEX(Т1[Фамилия И.О.],SMALL(IF(LEFTB(Т1[Фамилия И.О.])=RIGHTB(CELL(\"имяфайла\",E19)),Т1[№ п./п.]),ROW(B18))),\"\")","v":""},{"$f":"IFERROR(INDEX(Т1[Дата рождения],SMALL(IF(LEFTB(Т1[Фамилия И.О.])=RIGHTB(CELL(\"имяфайла\",F19)),Т1[№ п./п.]),ROW(C18))),\"\")","v":""}]
[{"$f":"IFERROR(INDEX(Т1[№ п./п.],SMALL(IF(LEFTB(Т1[Фамилия И.О.])=RIGHTB(CELL(\"имяфайла\",D20)),Т1[№ п./п.]),ROW(A19))),\"\")","v":""},{"$f":"IFERROR(INDEX(Т1[Фамилия И.О.],SMALL(IF(LEFTB(Т1[Фамилия И.О.])=RIGHTB(CELL(\"имяфайла\",E20)),Т1[№ п./п.]),ROW(B19))),\"\")","v":""},{"$f":"IFERROR(INDEX(Т1[Дата рождения],SMALL(IF(LEFTB(Т1[Фамилия И.О.])=RIGHTB(CELL(\"имяфайла\",F20)),Т1[№ п./п.]),ROW(C19))),\"\")","v":""}]
[{"$f":"IFERROR(INDEX(Т1[№ п./п.],SMALL(IF(LEFTB(Т1[Фамилия И.О.])=RIGHTB(CELL(\"имяфайла\",D21)),Т1[№ п./п.]),ROW(A20))),\"\")","v":""},{"$f":"IFERROR(INDEX(Т1[Фамилия И.О.],SMALL(IF(LEFTB(Т1[Фамилия И.О.])=RIGHTB(CELL(\"имяфайла\",E21)),Т1[№ п./п.]),ROW(B20))),\"\")","v":""},{"$f":"IFERROR(INDEX(Т1[Дата рождения],SMALL(IF(LEFTB(Т1[Фамилия И.О.])=RIGHTB(CELL(\"имяфайла\",F21)),Т1[№ п./п.]),ROW(C20))),\"\")","v":""}]
[{"$f":"IFERROR(INDEX(Т1[№ п./п.],SMALL(IF(LEFTB(Т1[Фамилия И.О.])=RIGHTB(CELL(\"имяфайла\",D22)),Т1[№ п./п.]),ROW(A21))),\"\")","v":""},{"$f":"IFERROR(INDEX(Т1[Фамилия И.О.],SMALL(IF(LEFTB(Т1[Фамилия И.О.])=RIGHTB(CELL(\"имяфайла\",E22)),Т1[№ п./п.]),ROW(B21))),\"\")","v":""},{"$f":"IFERROR(INDEX(Т1[Дата рождения],SMALL(IF(LEFTB(Т1[Фамилия И.О.])=RIGHTB(CELL(\"имяфайла\",F22)),Т1[№ п./п.]),ROW(C21))),\"\")","v":""}]
[{"$f":"IFERROR(INDEX(Т1[№ п./п.],SMALL(IF(LEFTB(Т1[Фамилия И.О.])=RIGHTB(CELL(\"имяфайла\",D23)),Т1[№ п./п.]),ROW(A22))),\"\")","v":""},{"$f":"IFERROR(INDEX(Т1[Фамилия И.О.],SMALL(IF(LEFTB(Т1[Фамилия И.О.])=RIGHTB(CELL(\"имяфайла\",E23)),Т1[№ п./п.]),ROW(B22))),\"\")","v":""},{"$f":"IFERROR(INDEX(Т1[Дата рождения],SMALL(IF(LEFTB(Т1[Фамилия И.О.])=RIGHTB(CELL(\"имяфайла\",F23)),Т1[№ п./п.]),ROW(C22))),\"\")","v":""}]
[{"$f":"IFERROR(INDEX(Т1[№ п./п.],SMALL(IF(LEFTB(Т1[Фамилия И.О.])=RIGHTB(CELL(\"имяфайла\",D24)),Т1[№ п./п.]),ROW(A23))),\"\")","v":""},{"$f":"IFERROR(INDEX(Т1[Фамилия И.О.],SMALL(IF(LEFTB(Т1[Фамилия И.О.])=RIGHTB(CELL(\"имяфайла\",E24)),Т1[№ п./п.]),ROW(B23))),\"\")","v":""},{"$f":"IFERROR(INDEX(Т1[Дата рождения],SMALL(IF(LEFTB(Т1[Фамилия И.О.])=RIGHTB(CELL(\"имяфайла\",F24)),Т1[№ п./п.]),ROW(C23))),\"\")","v":""}]
[{"$f":"IFERROR(INDEX(Т1[№ п./п.],SMALL(IF(LEFTB(Т1[Фамилия И.О.])=RIGHTB(CELL(\"имяфайла\",D25)),Т1[№ п./п.]),ROW(A24))),\"\")","v":""},{"$f":"IFERROR(INDEX(Т1[Фамилия И.О.],SMALL(IF(LEFTB(Т1[Фамилия И.О.])=RIGHTB(CELL(\"имяфайла\",E25)),Т1[№ п./п.]),ROW(B24))),\"\")","v":""},{"$f":"IFERROR(INDEX(Т1[Дата рождения],SMALL(IF(LEFTB(Т1[Фамилия И.О.])=RIGHTB(CELL(\"имяфайла\",F25)),Т1[№ п./п.]),ROW(C24))),\"\")","v":""}]
[{"$f":"IFERROR(INDEX(Т1[№ п./п.],SMALL(IF(LEFTB(Т1[Фамилия И.О.])=RIGHTB(CELL(\"имяфайла\",D26)),Т1[№ п./п.]),ROW(A25))),\"\")","v":""},{"$f":"IFERROR(INDEX(Т1[Фамилия И.О.],SMALL(IF(LEFTB(Т1[Фамилия И.О.])=RIGHTB(CELL(\"имяфайла\",E26)),Т1[№ п./п.]),ROW(B25))),\"\")","v":""},{"$f":"IFERROR(INDEX(Т1[Дата рождения],SMALL(IF(LEFTB(Т1[Фамилия И.О.])=RIGHTB(CELL(\"имяфайла\",F26)),Т1[№ п./п.]),ROW(C25))),\"\")","v":""}]
[{"$f":"IFERROR(INDEX(Т1[№ п./п.],SMALL(IF(LEFTB(Т1[Фамилия И.О.])=RIGHTB(CELL(\"имяфайла\",D27)),Т1[№ п./п.]),ROW(A26))),\"\")","v":""},{"$f":"IFERROR(INDEX(Т1[Фамилия И.О.],SMALL(IF(LEFTB(Т1[Фамилия И.О.])=RIGHTB(CELL(\"имяфайла\",E27)),Т1[№ п./п.]),ROW(B26))),\"\")","v":""},{"$f":"IFERROR(INDEX(Т1[Дата рождения],SMALL(IF(LEFTB(Т1[Фамилия И.О.])=RIGHTB(CELL(\"имяфайла\",F27)),Т1[№ п./п.]),ROW(C26))),\"\")","v":""}]
[{"$f":"IFERROR(INDEX(Т1[№ п./п.],SMALL(IF(LEFTB(Т1[Фамилия И.О.])=RIGHTB(CELL(\"имяфайла\",D28)),Т1[№ п./п.]),ROW(A27))),\"\")","v":""},{"$f":"IFERROR(INDEX(Т1[Фамилия И.О.],SMALL(IF(LEFTB(Т1[Фамилия И.О.])=RIGHTB(CELL(\"имяфайла\",E28)),Т1[№ п./п.]),ROW(B27))),\"\")","v":""},{"$f":"IFERROR(INDEX(Т1[Дата рождения],SMALL(IF(LEFTB(Т1[Фамилия И.О.])=RIGHTB(CELL(\"имяфайла\",F28)),Т1[№ п./п.]),ROW(C27))),\"\")","v":""}]
[{"$f":"IFERROR(INDEX(Т1[№ п./п.],SMALL(IF(LEFTB(Т1[Фамилия И.О.])=RIGHTB(CELL(\"имяфайла\",D29)),Т1[№ п./п.]),ROW(A28))),\"\")","v":""},{"$f":"IFERROR(INDEX(Т1[Фамилия И.О.],SMALL(IF(LEFTB(Т1[Фамилия И.О.])=RIGHTB(CELL(\"имяфайла\",E29)),Т1[№ п./п.]),ROW(B28))),\"\")","v":""},{"$f":"IFERROR(INDEX(Т1[Дата рождения],SMALL(IF(LEFTB(Т1[Фамилия И.О.])=RIGHTB(CELL(\"имяфайла\",F29)),Т1[№ п./п.]),ROW(C28))),\"\")","v":""}]
[{"$f":"IFERROR(INDEX(Т1[№ п./п.],SMALL(IF(LEFTB(Т1[Фамилия И.О.])=RIGHTB(CELL(\"имяфайла\",D30)),Т1[№ п./п.]),ROW(A29))),\"\")","v":""},{"$f":"IFERROR(INDEX(Т1[Фамилия И.О.],SMALL(IF(LEFTB(Т1[Фамилия И.О.])=RIGHTB(CELL(\"имяфайла\",E30)),Т1[№ п./п.]),ROW(B29))),\"\")","v":""},{"$f":"IFERROR(INDEX(Т1[Дата рождения],SMALL(IF(LEFTB(Т1[Фамилия И.О.])=RIGHTB(CELL(\"имяфайла\",F30)),Т1[№ п./п.]),ROW(C29))),\"\")","v":""}]
[{"$f":"IFERROR(INDEX(Т1[№ п./п.],SMALL(IF(LEFTB(Т1[Фамилия И.О.])=RIGHTB(CELL(\"имяфайла\",D31)),Т1[№ п./п.]),ROW(A30))),\"\")","v":""},{"$f":"IFERROR(INDEX(Т1[Фамилия И.О.],SMALL(IF(LEFTB(Т1[Фамилия И.О.])=RIGHTB(CELL(\"имяфайла\",E31)),Т1[№ п./п.]),ROW(B30))),\"\")","v":""},{"$f":"IFERROR(INDEX(Т1[Дата рождения],SMALL(IF(LEFTB(Т1[Фамилия И.О.])=RIGHTB(CELL(\"имяфайла\",F31)),Т1[№ п./п.]),ROW(C30))),\"\")","v":""}]
[{"$f":"IFERROR(INDEX(Т1[№ п./п.],SMALL(IF(LEFTB(Т1[Фамилия И.О.])=RIGHTB(CELL(\"имяфайла\",D32)),Т1[№ п./п.]),ROW(A31))),\"\")","v":""},{"$f":"IFERROR(INDEX(Т1[Фамилия И.О.],SMALL(IF(LEFTB(Т1[Фамилия И.О.])=RIGHTB(CELL(\"имяфайла\",E32)),Т1[№ п./п.]),ROW(B31))),\"\")","v":""},{"$f":"IFERROR(INDEX(Т1[Дата рождения],SMALL(IF(LEFTB(Т1[Фамилия И.О.])=RIGHTB(CELL(\"имяфайла\",F32)),Т1[№ п./п.]),ROW(C31))),\"\")","v":""}]
[{"$f":"IFERROR(INDEX(Т1[№ п./п.],SMALL(IF(LEFTB(Т1[Фамилия И.О.])=RIGHTB(CELL(\"имяфайла\",D33)),Т1[№ п./п.]),ROW(A32))),\"\")","v":""},{"$f":"IFERROR(INDEX(Т1[Фамилия И.О.],SMALL(IF(LEFTB(Т1[Фамилия И.О.])=RIGHTB(CELL(\"имяфайла\",E33)),Т1[№ п./п.]),ROW(B32))),\"\")","v":""},{"$f":"IFERROR(INDEX(Т1[Дата рождения],SMALL(IF(LEFTB(Т1[Фамилия И.О.])=RIGHTB(CELL(\"имяфайла\",F33)),Т1[№ п./п.]),ROW(C32))),\"\")","v":""}]
[{"$f":"IFERROR(INDEX(Т1[№ п./п.],SMALL(IF(LEFTB(Т1[Фамилия И.О.])=RIGHTB(CELL(\"имяфайла\",D34)),Т1[№ п./п.]),ROW(A33))),\"\")","v":""},{"$f":"IFERROR(INDEX(Т1[Фамилия И.О.],SMALL(IF(LEFTB(Т1[Фамилия И.О.])=RIGHTB(CELL(\"имяфайла\",E34)),Т1[№ п./п.]),ROW(B33))),\"\")","v":""},{"$f":"IFERROR(INDEX(Т1[Дата рождения],SMALL(IF(LEFTB(Т1[Фамилия И.О.])=RIGHTB(CELL(\"имяфайла\",F34)),Т1[№ п./п.]),ROW(C33))),\"\")","v":""}]
[{"$f":"IFERROR(INDEX(Т1[№ п./п.],SMALL(IF(LEFTB(Т1[Фамилия И.О.])=RIGHTB(CELL(\"имяфайла\",D35)),Т1[№ п./п.]),ROW(A34))),\"\")","v":""},{"$f":"IFERROR(INDEX(Т1[Фамилия И.О.],SMALL(IF(LEFTB(Т1[Фамилия И.О.])=RIGHTB(CELL(\"имяфайла\",E35)),Т1[№ п./п.]),ROW(B34))),\"\")","v":""},{"$f":"IFERROR(INDEX(Т1[Дата рождения],SMALL(IF(LEFTB(Т1[Фамилия И.О.])=RIGHTB(CELL(\"имяфайла\",F35)),Т1[№ п./п.]),ROW(C34))),\"\")","v":""}]
[{"$f":"IFERROR(INDEX(Т1[№ п./п.],SMALL(IF(LEFTB(Т1[Фамилия И.О.])=RIGHTB(CELL(\"имяфайла\",D36)),Т1[№ п./п.]),ROW(A35))),\"\")","v":""},{"$f":"IFERROR(INDEX(Т1[Фамилия И.О.],SMALL(IF(LEFTB(Т1[Фамилия И.О.])=RIGHTB(CELL(\"имяфайла\",E36)),Т1[№ п./п.]),ROW(B35))),\"\")","v":""},{"$f":"IFERROR(INDEX(Т1[Дата рождения],SMALL(IF(LEFTB(Т1[Фамилия И.О.])=RIGHTB(CELL(\"имяфайла\",F36)),Т1[№ п./п.]),ROW(C35))),\"\")","v":""}]
[{"$f":"IFERROR(INDEX(Т1[№ п./п.],SMALL(IF(LEFTB(Т1[Фамилия И.О.])=RIGHTB(CELL(\"имяфайла\",D37)),Т1[№ п./п.]),ROW(A36))),\"\")","v":""},{"$f":"IFERROR(INDEX(Т1[Фамилия И.О.],SMALL(IF(LEFTB(Т1[Фамилия И.О.])=RIGHTB(CELL(\"имяфайла\",E37)),Т1[№ п./п.]),ROW(B36))),\"\")","v":""},{"$f":"IFERROR(INDEX(Т1[Дата рождения],SMALL(IF(LEFTB(Т1[Фамилия И.О.])=RIGHTB(CELL(\"имяфайла\",F37)),Т1[№ п./п.]),ROW(C36))),\"\")","v":""}]
[{"$f":"IFERROR(INDEX(Т1[№ п./п.],SMALL(IF(LEFTB(Т1[Фамилия И.О.])=RIGHTB(CELL(\"имяфайла\",D38)),Т1[№ п./п.]),ROW(A37))),\"\")","v":""},{"$f":"IFERROR(INDEX(Т1[Фамилия И.О.],SMALL(IF(LEFTB(Т1[Фамилия И.О.])=RIGHTB(CELL(\"имяфайла\",E38)),Т1[№ п./п.]),ROW(B37))),\"\")","v":""},{"$f":"IFERROR(INDEX(Т1[Дата рождения],SMALL(IF(LEFTB(Т1[Фамилия И.О.])=RIGHTB(CELL(\"имяфайла\",F38)),Т1[№ п./п.]),ROW(C37))),\"\")","v":""}]
[{"$f":"IFERROR(INDEX(Т1[№ п./п.],SMALL(IF(LEFTB(Т1[Фамилия И.О.])=RIGHTB(CELL(\"имяфайла\",D39)),Т1[№ п./п.]),ROW(A38))),\"\")","v":""},{"$f":"IFERROR(INDEX(Т1[Фамилия И.О.],SMALL(IF(LEFTB(Т1[Фамилия И.О.])=RIGHTB(CELL(\"имяфайла\",E39)),Т1[№ п./п.]),ROW(B38))),\"\")","v":""},{"$f":"IFERROR(INDEX(Т1[Дата рождения],SMALL(IF(LEFTB(Т1[Фамилия И.О.])=RIGHTB(CELL(\"имяфайла\",F39)),Т1[№ п./п.]),ROW(C38))),\"\")","v":""}]
[{"$f":"IFERROR(INDEX(Т1[№ п./п.],SMALL(IF(LEFTB(Т1[Фамилия И.О.])=RIGHTB(CELL(\"имяфайла\",D40)),Т1[№ п./п.]),ROW(A39))),\"\")","v":""},{"$f":"IFERROR(INDEX(Т1[Фамилия И.О.],SMALL(IF(LEFTB(Т1[Фамилия И.О.])=RIGHTB(CELL(\"имяфайла\",E40)),Т1[№ п./п.]),ROW(B39))),\"\")","v":""},{"$f":"IFERROR(INDEX(Т1[Дата рождения],SMALL(IF(LEFTB(Т1[Фамилия И.О.])=RIGHTB(CELL(\"имяфайла\",F40)),Т1[№ п./п.]),ROW(C39))),\"\")","v":""}]
[{"$f":"IFERROR(INDEX(Т1[№ п./п.],SMALL(IF(LEFTB(Т1[Фамилия И.О.])=RIGHTB(CELL(\"имяфайла\",D41)),Т1[№ п./п.]),ROW(A40))),\"\")","v":""},{"$f":"IFERROR(INDEX(Т1[Фамилия И.О.],SMALL(IF(LEFTB(Т1[Фамилия И.О.])=RIGHTB(CELL(\"имяфайла\",E41)),Т1[№ п./п.]),ROW(B40))),\"\")","v":""},{"$f":"IFERROR(INDEX(Т1[Дата рождения],SMALL(IF(LEFTB(Т1[Фамилия И.О.])=RIGHTB(CELL(\"имяфайла\",F41)),Т1[№ п./п.]),ROW(C40))),\"\")","v":""}]
[{"$f":"IFERROR(INDEX(Т1[№ п./п.],SMALL(IF(LEFTB(Т1[Фамилия И.О.])=RIGHTB(CELL(\"имяфайла\",D42)),Т1[№ п./п.]),ROW(A41))),\"\")","v":""},{"$f":"IFERROR(INDEX(Т1[Фамилия И.О.],SMALL(IF(LEFTB(Т1[Фамилия И.О.])=RIGHTB(CELL(\"имяфайла\",E42)),Т1[№ п./п.]),ROW(B41))),\"\")","v":""},{"$f":"IFERROR(INDEX(Т1[Дата рождения],SMALL(IF(LEFTB(Т1[Фамилия И.О.])=RIGHTB(CELL(\"имяфайла\",F42)),Т1[№ п./п.]),ROW(C41))),\"\")","v":""}]
[{"$f":"IFERROR(INDEX(Т1[№ п./п.],SMALL(IF(LEFTB(Т1[Фамилия И.О.])=RIGHTB(CELL(\"имяфайла\",D43)),Т1[№ п./п.]),ROW(A42))),\"\")","v":""},{"$f":"IFERROR(INDEX(Т1[Фамилия И.О.],SMALL(IF(LEFTB(Т1[Фамилия И.О.])=RIGHTB(CELL(\"имяфайла\",E43)),Т1[№ п./п.]),ROW(B42))),\"\")","v":""},{"$f":"IFERROR(INDEX(Т1[Дата рождения],SMALL(IF(LEFTB(Т1[Фамилия И.О.])=RIGHTB(CELL(\"имяфайла\",F43)),Т1[№ п./п.]),ROW(C42))),\"\")","v":""}]
[{"$f":"IFERROR(INDEX(Т1[№ п./п.],SMALL(IF(LEFTB(Т1[Фамилия И.О.])=RIGHTB(CELL(\"имяфайла\",D44)),Т1[№ п./п.]),ROW(A43))),\"\")","v":""},{"$f":"IFERROR(INDEX(Т1[Фамилия И.О.],SMALL(IF(LEFTB(Т1[Фамилия И.О.])=RIGHTB(CELL(\"имяфайла\",E44)),Т1[№ п./п.]),ROW(B43))),\"\")","v":""},{"$f":"IFERROR(INDEX(Т1[Дата рождения],SMALL(IF(LEFTB(Т1[Фамилия И.О.])=RIGHTB(CELL(\"имяфайла\",F44)),Т1[№ п./п.]),ROW(C43))),\"\")","v":""}]
[{"$f":"IFERROR(INDEX(Т1[№ п./п.],SMALL(IF(LEFTB(Т1[Фамилия И.О.])=RIGHTB(CELL(\"имяфайла\",D45)),Т1[№ п./п.]),ROW(A44))),\"\")","v":""},{"$f":"IFERROR(INDEX(Т1[Фамилия И.О.],SMALL(IF(LEFTB(Т1[Фамилия И.О.])=RIGHTB(CELL(\"имяфайла\",E45)),Т1[№ п./п.]),ROW(B44))),\"\")","v":""},{"$f":"IFERROR(INDEX(Т1[Дата рождения],SMALL(IF(LEFTB(Т1[Фамилия И.О.])=RIGHTB(CELL(\"имяфайла\",F45)),Т1[№ п./п.]),ROW(C44))),\"\")","v":""}]
[{"$f":"IFERROR(INDEX(Т1[№ п./п.],SMALL(IF(LEFTB(Т1[Фамилия И.О.])=RIGHTB(CELL(\"имяфайла\",D46)),Т1[№ п./п.]),ROW(A45))),\"\")","v":""},{"$f":"IFERROR(INDEX(Т1[Фамилия И.О.],SMALL(IF(LEFTB(Т1[Фамилия И.О.])=RIGHTB(CELL(\"имяфайла\",E46)),Т1[№ п./п.]),ROW(B45))),\"\")","v":""},{"$f":"IFERROR(INDEX(Т1[Дата рождения],SMALL(IF(LEFTB(Т1[Фамилия И.О.])=RIGHTB(CELL(\"имяфайла\",F46)),Т1[№ п./п.]),ROW(C45))),\"\")","v":""}]
[{"$f":"IFERROR(INDEX(Т1[№ п./п.],SMALL(IF(LEFTB(Т1[Фамилия И.О.])=RIGHTB(CELL(\"имяфайла\",D47)),Т1[№ п./п.]),ROW(A46))),\"\")","v":""},{"$f":"IFERROR(INDEX(Т1[Фамилия И.О.],SMALL(IF(LEFTB(Т1[Фамилия И.О.])=RIGHTB(CELL(\"имяфайла\",E47)),Т1[№ п./п.]),ROW(B46))),\"\")","v":""},{"$f":"IFERROR(INDEX(Т1[Дата рождения],SMALL(IF(LEFTB(Т1[Фамилия И.О.])=RIGHTB(CELL(\"имяфайла\",F47)),Т1[№ п./п.]),ROW(C46))),\"\")","v":""}]
[{"$f":"IFERROR(INDEX(Т1[№ п./п.],SMALL(IF(LEFTB(Т1[Фамилия И.О.])=RIGHTB(CELL(\"имяфайла\",D48)),Т1[№ п./п.]),ROW(A47))),\"\")","v":""},{"$f":"IFERROR(INDEX(Т1[Фамилия И.О.],SMALL(IF(LEFTB(Т1[Фамилия И.О.])=RIGHTB(CELL(\"имяфайла\",E48)),Т1[№ п./п.]),ROW(B47))),\"\")","v":""},{"$f":"IFERROR(INDEX(Т1[Дата рождения],SMALL(IF(LEFTB(Т1[Фамилия И.О.])=RIGHTB(CELL(\"имяфайла\",F48)),Т1[№ п./п.]),ROW(C47))),\"\")","v":""}]
[{"$f":"IFERROR(INDEX(Т1[№ п./п.],SMALL(IF(LEFTB(Т1[Фамилия И.О.])=RIGHTB(CELL(\"имяфайла\",D49)),Т1[№ п./п.]),ROW(A48))),\"\")","v":""},{"$f":"IFERROR(INDEX(Т1[Фамилия И.О.],SMALL(IF(LEFTB(Т1[Фамилия И.О.])=RIGHTB(CELL(\"имяфайла\",E49)),Т1[№ п./п.]),ROW(B48))),\"\")","v":""},{"$f":"IFERROR(INDEX(Т1[Дата рождения],SMALL(IF(LEFTB(Т1[Фамилия И.О.])=RIGHTB(CELL(\"имяфайла\",F49)),Т1[№ п./п.]),ROW(C48))),\"\")","v":""}]
[{"$f":"IFERROR(INDEX(Т1[№ п./п.],SMALL(IF(LEFTB(Т1[Фамилия И.О.])=RIGHTB(CELL(\"имяфайла\",D50)),Т1[№ п./п.]),ROW(A49))),\"\")","v":""},{"$f":"IFERROR(INDEX(Т1[Фамилия И.О.],SMALL(IF(LEFTB(Т1[Фамилия И.О.])=RIGHTB(CELL(\"имяфайла\",E50)),Т1[№ п./п.]),ROW(B49))),\"\")","v":""},{"$f":"IFERROR(INDEX(Т1[Дата рождения],SMALL(IF(LEFTB(Т1[Фамилия И.О.])=RIGHTB(CELL(\"имяфайла\",F50)),Т1[№ п./п.]),ROW(C49))),\"\")","v":""}]
[{"$f":"IFERROR(INDEX(Т1[№ п./п.],SMALL(IF(LEFTB(Т1[Фамилия И.О.])=RIGHTB(CELL(\"имяфайла\",D51)),Т1[№ п./п.]),ROW(A50))),\"\")","v":""},{"$f":"IFERROR(INDEX(Т1[Фамилия И.О.],SMALL(IF(LEFTB(Т1[Фамилия И.О.])=RIGHTB(CELL(\"имяфайла\",E51)),Т1[№ п./п.]),ROW(B50))),\"\")","v":""},{"$f":"IFERROR(INDEX(Т1[Дата рождения],SMALL(IF(LEFTB(Т1[Фамилия И.О.])=RIGHTB(CELL(\"имяфайла\",F51)),Т1[№ п./п.]),ROW(C50))),\"\")","v":""}]
[{"$f":"IFERROR(INDEX(Т1[№ п./п.],SMALL(IF(LEFTB(Т1[Фамилия И.О.])=RIGHTB(CELL(\"имяфайла\",D52)),Т1[№ п./п.]),ROW(A51))),\"\")","v":""},{"$f":"IFERROR(INDEX(Т1[Фамилия И.О.],SMALL(IF(LEFTB(Т1[Фамилия И.О.])=RIGHTB(CELL(\"имяфайла\",E52)),Т1[№ п./п.]),ROW(B51))),\"\")","v":""},{"$f":"IFERROR(INDEX(Т1[Дата рождения],SMALL(IF(LEFTB(Т1[Фамилия И.О.])=RIGHTB(CELL(\"имяфайла\",F52)),Т1[№ п./п.]),ROW(C51))),\"\")","v":""}]
[{"$f":"IFERROR(INDEX(Т1[№ п./п.],SMALL(IF(LEFTB(Т1[Фамилия И.О.])=RIGHTB(CELL(\"имяфайла\",D53)),Т1[№ п./п.]),ROW(A52))),\"\")","v":""},{"$f":"IFERROR(INDEX(Т1[Фамилия И.О.],SMALL(IF(LEFTB(Т1[Фамилия И.О.])=RIGHTB(CELL(\"имяфайла\",E53)),Т1[№ п./п.]),ROW(B52))),\"\")","v":""},{"$f":"IFERROR(INDEX(Т1[Дата рождения],SMALL(IF(LEFTB(Т1[Фамилия И.О.])=RIGHTB(CELL(\"имяфайла\",F53)),Т1[№ п./п.]),ROW(C52))),\"\")","v":""}]
[{"$f":"IFERROR(INDEX(Т1[№ п./п.],SMALL(IF(LEFTB(Т1[Фамилия И.О.])=RIGHTB(CELL(\"имяфайла\",D54)),Т1[№ п./п.]),ROW(A53))),\"\")","v":""},{"$f":"IFERROR(INDEX(Т1[Фамилия И.О.],SMALL(IF(LEFTB(Т1[Фамилия И.О.])=RIGHTB(CELL(\"имяфайла\",E54)),Т1[№ п./п.]),ROW(B53))),\"\")","v":""},{"$f":"IFERROR(INDEX(Т1[Дата рождения],SMALL(IF(LEFTB(Т1[Фамилия И.О.])=RIGHTB(CELL(\"имяфайла\",F54)),Т1[№ п./п.]),ROW(C53))),\"\")","v":""}]
[{"$f":"IFERROR(INDEX(Т1[№ п./п.],SMALL(IF(LEFTB(Т1[Фамилия И.О.])=RIGHTB(CELL(\"имяфайла\",D55)),Т1[№ п./п.]),ROW(A54))),\"\")","v":""},{"$f":"IFERROR(INDEX(Т1[Фамилия И.О.],SMALL(IF(LEFTB(Т1[Фамилия И.О.])=RIGHTB(CELL(\"имяфайла\",E55)),Т1[№ п./п.]),ROW(B54))),\"\")","v":""},{"$f":"IFERROR(INDEX(Т1[Дата рождения],SMALL(IF(LEFTB(Т1[Фамилия И.О.])=RIGHTB(CELL(\"имяфайла\",F55)),Т1[№ п./п.]),ROW(C54))),\"\")","v":""}]
[{"$f":"IFERROR(INDEX(Т1[№ п./п.],SMALL(IF(LEFTB(Т1[Фамилия И.О.])=RIGHTB(CELL(\"имяфайла\",D56)),Т1[№ п./п.]),ROW(A55))),\"\")","v":""},{"$f":"IFERROR(INDEX(Т1[Фамилия И.О.],SMALL(IF(LEFTB(Т1[Фамилия И.О.])=RIGHTB(CELL(\"имяфайла\",E56)),Т1[№ п./п.]),ROW(B55))),\"\")","v":""},{"$f":"IFERROR(INDEX(Т1[Дата рождения],SMALL(IF(LEFTB(Т1[Фамилия И.О.])=RIGHTB(CELL(\"имяфайла\",F56)),Т1[№ п./п.]),ROW(C55))),\"\")","v":""}]
[{"$f":"IFERROR(INDEX(Т1[№ п./п.],SMALL(IF(LEFTB(Т1[Фамилия И.О.])=RIGHTB(CELL(\"имяфайла\",D57)),Т1[№ п./п.]),ROW(A56))),\"\")","v":""},{"$f":"IFERROR(INDEX(Т1[Фамилия И.О.],SMALL(IF(LEFTB(Т1[Фамилия И.О.])=RIGHTB(CELL(\"имяфайла\",E57)),Т1[№ п./п.]),ROW(B56))),\"\")","v":""},{"$f":"IFERROR(INDEX(Т1[Дата рождения],SMALL(IF(LEFTB(Т1[Фамилия И.О.])=RIGHTB(CELL(\"имяфайла\",F57)),Т1[№ п./п.]),ROW(C56))),\"\")","v":""}]
[{"$f":"IFERROR(INDEX(Т1[№ п./п.],SMALL(IF(LEFTB(Т1[Фамилия И.О.])=RIGHTB(CELL(\"имяфайла\",D58)),Т1[№ п./п.]),ROW(A57))),\"\")","v":""},{"$f":"IFERROR(INDEX(Т1[Фамилия И.О.],SMALL(IF(LEFTB(Т1[Фамилия И.О.])=RIGHTB(CELL(\"имяфайла\",E58)),Т1[№ п./п.]),ROW(B57))),\"\")","v":""},{"$f":"IFERROR(INDEX(Т1[Дата рождения],SMALL(IF(LEFTB(Т1[Фамилия И.О.])=RIGHTB(CELL(\"имяфайла\",F58)),Т1[№ п./п.]),ROW(C57))),\"\")","v":""}]
[{"$f":"IFERROR(INDEX(Т1[№ п./п.],SMALL(IF(LEFTB(Т1[Фамилия И.О.])=RIGHTB(CELL(\"имяфайла\",D59)),Т1[№ п./п.]),ROW(A58))),\"\")","v":""},{"$f":"IFERROR(INDEX(Т1[Фамилия И.О.],SMALL(IF(LEFTB(Т1[Фамилия И.О.])=RIGHTB(CELL(\"имяфайла\",E59)),Т1[№ п./п.]),ROW(B58))),\"\")","v":""},{"$f":"IFERROR(INDEX(Т1[Дата рождения],SMALL(IF(LEFTB(Т1[Фамилия И.О.])=RIGHTB(CELL(\"имяфайла\",F59)),Т1[№ п./п.]),ROW(C58))),\"\")","v":""}]
[{"$f":"IFERROR(INDEX(Т1[№ п./п.],SMALL(IF(LEFTB(Т1[Фамилия И.О.])=RIGHTB(CELL(\"имяфайла\",D60)),Т1[№ п./п.]),ROW(A59))),\"\")","v":""},{"$f":"IFERROR(INDEX(Т1[Фамилия И.О.],SMALL(IF(LEFTB(Т1[Фамилия И.О.])=RIGHTB(CELL(\"имяфайла\",E60)),Т1[№ п./п.]),ROW(B59))),\"\")","v":""},{"$f":"IFERROR(INDEX(Т1[Дата рождения],SMALL(IF(LEFTB(Т1[Фамилия И.О.])=RIGHTB(CELL(\"имяфайла\",F60)),Т1[№ п./п.]),ROW(C59))),\"\")","v":""}]
[{"$f":"IFERROR(INDEX(Т1[№ п./п.],SMALL(IF(LEFTB(Т1[Фамилия И.О.])=RIGHTB(CELL(\"имяфайла\",D61)),Т1[№ п./п.]),ROW(A60))),\"\")","v":""},{"$f":"IFERROR(INDEX(Т1[Фамилия И.О.],SMALL(IF(LEFTB(Т1[Фамилия И.О.])=RIGHTB(CELL(\"имяфайла\",E61)),Т1[№ п./п.]),ROW(B60))),\"\")","v":""},{"$f":"IFERROR(INDEX(Т1[Дата рождения],SMALL(IF(LEFTB(Т1[Фамилия И.О.])=RIGHTB(CELL(\"имяфайла\",F61)),Т1[№ п./п.]),ROW(C60))),\"\")","v":""}]
[{"$f":"IFERROR(INDEX(Т1[№ п./п.],SMALL(IF(LEFTB(Т1[Фамилия И.О.])=RIGHTB(CELL(\"имяфайла\",D62)),Т1[№ п./п.]),ROW(A61))),\"\")","v":""},{"$f":"IFERROR(INDEX(Т1[Фамилия И.О.],SMALL(IF(LEFTB(Т1[Фамилия И.О.])=RIGHTB(CELL(\"имяфайла\",E62)),Т1[№ п./п.]),ROW(B61))),\"\")","v":""},{"$f":"IFERROR(INDEX(Т1[Дата рождения],SMALL(IF(LEFTB(Т1[Фамилия И.О.])=RIGHTB(CELL(\"имяфайла\",F62)),Т1[№ п./п.]),ROW(C61))),\"\")","v":""}]
[{"$f":"IFERROR(INDEX(Т1[№ п./п.],SMALL(IF(LEFTB(Т1[Фамилия И.О.])=RIGHTB(CELL(\"имяфайла\",D63)),Т1[№ п./п.]),ROW(A62))),\"\")","v":""},{"$f":"IFERROR(INDEX(Т1[Фамилия И.О.],SMALL(IF(LEFTB(Т1[Фамилия И.О.])=RIGHTB(CELL(\"имяфайла\",E63)),Т1[№ п./п.]),ROW(B62))),\"\")","v":""},{"$f":"IFERROR(INDEX(Т1[Дата рождения],SMALL(IF(LEFTB(Т1[Фамилия И.О.])=RIGHTB(CELL(\"имяфайла\",F63)),Т1[№ п./п.]),ROW(C62))),\"\")","v":""}]
[{"$f":"IFERROR(INDEX(Т1[№ п./п.],SMALL(IF(LEFTB(Т1[Фамилия И.О.])=RIGHTB(CELL(\"имяфайла\",D64)),Т1[№ п./п.]),ROW(A63))),\"\")","v":""},{"$f":"IFERROR(INDEX(Т1[Фамилия И.О.],SMALL(IF(LEFTB(Т1[Фамилия И.О.])=RIGHTB(CELL(\"имяфайла\",E64)),Т1[№ п./п.]),ROW(B63))),\"\")","v":""},{"$f":"IFERROR(INDEX(Т1[Дата рождения],SMALL(IF(LEFTB(Т1[Фамилия И.О.])=RIGHTB(CELL(\"имяфайла\",F64)),Т1[№ п./п.]),ROW(C63))),\"\")","v":""}]
[{"$f":"IFERROR(INDEX(Т1[№ п./п.],SMALL(IF(LEFTB(Т1[Фамилия И.О.])=RIGHTB(CELL(\"имяфайла\",D65)),Т1[№ п./п.]),ROW(A64))),\"\")","v":""},{"$f":"IFERROR(INDEX(Т1[Фамилия И.О.],SMALL(IF(LEFTB(Т1[Фамилия И.О.])=RIGHTB(CELL(\"имяфайла\",E65)),Т1[№ п./п.]),ROW(B64))),\"\")","v":""},{"$f":"IFERROR(INDEX(Т1[Дата рождения],SMALL(IF(LEFTB(Т1[Фамилия И.О.])=RIGHTB(CELL(\"имяфайла\",F65)),Т1[№ п./п.]),ROW(C64))),\"\")","v":""}]
[{"$f":"IFERROR(INDEX(Т1[№ п./п.],SMALL(IF(LEFTB(Т1[Фамилия И.О.])=RIGHTB(CELL(\"имяфайла\",D66)),Т1[№ п./п.]),ROW(A65))),\"\")","v":""},{"$f":"IFERROR(INDEX(Т1[Фамилия И.О.],SMALL(IF(LEFTB(Т1[Фамилия И.О.])=RIGHTB(CELL(\"имяфайла\",E66)),Т1[№ п./п.]),ROW(B65))),\"\")","v":""},{"$f":"IFERROR(INDEX(Т1[Дата рождения],SMALL(IF(LEFTB(Т1[Фамилия И.О.])=RIGHTB(CELL(\"имяфайла\",F66)),Т1[№ п./п.]),ROW(C65))),\"\")","v":""}]
[{"$f":"IFERROR(INDEX(Т1[№ п./п.],SMALL(IF(LEFTB(Т1[Фамилия И.О.])=RIGHTB(CELL(\"имяфайла\",D67)),Т1[№ п./п.]),ROW(A66))),\"\")","v":""},{"$f":"IFERROR(INDEX(Т1[Фамилия И.О.],SMALL(IF(LEFTB(Т1[Фамилия И.О.])=RIGHTB(CELL(\"имяфайла\",E67)),Т1[№ п./п.]),ROW(B66))),\"\")","v":""},{"$f":"IFERROR(INDEX(Т1[Дата рождения],SMALL(IF(LEFTB(Т1[Фамилия И.О.])=RIGHTB(CELL(\"имяфайла\",F67)),Т1[№ п./п.]),ROW(C66))),\"\")","v":""}]
[{"$f":"IFERROR(INDEX(Т1[№ п./п.],SMALL(IF(LEFTB(Т1[Фамилия И.О.])=RIGHTB(CELL(\"имяфайла\",D68)),Т1[№ п./п.]),ROW(A67))),\"\")","v":""},{"$f":"IFERROR(INDEX(Т1[Фамилия И.О.],SMALL(IF(LEFTB(Т1[Фамилия И.О.])=RIGHTB(CELL(\"имяфайла\",E68)),Т1[№ п./п.]),ROW(B67))),\"\")","v":""},{"$f":"IFERROR(INDEX(Т1[Дата рождения],SMALL(IF(LEFTB(Т1[Фамилия И.О.])=RIGHTB(CELL(\"имяфайла\",F68)),Т1[№ п./п.]),ROW(C67))),\"\")","v":""}]
[{"$f":"IFERROR(INDEX(Т1[№ п./п.],SMALL(IF(LEFTB(Т1[Фамилия И.О.])=RIGHTB(CELL(\"имяфайла\",D69)),Т1[№ п./п.]),ROW(A68))),\"\")","v":""},{"$f":"IFERROR(INDEX(Т1[Фамилия И.О.],SMALL(IF(LEFTB(Т1[Фамилия И.О.])=RIGHTB(CELL(\"имяфайла\",E69)),Т1[№ п./п.]),ROW(B68))),\"\")","v":""},{"$f":"IFERROR(INDEX(Т1[Дата рождения],SMALL(IF(LEFTB(Т1[Фамилия И.О.])=RIGHTB(CELL(\"имяфайла\",F69)),Т1[№ п./п.]),ROW(C68))),\"\")","v":""}]
[{"$f":"IFERROR(INDEX(Т1[№ п./п.],SMALL(IF(LEFTB(Т1[Фамилия И.О.])=RIGHTB(CELL(\"имяфайла\",D70)),Т1[№ п./п.]),ROW(A69))),\"\")","v":""},{"$f":"IFERROR(INDEX(Т1[Фамилия И.О.],SMALL(IF(LEFTB(Т1[Фамилия И.О.])=RIGHTB(CELL(\"имяфайла\",E70)),Т1[№ п./п.]),ROW(B69))),\"\")","v":""},{"$f":"IFERROR(INDEX(Т1[Дата рождения],SMALL(IF(LEFTB(Т1[Фамилия И.О.])=RIGHTB(CELL(\"имяфайла\",F70)),Т1[№ п./п.]),ROW(C69))),\"\")","v":""}]
[{"$f":"IFERROR(INDEX(Т1[№ п./п.],SMALL(IF(LEFTB(Т1[Фамилия И.О.])=RIGHTB(CELL(\"имяфайла\",D71)),Т1[№ п./п.]),ROW(A70))),\"\")","v":""},{"$f":"IFERROR(INDEX(Т1[Фамилия И.О.],SMALL(IF(LEFTB(Т1[Фамилия И.О.])=RIGHTB(CELL(\"имяфайла\",E71)),Т1[№ п./п.]),ROW(B70))),\"\")","v":""},{"$f":"IFERROR(INDEX(Т1[Дата рождения],SMALL(IF(LEFTB(Т1[Фамилия И.О.])=RIGHTB(CELL(\"имяфайла\",F71)),Т1[№ п./п.]),ROW(C70))),\"\")","v":""}]
[{"$f":"IFERROR(INDEX(Т1[№ п./п.],SMALL(IF(LEFTB(Т1[Фамилия И.О.])=RIGHTB(CELL(\"имяфайла\",D72)),Т1[№ п./п.]),ROW(A71))),\"\")","v":""},{"$f":"IFERROR(INDEX(Т1[Фамилия И.О.],SMALL(IF(LEFTB(Т1[Фамилия И.О.])=RIGHTB(CELL(\"имяфайла\",E72)),Т1[№ п./п.]),ROW(B71))),\"\")","v":""},{"$f":"IFERROR(INDEX(Т1[Дата рождения],SMALL(IF(LEFTB(Т1[Фамилия И.О.])=RIGHTB(CELL(\"имяфайла\",F72)),Т1[№ п./п.]),ROW(C71))),\"\")","v":""}]
[{"$f":"IFERROR(INDEX(Т1[№ п./п.],SMALL(IF(LEFTB(Т1[Фамилия И.О.])=RIGHTB(CELL(\"имяфайла\",D73)),Т1[№ п./п.]),ROW(A72))),\"\")","v":""},{"$f":"IFERROR(INDEX(Т1[Фамилия И.О.],SMALL(IF(LEFTB(Т1[Фамилия И.О.])=RIGHTB(CELL(\"имяфайла\",E73)),Т1[№ п./п.]),ROW(B72))),\"\")","v":""},{"$f":"IFERROR(INDEX(Т1[Дата рождения],SMALL(IF(LEFTB(Т1[Фамилия И.О.])=RIGHTB(CELL(\"имяфайла\",F73)),Т1[№ п./п.]),ROW(C72))),\"\")","v":""}]
[{"$f":"IFERROR(INDEX(Т1[№ п./п.],SMALL(IF(LEFTB(Т1[Фамилия И.О.])=RIGHTB(CELL(\"имяфайла\",D74)),Т1[№ п./п.]),ROW(A73))),\"\")","v":""},{"$f":"IFERROR(INDEX(Т1[Фамилия И.О.],SMALL(IF(LEFTB(Т1[Фамилия И.О.])=RIGHTB(CELL(\"имяфайла\",E74)),Т1[№ п./п.]),ROW(B73))),\"\")","v":""},{"$f":"IFERROR(INDEX(Т1[Дата рождения],SMALL(IF(LEFTB(Т1[Фамилия И.О.])=RIGHTB(CELL(\"имяфайла\",F74)),Т1[№ п./п.]),ROW(C73))),\"\")","v":""}]
[{"$f":"IFERROR(INDEX(Т1[№ п./п.],SMALL(IF(LEFTB(Т1[Фамилия И.О.])=RIGHTB(CELL(\"имяфайла\",D75)),Т1[№ п./п.]),ROW(A74))),\"\")","v":""},{"$f":"IFERROR(INDEX(Т1[Фамилия И.О.],SMALL(IF(LEFTB(Т1[Фамилия И.О.])=RIGHTB(CELL(\"имяфайла\",E75)),Т1[№ п./п.]),ROW(B74))),\"\")","v":""},{"$f":"IFERROR(INDEX(Т1[Дата рождения],SMALL(IF(LEFTB(Т1[Фамилия И.О.])=RIGHTB(CELL(\"имяфайла\",F75)),Т1[№ п./п.]),ROW(C74))),\"\")","v":""}]
[{"$f":"IFERROR(INDEX(Т1[№ п./п.],SMALL(IF(LEFTB(Т1[Фамилия И.О.])=RIGHTB(CELL(\"имяфайла\",D76)),Т1[№ п./п.]),ROW(A75))),\"\")","v":""},{"$f":"IFERROR(INDEX(Т1[Фамилия И.О.],SMALL(IF(LEFTB(Т1[Фамилия И.О.])=RIGHTB(CELL(\"имяфайла\",E76)),Т1[№ п./п.]),ROW(B75))),\"\")","v":""},{"$f":"IFERROR(INDEX(Т1[Дата рождения],SMALL(IF(LEFTB(Т1[Фамилия И.О.])=RIGHTB(CELL(\"имяфайла\",F76)),Т1[№ п./п.]),ROW(C75))),\"\")","v":""}]
[{"$f":"IFERROR(INDEX(Т1[№ п./п.],SMALL(IF(LEFTB(Т1[Фамилия И.О.])=RIGHTB(CELL(\"имяфайла\",D77)),Т1[№ п./п.]),ROW(A76))),\"\")","v":""},{"$f":"IFERROR(INDEX(Т1[Фамилия И.О.],SMALL(IF(LEFTB(Т1[Фамилия И.О.])=RIGHTB(CELL(\"имяфайла\",E77)),Т1[№ п./п.]),ROW(B76))),\"\")","v":""},{"$f":"IFERROR(INDEX(Т1[Дата рождения],SMALL(IF(LEFTB(Т1[Фамилия И.О.])=RIGHTB(CELL(\"имяфайла\",F77)),Т1[№ п./п.]),ROW(C76))),\"\")","v":""}]
[{"$f":"IFERROR(INDEX(Т1[№ п./п.],SMALL(IF(LEFTB(Т1[Фамилия И.О.])=RIGHTB(CELL(\"имяфайла\",D78)),Т1[№ п./п.]),ROW(A77))),\"\")","v":""},{"$f":"IFERROR(INDEX(Т1[Фамилия И.О.],SMALL(IF(LEFTB(Т1[Фамилия И.О.])=RIGHTB(CELL(\"имяфайла\",E78)),Т1[№ п./п.]),ROW(B77))),\"\")","v":""},{"$f":"IFERROR(INDEX(Т1[Дата рождения],SMALL(IF(LEFTB(Т1[Фамилия И.О.])=RIGHTB(CELL(\"имяфайла\",F78)),Т1[№ п./п.]),ROW(C77))),\"\")","v":""}]
[{"$f":"IFERROR(INDEX(Т1[№ п./п.],SMALL(IF(LEFTB(Т1[Фамилия И.О.])=RIGHTB(CELL(\"имяфайла\",D79)),Т1[№ п./п.]),ROW(A78))),\"\")","v":""},{"$f":"IFERROR(INDEX(Т1[Фамилия И.О.],SMALL(IF(LEFTB(Т1[Фамилия И.О.])=RIGHTB(CELL(\"имяфайла\",E79)),Т1[№ п./п.]),ROW(B78))),\"\")","v":""},{"$f":"IFERROR(INDEX(Т1[Дата рождения],SMALL(IF(LEFTB(Т1[Фамилия И.О.])=RIGHTB(CELL(\"имяфайла\",F79)),Т1[№ п./п.]),ROW(C78))),\"\")","v":""}]
[{"$f":"IFERROR(INDEX(Т1[№ п./п.],SMALL(IF(LEFTB(Т1[Фамилия И.О.])=RIGHTB(CELL(\"имяфайла\",D80)),Т1[№ п./п.]),ROW(A79))),\"\")","v":""},{"$f":"IFERROR(INDEX(Т1[Фамилия И.О.],SMALL(IF(LEFTB(Т1[Фамилия И.О.])=RIGHTB(CELL(\"имяфайла\",E80)),Т1[№ п./п.]),ROW(B79))),\"\")","v":""},{"$f":"IFERROR(INDEX(Т1[Дата рождения],SMALL(IF(LEFTB(Т1[Фамилия И.О.])=RIGHTB(CELL(\"имяфайла\",F80)),Т1[№ п./п.]),ROW(C79))),\"\")","v":""}]
[{"$f":"IFERROR(INDEX(Т1[№ п./п.],SMALL(IF(LEFTB(Т1[Фамилия И.О.])=RIGHTB(CELL(\"имяфайла\",D81)),Т1[№ п./п.]),ROW(A80))),\"\")","v":""},{"$f":"IFERROR(INDEX(Т1[Фамилия И.О.],SMALL(IF(LEFTB(Т1[Фамилия И.О.])=RIGHTB(CELL(\"имяфайла\",E81)),Т1[№ п./п.]),ROW(B80))),\"\")","v":""},{"$f":"IFERROR(INDEX(Т1[Дата рождения],SMALL(IF(LEFTB(Т1[Фамилия И.О.])=RIGHTB(CELL(\"имяфайла\",F81)),Т1[№ п./п.]),ROW(C80))),\"\")","v":""}]
[{"$f":"IFERROR(INDEX(Т1[№ п./п.],SMALL(IF(LEFTB(Т1[Фамилия И.О.])=RIGHTB(CELL(\"имяфайла\",D82)),Т1[№ п./п.]),ROW(A81))),\"\")","v":""},{"$f":"IFERROR(INDEX(Т1[Фамилия И.О.],SMALL(IF(LEFTB(Т1[Фамилия И.О.])=RIGHTB(CELL(\"имяфайла\",E82)),Т1[№ п./п.]),ROW(B81))),\"\")","v":""},{"$f":"IFERROR(INDEX(Т1[Дата рождения],SMALL(IF(LEFTB(Т1[Фамилия И.О.])=RIGHTB(CELL(\"имяфайла\",F82)),Т1[№ п./п.]),ROW(C81))),\"\")","v":""}]
[{"$f":"IFERROR(INDEX(Т1[№ п./п.],SMALL(IF(LEFTB(Т1[Фамилия И.О.])=RIGHTB(CELL(\"имяфайла\",D83)),Т1[№ п./п.]),ROW(A82))),\"\")","v":""},{"$f":"IFERROR(INDEX(Т1[Фамилия И.О.],SMALL(IF(LEFTB(Т1[Фамилия И.О.])=RIGHTB(CELL(\"имяфайла\",E83)),Т1[№ п./п.]),ROW(B82))),\"\")","v":""},{"$f":"IFERROR(INDEX(Т1[Дата рождения],SMALL(IF(LEFTB(Т1[Фамилия И.О.])=RIGHTB(CELL(\"имяфайла\",F83)),Т1[№ п./п.]),ROW(C82))),\"\")","v":""}]
[{"$f":"IFERROR(INDEX(Т1[№ п./п.],SMALL(IF(LEFTB(Т1[Фамилия И.О.])=RIGHTB(CELL(\"имяфайла\",D84)),Т1[№ п./п.]),ROW(A83))),\"\")","v":""},{"$f":"IFERROR(INDEX(Т1[Фамилия И.О.],SMALL(IF(LEFTB(Т1[Фамилия И.О.])=RIGHTB(CELL(\"имяфайла\",E84)),Т1[№ п./п.]),ROW(B83))),\"\")","v":""},{"$f":"IFERROR(INDEX(Т1[Дата рождения],SMALL(IF(LEFTB(Т1[Фамилия И.О.])=RIGHTB(CELL(\"имяфайла\",F84)),Т1[№ п./п.]),ROW(C83))),\"\")","v":""}]
[{"$f":"IFERROR(INDEX(Т1[№ п./п.],SMALL(IF(LEFTB(Т1[Фамилия И.О.])=RIGHTB(CELL(\"имяфайла\",D85)),Т1[№ п./п.]),ROW(A84))),\"\")","v":""},{"$f":"IFERROR(INDEX(Т1[Фамилия И.О.],SMALL(IF(LEFTB(Т1[Фамилия И.О.])=RIGHTB(CELL(\"имяфайла\",E85)),Т1[№ п./п.]),ROW(B84))),\"\")","v":""},{"$f":"IFERROR(INDEX(Т1[Дата рождения],SMALL(IF(LEFTB(Т1[Фамилия И.О.])=RIGHTB(CELL(\"имяфайла\",F85)),Т1[№ п./п.]),ROW(C84))),\"\")","v":""}]
[{"$f":"IFERROR(INDEX(Т1[№ п./п.],SMALL(IF(LEFTB(Т1[Фамилия И.О.])=RIGHTB(CELL(\"имяфайла\",D86)),Т1[№ п./п.]),ROW(A85))),\"\")","v":""},{"$f":"IFERROR(INDEX(Т1[Фамилия И.О.],SMALL(IF(LEFTB(Т1[Фамилия И.О.])=RIGHTB(CELL(\"имяфайла\",E86)),Т1[№ п./п.]),ROW(B85))),\"\")","v":""},{"$f":"IFERROR(INDEX(Т1[Дата рождения],SMALL(IF(LEFTB(Т1[Фамилия И.О.])=RIGHTB(CELL(\"имяфайла\",F86)),Т1[№ п./п.]),ROW(C85))),\"\")","v":""}]
[{"$f":"IFERROR(INDEX(Т1[№ п./п.],SMALL(IF(LEFTB(Т1[Фамилия И.О.])=RIGHTB(CELL(\"имяфайла\",D87)),Т1[№ п./п.]),ROW(A86))),\"\")","v":""},{"$f":"IFERROR(INDEX(Т1[Фамилия И.О.],SMALL(IF(LEFTB(Т1[Фамилия И.О.])=RIGHTB(CELL(\"имяфайла\",E87)),Т1[№ п./п.]),ROW(B86))),\"\")","v":""},{"$f":"IFERROR(INDEX(Т1[Дата рождения],SMALL(IF(LEFTB(Т1[Фамилия И.О.])=RIGHTB(CELL(\"имяфайла\",F87)),Т1[№ п./п.]),ROW(C86))),\"\")","v":""}]
[{"$f":"IFERROR(INDEX(Т1[№ п./п.],SMALL(IF(LEFTB(Т1[Фамилия И.О.])=RIGHTB(CELL(\"имяфайла\",D88)),Т1[№ п./п.]),ROW(A87))),\"\")","v":""},{"$f":"IFERROR(INDEX(Т1[Фамилия И.О.],SMALL(IF(LEFTB(Т1[Фамилия И.О.])=RIGHTB(CELL(\"имяфайла\",E88)),Т1[№ п./п.]),ROW(B87))),\"\")","v":""},{"$f":"IFERROR(INDEX(Т1[Дата рождения],SMALL(IF(LEFTB(Т1[Фамилия И.О.])=RIGHTB(CELL(\"имяфайла\",F88)),Т1[№ п./п.]),ROW(C87))),\"\")","v":""}]
[{"$f":"IFERROR(INDEX(Т1[№ п./п.],SMALL(IF(LEFTB(Т1[Фамилия И.О.])=RIGHTB(CELL(\"имяфайла\",D89)),Т1[№ п./п.]),ROW(A88))),\"\")","v":""},{"$f":"IFERROR(INDEX(Т1[Фамилия И.О.],SMALL(IF(LEFTB(Т1[Фамилия И.О.])=RIGHTB(CELL(\"имяфайла\",E89)),Т1[№ п./п.]),ROW(B88))),\"\")","v":""},{"$f":"IFERROR(INDEX(Т1[Дата рождения],SMALL(IF(LEFTB(Т1[Фамилия И.О.])=RIGHTB(CELL(\"имяфайла\",F89)),Т1[№ п./п.]),ROW(C88))),\"\")","v":""}]
[{"$f":"IFERROR(INDEX(Т1[№ п./п.],SMALL(IF(LEFTB(Т1[Фамилия И.О.])=RIGHTB(CELL(\"имяфайла\",D90)),Т1[№ п./п.]),ROW(A89))),\"\")","v":""},{"$f":"IFERROR(INDEX(Т1[Фамилия И.О.],SMALL(IF(LEFTB(Т1[Фамилия И.О.])=RIGHTB(CELL(\"имяфайла\",E90)),Т1[№ п./п.]),ROW(B89))),\"\")","v":""},{"$f":"IFERROR(INDEX(Т1[Дата рождения],SMALL(IF(LEFTB(Т1[Фамилия И.О.])=RIGHTB(CELL(\"имяфайла\",F90)),Т1[№ п./п.]),ROW(C89))),\"\")","v":""}]
[{"$f":"IFERROR(INDEX(Т1[№ п./п.],SMALL(IF(LEFTB(Т1[Фамилия И.О.])=RIGHTB(CELL(\"имяфайла\",D91)),Т1[№ п./п.]),ROW(A90))),\"\")","v":""},{"$f":"IFERROR(INDEX(Т1[Фамилия И.О.],SMALL(IF(LEFTB(Т1[Фамилия И.О.])=RIGHTB(CELL(\"имяфайла\",E91)),Т1[№ п./п.]),ROW(B90))),\"\")","v":""},{"$f":"IFERROR(INDEX(Т1[Дата рождения],SMALL(IF(LEFTB(Т1[Фамилия И.О.])=RIGHTB(CELL(\"имяфайла\",F91)),Т1[№ п./п.]),ROW(C90))),\"\")","v":""}]
[{"$f":"IFERROR(INDEX(Т1[№ п./п.],SMALL(IF(LEFTB(Т1[Фамилия И.О.])=RIGHTB(CELL(\"имяфайла\",D92)),Т1[№ п./п.]),ROW(A91))),\"\")","v":""},{"$f":"IFERROR(INDEX(Т1[Фамилия И.О.],SMALL(IF(LEFTB(Т1[Фамилия И.О.])=RIGHTB(CELL(\"имяфайла\",E92)),Т1[№ п./п.]),ROW(B91))),\"\")","v":""},{"$f":"IFERROR(INDEX(Т1[Дата рождения],SMALL(IF(LEFTB(Т1[Фамилия И.О.])=RIGHTB(CELL(\"имяфайла\",F92)),Т1[№ п./п.]),ROW(C91))),\"\")","v":""}]
[{"$f":"IFERROR(INDEX(Т1[№ п./п.],SMALL(IF(LEFTB(Т1[Фамилия И.О.])=RIGHTB(CELL(\"имяфайла\",D93)),Т1[№ п./п.]),ROW(A92))),\"\")","v":""},{"$f":"IFERROR(INDEX(Т1[Фамилия И.О.],SMALL(IF(LEFTB(Т1[Фамилия И.О.])=RIGHTB(CELL(\"имяфайла\",E93)),Т1[№ п./п.]),ROW(B92))),\"\")","v":""},{"$f":"IFERROR(INDEX(Т1[Дата рождения],SMALL(IF(LEFTB(Т1[Фамилия И.О.])=RIGHTB(CELL(\"имяфайла\",F93)),Т1[№ п./п.]),ROW(C92))),\"\")","v":""}]
[{"$f":"IFERROR(INDEX(Т1[№ п./п.],SMALL(IF(LEFTB(Т1[Фамилия И.О.])=RIGHTB(CELL(\"имяфайла\",D94)),Т1[№ п./п.]),ROW(A93))),\"\")","v":""},{"$f":"IFERROR(INDEX(Т1[Фамилия И.О.],SMALL(IF(LEFTB(Т1[Фамилия И.О.])=RIGHTB(CELL(\"имяфайла\",E94)),Т1[№ п./п.]),ROW(B93))),\"\")","v":""},{"$f":"IFERROR(INDEX(Т1[Дата рождения],SMALL(IF(LEFTB(Т1[Фамилия И.О.])=RIGHTB(CELL(\"имяфайла\",F94)),Т1[№ п./п.]),ROW(C93))),\"\")","v":""}]
[{"$f":"IFERROR(INDEX(Т1[№ п./п.],SMALL(IF(LEFTB(Т1[Фамилия И.О.])=RIGHTB(CELL(\"имяфайла\",D95)),Т1[№ п./п.]),ROW(A94))),\"\")","v":""},{"$f":"IFERROR(INDEX(Т1[Фамилия И.О.],SMALL(IF(LEFTB(Т1[Фамилия И.О.])=RIGHTB(CELL(\"имяфайла\",E95)),Т1[№ п./п.]),ROW(B94))),\"\")","v":""},{"$f":"IFERROR(INDEX(Т1[Дата рождения],SMALL(IF(LEFTB(Т1[Фамилия И.О.])=RIGHTB(CELL(\"имяфайла\",F95)),Т1[№ п./п.]),ROW(C94))),\"\")","v":""}]
[{"$f":"IFERROR(INDEX(Т1[№ п./п.],SMALL(IF(LEFTB(Т1[Фамилия И.О.])=RIGHTB(CELL(\"имяфайла\",D96)),Т1[№ п./п.]),ROW(A95))),\"\")","v":""},{"$f":"IFERROR(INDEX(Т1[Фамилия И.О.],SMALL(IF(LEFTB(Т1[Фамилия И.О.])=RIGHTB(CELL(\"имяфайла\",E96)),Т1[№ п./п.]),ROW(B95))),\"\")","v":""},{"$f":"IFERROR(INDEX(Т1[Дата рождения],SMALL(IF(LEFTB(Т1[Фамилия И.О.])=RIGHTB(CELL(\"имяфайла\",F96)),Т1[№ п./п.]),ROW(C95))),\"\")","v":""}]
[{"$f":"IFERROR(INDEX(Т1[№ п./п.],SMALL(IF(LEFTB(Т1[Фамилия И.О.])=RIGHTB(CELL(\"имяфайла\",D97)),Т1[№ п./п.]),ROW(A96))),\"\")","v":""},{"$f":"IFERROR(INDEX(Т1[Фамилия И.О.],SMALL(IF(LEFTB(Т1[Фамилия И.О.])=RIGHTB(CELL(\"имяфайла\",E97)),Т1[№ п./п.]),ROW(B96))),\"\")","v":""},{"$f":"IFERROR(INDEX(Т1[Дата рождения],SMALL(IF(LEFTB(Т1[Фамилия И.О.])=RIGHTB(CELL(\"имяфайла\",F97)),Т1[№ п./п.]),ROW(C96))),\"\")","v":""}]
[{"$f":"IFERROR(INDEX(Т1[№ п./п.],SMALL(IF(LEFTB(Т1[Фамилия И.О.])=RIGHTB(CELL(\"имяфайла\",D98)),Т1[№ п./п.]),ROW(A97))),\"\")","v":""},{"$f":"IFERROR(INDEX(Т1[Фамилия И.О.],SMALL(IF(LEFTB(Т1[Фамилия И.О.])=RIGHTB(CELL(\"имяфайла\",E98)),Т1[№ п./п.]),ROW(B97))),\"\")","v":""},{"$f":"IFERROR(INDEX(Т1[Дата рождения],SMALL(IF(LEFTB(Т1[Фамилия И.О.])=RIGHTB(CELL(\"имяфайла\",F98)),Т1[№ п./п.]),ROW(C97))),\"\")","v":""}]
[{"$f":"IFERROR(INDEX(Т1[№ п./п.],SMALL(IF(LEFTB(Т1[Фамилия И.О.])=RIGHTB(CELL(\"имяфайла\",D99)),Т1[№ п./п.]),ROW(A98))),\"\")","v":""},{"$f":"IFERROR(INDEX(Т1[Фамилия И.О.],SMALL(IF(LEFTB(Т1[Фамилия И.О.])=RIGHTB(CELL(\"имяфайла\",E99)),Т1[№ п./п.]),ROW(B98))),\"\")","v":""},{"$f":"IFERROR(INDEX(Т1[Дата рождения],SMALL(IF(LEFTB(Т1[Фамилия И.О.])=RIGHTB(CELL(\"имяфайла\",F99)),Т1[№ п./п.]),ROW(C98))),\"\")","v":""}]
[{"$f":"IFERROR(INDEX(Т1[№ п./п.],SMALL(IF(LEFTB(Т1[Фамилия И.О.])=RIGHTB(CELL(\"имяфайла\",D100)),Т1[№ п./п.]),ROW(A99))),\"\")","v":""},{"$f":"IFERROR(INDEX(Т1[Фамилия И.О.],SMALL(IF(LEFTB(Т1[Фамилия И.О.])=RIGHTB(CELL(\"имяфайла\",E100)),Т1[№ п./п.]),ROW(B99))),\"\")","v":""},{"$f":"IFERROR(INDEX(Т1[Дата рождения],SMALL(IF(LEFTB(Т1[Фамилия И.О.])=RIGHTB(CELL(\"имяфайла\",F100)),Т1[№ п./п.]),ROW(C99))),\"\")","v":""}]
[{"$f":"IFERROR(INDEX(Т1[№ п./п.],SMALL(IF(LEFTB(Т1[Фамилия И.О.])=RIGHTB(CELL(\"имяфайла\",D101)),Т1[№ п./п.]),ROW(A100))),\"\")","v":""},{"$f":"IFERROR(INDEX(Т1[Фамилия И.О.],SMALL(IF(LEFTB(Т1[Фамилия И.О.])=RIGHTB(CELL(\"имяфайла\",E101)),Т1[№ п./п.]),ROW(B100))),\"\")","v":""},{"$f":"IFERROR(INDEX(Т1[Дата рождения],SMALL(IF(LEFTB(Т1[Фамилия И.О.])=RIGHTB(CELL(\"имяфайла\",F101)),Т1[№ п./п.]),ROW(C100))),\"\")","v":""}]
[{"$f":"IFERROR(INDEX(Т1[№ п./п.],SMALL(IF(LEFTB(Т1[Фамилия И.О.])=RIGHTB(CELL(\"имяфайла\",D102)),Т1[№ п./п.]),ROW(A101))),\"\")","v":""},{"$f":"IFERROR(INDEX(Т1[Фамилия И.О.],SMALL(IF(LEFTB(Т1[Фамилия И.О.])=RIGHTB(CELL(\"имяфайла\",E102)),Т1[№ п./п.]),ROW(B101))),\"\")","v":""},{"$f":"IFERROR(INDEX(Т1[Дата рождения],SMALL(IF(LEFTB(Т1[Фамилия И.О.])=RIGHTB(CELL(\"имяфайла\",F102)),Т1[№ п./п.]),ROW(C101))),\"\")","v":""}]
[{"$f":"IFERROR(INDEX(Т1[№ п./п.],SMALL(IF(LEFTB(Т1[Фамилия И.О.])=RIGHTB(CELL(\"имяфайла\",D103)),Т1[№ п./п.]),ROW(A102))),\"\")","v":""},{"$f":"IFERROR(INDEX(Т1[Фамилия И.О.],SMALL(IF(LEFTB(Т1[Фамилия И.О.])=RIGHTB(CELL(\"имяфайла\",E103)),Т1[№ п./п.]),ROW(B102))),\"\")","v":""},{"$f":"IFERROR(INDEX(Т1[Дата рождения],SMALL(IF(LEFTB(Т1[Фамилия И.О.])=RIGHTB(CELL(\"имяфайла\",F103)),Т1[№ п./п.]),ROW(C102))),\"\")","v":""}]
[{"$f":"IFERROR(INDEX(Т1[№ п./п.],SMALL(IF(LEFTB(Т1[Фамилия И.О.])=RIGHTB(CELL(\"имяфайла\",D104)),Т1[№ п./п.]),ROW(A103))),\"\")","v":""},{"$f":"IFERROR(INDEX(Т1[Фамилия И.О.],SMALL(IF(LEFTB(Т1[Фамилия И.О.])=RIGHTB(CELL(\"имяфайла\",E104)),Т1[№ п./п.]),ROW(B103))),\"\")","v":""},{"$f":"IFERROR(INDEX(Т1[Дата рождения],SMALL(IF(LEFTB(Т1[Фамилия И.О.])=RIGHTB(CELL(\"имяфайла\",F104)),Т1[№ п./п.]),ROW(C103))),\"\")","v":""}]
[{"$f":"IFERROR(INDEX(Т1[№ п./п.],SMALL(IF(LEFTB(Т1[Фамилия И.О.])=RIGHTB(CELL(\"имяфайла\",D105)),Т1[№ п./п.]),ROW(A104))),\"\")","v":""},{"$f":"IFERROR(INDEX(Т1[Фамилия И.О.],SMALL(IF(LEFTB(Т1[Фамилия И.О.])=RIGHTB(CELL(\"имяфайла\",E105)),Т1[№ п./п.]),ROW(B104))),\"\")","v":""},{"$f":"IFERROR(INDEX(Т1[Дата рождения],SMALL(IF(LEFTB(Т1[Фамилия И.О.])=RIGHTB(CELL(\"имяфайла\",F105)),Т1[№ п./п.]),ROW(C104))),\"\")","v":""}]
[{"$f":"IFERROR(INDEX(Т1[№ п./п.],SMALL(IF(LEFTB(Т1[Фамилия И.О.])=RIGHTB(CELL(\"имяфайла\",D106)),Т1[№ п./п.]),ROW(A105))),\"\")","v":""},{"$f":"IFERROR(INDEX(Т1[Фамилия И.О.],SMALL(IF(LEFTB(Т1[Фамилия И.О.])=RIGHTB(CELL(\"имяфайла\",E106)),Т1[№ п./п.]),ROW(B105))),\"\")","v":""},{"$f":"IFERROR(INDEX(Т1[Дата рождения],SMALL(IF(LEFTB(Т1[Фамилия И.О.])=RIGHTB(CELL(\"имяфайла\",F106)),Т1[№ п./п.]),ROW(C105))),\"\")","v":""}]
[{"$f":"IFERROR(INDEX(Т1[№ п./п.],SMALL(IF(LEFTB(Т1[Фамилия И.О.])=RIGHTB(CELL(\"имяфайла\",D107)),Т1[№ п./п.]),ROW(A106))),\"\")","v":""},{"$f":"IFERROR(INDEX(Т1[Фамилия И.О.],SMALL(IF(LEFTB(Т1[Фамилия И.О.])=RIGHTB(CELL(\"имяфайла\",E107)),Т1[№ п./п.]),ROW(B106))),\"\")","v":""},{"$f":"IFERROR(INDEX(Т1[Дата рождения],SMALL(IF(LEFTB(Т1[Фамилия И.О.])=RIGHTB(CELL(\"имяфайла\",F107)),Т1[№ п./п.]),ROW(C106))),\"\")","v":""}]
[{"$f":"IFERROR(INDEX(Т1[№ п./п.],SMALL(IF(LEFTB(Т1[Фамилия И.О.])=RIGHTB(CELL(\"имяфайла\",D108)),Т1[№ п./п.]),ROW(A107))),\"\")","v":""},{"$f":"IFERROR(INDEX(Т1[Фамилия И.О.],SMALL(IF(LEFTB(Т1[Фамилия И.О.])=RIGHTB(CELL(\"имяфайла\",E108)),Т1[№ п./п.]),ROW(B107))),\"\")","v":""},{"$f":"IFERROR(INDEX(Т1[Дата рождения],SMALL(IF(LEFTB(Т1[Фамилия И.О.])=RIGHTB(CELL(\"имяфайла\",F108)),Т1[№ п./п.]),ROW(C107))),\"\")","v":""}]
[{"$f":"IFERROR(INDEX(Т1[№ п./п.],SMALL(IF(LEFTB(Т1[Фамилия И.О.])=RIGHTB(CELL(\"имяфайла\",D109)),Т1[№ п./п.]),ROW(A108))),\"\")","v":""},{"$f":"IFERROR(INDEX(Т1[Фамилия И.О.],SMALL(IF(LEFTB(Т1[Фамилия И.О.])=RIGHTB(CELL(\"имяфайла\",E109)),Т1[№ п./п.]),ROW(B108))),\"\")","v":""},{"$f":"IFERROR(INDEX(Т1[Дата рождения],SMALL(IF(LEFTB(Т1[Фамилия И.О.])=RIGHTB(CELL(\"имяфайла\",F109)),Т1[№ п./п.]),ROW(C108))),\"\")","v":""}]
[{"$f":"IFERROR(INDEX(Т1[№ п./п.],SMALL(IF(LEFTB(Т1[Фамилия И.О.])=RIGHTB(CELL(\"имяфайла\",D110)),Т1[№ п./п.]),ROW(A109))),\"\")","v":""},{"$f":"IFERROR(INDEX(Т1[Фамилия И.О.],SMALL(IF(LEFTB(Т1[Фамилия И.О.])=RIGHTB(CELL(\"имяфайла\",E110)),Т1[№ п./п.]),ROW(B109))),\"\")","v":""},{"$f":"IFERROR(INDEX(Т1[Дата рождения],SMALL(IF(LEFTB(Т1[Фамилия И.О.])=RIGHTB(CELL(\"имяфайла\",F110)),Т1[№ п./п.]),ROW(C109))),\"\")","v":""}]
[{"$f":"IFERROR(INDEX(Т1[№ п./п.],SMALL(IF(LEFTB(Т1[Фамилия И.О.])=RIGHTB(CELL(\"имяфайла\",D111)),Т1[№ п./п.]),ROW(A110))),\"\")","v":""},{"$f":"IFERROR(INDEX(Т1[Фамилия И.О.],SMALL(IF(LEFTB(Т1[Фамилия И.О.])=RIGHTB(CELL(\"имяфайла\",E111)),Т1[№ п./п.]),ROW(B110))),\"\")","v":""},{"$f":"IFERROR(INDEX(Т1[Дата рождения],SMALL(IF(LEFTB(Т1[Фамилия И.О.])=RIGHTB(CELL(\"имяфайла\",F111)),Т1[№ п./п.]),ROW(C110))),\"\")","v":""}]
[{"$f":"IFERROR(INDEX(Т1[№ п./п.],SMALL(IF(LEFTB(Т1[Фамилия И.О.])=RIGHTB(CELL(\"имяфайла\",D112)),Т1[№ п./п.]),ROW(A111))),\"\")","v":""},{"$f":"IFERROR(INDEX(Т1[Фамилия И.О.],SMALL(IF(LEFTB(Т1[Фамилия И.О.])=RIGHTB(CELL(\"имяфайла\",E112)),Т1[№ п./п.]),ROW(B111))),\"\")","v":""},{"$f":"IFERROR(INDEX(Т1[Дата рождения],SMALL(IF(LEFTB(Т1[Фамилия И.О.])=RIGHTB(CELL(\"имяфайла\",F112)),Т1[№ п./п.]),ROW(C111))),\"\")","v":""}]
[{"$f":"IFERROR(INDEX(Т1[№ п./п.],SMALL(IF(LEFTB(Т1[Фамилия И.О.])=RIGHTB(CELL(\"имяфайла\",D113)),Т1[№ п./п.]),ROW(A112))),\"\")","v":""},{"$f":"IFERROR(INDEX(Т1[Фамилия И.О.],SMALL(IF(LEFTB(Т1[Фамилия И.О.])=RIGHTB(CELL(\"имяфайла\",E113)),Т1[№ п./п.]),ROW(B112))),\"\")","v":""},{"$f":"IFERROR(INDEX(Т1[Дата рождения],SMALL(IF(LEFTB(Т1[Фамилия И.О.])=RIGHTB(CELL(\"имяфайла\",F113)),Т1[№ п./п.]),ROW(C112))),\"\")","v":""}]
[{"$f":"IFERROR(INDEX(Т1[№ п./п.],SMALL(IF(LEFTB(Т1[Фамилия И.О.])=RIGHTB(CELL(\"имяфайла\",D114)),Т1[№ п./п.]),ROW(A113))),\"\")","v":""},{"$f":"IFERROR(INDEX(Т1[Фамилия И.О.],SMALL(IF(LEFTB(Т1[Фамилия И.О.])=RIGHTB(CELL(\"имяфайла\",E114)),Т1[№ п./п.]),ROW(B113))),\"\")","v":""},{"$f":"IFERROR(INDEX(Т1[Дата рождения],SMALL(IF(LEFTB(Т1[Фамилия И.О.])=RIGHTB(CELL(\"имяфайла\",F114)),Т1[№ п./п.]),ROW(C113))),\"\")","v":""}]
[{"$f":"IFERROR(INDEX(Т1[№ п./п.],SMALL(IF(LEFTB(Т1[Фамилия И.О.])=RIGHTB(CELL(\"имяфайла\",D115)),Т1[№ п./п.]),ROW(A114))),\"\")","v":""},{"$f":"IFERROR(INDEX(Т1[Фамилия И.О.],SMALL(IF(LEFTB(Т1[Фамилия И.О.])=RIGHTB(CELL(\"имяфайла\",E115)),Т1[№ п./п.]),ROW(B114))),\"\")","v":""},{"$f":"IFERROR(INDEX(Т1[Дата рождения],SMALL(IF(LEFTB(Т1[Фамилия И.О.])=RIGHTB(CELL(\"имяфайла\",F115)),Т1[№ п./п.]),ROW(C114))),\"\")","v":""}]
[{"$f":"IFERROR(INDEX(Т1[№ п./п.],SMALL(IF(LEFTB(Т1[Фамилия И.О.])=RIGHTB(CELL(\"имяфайла\",D116)),Т1[№ п./п.]),ROW(A115))),\"\")","v":""},{"$f":"IFERROR(INDEX(Т1[Фамилия И.О.],SMALL(IF(LEFTB(Т1[Фамилия И.О.])=RIGHTB(CELL(\"имяфайла\",E116)),Т1[№ п./п.]),ROW(B115))),\"\")","v":""},{"$f":"IFERROR(INDEX(Т1[Дата рождения],SMALL(IF(LEFTB(Т1[Фамилия И.О.])=RIGHTB(CELL(\"имяфайла\",F116)),Т1[№ п./п.]),ROW(C115))),\"\")","v":""}]
[{"$f":"IFERROR(INDEX(Т1[№ п./п.],SMALL(IF(LEFTB(Т1[Фамилия И.О.])=RIGHTB(CELL(\"имяфайла\",D117)),Т1[№ п./п.]),ROW(A116))),\"\")","v":""},{"$f":"IFERROR(INDEX(Т1[Фамилия И.О.],SMALL(IF(LEFTB(Т1[Фамилия И.О.])=RIGHTB(CELL(\"имяфайла\",E117)),Т1[№ п./п.]),ROW(B116))),\"\")","v":""},{"$f":"IFERROR(INDEX(Т1[Дата рождения],SMALL(IF(LEFTB(Т1[Фамилия И.О.])=RIGHTB(CELL(\"имяфайла\",F117)),Т1[№ п./п.]),ROW(C116))),\"\")","v":""}]
[{"$f":"IFERROR(INDEX(Т1[№ п./п.],SMALL(IF(LEFTB(Т1[Фамилия И.О.])=RIGHTB(CELL(\"имяфайла\",D118)),Т1[№ п./п.]),ROW(A117))),\"\")","v":""},{"$f":"IFERROR(INDEX(Т1[Фамилия И.О.],SMALL(IF(LEFTB(Т1[Фамилия И.О.])=RIGHTB(CELL(\"имяфайла\",E118)),Т1[№ п./п.]),ROW(B117))),\"\")","v":""},{"$f":"IFERROR(INDEX(Т1[Дата рождения],SMALL(IF(LEFTB(Т1[Фамилия И.О.])=RIGHTB(CELL(\"имяфайла\",F118)),Т1[№ п./п.]),ROW(C117))),\"\")","v":""}]
[{"$f":"IFERROR(INDEX(Т1[№ п./п.],SMALL(IF(LEFTB(Т1[Фамилия И.О.])=RIGHTB(CELL(\"имяфайла\",D119)),Т1[№ п./п.]),ROW(A118))),\"\")","v":""},{"$f":"IFERROR(INDEX(Т1[Фамилия И.О.],SMALL(IF(LEFTB(Т1[Фамилия И.О.])=RIGHTB(CELL(\"имяфайла\",E119)),Т1[№ п./п.]),ROW(B118))),\"\")","v":""},{"$f":"IFERROR(INDEX(Т1[Дата рождения],SMALL(IF(LEFTB(Т1[Фамилия И.О.])=RIGHTB(CELL(\"имяфайла\",F119)),Т1[№ п./п.]),ROW(C118))),\"\")","v":""}]
[{"$f":"IFERROR(INDEX(Т1[№ п./п.],SMALL(IF(LEFTB(Т1[Фамилия И.О.])=RIGHTB(CELL(\"имяфайла\",D120)),Т1[№ п./п.]),ROW(A119))),\"\")","v":""},{"$f":"IFERROR(INDEX(Т1[Фамилия И.О.],SMALL(IF(LEFTB(Т1[Фамилия И.О.])=RIGHTB(CELL(\"имяфайла\",E120)),Т1[№ п./п.]),ROW(B119))),\"\")","v":""},{"$f":"IFERROR(INDEX(Т1[Дата рождения],SMALL(IF(LEFTB(Т1[Фамилия И.О.])=RIGHTB(CELL(\"имяфайла\",F120)),Т1[№ п./п.]),ROW(C119))),\"\")","v":""}]
[{"$f":"IFERROR(INDEX(Т1[№ п./п.],SMALL(IF(LEFTB(Т1[Фамилия И.О.])=RIGHTB(CELL(\"имяфайла\",D121)),Т1[№ п./п.]),ROW(A120))),\"\")","v":""},{"$f":"IFERROR(INDEX(Т1[Фамилия И.О.],SMALL(IF(LEFTB(Т1[Фамилия И.О.])=RIGHTB(CELL(\"имяфайла\",E121)),Т1[№ п./п.]),ROW(B120))),\"\")","v":""},{"$f":"IFERROR(INDEX(Т1[Дата рождения],SMALL(IF(LEFTB(Т1[Фамилия И.О.])=RIGHTB(CELL(\"имяфайла\",F121)),Т1[№ п./п.]),ROW(C120))),\"\")","v":""}]
[{"$f":"IFERROR(INDEX(Т1[№ п./п.],SMALL(IF(LEFTB(Т1[Фамилия И.О.])=RIGHTB(CELL(\"имяфайла\",D122)),Т1[№ п./п.]),ROW(A121))),\"\")","v":""},{"$f":"IFERROR(INDEX(Т1[Фамилия И.О.],SMALL(IF(LEFTB(Т1[Фамилия И.О.])=RIGHTB(CELL(\"имяфайла\",E122)),Т1[№ п./п.]),ROW(B121))),\"\")","v":""},{"$f":"IFERROR(INDEX(Т1[Дата рождения],SMALL(IF(LEFTB(Т1[Фамилия И.О.])=RIGHTB(CELL(\"имяфайла\",F122)),Т1[№ п./п.]),ROW(C121))),\"\")","v":""}]
[{"$f":"IFERROR(INDEX(Т1[№ п./п.],SMALL(IF(LEFTB(Т1[Фамилия И.О.])=RIGHTB(CELL(\"имяфайла\",D123)),Т1[№ п./п.]),ROW(A122))),\"\")","v":""},{"$f":"IFERROR(INDEX(Т1[Фамилия И.О.],SMALL(IF(LEFTB(Т1[Фамилия И.О.])=RIGHTB(CELL(\"имяфайла\",E123)),Т1[№ п./п.]),ROW(B122))),\"\")","v":""},{"$f":"IFERROR(INDEX(Т1[Дата рождения],SMALL(IF(LEFTB(Т1[Фамилия И.О.])=RIGHTB(CELL(\"имяфайла\",F123)),Т1[№ п./п.]),ROW(C122))),\"\")","v":""}]
[{"$f":"IFERROR(INDEX(Т1[№ п./п.],SMALL(IF(LEFTB(Т1[Фамилия И.О.])=RIGHTB(CELL(\"имяфайла\",D124)),Т1[№ п./п.]),ROW(A123))),\"\")","v":""},{"$f":"IFERROR(INDEX(Т1[Фамилия И.О.],SMALL(IF(LEFTB(Т1[Фамилия И.О.])=RIGHTB(CELL(\"имяфайла\",E124)),Т1[№ п./п.]),ROW(B123))),\"\")","v":""},{"$f":"IFERROR(INDEX(Т1[Дата рождения],SMALL(IF(LEFTB(Т1[Фамилия И.О.])=RIGHTB(CELL(\"имяфайла\",F124)),Т1[№ п./п.]),ROW(C123))),\"\")","v":""}]
[{"$f":"IFERROR(INDEX(Т1[№ п./п.],SMALL(IF(LEFTB(Т1[Фамилия И.О.])=RIGHTB(CELL(\"имяфайла\",D125)),Т1[№ п./п.]),ROW(A124))),\"\")","v":""},{"$f":"IFERROR(INDEX(Т1[Фамилия И.О.],SMALL(IF(LEFTB(Т1[Фамилия И.О.])=RIGHTB(CELL(\"имяфайла\",E125)),Т1[№ п./п.]),ROW(B124))),\"\")","v":""},{"$f":"IFERROR(INDEX(Т1[Дата рождения],SMALL(IF(LEFTB(Т1[Фамилия И.О.])=RIGHTB(CELL(\"имяфайла\",F125)),Т1[№ п./п.]),ROW(C124))),\"\")","v":""}]
[{"$f":"IFERROR(INDEX(Т1[№ п./п.],SMALL(IF(LEFTB(Т1[Фамилия И.О.])=RIGHTB(CELL(\"имяфайла\",D126)),Т1[№ п./п.]),ROW(A125))),\"\")","v":""},{"$f":"IFERROR(INDEX(Т1[Фамилия И.О.],SMALL(IF(LEFTB(Т1[Фамилия И.О.])=RIGHTB(CELL(\"имяфайла\",E126)),Т1[№ п./п.]),ROW(B125))),\"\")","v":""},{"$f":"IFERROR(INDEX(Т1[Дата рождения],SMALL(IF(LEFTB(Т1[Фамилия И.О.])=RIGHTB(CELL(\"имяфайла\",F126)),Т1[№ п./п.]),ROW(C125))),\"\")","v":""}]
[{"$f":"IFERROR(INDEX(Т1[№ п./п.],SMALL(IF(LEFTB(Т1[Фамилия И.О.])=RIGHTB(CELL(\"имяфайла\",D127)),Т1[№ п./п.]),ROW(A126))),\"\")","v":""},{"$f":"IFERROR(INDEX(Т1[Фамилия И.О.],SMALL(IF(LEFTB(Т1[Фамилия И.О.])=RIGHTB(CELL(\"имяфайла\",E127)),Т1[№ п./п.]),ROW(B126))),\"\")","v":""},{"$f":"IFERROR(INDEX(Т1[Дата рождения],SMALL(IF(LEFTB(Т1[Фамилия И.О.])=RIGHTB(CELL(\"имяфайла\",F127)),Т1[№ п./п.]),ROW(C126))),\"\")","v":""}]
[{"$f":"IFERROR(INDEX(Т1[№ п./п.],SMALL(IF(LEFTB(Т1[Фамилия И.О.])=RIGHTB(CELL(\"имяфайла\",D128)),Т1[№ п./п.]),ROW(A127))),\"\")","v":""},{"$f":"IFERROR(INDEX(Т1[Фамилия И.О.],SMALL(IF(LEFTB(Т1[Фамилия И.О.])=RIGHTB(CELL(\"имяфайла\",E128)),Т1[№ п./п.]),ROW(B127))),\"\")","v":""},{"$f":"IFERROR(INDEX(Т1[Дата рождения],SMALL(IF(LEFTB(Т1[Фамилия И.О.])=RIGHTB(CELL(\"имяфайла\",F128)),Т1[№ п./п.]),ROW(C127))),\"\")","v":""}]
[{"$f":"IFERROR(INDEX(Т1[№ п./п.],SMALL(IF(LEFTB(Т1[Фамилия И.О.])=RIGHTB(CELL(\"имяфайла\",D129)),Т1[№ п./п.]),ROW(A128))),\"\")","v":""},{"$f":"IFERROR(INDEX(Т1[Фамилия И.О.],SMALL(IF(LEFTB(Т1[Фамилия И.О.])=RIGHTB(CELL(\"имяфайла\",E129)),Т1[№ п./п.]),ROW(B128))),\"\")","v":""},{"$f":"IFERROR(INDEX(Т1[Дата рождения],SMALL(IF(LEFTB(Т1[Фамилия И.О.])=RIGHTB(CELL(\"имяфайла\",F129)),Т1[№ п./п.]),ROW(C128))),\"\")","v":""}]
[{"$f":"IFERROR(INDEX(Т1[№ п./п.],SMALL(IF(LEFTB(Т1[Фамилия И.О.])=RIGHTB(CELL(\"имяфайла\",D130)),Т1[№ п./п.]),ROW(A129))),\"\")","v":""},{"$f":"IFERROR(INDEX(Т1[Фамилия И.О.],SMALL(IF(LEFTB(Т1[Фамилия И.О.])=RIGHTB(CELL(\"имяфайла\",E130)),Т1[№ п./п.]),ROW(B129))),\"\")","v":""},{"$f":"IFERROR(INDEX(Т1[Дата рождения],SMALL(IF(LEFTB(Т1[Фамилия И.О.])=RIGHTB(CELL(\"имяфайла\",F130)),Т1[№ п./п.]),ROW(C129))),\"\")","v":""}]
[{"$f":"IFERROR(INDEX(Т1[№ п./п.],SMALL(IF(LEFTB(Т1[Фамилия И.О.])=RIGHTB(CELL(\"имяфайла\",D131)),Т1[№ п./п.]),ROW(A130))),\"\")","v":""},{"$f":"IFERROR(INDEX(Т1[Фамилия И.О.],SMALL(IF(LEFTB(Т1[Фамилия И.О.])=RIGHTB(CELL(\"имяфайла\",E131)),Т1[№ п./п.]),ROW(B130))),\"\")","v":""},{"$f":"IFERROR(INDEX(Т1[Дата рождения],SMALL(IF(LEFTB(Т1[Фамилия И.О.])=RIGHTB(CELL(\"имяфайла\",F131)),Т1[№ п./п.]),ROW(C130))),\"\")","v":""}]
[{"$f":"IFERROR(INDEX(Т1[№ п./п.],SMALL(IF(LEFTB(Т1[Фамилия И.О.])=RIGHTB(CELL(\"имяфайла\",D132)),Т1[№ п./п.]),ROW(A131))),\"\")","v":""},{"$f":"IFERROR(INDEX(Т1[Фамилия И.О.],SMALL(IF(LEFTB(Т1[Фамилия И.О.])=RIGHTB(CELL(\"имяфайла\",E132)),Т1[№ п./п.]),ROW(B131))),\"\")","v":""},{"$f":"IFERROR(INDEX(Т1[Дата рождения],SMALL(IF(LEFTB(Т1[Фамилия И.О.])=RIGHTB(CELL(\"имяфайла\",F132)),Т1[№ п./п.]),ROW(C131))),\"\")","v":""}]
[{"$f":"IFERROR(INDEX(Т1[№ п./п.],SMALL(IF(LEFTB(Т1[Фамилия И.О.])=RIGHTB(CELL(\"имяфайла\",D133)),Т1[№ п./п.]),ROW(A132))),\"\")","v":""},{"$f":"IFERROR(INDEX(Т1[Фамилия И.О.],SMALL(IF(LEFTB(Т1[Фамилия И.О.])=RIGHTB(CELL(\"имяфайла\",E133)),Т1[№ п./п.]),ROW(B132))),\"\")","v":""},{"$f":"IFERROR(INDEX(Т1[Дата рождения],SMALL(IF(LEFTB(Т1[Фамилия И.О.])=RIGHTB(CELL(\"имяфайла\",F133)),Т1[№ п./п.]),ROW(C132))),\"\")","v":""}]
[{"$f":"IFERROR(INDEX(Т1[№ п./п.],SMALL(IF(LEFTB(Т1[Фамилия И.О.])=RIGHTB(CELL(\"имяфайла\",D134)),Т1[№ п./п.]),ROW(A133))),\"\")","v":""},{"$f":"IFERROR(INDEX(Т1[Фамилия И.О.],SMALL(IF(LEFTB(Т1[Фамилия И.О.])=RIGHTB(CELL(\"имяфайла\",E134)),Т1[№ п./п.]),ROW(B133))),\"\")","v":""},{"$f":"IFERROR(INDEX(Т1[Дата рождения],SMALL(IF(LEFTB(Т1[Фамилия И.О.])=RIGHTB(CELL(\"имяфайла\",F134)),Т1[№ п./п.]),ROW(C133))),\"\")","v":""}]
[{"$f":"IFERROR(INDEX(Т1[№ п./п.],SMALL(IF(LEFTB(Т1[Фамилия И.О.])=RIGHTB(CELL(\"имяфайла\",D135)),Т1[№ п./п.]),ROW(A134))),\"\")","v":""},{"$f":"IFERROR(INDEX(Т1[Фамилия И.О.],SMALL(IF(LEFTB(Т1[Фамилия И.О.])=RIGHTB(CELL(\"имяфайла\",E135)),Т1[№ п./п.]),ROW(B134))),\"\")","v":""},{"$f":"IFERROR(INDEX(Т1[Дата рождения],SMALL(IF(LEFTB(Т1[Фамилия И.О.])=RIGHTB(CELL(\"имяфайла\",F135)),Т1[№ п./п.]),ROW(C134))),\"\")","v":""}]
[{"$f":"IFERROR(INDEX(Т1[№ п./п.],SMALL(IF(LEFTB(Т1[Фамилия И.О.])=RIGHTB(CELL(\"имяфайла\",D136)),Т1[№ п./п.]),ROW(A135))),\"\")","v":""},{"$f":"IFERROR(INDEX(Т1[Фамилия И.О.],SMALL(IF(LEFTB(Т1[Фамилия И.О.])=RIGHTB(CELL(\"имяфайла\",E136)),Т1[№ п./п.]),ROW(B135))),\"\")","v":""},{"$f":"IFERROR(INDEX(Т1[Дата рождения],SMALL(IF(LEFTB(Т1[Фамилия И.О.])=RIGHTB(CELL(\"имяфайла\",F136)),Т1[№ п./п.]),ROW(C135))),\"\")","v":""}]
[{"$f":"IFERROR(INDEX(Т1[№ п./п.],SMALL(IF(LEFTB(Т1[Фамилия И.О.])=RIGHTB(CELL(\"имяфайла\",D137)),Т1[№ п./п.]),ROW(A136))),\"\")","v":""},{"$f":"IFERROR(INDEX(Т1[Фамилия И.О.],SMALL(IF(LEFTB(Т1[Фамилия И.О.])=RIGHTB(CELL(\"имяфайла\",E137)),Т1[№ п./п.]),ROW(B136))),\"\")","v":""},{"$f":"IFERROR(INDEX(Т1[Дата рождения],SMALL(IF(LEFTB(Т1[Фамилия И.О.])=RIGHTB(CELL(\"имяфайла\",F137)),Т1[№ п./п.]),ROW(C136))),\"\")","v":""}]
[{"$f":"IFERROR(INDEX(Т1[№ п./п.],SMALL(IF(LEFTB(Т1[Фамилия И.О.])=RIGHTB(CELL(\"имяфайла\",D138)),Т1[№ п./п.]),ROW(A137))),\"\")","v":""},{"$f":"IFERROR(INDEX(Т1[Фамилия И.О.],SMALL(IF(LEFTB(Т1[Фамилия И.О.])=RIGHTB(CELL(\"имяфайла\",E138)),Т1[№ п./п.]),ROW(B137))),\"\")","v":""},{"$f":"IFERROR(INDEX(Т1[Дата рождения],SMALL(IF(LEFTB(Т1[Фамилия И.О.])=RIGHTB(CELL(\"имяфайла\",F138)),Т1[№ п./п.]),ROW(C137))),\"\")","v":""}]
[{"$f":"IFERROR(INDEX(Т1[№ п./п.],SMALL(IF(LEFTB(Т1[Фамилия И.О.])=RIGHTB(CELL(\"имяфайла\",D139)),Т1[№ п./п.]),ROW(A138))),\"\")","v":""},{"$f":"IFERROR(INDEX(Т1[Фамилия И.О.],SMALL(IF(LEFTB(Т1[Фамилия И.О.])=RIGHTB(CELL(\"имяфайла\",E139)),Т1[№ п./п.]),ROW(B138))),\"\")","v":""},{"$f":"IFERROR(INDEX(Т1[Дата рождения],SMALL(IF(LEFTB(Т1[Фамилия И.О.])=RIGHTB(CELL(\"имяфайла\",F139)),Т1[№ п./п.]),ROW(C138))),\"\")","v":""}]
[{"$f":"IFERROR(INDEX(Т1[№ п./п.],SMALL(IF(LEFTB(Т1[Фамилия И.О.])=RIGHTB(CELL(\"имяфайла\",D140)),Т1[№ п./п.]),ROW(A139))),\"\")","v":""},{"$f":"IFERROR(INDEX(Т1[Фамилия И.О.],SMALL(IF(LEFTB(Т1[Фамилия И.О.])=RIGHTB(CELL(\"имяфайла\",E140)),Т1[№ п./п.]),ROW(B139))),\"\")","v":""},{"$f":"IFERROR(INDEX(Т1[Дата рождения],SMALL(IF(LEFTB(Т1[Фамилия И.О.])=RIGHTB(CELL(\"имяфайла\",F140)),Т1[№ п./п.]),ROW(C139))),\"\")","v":""}]
[{"$f":"IFERROR(INDEX(Т1[№ п./п.],SMALL(IF(LEFTB(Т1[Фамилия И.О.])=RIGHTB(CELL(\"имяфайла\",D141)),Т1[№ п./п.]),ROW(A140))),\"\")","v":""},{"$f":"IFERROR(INDEX(Т1[Фамилия И.О.],SMALL(IF(LEFTB(Т1[Фамилия И.О.])=RIGHTB(CELL(\"имяфайла\",E141)),Т1[№ п./п.]),ROW(B140))),\"\")","v":""},{"$f":"IFERROR(INDEX(Т1[Дата рождения],SMALL(IF(LEFTB(Т1[Фамилия И.О.])=RIGHTB(CELL(\"имяфайла\",F141)),Т1[№ п./п.]),ROW(C140))),\"\")","v":""}]
[{"$f":"IFERROR(INDEX(Т1[№ п./п.],SMALL(IF(LEFTB(Т1[Фамилия И.О.])=RIGHTB(CELL(\"имяфайла\",D142)),Т1[№ п./п.]),ROW(A141))),\"\")","v":""},{"$f":"IFERROR(INDEX(Т1[Фамилия И.О.],SMALL(IF(LEFTB(Т1[Фамилия И.О.])=RIGHTB(CELL(\"имяфайла\",E142)),Т1[№ п./п.]),ROW(B141))),\"\")","v":""},{"$f":"IFERROR(INDEX(Т1[Дата рождения],SMALL(IF(LEFTB(Т1[Фамилия И.О.])=RIGHTB(CELL(\"имяфайла\",F142)),Т1[№ п./п.]),ROW(C141))),\"\")","v":""}]
[{"$f":"IFERROR(INDEX(Т1[№ п./п.],SMALL(IF(LEFTB(Т1[Фамилия И.О.])=RIGHTB(CELL(\"имяфайла\",D143)),Т1[№ п./п.]),ROW(A142))),\"\")","v":""},{"$f":"IFERROR(INDEX(Т1[Фамилия И.О.],SMALL(IF(LEFTB(Т1[Фамилия И.О.])=RIGHTB(CELL(\"имяфайла\",E143)),Т1[№ п./п.]),ROW(B142))),\"\")","v":""},{"$f":"IFERROR(INDEX(Т1[Дата рождения],SMALL(IF(LEFTB(Т1[Фамилия И.О.])=RIGHTB(CELL(\"имяфайла\",F143)),Т1[№ п./п.]),ROW(C142))),\"\")","v":""}]
[{"$f":"IFERROR(INDEX(Т1[№ п./п.],SMALL(IF(LEFTB(Т1[Фамилия И.О.])=RIGHTB(CELL(\"имяфайла\",D144)),Т1[№ п./п.]),ROW(A143))),\"\")","v":""},{"$f":"IFERROR(INDEX(Т1[Фамилия И.О.],SMALL(IF(LEFTB(Т1[Фамилия И.О.])=RIGHTB(CELL(\"имяфайла\",E144)),Т1[№ п./п.]),ROW(B143))),\"\")","v":""},{"$f":"IFERROR(INDEX(Т1[Дата рождения],SMALL(IF(LEFTB(Т1[Фамилия И.О.])=RIGHTB(CELL(\"имяфайла\",F144)),Т1[№ п./п.]),ROW(C143))),\"\")","v":""}]
[{"$f":"IFERROR(INDEX(Т1[№ п./п.],SMALL(IF(LEFTB(Т1[Фамилия И.О.])=RIGHTB(CELL(\"имяфайла\",D145)),Т1[№ п./п.]),ROW(A144))),\"\")","v":""},{"$f":"IFERROR(INDEX(Т1[Фамилия И.О.],SMALL(IF(LEFTB(Т1[Фамилия И.О.])=RIGHTB(CELL(\"имяфайла\",E145)),Т1[№ п./п.]),ROW(B144))),\"\")","v":""},{"$f":"IFERROR(INDEX(Т1[Дата рождения],SMALL(IF(LEFTB(Т1[Фамилия И.О.])=RIGHTB(CELL(\"имяфайла\",F145)),Т1[№ п./п.]),ROW(C144))),\"\")","v":""}]
[{"$f":"IFERROR(INDEX(Т1[№ п./п.],SMALL(IF(LEFTB(Т1[Фамилия И.О.])=RIGHTB(CELL(\"имяфайла\",D146)),Т1[№ п./п.]),ROW(A145))),\"\")","v":""},{"$f":"IFERROR(INDEX(Т1[Фамилия И.О.],SMALL(IF(LEFTB(Т1[Фамилия И.О.])=RIGHTB(CELL(\"имяфайла\",E146)),Т1[№ п./п.]),ROW(B145))),\"\")","v":""},{"$f":"IFERROR(INDEX(Т1[Дата рождения],SMALL(IF(LEFTB(Т1[Фамилия И.О.])=RIGHTB(CELL(\"имяфайла\",F146)),Т1[№ п./п.]),ROW(C145))),\"\")","v":""}]
[{"$f":"IFERROR(INDEX(Т1[№ п./п.],SMALL(IF(LEFTB(Т1[Фамилия И.О.])=RIGHTB(CELL(\"имяфайла\",D147)),Т1[№ п./п.]),ROW(A146))),\"\")","v":""},{"$f":"IFERROR(INDEX(Т1[Фамилия И.О.],SMALL(IF(LEFTB(Т1[Фамилия И.О.])=RIGHTB(CELL(\"имяфайла\",E147)),Т1[№ п./п.]),ROW(B146))),\"\")","v":""},{"$f":"IFERROR(INDEX(Т1[Дата рождения],SMALL(IF(LEFTB(Т1[Фамилия И.О.])=RIGHTB(CELL(\"имяфайла\",F147)),Т1[№ п./п.]),ROW(C146))),\"\")","v":""}]
[{"$f":"IFERROR(INDEX(Т1[№ п./п.],SMALL(IF(LEFTB(Т1[Фамилия И.О.])=RIGHTB(CELL(\"имяфайла\",D148)),Т1[№ п./п.]),ROW(A147))),\"\")","v":""},{"$f":"IFERROR(INDEX(Т1[Фамилия И.О.],SMALL(IF(LEFTB(Т1[Фамилия И.О.])=RIGHTB(CELL(\"имяфайла\",E148)),Т1[№ п./п.]),ROW(B147))),\"\")","v":""},{"$f":"IFERROR(INDEX(Т1[Дата рождения],SMALL(IF(LEFTB(Т1[Фамилия И.О.])=RIGHTB(CELL(\"имяфайла\",F148)),Т1[№ п./п.]),ROW(C147))),\"\")","v":""}]
[{"$f":"IFERROR(INDEX(Т1[№ п./п.],SMALL(IF(LEFTB(Т1[Фамилия И.О.])=RIGHTB(CELL(\"имяфайла\",D149)),Т1[№ п./п.]),ROW(A148))),\"\")","v":""},{"$f":"IFERROR(INDEX(Т1[Фамилия И.О.],SMALL(IF(LEFTB(Т1[Фамилия И.О.])=RIGHTB(CELL(\"имяфайла\",E149)),Т1[№ п./п.]),ROW(B148))),\"\")","v":""},{"$f":"IFERROR(INDEX(Т1[Дата рождения],SMALL(IF(LEFTB(Т1[Фамилия И.О.])=RIGHTB(CELL(\"имяфайла\",F149)),Т1[№ п./п.]),ROW(C148))),\"\")","v":""}]
[{"$f":"IFERROR(INDEX(Т1[№ п./п.],SMALL(IF(LEFTB(Т1[Фамилия И.О.])=RIGHTB(CELL(\"имяфайла\",D150)),Т1[№ п./п.]),ROW(A149))),\"\")","v":""},{"$f":"IFERROR(INDEX(Т1[Фамилия И.О.],SMALL(IF(LEFTB(Т1[Фамилия И.О.])=RIGHTB(CELL(\"имяфайла\",E150)),Т1[№ п./п.]),ROW(B149))),\"\")","v":""},{"$f":"IFERROR(INDEX(Т1[Дата рождения],SMALL(IF(LEFTB(Т1[Фамилия И.О.])=RIGHTB(CELL(\"имяфайла\",F150)),Т1[№ п./п.]),ROW(C149))),\"\")","v":""}]
[{"$f":"IFERROR(INDEX(Т1[№ п./п.],SMALL(IF(LEFTB(Т1[Фамилия И.О.])=RIGHTB(CELL(\"имяфайла\",D151)),Т1[№ п./п.]),ROW(A150))),\"\")","v":""},{"$f":"IFERROR(INDEX(Т1[Фамилия И.О.],SMALL(IF(LEFTB(Т1[Фамилия И.О.])=RIGHTB(CELL(\"имяфайла\",E151)),Т1[№ п./п.]),ROW(B150))),\"\")","v":""},{"$f":"IFERROR(INDEX(Т1[Дата рождения],SMALL(IF(LEFTB(Т1[Фамилия И.О.])=RIGHTB(CELL(\"имяфайла\",F151)),Т1[№ п./п.]),ROW(C150))),\"\")","v":""}]
[{"$f":"IFERROR(INDEX(Т1[№ п./п.],SMALL(IF(LEFTB(Т1[Фамилия И.О.])=RIGHTB(CELL(\"имяфайла\",D152)),Т1[№ п./п.]),ROW(A151))),\"\")","v":""},{"$f":"IFERROR(INDEX(Т1[Фамилия И.О.],SMALL(IF(LEFTB(Т1[Фамилия И.О.])=RIGHTB(CELL(\"имяфайла\",E152)),Т1[№ п./п.]),ROW(B151))),\"\")","v":""},{"$f":"IFERROR(INDEX(Т1[Дата рождения],SMALL(IF(LEFTB(Т1[Фамилия И.О.])=RIGHTB(CELL(\"имяфайла\",F152)),Т1[№ п./п.]),ROW(C151))),\"\")","v":""}]
[{"$f":"IFERROR(INDEX(Т1[№ п./п.],SMALL(IF(LEFTB(Т1[Фамилия И.О.])=RIGHTB(CELL(\"имяфайла\",D153)),Т1[№ п./п.]),ROW(A152))),\"\")","v":""},{"$f":"IFERROR(INDEX(Т1[Фамилия И.О.],SMALL(IF(LEFTB(Т1[Фамилия И.О.])=RIGHTB(CELL(\"имяфайла\",E153)),Т1[№ п./п.]),ROW(B152))),\"\")","v":""},{"$f":"IFERROR(INDEX(Т1[Дата рождения],SMALL(IF(LEFTB(Т1[Фамилия И.О.])=RIGHTB(CELL(\"имяфайла\",F153)),Т1[№ п./п.]),ROW(C152))),\"\")","v":""}]
[{"$f":"IFERROR(INDEX(Т1[№ п./п.],SMALL(IF(LEFTB(Т1[Фамилия И.О.])=RIGHTB(CELL(\"имяфайла\",D154)),Т1[№ п./п.]),ROW(A153))),\"\")","v":""},{"$f":"IFERROR(INDEX(Т1[Фамилия И.О.],SMALL(IF(LEFTB(Т1[Фамилия И.О.])=RIGHTB(CELL(\"имяфайла\",E154)),Т1[№ п./п.]),ROW(B153))),\"\")","v":""},{"$f":"IFERROR(INDEX(Т1[Дата рождения],SMALL(IF(LEFTB(Т1[Фамилия И.О.])=RIGHTB(CELL(\"имяфайла\",F154)),Т1[№ п./п.]),ROW(C153))),\"\")","v":""}]
[{"$f":"IFERROR(INDEX(Т1[№ п./п.],SMALL(IF(LEFTB(Т1[Фамилия И.О.])=RIGHTB(CELL(\"имяфайла\",D155)),Т1[№ п./п.]),ROW(A154))),\"\")","v":""},{"$f":"IFERROR(INDEX(Т1[Фамилия И.О.],SMALL(IF(LEFTB(Т1[Фамилия И.О.])=RIGHTB(CELL(\"имяфайла\",E155)),Т1[№ п./п.]),ROW(B154))),\"\")","v":""},{"$f":"IFERROR(INDEX(Т1[Дата рождения],SMALL(IF(LEFTB(Т1[Фамилия И.О.])=RIGHTB(CELL(\"имяфайла\",F155)),Т1[№ п./п.]),ROW(C154))),\"\")","v":""}]
[{"$f":"IFERROR(INDEX(Т1[№ п./п.],SMALL(IF(LEFTB(Т1[Фамилия И.О.])=RIGHTB(CELL(\"имяфайла\",D156)),Т1[№ п./п.]),ROW(A155))),\"\")","v":""},{"$f":"IFERROR(INDEX(Т1[Фамилия И.О.],SMALL(IF(LEFTB(Т1[Фамилия И.О.])=RIGHTB(CELL(\"имяфайла\",E156)),Т1[№ п./п.]),ROW(B155))),\"\")","v":""},{"$f":"IFERROR(INDEX(Т1[Дата рождения],SMALL(IF(LEFTB(Т1[Фамилия И.О.])=RIGHTB(CELL(\"имяфайла\",F156)),Т1[№ п./п.]),ROW(C155))),\"\")","v":""}]
[{"$f":"IFERROR(INDEX(Т1[№ п./п.],SMALL(IF(LEFTB(Т1[Фамилия И.О.])=RIGHTB(CELL(\"имяфайла\",D157)),Т1[№ п./п.]),ROW(A156))),\"\")","v":""},{"$f":"IFERROR(INDEX(Т1[Фамилия И.О.],SMALL(IF(LEFTB(Т1[Фамилия И.О.])=RIGHTB(CELL(\"имяфайла\",E157)),Т1[№ п./п.]),ROW(B156))),\"\")","v":""},{"$f":"IFERROR(INDEX(Т1[Дата рождения],SMALL(IF(LEFTB(Т1[Фамилия И.О.])=RIGHTB(CELL(\"имяфайла\",F157)),Т1[№ п./п.]),ROW(C156))),\"\")","v":""}]
[{"$f":"IFERROR(INDEX(Т1[№ п./п.],SMALL(IF(LEFTB(Т1[Фамилия И.О.])=RIGHTB(CELL(\"имяфайла\",D158)),Т1[№ п./п.]),ROW(A157))),\"\")","v":""},{"$f":"IFERROR(INDEX(Т1[Фамилия И.О.],SMALL(IF(LEFTB(Т1[Фамилия И.О.])=RIGHTB(CELL(\"имяфайла\",E158)),Т1[№ п./п.]),ROW(B157))),\"\")","v":""},{"$f":"IFERROR(INDEX(Т1[Дата рождения],SMALL(IF(LEFTB(Т1[Фамилия И.О.])=RIGHTB(CELL(\"имяфайла\",F158)),Т1[№ п./п.]),ROW(C157))),\"\")","v":""}]
[{"$f":"IFERROR(INDEX(Т1[№ п./п.],SMALL(IF(LEFTB(Т1[Фамилия И.О.])=RIGHTB(CELL(\"имяфайла\",D159)),Т1[№ п./п.]),ROW(A158))),\"\")","v":""},{"$f":"IFERROR(INDEX(Т1[Фамилия И.О.],SMALL(IF(LEFTB(Т1[Фамилия И.О.])=RIGHTB(CELL(\"имяфайла\",E159)),Т1[№ п./п.]),ROW(B158))),\"\")","v":""},{"$f":"IFERROR(INDEX(Т1[Дата рождения],SMALL(IF(LEFTB(Т1[Фамилия И.О.])=RIGHTB(CELL(\"имяфайла\",F159)),Т1[№ п./п.]),ROW(C158))),\"\")","v":""}]
[{"$f":"IFERROR(INDEX(Т1[№ п./п.],SMALL(IF(LEFTB(Т1[Фамилия И.О.])=RIGHTB(CELL(\"имяфайла\",D160)),Т1[№ п./п.]),ROW(A159))),\"\")","v":""},{"$f":"IFERROR(INDEX(Т1[Фамилия И.О.],SMALL(IF(LEFTB(Т1[Фамилия И.О.])=RIGHTB(CELL(\"имяфайла\",E160)),Т1[№ п./п.]),ROW(B159))),\"\")","v":""},{"$f":"IFERROR(INDEX(Т1[Дата рождения],SMALL(IF(LEFTB(Т1[Фамилия И.О.])=RIGHTB(CELL(\"имяфайла\",F160)),Т1[№ п./п.]),ROW(C159))),\"\")","v":""}]
[{"$f":"IFERROR(INDEX(Т1[№ п./п.],SMALL(IF(LEFTB(Т1[Фамилия И.О.])=RIGHTB(CELL(\"имяфайла\",D161)),Т1[№ п./п.]),ROW(A160))),\"\")","v":""},{"$f":"IFERROR(INDEX(Т1[Фамилия И.О.],SMALL(IF(LEFTB(Т1[Фамилия И.О.])=RIGHTB(CELL(\"имяфайла\",E161)),Т1[№ п./п.]),ROW(B160))),\"\")","v":""},{"$f":"IFERROR(INDEX(Т1[Дата рождения],SMALL(IF(LEFTB(Т1[Фамилия И.О.])=RIGHTB(CELL(\"имяфайла\",F161)),Т1[№ п./п.]),ROW(C160))),\"\")","v":""}]
[{"$f":"IFERROR(INDEX(Т1[№ п./п.],SMALL(IF(LEFTB(Т1[Фамилия И.О.])=RIGHTB(CELL(\"имяфайла\",D162)),Т1[№ п./п.]),ROW(A161))),\"\")","v":""},{"$f":"IFERROR(INDEX(Т1[Фамилия И.О.],SMALL(IF(LEFTB(Т1[Фамилия И.О.])=RIGHTB(CELL(\"имяфайла\",E162)),Т1[№ п./п.]),ROW(B161))),\"\")","v":""},{"$f":"IFERROR(INDEX(Т1[Дата рождения],SMALL(IF(LEFTB(Т1[Фамилия И.О.])=RIGHTB(CELL(\"имяфайла\",F162)),Т1[№ п./п.]),ROW(C161))),\"\")","v":""}]
[{"$f":"IFERROR(INDEX(Т1[№ п./п.],SMALL(IF(LEFTB(Т1[Фамилия И.О.])=RIGHTB(CELL(\"имяфайла\",D163)),Т1[№ п./п.]),ROW(A162))),\"\")","v":""},{"$f":"IFERROR(INDEX(Т1[Фамилия И.О.],SMALL(IF(LEFTB(Т1[Фамилия И.О.])=RIGHTB(CELL(\"имяфайла\",E163)),Т1[№ п./п.]),ROW(B162))),\"\")","v":""},{"$f":"IFERROR(INDEX(Т1[Дата рождения],SMALL(IF(LEFTB(Т1[Фамилия И.О.])=RIGHTB(CELL(\"имяфайла\",F163)),Т1[№ п./п.]),ROW(C162))),\"\")","v":""}]
[{"$f":"IFERROR(INDEX(Т1[№ п./п.],SMALL(IF(LEFTB(Т1[Фамилия И.О.])=RIGHTB(CELL(\"имяфайла\",D164)),Т1[№ п./п.]),ROW(A163))),\"\")","v":""},{"$f":"IFERROR(INDEX(Т1[Фамилия И.О.],SMALL(IF(LEFTB(Т1[Фамилия И.О.])=RIGHTB(CELL(\"имяфайла\",E164)),Т1[№ п./п.]),ROW(B163))),\"\")","v":""},{"$f":"IFERROR(INDEX(Т1[Дата рождения],SMALL(IF(LEFTB(Т1[Фамилия И.О.])=RIGHTB(CELL(\"имяфайла\",F164)),Т1[№ п./п.]),ROW(C163))),\"\")","v":""}]
[{"$f":"IFERROR(INDEX(Т1[№ п./п.],SMALL(IF(LEFTB(Т1[Фамилия И.О.])=RIGHTB(CELL(\"имяфайла\",D165)),Т1[№ п./п.]),ROW(A164))),\"\")","v":""},{"$f":"IFERROR(INDEX(Т1[Фамилия И.О.],SMALL(IF(LEFTB(Т1[Фамилия И.О.])=RIGHTB(CELL(\"имяфайла\",E165)),Т1[№ п./п.]),ROW(B164))),\"\")","v":""},{"$f":"IFERROR(INDEX(Т1[Дата рождения],SMALL(IF(LEFTB(Т1[Фамилия И.О.])=RIGHTB(CELL(\"имяфайла\",F165)),Т1[№ п./п.]),ROW(C164))),\"\")","v":""}]
[{"$f":"IFERROR(INDEX(Т1[№ п./п.],SMALL(IF(LEFTB(Т1[Фамилия И.О.])=RIGHTB(CELL(\"имяфайла\",D166)),Т1[№ п./п.]),ROW(A165))),\"\")","v":""},{"$f":"IFERROR(INDEX(Т1[Фамилия И.О.],SMALL(IF(LEFTB(Т1[Фамилия И.О.])=RIGHTB(CELL(\"имяфайла\",E166)),Т1[№ п./п.]),ROW(B165))),\"\")","v":""},{"$f":"IFERROR(INDEX(Т1[Дата рождения],SMALL(IF(LEFTB(Т1[Фамилия И.О.])=RIGHTB(CELL(\"имяфайла\",F166)),Т1[№ п./п.]),ROW(C165))),\"\")","v":""}]
[{"$f":"IFERROR(INDEX(Т1[№ п./п.],SMALL(IF(LEFTB(Т1[Фамилия И.О.])=RIGHTB(CELL(\"имяфайла\",D167)),Т1[№ п./п.]),ROW(A166))),\"\")","v":""},{"$f":"IFERROR(INDEX(Т1[Фамилия И.О.],SMALL(IF(LEFTB(Т1[Фамилия И.О.])=RIGHTB(CELL(\"имяфайла\",E167)),Т1[№ п./п.]),ROW(B166))),\"\")","v":""},{"$f":"IFERROR(INDEX(Т1[Дата рождения],SMALL(IF(LEFTB(Т1[Фамилия И.О.])=RIGHTB(CELL(\"имяфайла\",F167)),Т1[№ п./п.]),ROW(C166))),\"\")","v":""}]
[{"$f":"IFERROR(INDEX(Т1[№ п./п.],SMALL(IF(LEFTB(Т1[Фамилия И.О.])=RIGHTB(CELL(\"имяфайла\",D168)),Т1[№ п./п.]),ROW(A167))),\"\")","v":""},{"$f":"IFERROR(INDEX(Т1[Фамилия И.О.],SMALL(IF(LEFTB(Т1[Фамилия И.О.])=RIGHTB(CELL(\"имяфайла\",E168)),Т1[№ п./п.]),ROW(B167))),\"\")","v":""},{"$f":"IFERROR(INDEX(Т1[Дата рождения],SMALL(IF(LEFTB(Т1[Фамилия И.О.])=RIGHTB(CELL(\"имяфайла\",F168)),Т1[№ п./п.]),ROW(C167))),\"\")","v":""}]
[{"$f":"IFERROR(INDEX(Т1[№ п./п.],SMALL(IF(LEFTB(Т1[Фамилия И.О.])=RIGHTB(CELL(\"имяфайла\",D169)),Т1[№ п./п.]),ROW(A168))),\"\")","v":""},{"$f":"IFERROR(INDEX(Т1[Фамилия И.О.],SMALL(IF(LEFTB(Т1[Фамилия И.О.])=RIGHTB(CELL(\"имяфайла\",E169)),Т1[№ п./п.]),ROW(B168))),\"\")","v":""},{"$f":"IFERROR(INDEX(Т1[Дата рождения],SMALL(IF(LEFTB(Т1[Фамилия И.О.])=RIGHTB(CELL(\"имяфайла\",F169)),Т1[№ п./п.]),ROW(C168))),\"\")","v":""}]
[{"$f":"IFERROR(INDEX(Т1[№ п./п.],SMALL(IF(LEFTB(Т1[Фамилия И.О.])=RIGHTB(CELL(\"имяфайла\",D170)),Т1[№ п./п.]),ROW(A169))),\"\")","v":""},{"$f":"IFERROR(INDEX(Т1[Фамилия И.О.],SMALL(IF(LEFTB(Т1[Фамилия И.О.])=RIGHTB(CELL(\"имяфайла\",E170)),Т1[№ п./п.]),ROW(B169))),\"\")","v":""},{"$f":"IFERROR(INDEX(Т1[Дата рождения],SMALL(IF(LEFTB(Т1[Фамилия И.О.])=RIGHTB(CELL(\"имяфайла\",F170)),Т1[№ п./п.]),ROW(C169))),\"\")","v":""}]
[{"$f":"IFERROR(INDEX(Т1[№ п./п.],SMALL(IF(LEFTB(Т1[Фамилия И.О.])=RIGHTB(CELL(\"имяфайла\",D171)),Т1[№ п./п.]),ROW(A170))),\"\")","v":""},{"$f":"IFERROR(INDEX(Т1[Фамилия И.О.],SMALL(IF(LEFTB(Т1[Фамилия И.О.])=RIGHTB(CELL(\"имяфайла\",E171)),Т1[№ п./п.]),ROW(B170))),\"\")","v":""},{"$f":"IFERROR(INDEX(Т1[Дата рождения],SMALL(IF(LEFTB(Т1[Фамилия И.О.])=RIGHTB(CELL(\"имяфайла\",F171)),Т1[№ п./п.]),ROW(C170))),\"\")","v":""}]
[{"$f":"IFERROR(INDEX(Т1[№ п./п.],SMALL(IF(LEFTB(Т1[Фамилия И.О.])=RIGHTB(CELL(\"имяфайла\",D172)),Т1[№ п./п.]),ROW(A171))),\"\")","v":""},{"$f":"IFERROR(INDEX(Т1[Фамилия И.О.],SMALL(IF(LEFTB(Т1[Фамилия И.О.])=RIGHTB(CELL(\"имяфайла\",E172)),Т1[№ п./п.]),ROW(B171))),\"\")","v":""},{"$f":"IFERROR(INDEX(Т1[Дата рождения],SMALL(IF(LEFTB(Т1[Фамилия И.О.])=RIGHTB(CELL(\"имяфайла\",F172)),Т1[№ п./п.]),ROW(C171))),\"\")","v":""}]
[{"$f":"IFERROR(INDEX(Т1[№ п./п.],SMALL(IF(LEFTB(Т1[Фамилия И.О.])=RIGHTB(CELL(\"имяфайла\",D173)),Т1[№ п./п.]),ROW(A172))),\"\")","v":""},{"$f":"IFERROR(INDEX(Т1[Фамилия И.О.],SMALL(IF(LEFTB(Т1[Фамилия И.О.])=RIGHTB(CELL(\"имяфайла\",E173)),Т1[№ п./п.]),ROW(B172))),\"\")","v":""},{"$f":"IFERROR(INDEX(Т1[Дата рождения],SMALL(IF(LEFTB(Т1[Фамилия И.О.])=RIGHTB(CELL(\"имяфайла\",F173)),Т1[№ п./п.]),ROW(C172))),\"\")","v":""}]
[{"$f":"IFERROR(INDEX(Т1[№ п./п.],SMALL(IF(LEFTB(Т1[Фамилия И.О.])=RIGHTB(CELL(\"имяфайла\",D174)),Т1[№ п./п.]),ROW(A173))),\"\")","v":""},{"$f":"IFERROR(INDEX(Т1[Фамилия И.О.],SMALL(IF(LEFTB(Т1[Фамилия И.О.])=RIGHTB(CELL(\"имяфайла\",E174)),Т1[№ п./п.]),ROW(B173))),\"\")","v":""},{"$f":"IFERROR(INDEX(Т1[Дата рождения],SMALL(IF(LEFTB(Т1[Фамилия И.О.])=RIGHTB(CELL(\"имяфайла\",F174)),Т1[№ п./п.]),ROW(C173))),\"\")","v":""}]
[{"$f":"IFERROR(INDEX(Т1[№ п./п.],SMALL(IF(LEFTB(Т1[Фамилия И.О.])=RIGHTB(CELL(\"имяфайла\",D175)),Т1[№ п./п.]),ROW(A174))),\"\")","v":""},{"$f":"IFERROR(INDEX(Т1[Фамилия И.О.],SMALL(IF(LEFTB(Т1[Фамилия И.О.])=RIGHTB(CELL(\"имяфайла\",E175)),Т1[№ п./п.]),ROW(B174))),\"\")","v":""},{"$f":"IFERROR(INDEX(Т1[Дата рождения],SMALL(IF(LEFTB(Т1[Фамилия И.О.])=RIGHTB(CELL(\"имяфайла\",F175)),Т1[№ п./п.]),ROW(C174))),\"\")","v":""}]
[{"$f":"IFERROR(INDEX(Т1[№ п./п.],SMALL(IF(LEFTB(Т1[Фамилия И.О.])=RIGHTB(CELL(\"имяфайла\",D176)),Т1[№ п./п.]),ROW(A175))),\"\")","v":""},{"$f":"IFERROR(INDEX(Т1[Фамилия И.О.],SMALL(IF(LEFTB(Т1[Фамилия И.О.])=RIGHTB(CELL(\"имяфайла\",E176)),Т1[№ п./п.]),ROW(B175))),\"\")","v":""},{"$f":"IFERROR(INDEX(Т1[Дата рождения],SMALL(IF(LEFTB(Т1[Фамилия И.О.])=RIGHTB(CELL(\"имяфайла\",F176)),Т1[№ п./п.]),ROW(C175))),\"\")","v":""}]
[{"$f":"IFERROR(INDEX(Т1[№ п./п.],SMALL(IF(LEFTB(Т1[Фамилия И.О.])=RIGHTB(CELL(\"имяфайла\",D177)),Т1[№ п./п.]),ROW(A176))),\"\")","v":""},{"$f":"IFERROR(INDEX(Т1[Фамилия И.О.],SMALL(IF(LEFTB(Т1[Фамилия И.О.])=RIGHTB(CELL(\"имяфайла\",E177)),Т1[№ п./п.]),ROW(B176))),\"\")","v":""},{"$f":"IFERROR(INDEX(Т1[Дата рождения],SMALL(IF(LEFTB(Т1[Фамилия И.О.])=RIGHTB(CELL(\"имяфайла\",F177)),Т1[№ п./п.]),ROW(C176))),\"\")","v":""}]
[{"$f":"IFERROR(INDEX(Т1[№ п./п.],SMALL(IF(LEFTB(Т1[Фамилия И.О.])=RIGHTB(CELL(\"имяфайла\",D178)),Т1[№ п./п.]),ROW(A177))),\"\")","v":""},{"$f":"IFERROR(INDEX(Т1[Фамилия И.О.],SMALL(IF(LEFTB(Т1[Фамилия И.О.])=RIGHTB(CELL(\"имяфайла\",E178)),Т1[№ п./п.]),ROW(B177))),\"\")","v":""},{"$f":"IFERROR(INDEX(Т1[Дата рождения],SMALL(IF(LEFTB(Т1[Фамилия И.О.])=RIGHTB(CELL(\"имяфайла\",F178)),Т1[№ п./п.]),ROW(C177))),\"\")","v":""}]
[{"$f":"IFERROR(INDEX(Т1[№ п./п.],SMALL(IF(LEFTB(Т1[Фамилия И.О.])=RIGHTB(CELL(\"имяфайла\",D179)),Т1[№ п./п.]),ROW(A178))),\"\")","v":""},{"$f":"IFERROR(INDEX(Т1[Фамилия И.О.],SMALL(IF(LEFTB(Т1[Фамилия И.О.])=RIGHTB(CELL(\"имяфайла\",E179)),Т1[№ п./п.]),ROW(B178))),\"\")","v":""},{"$f":"IFERROR(INDEX(Т1[Дата рождения],SMALL(IF(LEFTB(Т1[Фамилия И.О.])=RIGHTB(CELL(\"имяфайла\",F179)),Т1[№ п./п.]),ROW(C178))),\"\")","v":""}]
[{"$f":"IFERROR(INDEX(Т1[№ п./п.],SMALL(IF(LEFTB(Т1[Фамилия И.О.])=RIGHTB(CELL(\"имяфайла\",D180)),Т1[№ п./п.]),ROW(A179))),\"\")","v":""},{"$f":"IFERROR(INDEX(Т1[Фамилия И.О.],SMALL(IF(LEFTB(Т1[Фамилия И.О.])=RIGHTB(CELL(\"имяфайла\",E180)),Т1[№ п./п.]),ROW(B179))),\"\")","v":""},{"$f":"IFERROR(INDEX(Т1[Дата рождения],SMALL(IF(LEFTB(Т1[Фамилия И.О.])=RIGHTB(CELL(\"имяфайла\",F180)),Т1[№ п./п.]),ROW(C179))),\"\")","v":""}]
[{"$f":"IFERROR(INDEX(Т1[№ п./п.],SMALL(IF(LEFTB(Т1[Фамилия И.О.])=RIGHTB(CELL(\"имяфайла\",D181)),Т1[№ п./п.]),ROW(A180))),\"\")","v":""},{"$f":"IFERROR(INDEX(Т1[Фамилия И.О.],SMALL(IF(LEFTB(Т1[Фамилия И.О.])=RIGHTB(CELL(\"имяфайла\",E181)),Т1[№ п./п.]),ROW(B180))),\"\")","v":""},{"$f":"IFERROR(INDEX(Т1[Дата рождения],SMALL(IF(LEFTB(Т1[Фамилия И.О.])=RIGHTB(CELL(\"имяфайла\",F181)),Т1[№ п./п.]),ROW(C180))),\"\")","v":""}]
[{"$f":"IFERROR(INDEX(Т1[№ п./п.],SMALL(IF(LEFTB(Т1[Фамилия И.О.])=RIGHTB(CELL(\"имяфайла\",D182)),Т1[№ п./п.]),ROW(A181))),\"\")","v":""},{"$f":"IFERROR(INDEX(Т1[Фамилия И.О.],SMALL(IF(LEFTB(Т1[Фамилия И.О.])=RIGHTB(CELL(\"имяфайла\",E182)),Т1[№ п./п.]),ROW(B181))),\"\")","v":""},{"$f":"IFERROR(INDEX(Т1[Дата рождения],SMALL(IF(LEFTB(Т1[Фамилия И.О.])=RIGHTB(CELL(\"имяфайла\",F182)),Т1[№ п./п.]),ROW(C181))),\"\")","v":""}]
[{"$f":"IFERROR(INDEX(Т1[№ п./п.],SMALL(IF(LEFTB(Т1[Фамилия И.О.])=RIGHTB(CELL(\"имяфайла\",D183)),Т1[№ п./п.]),ROW(A182))),\"\")","v":""},{"$f":"IFERROR(INDEX(Т1[Фамилия И.О.],SMALL(IF(LEFTB(Т1[Фамилия И.О.])=RIGHTB(CELL(\"имяфайла\",E183)),Т1[№ п./п.]),ROW(B182))),\"\")","v":""},{"$f":"IFERROR(INDEX(Т1[Дата рождения],SMALL(IF(LEFTB(Т1[Фамилия И.О.])=RIGHTB(CELL(\"имяфайла\",F183)),Т1[№ п./п.]),ROW(C182))),\"\")","v":""}]
[{"$f":"IFERROR(INDEX(Т1[№ п./п.],SMALL(IF(LEFTB(Т1[Фамилия И.О.])=RIGHTB(CELL(\"имяфайла\",D184)),Т1[№ п./п.]),ROW(A183))),\"\")","v":""},{"$f":"IFERROR(INDEX(Т1[Фамилия И.О.],SMALL(IF(LEFTB(Т1[Фамилия И.О.])=RIGHTB(CELL(\"имяфайла\",E184)),Т1[№ п./п.]),ROW(B183))),\"\")","v":""},{"$f":"IFERROR(INDEX(Т1[Дата рождения],SMALL(IF(LEFTB(Т1[Фамилия И.О.])=RIGHTB(CELL(\"имяфайла\",F184)),Т1[№ п./п.]),ROW(C183))),\"\")","v":""}]
[{"$f":"IFERROR(INDEX(Т1[№ п./п.],SMALL(IF(LEFTB(Т1[Фамилия И.О.])=RIGHTB(CELL(\"имяфайла\",D185)),Т1[№ п./п.]),ROW(A184))),\"\")","v":""},{"$f":"IFERROR(INDEX(Т1[Фамилия И.О.],SMALL(IF(LEFTB(Т1[Фамилия И.О.])=RIGHTB(CELL(\"имяфайла\",E185)),Т1[№ п./п.]),ROW(B184))),\"\")","v":""},{"$f":"IFERROR(INDEX(Т1[Дата рождения],SMALL(IF(LEFTB(Т1[Фамилия И.О.])=RIGHTB(CELL(\"имяфайла\",F185)),Т1[№ п./п.]),ROW(C184))),\"\")","v":""}]
[{"$f":"IFERROR(INDEX(Т1[№ п./п.],SMALL(IF(LEFTB(Т1[Фамилия И.О.])=RIGHTB(CELL(\"имяфайла\",D186)),Т1[№ п./п.]),ROW(A185))),\"\")","v":""},{"$f":"IFERROR(INDEX(Т1[Фамилия И.О.],SMALL(IF(LEFTB(Т1[Фамилия И.О.])=RIGHTB(CELL(\"имяфайла\",E186)),Т1[№ п./п.]),ROW(B185))),\"\")","v":""},{"$f":"IFERROR(INDEX(Т1[Дата рождения],SMALL(IF(LEFTB(Т1[Фамилия И.О.])=RIGHTB(CELL(\"имяфайла\",F186)),Т1[№ п./п.]),ROW(C185))),\"\")","v":""}]
[{"$f":"IFERROR(INDEX(Т1[№ п./п.],SMALL(IF(LEFTB(Т1[Фамилия И.О.])=RIGHTB(CELL(\"имяфайла\",D187)),Т1[№ п./п.]),ROW(A186))),\"\")","v":""},{"$f":"IFERROR(INDEX(Т1[Фамилия И.О.],SMALL(IF(LEFTB(Т1[Фамилия И.О.])=RIGHTB(CELL(\"имяфайла\",E187)),Т1[№ п./п.]),ROW(B186))),\"\")","v":""},{"$f":"IFERROR(INDEX(Т1[Дата рождения],SMALL(IF(LEFTB(Т1[Фамилия И.О.])=RIGHTB(CELL(\"имяфайла\",F187)),Т1[№ п./п.]),ROW(C186))),\"\")","v":""}]
[{"$f":"IFERROR(INDEX(Т1[№ п./п.],SMALL(IF(LEFTB(Т1[Фамилия И.О.])=RIGHTB(CELL(\"имяфайла\",D188)),Т1[№ п./п.]),ROW(A187))),\"\")","v":""},{"$f":"IFERROR(INDEX(Т1[Фамилия И.О.],SMALL(IF(LEFTB(Т1[Фамилия И.О.])=RIGHTB(CELL(\"имяфайла\",E188)),Т1[№ п./п.]),ROW(B187))),\"\")","v":""},{"$f":"IFERROR(INDEX(Т1[Дата рождения],SMALL(IF(LEFTB(Т1[Фамилия И.О.])=RIGHTB(CELL(\"имяфайла\",F188)),Т1[№ п./п.]),ROW(C187))),\"\")","v":""}]
[{"$f":"IFERROR(INDEX(Т1[№ п./п.],SMALL(IF(LEFTB(Т1[Фамилия И.О.])=RIGHTB(CELL(\"имяфайла\",D189)),Т1[№ п./п.]),ROW(A188))),\"\")","v":""},{"$f":"IFERROR(INDEX(Т1[Фамилия И.О.],SMALL(IF(LEFTB(Т1[Фамилия И.О.])=RIGHTB(CELL(\"имяфайла\",E189)),Т1[№ п./п.]),ROW(B188))),\"\")","v":""},{"$f":"IFERROR(INDEX(Т1[Дата рождения],SMALL(IF(LEFTB(Т1[Фамилия И.О.])=RIGHTB(CELL(\"имяфайла\",F189)),Т1[№ п./п.]),ROW(C188))),\"\")","v":""}]
[{"$f":"IFERROR(INDEX(Т1[№ п./п.],SMALL(IF(LEFTB(Т1[Фамилия И.О.])=RIGHTB(CELL(\"имяфайла\",D190)),Т1[№ п./п.]),ROW(A189))),\"\")","v":""},{"$f":"IFERROR(INDEX(Т1[Фамилия И.О.],SMALL(IF(LEFTB(Т1[Фамилия И.О.])=RIGHTB(CELL(\"имяфайла\",E190)),Т1[№ п./п.]),ROW(B189))),\"\")","v":""},{"$f":"IFERROR(INDEX(Т1[Дата рождения],SMALL(IF(LEFTB(Т1[Фамилия И.О.])=RIGHTB(CELL(\"имяфайла\",F190)),Т1[№ п./п.]),ROW(C189))),\"\")","v":""}]
[{"$f":"IFERROR(INDEX(Т1[№ п./п.],SMALL(IF(LEFTB(Т1[Фамилия И.О.])=RIGHTB(CELL(\"имяфайла\",D191)),Т1[№ п./п.]),ROW(A190))),\"\")","v":""},{"$f":"IFERROR(INDEX(Т1[Фамилия И.О.],SMALL(IF(LEFTB(Т1[Фамилия И.О.])=RIGHTB(CELL(\"имяфайла\",E191)),Т1[№ п./п.]),ROW(B190))),\"\")","v":""},{"$f":"IFERROR(INDEX(Т1[Дата рождения],SMALL(IF(LEFTB(Т1[Фамилия И.О.])=RIGHTB(CELL(\"имяфайла\",F191)),Т1[№ п./п.]),ROW(C190))),\"\")","v":""}]
[{"$f":"IFERROR(INDEX(Т1[№ п./п.],SMALL(IF(LEFTB(Т1[Фамилия И.О.])=RIGHTB(CELL(\"имяфайла\",D192)),Т1[№ п./п.]),ROW(A191))),\"\")","v":""},{"$f":"IFERROR(INDEX(Т1[Фамилия И.О.],SMALL(IF(LEFTB(Т1[Фамилия И.О.])=RIGHTB(CELL(\"имяфайла\",E192)),Т1[№ п./п.]),ROW(B191))),\"\")","v":""},{"$f":"IFERROR(INDEX(Т1[Дата рождения],SMALL(IF(LEFTB(Т1[Фамилия И.О.])=RIGHTB(CELL(\"имяфайла\",F192)),Т1[№ п./п.]),ROW(C191))),\"\")","v":""}]
[{"$f":"IFERROR(INDEX(Т1[№ п./п.],SMALL(IF(LEFTB(Т1[Фамилия И.О.])=RIGHTB(CELL(\"имяфайла\",D193)),Т1[№ п./п.]),ROW(A192))),\"\")","v":""},{"$f":"IFERROR(INDEX(Т1[Фамилия И.О.],SMALL(IF(LEFTB(Т1[Фамилия И.О.])=RIGHTB(CELL(\"имяфайла\",E193)),Т1[№ п./п.]),ROW(B192))),\"\")","v":""},{"$f":"IFERROR(INDEX(Т1[Дата рождения],SMALL(IF(LEFTB(Т1[Фамилия И.О.])=RIGHTB(CELL(\"имяфайла\",F193)),Т1[№ п./п.]),ROW(C192))),\"\")","v":""}]
[{"$f":"IFERROR(INDEX(Т1[№ п./п.],SMALL(IF(LEFTB(Т1[Фамилия И.О.])=RIGHTB(CELL(\"имяфайла\",D194)),Т1[№ п./п.]),ROW(A193))),\"\")","v":""},{"$f":"IFERROR(INDEX(Т1[Фамилия И.О.],SMALL(IF(LEFTB(Т1[Фамилия И.О.])=RIGHTB(CELL(\"имяфайла\",E194)),Т1[№ п./п.]),ROW(B193))),\"\")","v":""},{"$f":"IFERROR(INDEX(Т1[Дата рождения],SMALL(IF(LEFTB(Т1[Фамилия И.О.])=RIGHTB(CELL(\"имяфайла\",F194)),Т1[№ п./п.]),ROW(C193))),\"\")","v":""}]
[{"$f":"IFERROR(INDEX(Т1[№ п./п.],SMALL(IF(LEFTB(Т1[Фамилия И.О.])=RIGHTB(CELL(\"имяфайла\",D195)),Т1[№ п./п.]),ROW(A194))),\"\")","v":""},{"$f":"IFERROR(INDEX(Т1[Фамилия И.О.],SMALL(IF(LEFTB(Т1[Фамилия И.О.])=RIGHTB(CELL(\"имяфайла\",E195)),Т1[№ п./п.]),ROW(B194))),\"\")","v":""},{"$f":"IFERROR(INDEX(Т1[Дата рождения],SMALL(IF(LEFTB(Т1[Фамилия И.О.])=RIGHTB(CELL(\"имяфайла\",F195)),Т1[№ п./п.]),ROW(C194))),\"\")","v":""}]
[{"$f":"IFERROR(INDEX(Т1[№ п./п.],SMALL(IF(LEFTB(Т1[Фамилия И.О.])=RIGHTB(CELL(\"имяфайла\",D196)),Т1[№ п./п.]),ROW(A195))),\"\")","v":""},{"$f":"IFERROR(INDEX(Т1[Фамилия И.О.],SMALL(IF(LEFTB(Т1[Фамилия И.О.])=RIGHTB(CELL(\"имяфайла\",E196)),Т1[№ п./п.]),ROW(B195))),\"\")","v":""},{"$f":"IFERROR(INDEX(Т1[Дата рождения],SMALL(IF(LEFTB(Т1[Фамилия И.О.])=RIGHTB(CELL(\"имяфайла\",F196)),Т1[№ п./п.]),ROW(C195))),\"\")","v":""}]
[{"$f":"IFERROR(INDEX(Т1[№ п./п.],SMALL(IF(LEFTB(Т1[Фамилия И.О.])=RIGHTB(CELL(\"имяфайла\",D197)),Т1[№ п./п.]),ROW(A196))),\"\")","v":""},{"$f":"IFERROR(INDEX(Т1[Фамилия И.О.],SMALL(IF(LEFTB(Т1[Фамилия И.О.])=RIGHTB(CELL(\"имяфайла\",E197)),Т1[№ п./п.]),ROW(B196))),\"\")","v":""},{"$f":"IFERROR(INDEX(Т1[Дата рождения],SMALL(IF(LEFTB(Т1[Фамилия И.О.])=RIGHTB(CELL(\"имяфайла\",F197)),Т1[№ п./п.]),ROW(C196))),\"\")","v":""}]
[{"$f":"IFERROR(INDEX(Т1[№ п./п.],SMALL(IF(LEFTB(Т1[Фамилия И.О.])=RIGHTB(CELL(\"имяфайла\",D198)),Т1[№ п./п.]),ROW(A197))),\"\")","v":""},{"$f":"IFERROR(INDEX(Т1[Фамилия И.О.],SMALL(IF(LEFTB(Т1[Фамилия И.О.])=RIGHTB(CELL(\"имяфайла\",E198)),Т1[№ п./п.]),ROW(B197))),\"\")","v":""},{"$f":"IFERROR(INDEX(Т1[Дата рождения],SMALL(IF(LEFTB(Т1[Фамилия И.О.])=RIGHTB(CELL(\"имяфайла\",F198)),Т1[№ п./п.]),ROW(C197))),\"\")","v":""}]
[{"$f":"IFERROR(INDEX(Т1[№ п./п.],SMALL(IF(LEFTB(Т1[Фамилия И.О.])=RIGHTB(CELL(\"имяфайла\",D199)),Т1[№ п./п.]),ROW(A198))),\"\")","v":""},{"$f":"IFERROR(INDEX(Т1[Фамилия И.О.],SMALL(IF(LEFTB(Т1[Фамилия И.О.])=RIGHTB(CELL(\"имяфайла\",E199)),Т1[№ п./п.]),ROW(B198))),\"\")","v":""},{"$f":"IFERROR(INDEX(Т1[Дата рождения],SMALL(IF(LEFTB(Т1[Фамилия И.О.])=RIGHTB(CELL(\"имяфайла\",F199)),Т1[№ п./п.]),ROW(C198))),\"\")","v":""}]
[{"$f":"IFERROR(INDEX(Т1[№ п./п.],SMALL(IF(LEFTB(Т1[Фамилия И.О.])=RIGHTB(CELL(\"имяфайла\",D200)),Т1[№ п./п.]),ROW(A199))),\"\")","v":""},{"$f":"IFERROR(INDEX(Т1[Фамилия И.О.],SMALL(IF(LEFTB(Т1[Фамилия И.О.])=RIGHTB(CELL(\"имяфайла\",E200)),Т1[№ п./п.]),ROW(B199))),\"\")","v":""},{"$f":"IFERROR(INDEX(Т1[Дата рождения],SMALL(IF(LEFTB(Т1[Фамилия И.О.])=RIGHTB(CELL(\"имяфайла\",F200)),Т1[№ п./п.]),ROW(C199))),\"\")","v":""}]
[{"$f":"IFERROR(INDEX(Т1[№ п./п.],SMALL(IF(LEFTB(Т1[Фамилия И.О.])=RIGHTB(CELL(\"имяфайла\",D201)),Т1[№ п./п.]),ROW(A200))),\"\")","v":""},{"$f":"IFERROR(INDEX(Т1[Фамилия И.О.],SMALL(IF(LEFTB(Т1[Фамилия И.О.])=RIGHTB(CELL(\"имяфайла\",E201)),Т1[№ п./п.]),ROW(B200))),\"\")","v":""},{"$f":"IFERROR(INDEX(Т1[Дата рождения],SMALL(IF(LEFTB(Т1[Фамилия И.О.])=RIGHTB(CELL(\"имяфайла\",F201)),Т1[№ п./п.]),ROW(C200))),\"\")","v":""}]